Workbook

Sheet LSM Paper Example
A1: LSM Paper Example
A3: Ceteris Paribus Parameters | D3: LIBOR Short Rates | E3: 1 | F3: 2 | G3: 3 | H3: 4 | I3: 5 | J3: 6 | K3: 7 | L3: 8 | M3: 9 | N3: 10 | O3: 11 | P3: 12 | Q3: 13 | R3: 14 | S3: 15 | T3: 16 | U3: 17 | V3: 18 | W3: 19 | X3: 20 | Y3: 21 | Z3: 22 | AA3: 23 | AB3: 24 | AC3: 25 | AD3: 26 | AE3: 27 | AF3: 28 | AG3: 29 | AH3: 30 | AI3: 31 | AJ3: 32 | AK3: 33 | AL3: 34 | AM3: 35 | AN3: 36 | AO3: 37 | AP3: 38 | AQ3: 39 | AR3: 40 | AS3: 41 | AT3: 42 | AU3: 43 | AV3: 44 | AW3: 45 | AX3: 46 | AY3: 47 | AZ3: 48 | BA3: 49 | BB3: 50 | BC3: 51 | BD3: 52 | BE3: 53 | BF3: 54 | BG3: 55 | BH3: 56 | BI3: 57 | BJ3: 58 | BK3: 59 | BL3: 60 | BM3: 61 | BN3: 62 | BO3: 63 | BP3: 64 | BQ3: 65 | BR3: 66 | BS3: 67 | BT3: 68 | BU3: 69 | BV3: 70 | BW3: 71 | BX3: 72 | BY3: 73 | BZ3: 74 | CA3: 75 | CB3: 76 | CC3: 77 | CD3: 78 | CE3: 79 | CF3: 80 | CG3: 81 | CH3: 82 | CI3: 83 | CJ3: 84 | CK3: 85 | CL3: 86 | CM3: 87 | CN3: 88 | CO3: 89 | CP3: 90 | CQ3: 91 | CR3: 92 | CS3: 93 | CT3: 94 | CU3: 95 | CV3: 96 | CW3: 97 | CX3: 98 | CY3: 99 | CZ3: 100 | DA3: 101 | DB3: 102 | DC3: 103 | DD3: 104 | DE3: 105 | DF3: 106 | DG3: 107 | DH3: 108 | DI3: 109 | DJ3: 110 | DK3: 111 | DL3: 112 | DM3: 113 | DN3: 114 | DO3: 115 | DP3: 116 | DQ3: 117 | DR3: 118 | DS3: 119 | DT3: 120 | DU3: 121 | DV3: 122 | DW3: 123 | DX3: 124 | DY3: 125 | DZ3: 126 | EA3: 127 | EB3: 128 | EC3: 129 | ED3: 130 | EE3: 131 | EF3: 132 | EG3: 133 | EH3: 134 | EI3: 135 | EJ3: 136 | EK3: 137 | EL3: 138 | EM3: 139 | EN3: 140 | EO3: 141 | EP3: 142 | EQ3: 143 | ER3: 144 | ES3: 145 | ET3: 146 | EU3: 147 | EV3: 148 | EW3: 149 | EX3: 150 | EY3: 151 | EZ3: 152 | FA3: 153 | FB3: 154 | FC3: 155 | FD3: 156 | FE3: 157 | FF3: 158 | FG3: 159 | FH3: 160 | FI3: 161 | FJ3: 162 | FK3: 163 | FL3: 164 | FM3: 165 | FN3: 166 | FO3: 167 | FP3: 168 | FQ3: 169 | FR3: 170 | FS3: 171 | FT3: 172 | FU3: 173 | FV3: 174 | FW3: 175 | FX3: 176 | FY3: 177 | FZ3: 178 | GA3: 179 | GB3: 180 | GC3: 181 | GD3: 182 | GE3: 183 | GF3: 184 | GG3: 185 | GH3: 186 | GI3: 187 | GJ3: 188 | GK3: 189 | GL3: 190 | GM3: 191 | GN3: 192 | GO3: 193 | GP3: 194 | GQ3: 195 | GR3: 196 | GS3: 197 | GT3: 198 | GU3: 199 | GV3: 200 | GW3: 201 | GX3: 202 | GY3: 203 | GZ3: 204 | HA3: 205 | HB3: 206 | HC3: 207 | HD3: 208 | HE3: 209 | HF3: 210 | HG3: 211 | HH3: 212 | HI3: 213 | HJ3: 214 | HK3: 215 | HL3: 216 | HM3: 217 | HN3: 218 | HO3: 219 | HP3: 220 | HQ3: 221 | HR3: 222 | HS3: 223 | HT3: 224 | HU3: 225 | HV3: 226 | HW3: 227 | HX3: 228 | HY3: 229 | HZ3: 230 | IA3: 231 | IB3: 232 | IC3: 233 | ID3: 234 | IE3: 235 | IF3: 236 | IG3: 237 | IH3: 238 | II3: 239 | IJ3: 240 | IK3: 241 | IL3: 242 | IM3: 243 | IN3: 244 | IO3: 245 | IP3: 246 | IQ3: 247 | IR3: 248 | IS3: 249 | IT3: 250 | IU3: 251 | IV3: 252 | IW3: 253 | IX3: 254 | IY3: 255 | IZ3: 256 | JA3: 257 | JB3: 258 | JC3: 259 | JD3: 260 | JE3: 261 | JF3: 262 | JG3: 263 | JH3: 264 | JI3: 265 | JJ3: 266 | JK3: 267 | JL3: 268 | JM3: 269 | JN3: 270 | JO3: 271 | JP3: 272 | JQ3: 273 | JR3: 274 | JS3: 275 | JT3: 276 | JU3: 277 | JV3: 278 | JW3: 279 | JX3: 280 | JY3: 281 | JZ3: 282 | KA3: 283 | KB3: 284 | KC3: 285 | KD3: 286 | KE3: 287 | KF3: 288 | KG3: 289 | KH3: 290 | KI3: 291 | KJ3: 292 | KK3: 293 | KL3: 294 | KM3: 295 | KN3: 296 | KO3: 297 | KP3: 298 | KQ3: 299 | KR3: 300 | KS3: 301 | KT3: 302 | KU3: 303 | KV3: 304 | KW3: 305 | KX3: 306 | KY3: 307 | KZ3: 308 | LA3: 309 | LB3: 310 | LC3: 311 | LD3: 312 | LE3: 313 | LF3: 314 | LG3: 315 | LH3: 316 | LI3: 317 | LJ3: 318 | LK3: 319 | LL3: 320 | LM3: 321 | LN3: 322 | LO3: 323 | LP3: 324 | LQ3: 325 | LR3: 326 | LS3: 327 | LT3: 328 | LU3: 329 | LV3: 330 | LW3: 331 | LX3: 332 | LY3: 333 | LZ3: 334 | MA3: 335 | MB3: 336 | MC3: 337 | MD3: 338 | ME3: 339 | MF3: 340 | MG3: 341 | MH3: 342 | MI3: 343 | MJ3: 344 | MK3: 345 | ML3: 346 | MM3: 347 | MN3: 348 | MO3: 349 | MP3: 350 | MQ3: 351 | MR3: 352 | MS3: 353 | MT3: 354 | MU3: 355 | MV3: 356 | MW3: 357 | MX3: 358 | MY3: 359 | MZ3: 360 | NA3: 361 | NB3: 362 | NC3: 363 | ND3: 364 | NE3: 365 | NF3: 366 | NG3: 367 | NH3: 368 | NI3: 369 | NJ3: 370 | NK3: 371 | NL3: 372 | NM3: 373 | NN3: 374 | NO3: 375 | NP3: 376 | NQ3: 377 | NR3: 378 | NS3: 379 | NT3: 380 | NU3: 381 | NV3: 382 | NW3: 383 | NX3: 384 | NY3: 385 | NZ3: 386 | OA3: 387 | OB3: 388 | OC3: 389 | OD3: 390 | OE3: 391 | OF3: 392 | OG3: 393 | OH3: 394 | OI3: 395 | OJ3: 396 | OK3: 397 | OL3: 398 | OM3: 399 | ON3: 400 | OO3: 401 | OP3: 402 | OQ3: 403 | OR3: 404 | OS3: 405 | OT3: 406 | OU3: 407 | OV3: 408 | OW3: 409 | OX3: 410 | OY3: 411 | OZ3: 412 | PA3: 413 | PB3: 414 | PC3: 415 | PD3: 416 | PE3: 417 | PF3: 418 | PG3: 419 | PH3: 420 | PI3: 421 | PJ3: 422 | PK3: 423 | PL3: 424 | PM3: 425 | PN3: 426 | PO3: 427 | PP3: 428 | PQ3: 429 | PR3: 430 | PS3: 431 | PT3: 432 | PU3: 433 | PV3: 434 | PW3: 435 | PX3: 436 | PY3: 437 | PZ3: 438 | QA3: 439 | QB3: 440 | QC3: 441 | QD3: 442 | QE3: 443 | QF3: 444 | QG3: 445 | QH3: 446 | QI3: 447 | QJ3: 448 | QK3: 449 | QL3: 450 | QM3: 451 | QN3: 452 | QO3: 453 | QP3: 454 | QQ3: 455 | QR3: 456 | QS3: 457 | QT3: 458 | QU3: 459 | QV3: 460 | QW3: 461 | QX3: 462 | QY3: 463 | QZ3: 464 | RA3: 465 | RB3: 466 | RC3: 467 | RD3: 468 | RE3: 469 | RF3: 470 | RG3: 471 | RH3: 472 | RI3: 473 | RJ3: 474 | RK3: 475 | RL3: 476 | RM3: 477 | RN3: 478 | RO3: 479 | RP3: 480 | RQ3: 481 | RR3: 482 | RS3: 483 | RT3: 484 | RU3: 485 | RV3: 486 | RW3: 487 | RX3: 488 | RY3: 489 | RZ3: 490 | SA3: 491 | SB3: 492 | SC3: 493 | SD3: 494 | SE3: 495 | SF3: 496 | SG3: 497 | SH3: 498 | SI3: 499 | SJ3: 500 | SK3: 501 | SL3: 502 | SM3: 503 | SN3: 504 | SO3: 505 | SP3: 506 | SQ3: 507 | SR3: 508 | SS3: 509 | ST3: 510 | SU3: 511 | SV3: 512 | SW3: 513 | SX3: 514 | SY3: 515 | SZ3: 516 | TA3: 517 | TB3: 518 | TC3: 519 | TD3: 520 | TE3: 521 | TF3: 522 | TG3: 523 | TH3: 524 | TI3: 525 | TJ3: 526 | TK3: 527 | TL3: 528 | TM3: 529 | TN3: 530 | TO3: 531 | TP3: 532 | TQ3: 533 | TR3: 534 | TS3: 535 | TT3: 536 | TU3: 537 | TV3: 538 | TW3: 539 | TX3: 540 | TY3: 541 | TZ3: 542 | UA3: 543 | UB3: 544 | UC3: 545 | UD3: 546 | UE3: 547 | UF3: 548 | UG3: 549 | UH3: 550 | UI3: 551 | UJ3: 552 | UK3: 553 | UL3: 554 | UM3: 555 | UN3: 556 | UO3: 557 | UP3: 558 | UQ3: 559 | UR3: 560 | US3: 561 | UT3: 562 | UU3: 563 | UV3: 564 | UW3: 565 | UX3: 566 | UY3: 567 | UZ3: 568 | VA3: 569 | VB3: 570 | VC3: 571 | VD3: 572 | VE3: 573 | VF3: 574 | VG3: 575 | VH3: 576 | VI3: 577 | VJ3: 578 | VK3: 579 | VL3: 580 | VM3: 581 | VN3: 582 | VO3: 583 | VP3: 584 | VQ3: 585 | VR3: 586 | VS3: 587 | VT3: 588 | VU3: 589 | VV3: 590 | VW3: 591 | VX3: 592 | VY3: 593 | VZ3: 594 | WA3: 595 | WB3: 596 | WC3: 597 | WD3: 598 | WE3: 599 | WF3: 600 | WG3: 601 | WH3: 602 | WI3: 603 | WJ3: 604 | WK3: 605 | WL3: 606 | WM3: 607 | WN3: 608 | WO3: 609 | WP3: 610 | WQ3: 611 | WR3: 612 | WS3: 613 | WT3: 614 | WU3: 615 | WV3: 616 | WW3: 617 | WX3: 618 | WY3: 619 | WZ3: 620 | XA3: 621 | XB3: 622 | XC3: 623 | XD3: 624 | XE3: 625 | XF3: 626 | XG3: 627 | XH3: 628 | XI3: 629 | XJ3: 630 | XK3: 631 | XL3: 632 | XM3: 633 | XN3: 634 | XO3: 635 | XP3: 636 | XQ3: 637 | XR3: 638 | XS3: 639 | XT3: 640 | XU3: 641 | XV3: 642 | XW3: 643 | XX3: 644 | XY3: 645 | XZ3: 646 | YA3: 647 | YB3: 648 | YC3: 649 | YD3: 650 | YE3: 651 | YF3: 652 | YG3: 653 | YH3: 654 | YI3: 655 | YJ3: 656 | YK3: 657 | YL3: 658 | YM3: 659 | YN3: 660 | YO3: 661 | YP3: 662 | YQ3: 663 | YR3: 664 | YS3: 665 | YT3: 666 | YU3: 667 | YV3: 668 | YW3: 669 | YX3: 670 | YY3: 671 | YZ3: 672 | ZA3: 673 | ZB3: 674 | ZC3: 675 | ZD3: 676 | ZE3: 677 | ZF3: 678 | ZG3: 679 | ZH3: 680 | ZI3: 681 | ZJ3: 682 | ZK3: 683 | ZL3: 684 | ZM3: 685 | ZN3: 686 | ZO3: 687 | ZP3: 688 | ZQ3: 689 | ZR3: 690 | ZS3: 691 | ZT3: 692 | ZU3: 693 | ZV3: 694 | ZW3: 695 | ZX3: 696 | ZY3: 697 | ZZ3: 698
D4: t | E4: 0 | F4: =E4+$B$23 -> 0.002 | G4: =F4+$B$23 -> 0.004 | H4: 0.006 | I4: 0.008 | J4: 0.01 | K4: 0.012 | L4: 0.014 | M4: 0.016 | N4: 0.018 | O4: 0.02 | P4: 0.022 | Q4: 0.024 | R4: 0.026 | S4: 0.028 | T4: 0.03 | U4: 0.032 | V4: 0.034 | W4: 0.036 | X4: 0.038 | Y4: 0.04 | Z4: 0.042 | AA4: 0.044 | AB4: 0.046 | AC4: 0.048 | AD4: 0.05 | AE4: 0.052 | AF4: 0.054 | AG4: 0.056 | AH4: 0.058 | AI4: 0.06 | AJ4: 0.062 | AK4: 0.064 | AL4: 0.066 | AM4: 0.068 | AN4: 0.07 | AO4: 0.072 | AP4: 0.074 | AQ4: 0.076 | AR4: 0.078 | AS4: 0.08 | AT4: 0.082 | AU4: 0.084 | AV4: 0.086 | AW4: 0.088 | AX4: 0.09 | AY4: 0.092 | AZ4: 0.094 | BA4: 0.096 | BB4: 0.098 | BC4: 0.1 | BD4: 0.102 | BE4: 0.104 | BF4: 0.106 | BG4: 0.108 | BH4: 0.11 | BI4: 0.112 | BJ4: 0.114 | BK4: 0.116 | BL4: 0.118 | BM4: 0.12 | BN4: 0.122 | BO4: 0.124 | BP4: 0.126 | BQ4: 0.128 | BR4: 0.13 | BS4: =BR4+$B$23 -> 0.132 | BT4: 0.134 | BU4: 0.136 | BV4: 0.138 | BW4: 0.14 | BX4: 0.142 | BY4: 0.144 | BZ4: 0.146 | CA4: 0.148 | CB4: 0.15 | CC4: 0.152 | CD4: 0.154 | CE4: 0.156 | CF4: 0.158 | CG4: 0.16 | CH4: 0.162 | CI4: 0.164 | CJ4: 0.166 | CK4: 0.168 | CL4: 0.17 | CM4: 0.172 | CN4: 0.174 | CO4: 0.176 | CP4: 0.178 | CQ4: 0.18 | CR4: 0.182 | CS4: 0.184 | CT4: 0.186 | CU4: 0.188 | CV4: 0.19 | CW4: 0.192 | CX4: 0.194 | CY4: 0.196 | CZ4: 0.198 | DA4: 0.2 | DB4: 0.202 | DC4: 0.204 | DD4: 0.206 | DE4: 0.208 | DF4: 0.21 | DG4: 0.212 | DH4: 0.214 | DI4: 0.216 | DJ4: 0.218 | DK4: 0.22 | DL4: 0.222 | DM4: 0.224 | DN4: 0.226 | DO4: 0.228 | DP4: 0.23 | DQ4: 0.232 | DR4: 0.234 | DS4: 0.236 | DT4: 0.238 | DU4: 0.24 | DV4: 0.242 | DW4: 0.244 | DX4: 0.246 | DY4: 0.248 | DZ4: 0.25 | EA4: 0.252 | EB4: 0.254 | EC4: 0.256 | ED4: 0.258 | EE4: =ED4+$B$23 -> 0.26 | EF4: 0.262 | EG4: 0.264 | EH4: 0.266 | EI4: 0.268 | EJ4: 0.27 | EK4: 0.272 | EL4: 0.274 | EM4: 0.276 | EN4: 0.278 | EO4: 0.28 | EP4: 0.282 | EQ4: 0.284 | ER4: 0.286 | ES4: 0.288 | ET4: 0.29 | EU4: 0.292 | EV4: 0.294 | EW4: 0.296 | EX4: 0.298 | EY4: 0.3 | EZ4: 0.302 | FA4: 0.304 | FB4: 0.306 | FC4: 0.308 | FD4: 0.31 | FE4: 0.312 | FF4: 0.314 | FG4: 0.316 | FH4: 0.318 | FI4: 0.32 | FJ4: 0.322 | FK4: 0.324 | FL4: 0.326 | FM4: 0.328 | FN4: 0.33 | FO4: 0.332 | FP4: 0.334 | FQ4: 0.336 | FR4: 0.338 | FS4: 0.34 | FT4: 0.342 | FU4: 0.344 | FV4: 0.346 | FW4: 0.348 | FX4: 0.35 | FY4: 0.352 | FZ4: 0.354 | GA4: 0.356 | GB4: 0.358 | GC4: 0.36 | GD4: 0.362 | GE4: 0.364 | GF4: 0.366 | GG4: 0.368 | GH4: 0.37 | GI4: 0.372 | GJ4: 0.374 | GK4: 0.376 | GL4: 0.378 | GM4: 0.38 | GN4: 0.382 | GO4: 0.384 | GP4: 0.386 | GQ4: =GP4+$B$23 -> 0.388 | GR4: 0.39 | GS4: 0.392 | GT4: 0.394 | GU4: 0.396 | GV4: 0.398 | GW4: 0.4 | GX4: 0.402 | GY4: 0.404 | GZ4: 0.406 | HA4: 0.408 | HB4: 0.41 | HC4: 0.412 | HD4: 0.414 | HE4: 0.416 | HF4: 0.418 | HG4: 0.42 | HH4: 0.422 | HI4: 0.424 | HJ4: 0.426 | HK4: 0.428 | HL4: 0.43 | HM4: 0.432 | HN4: 0.434 | HO4: 0.436 | HP4: 0.438 | HQ4: 0.44 | HR4: 0.442 | HS4: 0.444 | HT4: 0.446 | HU4: 0.448 | HV4: 0.45 | HW4: 0.452 | HX4: 0.454 | HY4: 0.456 | HZ4: 0.458 | IA4: 0.46 | IB4: 0.462 | IC4: 0.464 | ID4: 0.466 | IE4: 0.468 | IF4: 0.47 | IG4: 0.472 | IH4: 0.474 | II4: 0.476 | IJ4: 0.478 | IK4: 0.48 | IL4: 0.482 | IM4: 0.484 | IN4: 0.486 | IO4: 0.488 | IP4: 0.49 | IQ4: 0.492 | IR4: 0.494 | IS4: 0.496 | IT4: 0.498 | IU4: 0.5 | IV4: 0.502 | IW4: 0.504 | IX4: 0.506 | IY4: 0.508 | IZ4: 0.51 | JA4: 0.512 | JB4: 0.514 | JC4: =JB4+$B$23 -> 0.516 | JD4: 0.518 | JE4: 0.52 | JF4: 0.522 | JG4: 0.524 | JH4: 0.526 | JI4: 0.528 | JJ4: 0.53 | JK4: 0.532 | JL4: 0.534 | JM4: 0.536 | JN4: 0.538 | JO4: 0.54 | JP4: 0.542 | JQ4: 0.544 | JR4: 0.546 | JS4: 0.548 | JT4: 0.55 | JU4: 0.552 | JV4: 0.554 | JW4: 0.556 | JX4: 0.558 | JY4: 0.56 | JZ4: 0.562 | KA4: 0.564 | KB4: 0.566 | KC4: 0.568 | KD4: 0.57 | KE4: 0.572 | KF4: 0.574 | KG4: 0.576 | KH4: 0.578 | KI4: 0.58 | KJ4: 0.582 | KK4: 0.584 | KL4: 0.586 | KM4: 0.588 | KN4: 0.59 | KO4: 0.592 | KP4: 0.594 | KQ4: 0.596 | KR4: 0.598 | KS4: 0.6 | KT4: 0.602 | KU4: 0.604 | KV4: 0.606 | KW4: 0.608 | KX4: 0.61 | KY4: 0.612 | KZ4: 0.614 | LA4: 0.616 | LB4: 0.618 | LC4: 0.62 | LD4: 0.622 | LE4: 0.624 | LF4: 0.626 | LG4: 0.628 | LH4: 0.63 | LI4: 0.632 | LJ4: 0.634 | LK4: 0.636 | LL4: 0.638 | LM4: 0.64 | LN4: 0.642 | LO4: =LN4+$B$23 -> 0.644 | LP4: 0.646 | LQ4: 0.648 | LR4: 0.65 | LS4: 0.652 | LT4: 0.654 | LU4: 0.656 | LV4: 0.658 | LW4: 0.66 | LX4: 0.662 | LY4: 0.664 | LZ4: 0.666 | MA4: 0.668 | MB4: 0.67 | MC4: 0.672 | MD4: 0.674 | ME4: 0.676 | MF4: 0.678 | MG4: 0.68 | MH4: 0.682 | MI4: 0.684 | MJ4: 0.686 | MK4: 0.688 | ML4: 0.69 | MM4: 0.692 | MN4: 0.694 | MO4: 0.696 | MP4: 0.698 | MQ4: 0.7 | MR4: 0.702 | MS4: 0.704 | MT4: 0.706 | MU4: 0.708 | MV4: 0.71 | MW4: 0.712 | MX4: 0.714 | MY4: 0.716 | MZ4: 0.718 | NA4: 0.72 | NB4: 0.722 | NC4: 0.724 | ND4: 0.726 | NE4: 0.728 | NF4: 0.73 | NG4: 0.732 | NH4: 0.734 | NI4: 0.736 | NJ4: 0.738 | NK4: 0.74 | NL4: 0.742 | NM4: 0.744 | NN4: 0.746 | NO4: 0.748 | NP4: 0.75 | NQ4: 0.752 | NR4: 0.754 | NS4: 0.756 | NT4: 0.758 | NU4: 0.76 | NV4: 0.762 | NW4: 0.764 | NX4: 0.766 | NY4: =NX4+$B$23 -> 0.768 | NZ4: 0.77 | OA4: 0.772 | OB4: 0.774 | OC4: 0.776 | OD4: 0.778 | OE4: 0.78 | OF4: 0.782 | OG4: 0.784 | OH4: 0.786 | OI4: 0.788 | OJ4: 0.79 | OK4: 0.792 | OL4: 0.794 | OM4: 0.796 | ON4: 0.798 | OO4: 0.8 | OP4: 0.802 | OQ4: 0.804 | OR4: 0.806 | OS4: 0.808 | OT4: 0.81 | OU4: 0.812 | OV4: 0.814 | OW4: 0.816 | OX4: 0.818 | OY4: 0.82 | OZ4: 0.822 | PA4: 0.824 | PB4: 0.826 | PC4: 0.828 | PD4: 0.83 | PE4: 0.832 | PF4: 0.834 | PG4: 0.836 | PH4: 0.838 | PI4: 0.84 | PJ4: 0.842 | PK4: 0.844 | PL4: 0.846 | PM4: 0.848 | PN4: 0.85 | PO4: 0.852 | PP4: 0.854 | PQ4: 0.856 | PR4: 0.858 | PS4: 0.86 | PT4: 0.862 | PU4: 0.864 | PV4: 0.866 | PW4: 0.868 | PX4: 0.87 | PY4: 0.872 | PZ4: 0.874 | QA4: 0.876 | QB4: 0.878 | QC4: 0.88 | QD4: 0.882 | QE4: 0.884 | QF4: 0.886 | QG4: 0.888 | QH4: 0.89 | QI4: 0.892 | QJ4: 0.894 | QK4: =QJ4+$B$23 -> 0.896 | QL4: 0.898 | QM4: 0.9 | QN4: 0.902 | QO4: 0.904 | QP4: 0.906 | QQ4: 0.908 | QR4: 0.91 | QS4: 0.912 | QT4: 0.914 | QU4: 0.916 | QV4: 0.918 | QW4: 0.92 | QX4: 0.922 | QY4: 0.924 | QZ4: 0.926 | RA4: 0.928 | RB4: 0.93 | RC4: 0.932 | RD4: 0.934 | RE4: 0.936 | RF4: 0.938 | RG4: 0.94 | RH4: 0.942 | RI4: 0.944 | RJ4: 0.946 | RK4: 0.948 | RL4: 0.95 | RM4: 0.952 | RN4: 0.954 | RO4: 0.956 | RP4: 0.958 | RQ4: 0.96 | RR4: 0.962 | RS4: 0.964 | RT4: 0.966 | RU4: 0.968 | RV4: 0.97 | RW4: 0.972 | RX4: 0.974 | RY4: 0.976 | RZ4: 0.978 | SA4: 0.98 | SB4: 0.982 | SC4: 0.984 | SD4: 0.986 | SE4: 0.988 | SF4: 0.99 | SG4: 0.992 | SH4: 0.994 | SI4: 0.996 | SJ4: 0.998 | SK4: 1 | SL4: 1.002 | SM4: 1.004 | SN4: 1.006 | SO4: 1.008 | SP4: 1.01 | SQ4: 1.012 | SR4: 1.014 | SS4: 1.016 | ST4: 1.018 | SU4: 1.02 | SV4: 1.022 | SW4: =SV4+$B$23 -> 1.024 | SX4: 1.026 | SY4: 1.028 | SZ4: 1.03 | TA4: 1.032 | TB4: 1.034 | TC4: 1.036 | TD4: 1.038 | TE4: 1.04 | TF4: 1.042 | TG4: 1.044 | TH4: 1.046 | TI4: 1.048 | TJ4: 1.05 | TK4: 1.052 | TL4: 1.054 | TM4: 1.056 | TN4: 1.058 | TO4: 1.06 | TP4: 1.062 | TQ4: 1.064 | TR4: 1.066 | TS4: 1.068 | TT4: 1.07 | TU4: 1.072 | TV4: 1.074 | TW4: 1.076 | TX4: 1.078 | TY4: 1.08 | TZ4: 1.082 | UA4: 1.084 | UB4: 1.086 | UC4: 1.088 | UD4: 1.09 | UE4: 1.092 | UF4: 1.094 | UG4: 1.096 | UH4: 1.098 | UI4: 1.1 | UJ4: 1.102 | UK4: 1.104 | UL4: 1.106 | UM4: 1.108 | UN4: 1.11 | UO4: 1.112 | UP4: 1.114 | UQ4: 1.116 | UR4: 1.118 | US4: 1.12 | UT4: 1.122 | UU4: 1.124 | UV4: 1.126 | UW4: 1.128 | UX4: 1.13 | UY4: 1.132 | UZ4: 1.134 | VA4: 1.136 | VB4: 1.138 | VC4: 1.14 | VD4: 1.142 | VE4: 1.144 | VF4: 1.146 | VG4: 1.148 | VH4: 1.15 | VI4: =VH4+$B$23 -> 1.152 | VJ4: 1.154 | VK4: 1.156 | VL4: 1.158 | VM4: 1.16 | VN4: 1.162 | VO4: 1.164 | VP4: 1.166 | VQ4: 1.168 | VR4: 1.17 | VS4: 1.172 | VT4: 1.174 | VU4: 1.176 | VV4: 1.178 | VW4: 1.18 | VX4: 1.182 | VY4: 1.184 | VZ4: 1.186 | WA4: 1.188 | WB4: 1.19 | WC4: 1.192 | WD4: 1.194 | WE4: 1.196 | WF4: 1.198 | WG4: 1.2 | WH4: 1.202 | WI4: 1.204 | WJ4: 1.206 | WK4: 1.208 | WL4: 1.21 | WM4: 1.212 | WN4: 1.214 | WO4: 1.216 | WP4: 1.218 | WQ4: 1.22 | WR4: 1.222 | WS4: 1.224 | WT4: 1.226 | WU4: 1.228 | WV4: 1.23 | WW4: 1.232 | WX4: 1.234 | WY4: 1.236 | WZ4: 1.238 | XA4: 1.24 | XB4: 1.242 | XC4: 1.244 | XD4: 1.246 | XE4: 1.248 | XF4: 1.25 | XG4: 1.252 | XH4: 1.254 | XI4: 1.256 | XJ4: 1.258 | XK4: 1.26 | XL4: 1.262 | XM4: 1.264 | XN4: 1.266 | XO4: 1.268 | XP4: 1.27 | XQ4: 1.272 | XR4: 1.274 | XS4: 1.276 | XT4: 1.278 | XU4: =XT4+$B$23 -> 1.28 | XV4: 1.282 | XW4: 1.284 | XX4: 1.286 | XY4: 1.288 | XZ4: 1.29 | YA4: 1.292 | YB4: 1.294 | YC4: 1.296 | YD4: 1.298 | YE4: 1.3 | YF4: 1.302 | YG4: 1.304 | YH4: 1.306 | YI4: 1.308 | YJ4: 1.31 | YK4: 1.312 | YL4: 1.314 | YM4: 1.316 | YN4: 1.318 | YO4: 1.32 | YP4: 1.322 | YQ4: 1.324 | YR4: 1.326 | YS4: 1.328 | YT4: 1.33 | YU4: 1.332 | YV4: 1.334 | YW4: 1.336 | YX4: 1.338 | YY4: 1.34 | YZ4: 1.342 | ZA4: 1.344 | ZB4: 1.346 | ZC4: 1.348 | ZD4: 1.35 | ZE4: 1.352 | ZF4: 1.354 | ZG4: 1.356 | ZH4: 1.358 | ZI4: 1.36 | ZJ4: 1.362 | ZK4: 1.364 | ZL4: 1.366 | ZM4: 1.368 | ZN4: 1.37 | ZO4: 1.372 | ZP4: 1.374 | ZQ4: 1.376 | ZR4: 1.378 | ZS4: 1.38 | ZT4: 1.382 | ZU4: 1.384 | ZV4: 1.386 | ZW4: 1.388 | ZX4: 1.39 | ZY4: 1.392 | ZZ4: 1.394 | AAA4: 1.396 | AAB4: 1.398 | AAC4: 1.4 | AAD4: 1.402 | AAE4: 1.404 | AAF4: 1.406 | AAG4: =AAF4+$B$23 -> 1.408 | AAH4: 1.41 | AAI4: 1.412 | AAJ4: 1.414 | AAK4: 1.416 | AAL4: 1.418 | AAM4: 1.42 | AAN4: 1.422 | AAO4: 1.424 | AAP4: 1.426 | AAQ4: 1.428 | AAR4: 1.43 | AAS4: 1.432 | AAT4: 1.434 | AAU4: 1.436 | AAV4: 1.438 | AAW4: 1.44 | AAX4: 1.442 | AAY4: 1.444 | AAZ4: 1.446 | ABA4: 1.448 | ABB4: 1.45 | ABC4: 1.452 | ABD4: 1.454 | ABE4: 1.456 | ABF4: 1.458 | ABG4: 1.46 | ABH4: 1.462 | ABI4: 1.464 | ABJ4: 1.466 | ABK4: 1.468 | ABL4: 1.47 | ABM4: 1.472 | ABN4: 1.474 | ABO4: 1.476 | ABP4: 1.478 | ABQ4: 1.48 | ABR4: 1.482 | ABS4: 1.484 | ABT4: 1.486 | ABU4: 1.488 | ABV4: 1.49 | ABW4: 1.492 | ABX4: 1.494 | ABY4: 1.496 | ABZ4: 1.498 | ACA4: 1.5 | ACB4: 1.502 | ACC4: 1.504 | ACD4: 1.506 | ACE4: 1.508 | ACF4: 1.51 | ACG4: 1.512 | ACH4: 1.514 | ACI4: 1.516 | ACJ4: 1.518 | ACK4: 1.52 | ACL4: 1.522 | ACM4: 1.524 | ACN4: 1.526 | ACO4: 1.528 | ACP4: 1.53 | ACQ4: 1.532 | ACR4: 1.534 | ACS4: =ACR4+$B$23 -> 1.536 | ACT4: 1.538 | ACU4: 1.54 | ACV4: 1.542 | ACW4: 1.544 | ACX4: 1.546 | ACY4: 1.548 | ACZ4: 1.55 | ADA4: 1.552 | ADB4: 1.554 | ADC4: 1.556 | ADD4: 1.558 | ADE4: 1.56 | ADF4: 1.562 | ADG4: 1.564 | ADH4: 1.566 | ADI4: 1.568 | ADJ4: 1.57 | ADK4: 1.572 | ADL4: 1.574 | ADM4: 1.576 | ADN4: 1.578 | ADO4: 1.58 | ADP4: 1.582 | ADQ4: 1.584 | ADR4: 1.586 | ADS4: 1.588 | ADT4: 1.59 | ADU4: 1.592 | ADV4: 1.594 | ADW4: 1.596 | ADX4: 1.598 | ADY4: 1.6 | ADZ4: 1.602 | AEA4: 1.604 | AEB4: 1.606 | AEC4: 1.608 | AED4: 1.61 | AEE4: 1.612 | AEF4: 1.614 | AEG4: 1.616 | AEH4: 1.618 | AEI4: 1.62 | AEJ4: 1.622 | AEK4: 1.624 | AEL4: 1.626 | AEM4: 1.628 | AEN4: 1.63 | AEO4: 1.632 | AEP4: 1.634 | AEQ4: 1.636 | AER4: 1.638 | AES4: 1.64 | AET4: 1.642 | AEU4: 1.644 | AEV4: 1.646 | AEW4: 1.648 | AEX4: 1.65 | AEY4: 1.652 | AEZ4: 1.654 | AFA4: 1.656 | AFB4: 1.658 | AFC4: 1.66 | AFD4: 1.662 | AFE4: =AFD4+$B$23 -> 1.664 | AFF4: 1.666 | AFG4: 1.668 | AFH4: 1.67 | AFI4: 1.672 | AFJ4: 1.674 | AFK4: 1.676 | AFL4: 1.678 | AFM4: 1.68 | AFN4: 1.682 | AFO4: 1.684 | AFP4: 1.686 | AFQ4: 1.688 | AFR4: 1.69 | AFS4: 1.692 | AFT4: 1.694 | AFU4: 1.696 | AFV4: 1.698 | AFW4: 1.7 | AFX4: 1.702 | AFY4: 1.704 | AFZ4: 1.706 | AGA4: 1.708 | AGB4: 1.71 | AGC4: 1.712 | AGD4: 1.714 | AGE4: 1.716 | AGF4: 1.718 | AGG4: 1.72 | AGH4: 1.722 | AGI4: 1.724 | AGJ4: 1.726 | AGK4: 1.728 | AGL4: 1.73 | AGM4: 1.732 | AGN4: 1.734 | AGO4: 1.736 | AGP4: 1.738 | AGQ4: 1.74 | AGR4: 1.742 | AGS4: 1.744 | AGT4: 1.746 | AGU4: 1.748 | AGV4: 1.75 | AGW4: 1.752 | AGX4: 1.754 | AGY4: 1.756 | AGZ4: 1.758 | AHA4: 1.76 | AHB4: 1.762 | AHC4: 1.764 | AHD4: 1.766 | AHE4: 1.768 | AHF4: 1.77 | AHG4: 1.772 | AHH4: 1.774 | AHI4: 1.776 | AHJ4: 1.778 | AHK4: 1.78 | AHL4: 1.782 | AHM4: 1.784 | AHN4: 1.786 | AHO4: 1.788 | AHP4: 1.79 | AHQ4: =AHP4+$B$23 -> 1.792 | AHR4: 1.794 | AHS4: 1.796 | AHT4: 1.798 | AHU4: 1.8 | AHV4: 1.802 | AHW4: 1.804 | AHX4: 1.806 | AHY4: 1.808 | AHZ4: 1.81 | AIA4: 1.812 | AIB4: 1.814 | AIC4: 1.816 | AID4: 1.818 | AIE4: 1.82 | AIF4: 1.822 | AIG4: 1.824 | AIH4: 1.826 | AII4: 1.828 | AIJ4: 1.83 | AIK4: 1.832 | AIL4: 1.834 | AIM4: 1.836 | AIN4: 1.838 | AIO4: 1.84 | AIP4: 1.842 | AIQ4: 1.844 | AIR4: 1.846 | AIS4: 1.848 | AIT4: 1.85 | AIU4: 1.852 | AIV4: 1.854 | AIW4: 1.856 | AIX4: 1.858 | AIY4: 1.86 | AIZ4: 1.862 | AJA4: 1.864 | AJB4: 1.866 | AJC4: 1.868 | AJD4: 1.87 | AJE4: 1.872 | AJF4: 1.874 | AJG4: 1.876 | AJH4: 1.878 | AJI4: 1.88 | AJJ4: 1.882 | AJK4: 1.884 | AJL4: 1.886 | AJM4: 1.888 | AJN4: 1.89 | AJO4: 1.892 | AJP4: 1.894 | AJQ4: 1.896 | AJR4: 1.898 | AJS4: 1.9 | AJT4: 1.902 | AJU4: 1.904 | AJV4: 1.906 | AJW4: 1.908 | AJX4: 1.91 | AJY4: 1.912 | AJZ4: 1.914 | AKA4: 1.916 | AKB4: 1.918 | AKC4: =AKB4+$B$23 -> 1.92 | AKD4: 1.922 | AKE4: 1.924 | AKF4: 1.926 | AKG4: 1.928 | AKH4: 1.93 | AKI4: 1.932 | AKJ4: 1.934 | AKK4: 1.936 | AKL4: 1.938 | AKM4: 1.94 | AKN4: 1.942 | AKO4: 1.944 | AKP4: 1.946 | AKQ4: 1.948 | AKR4: 1.95 | AKS4: 1.952 | AKT4: 1.954 | AKU4: 1.956 | AKV4: 1.958 | AKW4: 1.96 | AKX4: 1.962 | AKY4: 1.964 | AKZ4: 1.966 | ALA4: 1.968 | ALB4: 1.97 | ALC4: 1.972 | ALD4: 1.974 | ALE4: 1.976 | ALF4: 1.978 | ALG4: 1.98 | ALH4: 1.982 | ALI4: 1.984 | ALJ4: 1.986 | ALK4: 1.988 | ALL4: 1.99 | ALM4: 1.992 | ALN4: 1.994 | ALO4: 1.996 | ALP4: 1.998 | ALQ4: 2
A5: CIR: | D5: Pfad 1 | E5: =$B$9 -> 0.04 | F5: 0.03995977748 | G5: 0.03999219338 | H5: 0.0399862088 | I5: 0.0399400907 | J5: 0.03995417731 | K5: 0.03998652215 | L5: 0.0399968231 | M5: 0.04005954878 | N5: 0.04009436125 | O5: 0.04012033987 | P5: 0.0400055677 | Q5: 0.04004277669 | R5: 0.03999914564 | S5: 0.04001574393 | T5: 0.03999627333 | U5: 0.04000365212 | V5: 0.04008048118 | W5: 0.04008815458 | X5: 0.04017930914 | Y5: 0.0402667448 | Z5: 0.04030380825 | AA5: 0.04030643647 | AB5: 0.04043741961 | AC5: 0.04041136028 | AD5: 0.04037585441 | AE5: 0.04038030655 | AF5: 0.04046812192 | AG5: 0.04050211311 | AH5: 0.04042736903 | AI5: 0.04042932631 | AJ5: 0.04040221004 | AK5: 0.04036770582 | AL5: 0.04038769382 | AM5: 0.04035086719 | AN5: 0.04029152876 | AO5: 0.04032969065 | AP5: 0.04031241893 | AQ5: 0.04025109993 | AR5: 0.04029261362 | AS5: 0.04030871968 | AT5: 0.0402273836 | AU5: 0.04016213004 | AV5: 0.04022749496 | AW5: 0.04024180573 | AX5: 0.04037422669 | AY5: 0.04032554171 | AZ5: 0.04032447309 | BA5: 0.04037980982 | BB5: 0.04026947498 | BC5: 0.04025333411 | BD5: 0.04026231615 | BE5: 0.04025461846 | BF5: 0.04026949765 | BG5: 0.04029173809 | BH5: 0.04023637628 | BI5: 0.04028154239 | BJ5: 0.04037956425 | BK5: 0.04043530489 | BL5: 0.04043254162 | BM5: 0.04042613559 | BN5: 0.04038186715 | BO5: 0.04045722193 | BP5: 0.04050648351 | BQ5: 0.04050710314 | BR5: 0.04050073905 | BS5: 0.04051281309 | BT5: 0.04053504519 | BU5: 0.04046326383 | BV5: 0.04052750314 | BW5: 0.04058579932 | BX5: 0.04044427348 | BY5: 0.04049501242 | BZ5: 0.04049345173 | CA5: 0.04052119394 | CB5: 0.04045058521 | CC5: 0.04040941969 | CD5: 0.04037110082 | CE5: 0.04036454289 | CF5: 0.04034507608 | CG5: 0.04028914466 | CH5: 0.04032231973 | CI5: 0.0402872517 | CJ5: 0.04030687469 | CK5: 0.04034551796 | CL5: 0.04037438907 | CM5: 0.04032416029 | CN5: 0.04046446964 | CO5: 0.04037546565 | CP5: 0.04031949384 | CQ5: 0.04027143146 | CR5: 0.04024955981 | CS5: 0.04026122906 | CT5: 0.04027007062 | CU5: 0.04024002692 | CV5: 0.04024775988 | CW5: 0.04022800378 | CX5: 0.04027417075 | CY5: 0.04027229575 | CZ5: 0.04027852455 | DA5: 0.0401719857 | DB5: 0.04011506896 | DC5: 0.04014349055 | DD5: 0.04013189902 | DE5: 0.04010251878 | DF5: 0.04009797204 | DG5: 0.04000672855 | DH5: 0.04011571713 | DI5: 0.04009467738 | DJ5: 0.0401446811 | DK5: 0.0401193826 | DL5: 0.04016447301 | DM5: 0.04018221397 | DN5: 0.04021467863 | DO5: 0.04026071131 | DP5: 0.04020534651 | DQ5: 0.04014875451 | DR5: 0.04014691445 | DS5: 0.04025037982 | DT5: 0.0402214701 | DU5: 0.04027348649 | DV5: 0.04031407703 | DW5: 0.04044640666 | DX5: 0.04038225837 | DY5: 0.04035959078 | DZ5: 0.04033109232 | EA5: 0.04045726435 | EB5: 0.04051226746 | EC5: 0.04055265572 | ED5: 0.04058769546 | EE5: 0.0406760487 | EF5: 0.04074852718 | EG5: 0.04078981694 | EH5: 0.04097477891 | EI5: 0.04100495571 | EJ5: 0.04111739393 | EK5: 0.04111659689 | EL5: 0.04119694761 | EM5: 0.04126810513 | EN5: 0.0412301942 | EO5: 0.04123080915 | EP5: 0.04113695161 | EQ5: 0.0411900276 | ER5: 0.0412024524 | ES5: 0.04124613736 | ET5: 0.04135427039 | EU5: 0.04137756336 | EV5: 0.04140283025 | EW5: 0.04153841897 | EX5: 0.04161901965 | EY5: 0.04160945709 | EZ5: 0.04167099305 | FA5: 0.04165658392 | FB5: 0.04158451894 | FC5: 0.04154867417 | FD5: 0.04157181131 | FE5: 0.041699958 | FF5: 0.04176422559 | FG5: 0.04171508889 | FH5: 0.04169832982 | FI5: 0.04171631041 | FJ5: 0.0417240698 | FK5: 0.04167838891 | FL5: 0.04163959682 | FM5: 0.0416440094 | FN5: 0.04157910992 | FO5: 0.04155177312 | FP5: 0.04152448091 | FQ5: 0.04155884169 | FR5: 0.04158645248 | FS5: 0.04158626384 | FT5: 0.04161653725 | FU5: 0.04151405047 | FV5: 0.04155508488 | FW5: 0.04143495451 | FX5: 0.04139267043 | FY5: 0.04146567992 | FZ5: 0.04144832965 | GA5: 0.0413679892 | GB5: 0.04132088528 | GC5: 0.04129753284 | GD5: 0.04129768202 | GE5: 0.04127925133 | GF5: 0.04117943361 | GG5: 0.04127012587 | GH5: 0.04129842845 | GI5: 0.04134597317 | GJ5: 0.04137002899 | GK5: 0.04131547189 | GL5: 0.04131982809 | GM5: 0.04141960106 | GN5: 0.04150986693 | GO5: 0.04153389034 | GP5: 0.04151769927 | GQ5: 0.04164242641 | GR5: 0.04177593725 | GS5: 0.04175576229 | GT5: 0.04181793769 | GU5: 0.0418060644 | GV5: 0.04184483485 | GW5: 0.04179034713 | GX5: 0.04173081696 | GY5: 0.04170226878 | GZ5: 0.04162870937 | HA5: 0.04166944329 | HB5: 0.04165077782 | HC5: 0.04161672619 | HD5: 0.04150521931 | HE5: 0.04144178543 | HF5: 0.04149528126 | HG5: 0.04146784333 | HH5: 0.04152752804 | HI5: 0.04153515973 | HJ5: 0.04162669659 | HK5: 0.04154900752 | HL5: 0.04159447204 | HM5: 0.04157219394 | HN5: 0.04157256777 | HO5: 0.04147676714 | HP5: 0.04145983768 | HQ5: 0.04148925366 | HR5: 0.04146050307 | HS5: 0.04137618174 | HT5: 0.04135338294 | HU5: 0.04134416881 | HV5: 0.0414436935 | HW5: 0.04139588264 | HX5: 0.04134858136 | HY5: 0.04132605349 | HZ5: 0.04121189476 | IA5: 0.0412150851 | IB5: 0.04123422556 | IC5: 0.04125154721 | ID5: 0.04137912987 | IE5: 0.04143261542 | IF5: 0.04144136527 | IG5: 0.04140294992 | IH5: 0.04140653422 | II5: 0.0414963181 | IJ5: 0.04157014204 | IK5: 0.0415973544 | IL5: 0.04151652436 | IM5: 0.04161891151 | IN5: 0.04164004694 | IO5: 0.04163401132 | IP5: 0.04169718915 | IQ5: 0.04178575554 | IR5: 0.04175440475 | IS5: 0.04182629625 | IT5: 0.04190528999 | IU5: 0.04195248984 | IV5: 0.041947821 | IW5: 0.04186740908 | IX5: 0.04181993577 | IY5: 0.04187434132 | IZ5: 0.04202690616 | JA5: 0.04211189055 | JB5: 0.0421316584 | JC5: 0.04217993421 | JD5: 0.04226916733 | JE5: 0.04229333409 | JF5: 0.04234974774 | JG5: 0.04238112704 | JH5: 0.04241808557 | JI5: 0.04243707303 | JJ5: 0.0424203138 | JK5: 0.04242937525 | JL5: 0.04242757037 | JM5: 0.04253269135 | JN5: 0.04252117122 | JO5: 0.04250890259 | JP5: 0.04238428945 | JQ5: 0.04233030602 | JR5: 0.04240412363 | JS5: 0.04237768129 | JT5: 0.04241655109 | JU5: 0.04249852862 | JV5: 0.04250653699 | JW5: 0.0424760136 | JX5: 0.04248533248 | JY5: 0.04256318367 | JZ5: 0.04253396113 | KA5: 0.04251018652 | KB5: 0.04251450379 | KC5: 0.04257349387 | KD5: 0.04258677256 | KE5: 0.04250969912 | KF5: 0.04244725859 | KG5: 0.04245024452 | KH5: 0.04247208691 | KI5: 0.04238003789 | KJ5: 0.04228698033 | KK5: 0.04231207505 | KL5: 0.04227935757 | KM5: 0.04220056843 | KN5: 0.04217195703 | KO5: 0.0422379233 | KP5: 0.04222404478 | KQ5: 0.04218166778 | KR5: 0.04225522394 | KS5: 0.04223262509 | KT5: 0.04225120458 | KU5: 0.04225772089 | KV5: 0.0423050592 | KW5: 0.04237040057 | KX5: 0.04234729803 | KY5: 0.0424013664 | KZ5: 0.04248421502 | LA5: 0.0424490073 | LB5: 0.04249513224 | LC5: 0.04258236449 | LD5: 0.04254408779 | LE5: 0.04255052883 | LF5: 0.04267666131 | LG5: 0.04277393206 | LH5: 0.04271676847 | LI5: 0.04271267683 | LJ5: 0.04274275773 | LK5: 0.0427702758 | LL5: 0.04292421685 | LM5: 0.04302642004 | LN5: 0.04296136324 | LO5: 0.04300531932 | LP5: 0.04305931831 | LQ5: 0.04298495323 | LR5: 0.04309572743 | LS5: 0.04309690482 | LT5: 0.04310045951 | LU5: 0.04303380285 | LV5: 0.04293991349 | LW5: 0.04289915977 | LX5: 0.04289093248 | LY5: 0.04291800583 | LZ5: 0.04285259677 | MA5: 0.04278458339 | MB5: 0.04273866467 | MC5: 0.04260320038 | MD5: 0.04269140207 | ME5: 0.04261805536 | MF5: 0.04261052214 | MG5: 0.04271144152 | MH5: 0.04266200894 | MI5: 0.0426056051 | MJ5: 0.04263732967 | MK5: 0.04258052672 | ML5: 0.04258929739 | MM5: 0.04256694477 | MN5: 0.04267164682 | MO5: 0.042657856 | MP5: 0.04271872247 | MQ5: 0.0426932159 | MR5: 0.0426072644 | MS5: 0.04255247419 | MT5: 0.04259545672 | MU5: 0.04257699568 | MV5: 0.04250763042 | MW5: 0.04249017169 | MX5: 0.04245627044 | MY5: 0.0424511709 | MZ5: 0.04250919081 | NA5: 0.04251532172 | NB5: 0.04254907535 | NC5: 0.04255894099 | ND5: 0.04262092535 | NE5: 0.04254224026 | NF5: 0.04255780506 | NG5: 0.0425800415 | NH5: 0.0426967779 | NI5: 0.04276042984 | NJ5: 0.04274821167 | NK5: 0.04277670761 | NL5: 0.0427691245 | NM5: 0.0427202922 | NN5: 0.04273219755 | NO5: 0.04276006905 | NP5: 0.04268502742 | NQ5: 0.04274517186 | NR5: 0.04277676899 | NS5: 0.04279826775 | NT5: 0.04268038839 | NU5: 0.04271648897 | NV5: 0.04267002391 | NW5: 0.04268278512 | NX5: 0.04265874304 | NY5: 0.04282575733 | NZ5: 0.04282756148 | OA5: 0.04291973013 | OB5: 0.04294158245 | OC5: 0.04294015461 | OD5: 0.04300393051 | OE5: 0.04307983289 | OF5: 0.04312649284 | OG5: 0.04320844477 | OH5: 0.04321800593 | OI5: 0.04325898785 | OJ5: 0.04321431937 | OK5: 0.043245437 | OL5: 0.04316959561 | OM5: 0.043167476 | ON5: 0.04313677346 | OO5: 0.0430729763 | OP5: 0.04308445672 | OQ5: 0.04304329951 | OR5: 0.04307546443 | OS5: 0.04310987053 | OT5: 0.04315374454 | OU5: 0.04308799196 | OV5: 0.04312617942 | OW5: 0.04314028145 | OX5: 0.04305564678 | OY5: 0.04298654506 | OZ5: 0.04305004387 | PA5: 0.04306094987 | PB5: 0.04319182101 | PC5: 0.04314013952 | PD5: 0.04313691283 | PE5: 0.04318996397 | PF5: 0.04307728165 | PG5: 0.04305899193 | PH5: 0.0430663409 | PI5: 0.04305699125 | PJ5: 0.04297695514 | PK5: 0.04295717739 | PL5: 0.04296382886 | PM5: 0.04303953013 | PN5: 0.04301859328 | PO5: 0.04300547844 | PP5: 0.0431482949 | PQ5: 0.04312775923 | PR5: 0.0431928234 | PS5: 0.04319070384 | PT5: 0.04322688741 | PU5: 0.04334679293 | PV5: 0.04328191576 | PW5: 0.04329130548 | PX5: 0.04331064757 | PY5: 0.04323460717 | PZ5: 0.04329783281 | QA5: 0.04331540047 | QB5: 0.04318178013 | QC5: 0.04322877303 | QD5: 0.04328460334 | QE5: 0.04330467662 | QF5: 0.04322916626 | QG5: 0.04318539491 | QH5: 0.04314331038 | QI5: 0.04316017479 | QJ5: 0.04323575988 | QK5: 0.04317469566 | QL5: 0.0432062858 | QM5: 0.04321457553 | QN5: 0.04322999273 | QO5: 0.04326729675 | QP5: 0.04329244079 | QQ5: 0.0432382559 | QR5: 0.04337637457 | QS5: 0.04328316157 | QT5: 0.04322401016 | QU5: 0.04317256144 | QV5: 0.04312018289 | QW5: 0.04312117262 | QX5: 0.04299557888 | QY5: 0.04289408375 | QZ5: 0.04280632397 | RA5: 0.04276475052 | RB5: 0.0429098378 | RC5: 0.04277109138 | RD5: 0.04278085516 | RE5: 0.04280856694 | RF5: 0.04280995619 | RG5: 0.04267579875 | RH5: 0.0427524691 | RI5: 0.04272076867 | RJ5: 0.04271427358 | RK5: 0.04262230093 | RL5: 0.04264165763 | RM5: 0.04261680594 | RN5: 0.04267931094 | RO5: 0.0426535223 | RP5: 0.0426977655 | RQ5: 0.04271368679 | RR5: 0.04274123231 | RS5: 0.04278670533 | RT5: 0.04272861404 | RU5: 0.04266877045 | RV5: 0.04266651503 | RW5: 0.04276908304 | RX5: 0.04273650458 | RY5: 0.04278614704 | RZ5: 0.0428232953 | SA5: 0.04295406881 | SB5: 0.04288559278 | SC5: 0.0428609605 | SD5: 0.04282989443 | SE5: 0.04295363414 | SF5: 0.04300563476 | SG5: 0.04304292981 | SH5: 0.04302623896 | SI5: 0.04308002625 | SJ5: 0.04307424583 | SK5: 0.04291813217 | SL5: 0.04290315492 | SM5: 0.04297377425 | SN5: 0.04283715425 | SO5: 0.04294936555 | SP5: 0.04302731541 | SQ5: 0.04309645603 | SR5: 0.04305692536 | SS5: 0.04305840403 | ST5: 0.0429625152 | SU5: 0.04301310969 | SV5: 0.04302310415 | SW5: 0.04306359808 | SX5: 0.0431707876 | SY5: 0.043191352 | SZ5: 0.04321173579 | TA5: 0.04334434968 | TB5: 0.04342301711 | TC5: 0.04341078431 | TD5: 0.04347013064 | TE5: 0.0434092775 | TF5: 0.04333482186 | TG5: 0.04329670592 | TH5: 0.0433184705 | TI5: 0.04344250663 | TJ5: 0.04350634081 | TK5: 0.04345543716 | TL5: 0.0434384205 | TM5: 0.04335161967 | TN5: 0.04335609223 | TO5: 0.04330930422 | TP5: 0.0432203634 | TQ5: 0.04322127131 | TR5: 0.04317435489 | TS5: 0.04308113693 | TT5: 0.0431800086 | TU5: 0.04316371405 | TV5: 0.04313562976 | TW5: 0.04301022464 | TX5: 0.04309418607 | TY5: 0.04313681093 | TZ5: 0.04318490614 | UA5: 0.04306493532 | UB5: 0.04302202984 | UC5: 0.0430944343 | UD5: 0.04307484471 | UE5: 0.04299498463 | UF5: 0.04294906509 | UG5: 0.04292325302 | UH5: 0.04292275358 | UI5: 0.04290471846 | UJ5: 0.0428029865 | UK5: 0.04289177723 | UL5: 0.04291787851 | UM5: 0.04296537005 | UN5: 0.04298639609 | UO5: 0.04293036043 | UP5: 0.04293258092 | UQ5: 0.04303155952 | UR5: 0.04312035282 | US5: 0.04314154319 | UT5: 0.04312461541 | UU5: 0.04324765965 | UV5: 0.04337840389 | UW5: 0.04335753025 | UX5: 0.04341751848 | UY5: 0.0435317001 | UZ5: 0.04357029541 | VA5: 0.0435131763 | VB5: 0.0435245855 | VC5: 0.04360049027 | VD5: 0.04359190428 | VE5: 0.04346645453 | VF5: 0.04341581974 | VG5: 0.04348283008 | VH5: 0.043518029 | VI5: 0.04351432544 | VJ5: 0.0435189347 | VK5: 0.04358305448 | VL5: 0.04364023772 | VM5: 0.0436478898 | VN5: 0.04373514156 | VO5: 0.04365394322 | VP5: 0.04369783043 | VQ5: 0.04367441932 | VR5: 0.04348110865 | VS5: 0.04338291427 | VT5: 0.04336494492 | VU5: 0.04348849956 | VV5: 0.043458854 | VW5: 0.04337277383 | VX5: 0.04334880711 | VY5: 0.04333880581 | VZ5: 0.0434358616 | WA5: 0.04338705871 | WB5: 0.04333741715 | WC5: 0.04344891113 | WD5: 0.04333238697 | WE5: 0.04333491875 | WF5: 0.04335119294 | WG5: 0.04336605884 | WH5: 0.04349059233 | WI5: 0.04354357115 | WJ5: 0.04358354995 | WK5: 0.04354333162 | WL5: 0.04363636469 | WM5: 0.04361214942 | WN5: 0.04361897494 | WO5: 0.04360714033 | WP5: 0.04364090974 | WQ5: 0.04364228775 | WR5: 0.04351401363 | WS5: 0.04341449585 | WT5: 0.04336350703 | WU5: 0.04339070362 | WV5: 0.04336735951 | WW5: 0.04343854904 | WX5: 0.04351614671 | WY5: 0.04356171332 | WZ5: 0.04355579342 | XA5: 0.04347492933 | XB5: 0.04342489185 | XC5: 0.04347717265 | XD5: 0.04361894428 | XE5: 0.04370194977 | XF5: 0.04365964783 | XG5: 0.0437054983 | XH5: 0.04379410431 | XI5: 0.04381831629 | XJ5: 0.04387342375 | XK5: 0.04390233918 | XL5: 0.04384033463 | XM5: 0.04385669094 | XN5: 0.04383765113 | XO5: 0.04384463763 | XP5: 0.04384297294 | XQ5: 0.0439469574 | XR5: 0.04393518999 | XS5: 0.0439214031 | XT5: 0.04379684548 | XU5: 0.0438240009 | XV5: 0.04385524901 | XW5: 0.04392308727 | XX5: 0.04398842082 | XY5: 0.04402712724 | XZ5: 0.04416521845 | YA5: 0.04417924146 | YB5: 0.04428058103 | YC5: 0.0442766778 | YD5: 0.04414799399 | YE5: 0.04410799658 | YF5: 0.04411196055 | YG5: 0.04416881238 | YH5: 0.0441804432 | YI5: 0.04410094716 | YJ5: 0.04403708613 | YK5: 0.04401958276 | YL5: 0.04403897954 | YM5: 0.04394531957 | YN5: 0.04393892288 | YO5: 0.04396150787 | YP5: 0.0439113818 | YQ5: 0.04383159378 | YR5: 0.04380007443 | YS5: 0.04386491097 | YT5: 0.04385196651 | YU5: 0.04380916165 | YV5: 0.04388052368 | YW5: 0.0438561545 | YX5: 0.04387057446 | YY5: 0.04387689688 | YZ5: 0.04392330575 | ZA5: 0.04398643932 | ZB5: 0.04396308316 | ZC5: 0.04401678522 | ZD5: 0.0440989957 | ZE5: 0.04406298653 | ZF5: 0.04401466889 | ZG5: 0.04399431004 | ZH5: 0.04396876101 | ZI5: 0.0441706802 | ZJ5: 0.04420074248 | ZK5: 0.04420397993 | ZL5: 0.04422188732 | ZM5: 0.04412563269 | ZN5: 0.04415308476 | ZO5: 0.04417945217 | ZP5: 0.04432794063 | ZQ5: 0.04442175685 | ZR5: 0.04435630538 | ZS5: 0.04439852805 | ZT5: 0.04445062137 | ZU5: 0.04437614847 | ZV5: 0.04448514251 | ZW5: 0.04453219514 | ZX5: 0.04453493452 | ZY5: 0.04446675648 | ZZ5: 0.04451220988 | AAA5: 0.04455241069 | AAB5: 0.04454617219 | AAC5: 0.04457310504 | AAD5: 0.04450635493 | AAE5: 0.04453071829 | AAF5: 0.04451467379 | AAG5: 0.04437924816 | AAH5: 0.0444662879 | AAI5: 0.04447094219 | AAJ5: 0.04446119344 | AAK5: 0.04456097819 | AAL5: 0.04450834231 | AAM5: 0.04445062954 | AAN5: 0.04447896239 | AAO5: 0.04442252899 | AAP5: 0.04443111523 | AAQ5: 0.04440793401 | AAR5: 0.04434154994 | AAS5: 0.04437894122 | AAT5: 0.04436826537 | AAU5: 0.04434106874 | AAV5: 0.04425215899 | AAW5: 0.04419483044 | AAX5: 0.04423632097 | AAY5: 0.04421618277 | AAZ5: 0.04414442604 | ABA5: 0.0441975545 | ABB5: 0.04416161963 | ABC5: 0.04415475673 | ABD5: 0.04421201709 | ABE5: 0.04421620265 | ABF5: 0.04424839922 | ABG5: 0.04425646375 | ABH5: 0.04432927314 | ABI5: 0.04424774634 | ABJ5: 0.04426279581 | ABK5: 0.04428312703 | ABL5: 0.0443994642 | ABM5: 0.04446202978 | ABN5: 0.04444823181 | ABO5: 0.04447469086 | ABP5: 0.04446489032 | ABQ5: 0.0444133796 | ABR5: 0.04442349006 | ABS5: 0.04444921807 | ABT5: 0.04437137921 | ABU5: 0.04443060101 | ABV5: 0.04446091155 | ABW5: 0.04448025973 | ABX5: 0.0443592367 | ABY5: 0.04439378935 | ABZ5: 0.04434491789 | ACA5: 0.0443557248 | ACB5: 0.04441909794 | ACC5: 0.04458480998 | ACD5: 0.04450526869 | ACE5: 0.04459692372 | ACF5: 0.04461708494 | ACG5: 0.04461383313 | ACH5: 0.04467639808 | ACI5: 0.0447517048 | ACJ5: 0.04472741667 | ACK5: 0.04480863742 | ACL5: 0.04481701756 | ACM5: 0.0448570743 | ACN5: 0.0448100883 | ACO5: 0.04483953889 | ACP5: 0.04476106519 | ACQ5: 0.04475751358 | ACR5: 0.0447249854 | ACS5: 0.04465941742 | ACT5: 0.04488441239 | ACU5: 0.04484096485 | ACV5: 0.04487163727 | ACW5: 0.04490422834 | ACX5: 0.0449471398 | ACY5: 0.04487864179 | ACZ5: 0.0449156969 | ADA5: 0.04478902598 | ADB5: 0.04470141361 | ADC5: 0.04462965428 | ADD5: 0.04469209 | ADE5: 0.04470139334 | ADF5: 0.04483195251 | ADG5: 0.04477773245 | ADH5: 0.04477262358 | ADI5: 0.04472229587 | ADJ5: 0.04460802839 | ADK5: 0.04458768866 | ADL5: 0.04455890822 | ADM5: 0.04462665219 | ADN5: 0.04462866234 | ADO5: 0.04460740825 | ADP5: 0.04461248029 | ADQ5: 0.04468701336 | ADR5: 0.04466397892 | ADS5: 0.04464939348 | ADT5: 0.04479183936 | ADU5: 0.04476958078 | ADV5: 0.04483377512 | ADW5: 0.04483009887 | ADX5: 0.04486463918 | ADY5: 0.04498429629 | ADZ5: 0.04491694428 | AEA5: 0.04492456542 | AEB5: 0.04494210772 | AEC5: 0.04486343375 | AED5: 0.04492554567 | AEE5: 0.04494100041 | AEF5: 0.04480600517 | AEG5: 0.0448521979 | AEH5: 0.04490685131 | AEI5: 0.04492434444 | AEJ5: 0.04484664974 | AEK5: 0.04480041609 | AEL5: 0.0447562946 | AEM5: 0.04476991031 | AEN5: 0.04484498376 | AEO5: 0.04478175971 | AEP5: 0.04481182427 | AEQ5: 0.04497842766 | AER5: 0.04499180257 | AES5: 0.04502753373 | AET5: 0.04505142511 | AEU5: 0.04511516794 | AEV5: 0.04525260136 | AEW5: 0.04525170233 | AEX5: 0.04535694053 | AEY5: 0.04544344998 | AEZ5: 0.04538776211 | AFA5: 0.0453863547 | AFB5: 0.04525633741 | AFC5: 0.04532554753 | AFD5: 0.04534328175 | AFE5: 0.04529824271 | AFF5: 0.04543969747 | AFG5: 0.0454742261 | AFH5: 0.04548162708 | AFI5: 0.04550667266 | AFJ5: 0.04550544083 | AFK5: 0.04536582961 | AFL5: 0.0454415266 | AFM5: 0.04540619126 | AFN5: 0.04539667201 | AFO5: 0.04529970995 | AFP5: 0.04531647494 | AFQ5: 0.04534167947 | AFR5: 0.04540241403 | AFS5: 0.04537275166 | AFT5: 0.04541493758 | AFU5: 0.0454281674 | AFV5: 0.04545386764 | AFW5: 0.04549703495 | AFX5: 0.04543446872 | AFY5: 0.04544096854 | AFZ5: 0.04543649768 | AGA5: 0.04553820412 | AGB5: 0.04550203919 | AGC5: 0.04554974804 | AGD5: 0.04558448207 | AGE5: 0.04571529775 | AGF5: 0.04575790687 | AGG5: 0.04575581147 | AGH5: 0.04581169153 | AGI5: 0.04583193476 | AGJ5: 0.04586825603 | AGK5: 0.04594201932 | AGL5: 0.04592202684 | AGM5: 0.04597398646 | AGN5: 0.04596522231 | AGO5: 0.04580596374 | AGP5: 0.04578724105 | AGQ5: 0.04585657915 | AGR5: 0.04571491876 | AGS5: 0.04582709805 | AGT5: 0.045904273 | AGU5: 0.04597220236 | AGV5: 0.04592877924 | AGW5: 0.04592676765 | AGX5: 0.04582527049 | AGY5: 0.04587427196 | AGZ5: 0.04588156416 | AHA5: 0.04592041217 | AHB5: 0.04588319802 | AHC5: 0.04590157856 | AHD5: 0.04591831549 | AHE5: 0.04605032526 | AHF5: 0.04612812329 | AHG5: 0.04611294455 | AHH5: 0.0461373352 | AHI5: 0.04607244219 | AHJ5: 0.04599345098 | AHK5: 0.04595179842 | AHL5: 0.04597104591 | AHM5: 0.04609503296 | AHN5: 0.04615732788 | AHO5: 0.04620434531 | AHP5: 0.04617161291 | AHQ5: 0.0461679054 | AHR5: 0.04623382808 | AHS5: 0.04620048439 | AHT5: 0.04627673706 | AHU5: 0.04635348902 | AHV5: 0.04637274878 | AHW5: 0.04627411169 | AHX5: 0.04637268444 | AHY5: 0.04632948594 | AHZ5: 0.04629752737 | AIA5: 0.04616562556 | AIB5: 0.0462484865 | AIC5: 0.04628919864 | AID5: 0.04633510964 | AIE5: 0.04620849036 | AIF5: 0.04616070928 | AIG5: 0.04612930294 | AIH5: 0.04610614685 | AII5: 0.04602068739 | AIJ5: 0.04595663698 | AIK5: 0.04592710689 | AIL5: 0.04592500609 | AIM5: 0.04590289676 | AIN5: 0.04579528444 | AIO5: 0.0458834887 | AIP5: 0.04590672322 | AIQ5: 0.04595189818 | AIR5: 0.04597065094 | AIS5: 0.04590992813 | AIT5: 0.04590920128 | AIU5: 0.04600737712 | AIV5: 0.04609547185 | AIW5: 0.04611436458 | AIX5: 0.0460937354 | AIY5: 0.04621682708 | AIZ5: 0.04622699796 | AJA5: 0.04608968964 | AJB5: 0.04614957007 | AJC5: 0.04617132064 | AJD5: 0.04611702677 | AJE5: 0.04614707968 | AJF5: 0.04623684445 | AJG5: 0.04628758559 | AJH5: 0.04627616499 | AJI5: 0.04614555251 | AJJ5: 0.04609114045 | AJK5: 0.04615681937 | AJL5: 0.04618970002 | AJM5: 0.04618330421 | AJN5: 0.04618481122 | AJO5: 0.04624763451 | AJP5: 0.04630345937 | AJQ5: 0.0463080008 | AJR5: 0.04639459492 | AJS5: 0.04643829504 | AJT5: 0.04648011773 | AJU5: 0.04645365109 | AJV5: 0.04643846929 | AJW5: 0.04645284323 | AJX5: 0.04643117066 | AJY5: 0.04655443862 | AJZ5: 0.0465203982 | AKA5: 0.04650369853 | AKB5: 0.04648664717 | AKC5: 0.04647331093 | AKD5: 0.04657004792 | AKE5: 0.04652926809 | AKF5: 0.0465986949 | AKG5: 0.04663549688 | AKH5: 0.04664989356 | AKI5: 0.04659829853 | AKJ5: 0.04671953796 | AKK5: 0.04663284904 | AKL5: 0.04658017867 | AKM5: 0.04653366486 | AKN5: 0.04651790173 | AKO5: 0.04659025518 | AKP5: 0.04659738558 | AKQ5: 0.04656933126 | AKR5: 0.04657312469 | AKS5: 0.04655754705 | AKT5: 0.04658919755 | AKU5: 0.04658734128 | AKV5: 0.04645290055 | AKW5: 0.04648867541 | AKX5: 0.04643293828 | AKY5: 0.04645742741 | AKZ5: 0.04643053906 | ALA5: 0.04650033027 | ALB5: 0.04657682053 | ALC5: 0.04662018253 | ALD5: 0.04671312262 | ALE5: 0.04662634959 | ALF5: 0.04666064948 | ALG5: 0.04671086109 | ALH5: 0.04685199631 | ALI5: 0.04693419101 | ALJ5: 0.04688736998 | ALK5: 0.04693408674 | ALL5: 0.04688021434 | ALM5: 0.04682250048 | ALN5: 0.04673031197 | ALO5: 0.04682553247 | ALP5: 0.04678910904 | ALQ5: 0.0468270819
A6: μ | B6: 0.05 | D6: Pfad 2 | E6: =$B$9 -> 0.04 | F6: 0.04002347428 | G6: 0.04013814831 | H6: 0.04007896171 | I6: 0.0400664689 | J6: 0.04004825928 | K6: 0.04015289482 | L6: 0.04019603799 | M6: 0.0402256006 | N6: 0.0401419927 | O6: 0.04021077851 | P6: 0.04027679693 | Q6: 0.0403174077 | R6: 0.04045237337 | S6: 0.04047003846 | T6: 0.04046775393 | U6: 0.04046839091 | V6: 0.04035305805 | W6: 0.04031942793 | X6: 0.04032701762 | Y6: 0.04038500617 | Z6: 0.04039991587 | AA6: 0.04032859678 | AB6: 0.04027196624 | AC6: 0.04026000199 | AD6: 0.0402824889 | AE6: 0.04019750923 | AF6: 0.04019567233 | AG6: 0.04022127119 | AH6: 0.04029022017 | AI6: 0.04028057317 | AJ6: 0.04033128812 | AK6: 0.04027828782 | AL6: 0.04021714264 | AM6: 0.04018782053 | AN6: 0.04021057677 | AO6: 0.0403110557 | AP6: 0.04037513402 | AQ6: 0.04033760525 | AR6: 0.04012656779 | AS6: 0.04005870728 | AT6: 0.04005902041 | AU6: 0.04002741518 | AV6: 0.03995766136 | AW6: 0.03995387274 | AX6: 0.03991593952 | AY6: 0.03990106883 | AZ6: 0.03988158595 | BA6: 0.04006952232 | BB6: 0.04010217759 | BC6: 0.04010951904 | BD6: 0.04013062408 | BE6: 0.04004403499 | BF6: 0.04007466809 | BG6: 0.04010380365 | BH6: 0.0402474659 | BI6: 0.04034012241 | BJ6: 0.04028230745 | BK6: 0.04032640544 | BL6: 0.04037991013 | BM6: 0.04031351552 | BN6: 0.04042114888 | BO6: 0.04046983033 | BP6: 0.04047670212 | BQ6: 0.04055436506 | BR6: 0.04057039193 | BS6: 0.04062206827 | BT6: 0.04063662704 | BU6: 0.040593714 | BV6: 0.04059745775 | BW6: 0.04069005193 | BX6: 0.04076967244 | BY6: 0.04078523583 | BZ6: 0.04077879003 | CA6: 0.04088788008 | CB6: 0.04099922092 | CC6: 0.04098932706 | CD6: 0.04104028098 | CE6: 0.04113768492 | CF6: 0.04118134036 | CG6: 0.04113211679 | CH6: 0.04116736673 | CI6: 0.04122893888 | CJ6: 0.04117016916 | CK6: 0.04120927975 | CL6: 0.04120436731 | CM6: 0.04121672929 | CN6: 0.04118660576 | CO6: 0.04113621796 | CP6: 0.04117778528 | CQ6: 0.04114171199 | CR6: 0.04107616354 | CS6: 0.04112918148 | CT6: 0.04109876938 | CU6: 0.04109663436 | CV6: 0.04115321813 | CW6: 0.0411615238 | CX6: 0.04119592713 | CY6: 0.04120714657 | CZ6: 0.04127996657 | DA6: 0.04130140112 | DB6: 0.04128524485 | DC6: 0.04121753095 | DD6: 0.04120495471 | DE6: 0.04109426041 | DF6: 0.04117662733 | DG6: 0.04114395699 | DH6: 0.04110530948 | DI6: 0.04119735876 | DJ6: 0.04110185341 | DK6: 0.04111439419 | DL6: 0.04112763348 | DM6: 0.04121029228 | DN6: 0.04131925745 | DO6: 0.04137426232 | DP6: 0.04140191613 | DQ6: 0.0413754796 | DR6: 0.04145756254 | DS6: 0.04154094964 | DT6: 0.04160380154 | DU6: 0.04176030748 | DV6: 0.04168731777 | DW6: 0.04177745123 | DX6: 0.04180013063 | DY6: 0.04180086421 | DZ6: 0.04186462098 | EA6: 0.0419385977 | EB6: 0.04191990832 | EC6: 0.04199721571 | ED6: 0.04200655469 | EE6: 0.04204661177 | EF6: 0.04200572874 | EG6: 0.0420361696 | EH6: 0.04196705966 | EI6: 0.04196555993 | EJ6: 0.04207120847 | EK6: 0.04214331193 | EL6: 0.04211354955 | EM6: 0.04214956534 | EN6: 0.04223405703 | EO6: 0.04226511091 | EP6: 0.04231530283 | EQ6: 0.04233737028 | ER6: 0.04229164306 | ES6: 0.04230241881 | ET6: 0.0422843057 | EU6: 0.04229010705 | EV6: 0.04223730722 | EW6: 0.0423323037 | EX6: 0.04233006139 | EY6: 0.04232192328 | EZ6: 0.04221826622 | FA6: 0.04216928052 | FB6: 0.04222950176 | FC6: 0.04221372038 | FD6: 0.04223892655 | FE6: 0.04230531684 | FF6: 0.04230920702 | FG6: 0.04229316586 | FH6: 0.04230054401 | FI6: 0.04225334051 | FJ6: 0.04223490072 | FK6: 0.04222538309 | FL6: 0.04236241327 | FM6: 0.04234260752 | FN6: 0.04240601187 | FO6: 0.04240629742 | FP6: 0.04244346206 | FQ6: 0.0424531794 | FR6: 0.04239154859 | FS6: 0.0423124381 | FT6: 0.04230596333 | FU6: 0.04232348225 | FV6: 0.04227552231 | FW6: 0.04221211898 | FX6: 0.04218123668 | FY6: 0.04224139869 | FZ6: 0.04224345611 | GA6: 0.04221474072 | GB6: 0.04227568969 | GC6: 0.04225821825 | GD6: 0.04235406291 | GE6: 0.04236879545 | GF6: 0.04241393462 | GG6: 0.04246737309 | GH6: 0.04246286907 | GI6: 0.04251770794 | GJ6: 0.04259599175 | GK6: 0.04257346737 | GL6: 0.04260909616 | GM6: 0.04268964308 | GN6: 0.0426634328 | GO6: 0.04266461772 | GP6: 0.04276674608 | GQ6: 0.0428519062 | GR6: 0.04280146969 | GS6: 0.04280361776 | GT6: 0.04268331513 | GU6: 0.0427513969 | GV6: 0.04277025655 | GW6: 0.04273019967 | GX6: 0.04286235136 | GY6: 0.04289699895 | GZ6: 0.04290563377 | HA6: 0.0429312014 | HB6: 0.04293294337 | HC6: 0.04292768861 | HD6: 0.04293481199 | HE6: 0.04287356168 | HF6: 0.04291062345 | HG6: 0.04294044625 | HH6: 0.04280525474 | HI6: 0.04283833183 | HJ6: 0.04278523703 | HK6: 0.04280309135 | HL6: 0.04278291622 | HM6: 0.04267403972 | HN6: 0.04275376157 | HO6: 0.04275848454 | HP6: 0.04275258459 | HQ6: 0.04284361867 | HR6: 0.04279472403 | HS6: 0.04275099364 | HT6: 0.0429226725 | HU6: 0.04288607943 | HV6: 0.04290378058 | HW6: 0.04289138036 | HX6: 0.0429806945 | HY6: 0.0430408928 | HZ6: 0.04309735927 | IA6: 0.04312050538 | IB6: 0.04315768457 | IC6: 0.04323203198 | ID6: 0.04321493166 | IE6: 0.04326793613 | IF6: 0.04326379465 | IG6: 0.04324104006 | IH6: 0.04322708111 | II6: 0.04329608157 | IJ6: 0.04316618943 | IK6: 0.04327562019 | IL6: 0.04335118693 | IM6: 0.04341830927 | IN6: 0.04345897538 | IO6: 0.0433884658 | IP6: 0.04353294487 | IQ6: 0.04365537989 | IR6: 0.04375938776 | IS6: 0.04381610657 | IT6: 0.04381791314 | IU6: 0.04398046337 | IV6: 0.04398178215 | IW6: 0.04394418446 | IX6: 0.04395613146 | IY6: 0.04411448447 | IZ6: 0.04404788828 | JA6: 0.04409562643 | JB6: 0.04411722187 | JC6: 0.04423154432 | JD6: 0.04413225283 | JE6: 0.04417016561 | JF6: 0.04413325941 | JG6: 0.04417769888 | JH6: 0.04414713783 | JI6: 0.04414507694 | JJ6: 0.04412541687 | JK6: 0.04409416903 | JL6: 0.04416899407 | JM6: 0.04424484564 | JN6: 0.04426369848 | JO6: 0.0441710567 | JP6: 0.04421716697 | JQ6: 0.04417834151 | JR6: 0.04415118813 | JS6: 0.04402780169 | JT6: 0.04411054044 | JU6: 0.04415093791 | JV6: 0.04409721808 | JW6: 0.04408830655 | JX6: 0.04406122008 | JY6: 0.04399848823 | JZ6: 0.04412896457 | KA6: 0.0440873833 | KB6: 0.04410821275 | KC6: 0.04411897354 | KD6: 0.04414971196 | KE6: 0.04408981413 | KF6: 0.04411713639 | KG6: 0.0440131734 | KH6: 0.04394424291 | KI6: 0.04388530123 | KJ6: 0.04393987729 | KK6: 0.04395616485 | KL6: 0.04406889515 | KM6: 0.04402831401 | KN6: 0.04403015504 | KO6: 0.04399890594 | KP6: 0.04390208716 | KQ6: 0.04389241046 | KR6: 0.04388035071 | KS6: 0.04375453361 | KT6: 0.04368608441 | KU6: 0.04371036137 | KV6: 0.04366161555 | KW6: 0.0436918582 | KX6: 0.04378074232 | KY6: 0.04383233027 | KZ6: 0.04382362129 | LA6: 0.04370481755 | LB6: 0.04365420703 | LC6: 0.04371954329 | LD6: 0.0437521734 | LE6: 0.04385497268 | LF6: 0.04379847698 | LG6: 0.04384007833 | LH6: 0.04395137368 | LI6: 0.04388405205 | LJ6: 0.04394454732 | LK6: 0.04405382232 | LL6: 0.04396165248 | LM6: 0.04399382621 | LN6: 0.04403742453 | LO6: 0.04418194409 | LP6: 0.04410949378 | LQ6: 0.04407682569 | LR6: 0.04403985615 | LS6: 0.04417988593 | LT6: 0.04423920728 | LU6: 0.04417858209 | LV6: 0.04421086254 | LW6: 0.04431023552 | LX6: 0.04437560673 | LY6: 0.04441409777 | LZ6: 0.0444292288 | MA6: 0.04446438035 | MB6: 0.04458306721 | MC6: 0.04450253711 | MD6: 0.04448750373 | ME6: 0.04445349096 | MF6: 0.04444206517 | MG6: 0.0445135777 | MH6: 0.04452322008 | MI6: 0.04443414401 | MJ6: 0.0443546313 | MK6: 0.04434334025 | ML6: 0.04437512662 | MM6: 0.04425985282 | MN6: 0.04413520747 | MO6: 0.04417098747 | MP6: 0.04411999052 | MQ6: 0.04401318982 | MR6: 0.04407839121 | MS6: 0.04405624389 | MT6: 0.04405582369 | MU6: 0.04398769435 | MV6: 0.04400828112 | MW6: 0.04415704897 | MX6: 0.04421985105 | MY6: 0.0442088897 | MZ6: 0.04425441551 | NA6: 0.04427028426 | NB6: 0.04428087971 | NC6: 0.04432969704 | ND6: 0.04428174108 | NE6: 0.04428970401 | NF6: 0.04420762258 | NG6: 0.0443020884 | NH6: 0.04426960519 | NI6: 0.04430752755 | NJ6: 0.04432331757 | NK6: 0.04443721712 | NL6: 0.04446975507 | NM6: 0.04445301406 | NN6: 0.04449818813 | NO6: 0.04460092614 | NP6: 0.04463976766 | NQ6: 0.04466432653 | NR6: 0.04457406002 | NS6: 0.04463911305 | NT6: 0.0447027686 | NU6: 0.04474039678 | NV6: 0.04487444417 | NW6: 0.04488639933 | NX6: 0.04477218891 | NY6: 0.04486868137 | NZ6: 0.04493167957 | OA6: 0.04498838067 | OB6: 0.04495707857 | OC6: 0.04497028593 | OD6: 0.04488483817 | OE6: 0.04492313394 | OF6: 0.04492802957 | OG6: 0.04495420343 | OH6: 0.04492932946 | OI6: 0.04494091712 | OJ6: 0.04508890433 | OK6: 0.0452036685 | OL6: 0.04526953312 | OM6: 0.04525358216 | ON6: 0.04528703286 | OO6: 0.04522560646 | OP6: 0.04515642017 | OQ6: 0.04512053814 | OR6: 0.04513867644 | OS6: 0.04523658657 | OT6: 0.04529891547 | OU6: 0.04525505073 | OV6: 0.04510341301 | OW6: 0.04502777962 | OX6: 0.04502127559 | OY6: 0.04498384665 | OZ6: 0.04490498725 | PA6: 0.04489404282 | PB6: 0.0448488933 | PC6: 0.04482900014 | PD6: 0.04480375606 | PE6: 0.04479640959 | PF6: 0.04482616728 | PG6: 0.04482939397 | PH6: 0.04484482631 | PI6: 0.04487577329 | PJ6: 0.04491331009 | PK6: 0.04481383289 | PL6: 0.04478129593 | PM6: 0.04476309821 | PN6: 0.04474272312 | PO6: 0.04468184062 | PP6: 0.04462626469 | PQ6: 0.04459869218 | PR6: 0.04446631514 | PS6: 0.044460793 | PT6: 0.04436853831 | PU6: 0.04444373612 | PV6: 0.04461439383 | PW6: 0.04466470671 | PX6: 0.04467409544 | PY6: 0.04462609311 | PZ6: 0.04462555277 | QA6: 0.0447174184 | QB6: 0.04479494235 | QC6: 0.04480554785 | QD6: 0.04479551635 | QE6: 0.0449035681 | QF6: 0.04501326219 | QG6: 0.0449997054 | QH6: 0.04504702944 | QI6: 0.04514226069 | QJ6: 0.04518421761 | QK6: 0.04512881088 | QL6: 0.04515776692 | QM6: 0.04521557368 | QN6: 0.04515150384 | QO6: 0.04518770192 | QP6: 0.04518045053 | QQ6: 0.04518745531 | QR6: 0.04520364397 | QS6: 0.04520169973 | QT6: 0.04521491437 | QU6: 0.04526646547 | QV6: 0.04531101853 | QW6: 0.04532848547 | QX6: 0.04539213962 | QY6: 0.04542559061 | QZ6: 0.04546326341 | RA6: 0.04545886141 | RB6: 0.04543988444 | RC6: 0.04544832813 | RD6: 0.04543848204 | RE6: 0.04554822585 | RF6: 0.04552825438 | RG6: 0.04551197758 | RH6: 0.04536268963 | RI6: 0.04526506529 | RJ6: 0.04534466288 | RK6: 0.04531118814 | RL6: 0.04526725253 | RM6: 0.04535652998 | RN6: 0.04525386198 | RO6: 0.04526369881 | RP6: 0.0452722545 | RQ6: 0.04535228988 | RR6: 0.04546064833 | RS6: 0.04551401781 | RT6: 0.0455354316 | RU6: 0.04552014947 | RV6: 0.04559995513 | RW6: 0.04568202254 | RX6: 0.04574182455 | RY6: 0.0458955045 | RZ6: 0.04581550222 | SA6: 0.04581966979 | SB6: 0.04571130805 | SC6: 0.04573750965 | SD6: 0.04569485258 | SE6: 0.04571854984 | SF6: 0.04568695834 | SG6: 0.0457534796 | SH6: 0.0458210676 | SI6: 0.04585717152 | SJ6: 0.04593557144 | SK6: 0.0458684223 | SL6: 0.0458903824 | SM6: 0.04592909837 | SN6: 0.0460314757 | SO6: 0.04610080565 | SP6: 0.04606709883 | SQ6: 0.04609862653 | SR6: 0.04618227115 | SS6: 0.04621140518 | ST6: 0.0462586253 | SU6: 0.04627611014 | SV6: 0.04622612889 | SW6: 0.04623198034 | SX6: 0.04620860888 | SY6: 0.04621008907 | SZ6: 0.04615509445 | TA6: 0.04624884832 | TB6: 0.04624346719 | TC6: 0.04623156813 | TD6: 0.0461209241 | TE6: 0.04606614307 | TF6: 0.04609050492 | TG6: 0.0460717114 | TH6: 0.04612794527 | TI6: 0.04616185194 | TJ6: 0.04627981576 | TK6: 0.04628152623 | TL6: 0.04627943685 | TM6: 0.04619370095 | TN6: 0.0460885869 | TO6: 0.04604373532 | TP6: 0.04605323203 | TQ6: 0.04609699777 | TR6: 0.04615826767 | TS6: 0.04608161647 | TT6: 0.04602571614 | TU6: 0.04586068355 | TV6: 0.04587080673 | TW6: 0.04578639018 | TX6: 0.04577560992 | TY6: 0.0457890685 | TZ6: 0.04573515162 | UA6: 0.04566747402 | UB6: 0.04563126855 | UC6: 0.04555617689 | UD6: 0.04555664801 | UE6: 0.04552505232 | UF6: 0.0455830113 | UG6: 0.045562198 | UH6: 0.04565337152 | UI6: 0.04566620892 | UJ6: 0.04570912019 | UK6: 0.04578578149 | UL6: 0.04578255902 | UM6: 0.04583602466 | UN6: 0.04581353935 | UO6: 0.04579477108 | UP6: 0.04575318088 | UQ6: 0.04574043435 | UR6: 0.04572220549 | US6: 0.0458618177 | UT6: 0.04589270097 | UU6: 0.04589828654 | UV6: 0.04597397342 | UW6: 0.04588475671 | UX6: 0.04590101945 | UY6: 0.0459228689 | UZ6: 0.04604653387 | VA6: 0.0461084146 | VB6: 0.04605460801 | VC6: 0.04608601409 | VD6: 0.04612584441 | VE6: 0.04606517614 | VF6: 0.04607232674 | VG6: 0.04607480939 | VH6: 0.04598886586 | VI6: 0.04605283738 | VJ6: 0.04617098405 | VK6: 0.04622299906 | VL6: 0.04622371735 | VM6: 0.04618315905 | VN6: 0.04618520848 | VO6: 0.04627182106 | VP6: 0.0463395431 | VQ6: 0.04634225726 | VR6: 0.04633724994 | VS6: 0.04643436945 | VT6: 0.04652969969 | VU6: 0.04652130376 | VV6: 0.04655753275 | VW6: 0.04663890805 | VX6: 0.04668260248 | VY6: 0.04662938077 | VZ6: 0.04664169499 | WA6: 0.04668623423 | WB6: 0.04663086881 | WC6: 0.04666219826 | WD6: 0.04656394429 | WE6: 0.04656159113 | WF6: 0.04652501767 | WG6: 0.04647783275 | WH6: 0.04649966278 | WI6: 0.04645367076 | WJ6: 0.04638209288 | WK6: 0.04642006229 | WL6: 0.04639143916 | WM6: 0.04632905483 | WN6: 0.04635936907 | WO6: 0.0462152014 | WP6: 0.0461156864 | WQ6: 0.04603597518 | WR6: 0.04603787898 | WS6: 0.04613872014 | WT6: 0.04612708171 | WU6: 0.04606478928 | WV6: 0.04605501415 | WW6: 0.0459923854 | WX6: 0.04605899087 | WY6: 0.04603194856 | WZ6: 0.04599572284 | XA6: 0.04606983458 | XB6: 0.04597818892 | XC6: 0.04599370756 | XD6: 0.04599814842 | XE6: 0.0460734643 | XF6: 0.04617396201 | XG6: 0.04622717176 | XH6: 0.04638889035 | XI6: 0.04637013829 | XJ6: 0.04643915889 | XK6: 0.04651516274 | XL6: 0.04656457023 | XM6: 0.04669393171 | XN6: 0.0466195341 | XO6: 0.04669754789 | XP6: 0.04671535223 | XQ6: 0.04671631486 | XR6: 0.04677845305 | XS6: 0.04683772111 | XT6: 0.04680134454 | XU6: 0.04686328337 | XV6: 0.04692188416 | XW6: 0.04694683391 | XX6: 0.04686220388 | XY6: 0.04680671749 | XZ6: 0.04675715182 | YA6: 0.04678151206 | YB6: 0.04686434539 | YC6: 0.04692269807 | YD6: 0.04690045749 | YE6: 0.04691812798 | YF6: 0.04699829727 | YG6: 0.04703127916 | YH6: 0.04707057291 | YI6: 0.04707901361 | YJ6: 0.04703964755 | YK6: 0.04703899534 | YL6: 0.04701505104 | YM6: 0.04701620169 | YN6: 0.04697983811 | YO6: 0.04706520625 | YP6: 0.04706531829 | YQ6: 0.0470658511 | YR6: 0.046964635 | YS6: 0.04691374211 | YT6: 0.04695945957 | YU6: 0.04677794223 | YV6: 0.04678805494 | YW6: 0.04683902363 | YX6: 0.04683605158 | YY6: 0.04666544701 | YZ6: 0.04664857867 | ZA6: 0.04660632913 | ZB6: 0.0465917023 | ZC6: 0.04654537636 | ZD6: 0.04655933634 | ZE6: 0.04659105145 | ZF6: 0.04665097787 | ZG6: 0.04657911951 | ZH6: 0.04653229888 | ZI6: 0.046401092 | ZJ6: 0.04643706357 | ZK6: 0.04636186879 | ZL6: 0.04635034249 | ZM6: 0.04635808002 | ZN6: 0.04630288765 | ZO6: 0.04624612755 | ZP6: 0.04620847938 | ZQ6: 0.0462598218 | ZR6: 0.04626937596 | ZS6: 0.04624693805 | ZT6: 0.04629428533 | ZU6: 0.04628148399 | ZV6: 0.04635060212 | ZW6: 0.04636837946 | ZX6: 0.04640720225 | ZY6: 0.04644707249 | ZZ6: 0.04631475002 | AAA6: 0.04636749408 | AAB6: 0.04644004377 | AAC6: 0.04643019881 | AAD6: 0.04644416104 | AAE6: 0.04651695188 | AAF6: 0.04649634296 | AAG6: 0.04649010662 | AAH6: 0.04657420599 | AAI6: 0.0466471675 | AAJ6: 0.04659847992 | AAK6: 0.0465769924 | AAL6: 0.04646692112 | AAM6: 0.04652089002 | AAN6: 0.04652977406 | AAO6: 0.04657498594 | AAP6: 0.0465315842 | AAQ6: 0.0465483015 | AAR6: 0.04657503774 | AAS6: 0.04652604769 | AAT6: 0.04660937287 | AAU6: 0.04662228125 | AAV6: 0.04664222272 | AAW6: 0.04657548864 | AAX6: 0.04660017668 | AAY6: 0.04677982187 | AAZ6: 0.04666315684 | ABA6: 0.04669799913 | ABB6: 0.04665041814 | ABC6: 0.04671430787 | ABD6: 0.04668264534 | ABE6: 0.04658267111 | ABF6: 0.04665280028 | ABG6: 0.04661977222 | ABH6: 0.04661781489 | ABI6: 0.04669901256 | ABJ6: 0.04664549755 | ABK6: 0.0466077618 | ABL6: 0.04671848586 | ABM6: 0.04669195153 | ABN6: 0.04671375747 | ABO6: 0.04670567783 | ABP6: 0.04679044721 | ABQ6: 0.04683598361 | ABR6: 0.04688501635 | ABS6: 0.04690838562 | ABT6: 0.04693338751 | ABU6: 0.04700543544 | ABV6: 0.04698123396 | ABW6: 0.04702917471 | ABX6: 0.04696278839 | ABY6: 0.04693223721 | ABZ6: 0.04691554003 | ACA6: 0.04688385503 | ACB6: 0.04691486057 | ACC6: 0.04692685589 | ACD6: 0.04695248618 | ACE6: 0.04699518394 | ACF6: 0.04705355437 | ACG6: 0.04698630439 | ACH6: 0.0471096684 | ACI6: 0.04721204811 | ACJ6: 0.04730505411 | ACK6: 0.04735207196 | ACL6: 0.04724003012 | ACM6: 0.04737203139 | ACN6: 0.04737831059 | ACO6: 0.04734758044 | ACP6: 0.04742048477 | ACQ6: 0.0475453151 | ACR6: 0.04748367721 | ACS6: 0.04751789252 | ACT6: 0.04752861945 | ACU6: 0.04761294368 | ACV6: 0.047523518 | ACW6: 0.04756048867 | ACX6: 0.04753066282 | ACY6: 0.04755368608 | ACZ6: 0.04751520909 | ADA6: 0.04750723143 | ADB6: 0.04750177764 | ADC6: 0.04746043759 | ADD6: 0.04752124472 | ADE6: 0.04758593205 | ADF6: 0.04768779213 | ADG6: 0.04759637811 | ADH6: 0.0476390907 | ADI6: 0.04760526882 | ADJ6: 0.04759134621 | ADK6: 0.0476082293 | ADL6: 0.04758029196 | ADM6: 0.04771382863 | ADN6: 0.04767180487 | ADO6: 0.04765459574 | ADP6: 0.04763060098 | ADQ6: 0.04756277446 | ADR6: 0.04766848702 | ADS6: 0.04762409368 | ADT6: 0.04772436584 | ADU6: 0.04784933794 | ADV6: 0.04786656067 | ADW6: 0.04780873679 | ADX6: 0.04782431423 | ADY6: 0.04772877653 | ADZ6: 0.04766829252 | AEA6: 0.04761478314 | AEB6: 0.04765726298 | AEC6: 0.04765368938 | AED6: 0.04775227754 | AEE6: 0.04771787436 | AEF6: 0.04771991037 | AEG6: 0.04769780721 | AEH6: 0.0476023974 | AEI6: 0.047596609 | AEJ6: 0.04744225969 | AEK6: 0.04732895342 | AEL6: 0.04726641463 | AEM6: 0.04729018559 | AEN6: 0.04724742573 | AEO6: 0.04726253936 | AEP6: 0.0473428811 | AEQ6: 0.04738855654 | AER6: 0.04737673052 | AES6: 0.04734569547 | AET6: 0.04738626418 | AEU6: 0.04735953358 | AEV6: 0.04740118018 | AEW6: 0.04749099056 | AEX6: 0.04743742501 | AEY6: 0.04748050814 | AEZ6: 0.0475704463 | AFA6: 0.0475058098 | AFB6: 0.04756123244 | AFC6: 0.04765987295 | AFD6: 0.0475806863 | AFE6: 0.04760002042 | AFF6: 0.04762837093 | AFG6: 0.04775377309 | AFH6: 0.04767866075 | AFI6: 0.04765068536 | AFJ6: 0.04761636378 | AFK6: 0.04773353479 | AFL6: 0.04777929673 | AFM6: 0.0477154368 | AFN6: 0.0477444952 | AFO6: 0.04782212848 | AFP6: 0.0478654686 | AFQ6: 0.04790166354 | AFR6: 0.04790727686 | AFS6: 0.04792600388 | AFT6: 0.04803327949 | AFU6: 0.04795840134 | AFV6: 0.04794913927 | AFW6: 0.04790662583 | AFX6: 0.04790073163 | AFY6: 0.04796163574 | AFZ6: 0.04796959446 | AGA6: 0.04788045659 | AGB6: 0.04780427487 | AGC6: 0.04779750931 | AGD6: 0.04790102425 | AGE6: 0.04791533465 | AGF6: 0.04790742654 | AGG6: 0.04803281868 | AGH6: 0.04797849847 | AGI6: 0.04788132236 | AGJ6: 0.04793478171 | AGK6: 0.04791818596 | AGL6: 0.04788501718 | AGM6: 0.04782665746 | AGN6: 0.04784395202 | AGO6: 0.04795911727 | AGP6: 0.04802035986 | AGQ6: 0.04801583069 | AGR6: 0.04805949949 | AGS6: 0.04807012901 | AGT6: 0.04806729846 | AGU6: 0.04811669788 | AGV6: 0.04807349298 | AGW6: 0.04806659409 | AGX6: 0.04800047636 | AGY6: 0.04808885092 | AGZ6: 0.04805506108 | AHA6: 0.04807571812 | AHB6: 0.04821730293 | AHC6: 0.04831938259 | AHD6: 0.04833958875 | AHE6: 0.04832575724 | AHF6: 0.04835705141 | AHG6: 0.04844461413 | AHH6: 0.04847152654 | AHI6: 0.04847978481 | AHJ6: 0.04839810263 | AHK6: 0.04844783646 | AHL6: 0.04850251527 | AHM6: 0.04840948382 | AHN6: 0.04840499177 | AHO6: 0.04845555246 | AHP6: 0.04834674148 | AHQ6: 0.04843041797 | AHR6: 0.04848051248 | AHS6: 0.0485248008 | AHT6: 0.04850206981 | AHU6: 0.04852044896 | AHV6: 0.04843990334 | AHW6: 0.04846661489 | AHX6: 0.04845288276 | AHY6: 0.0484669244 | AHZ6: 0.0484461735 | AIA6: 0.04844950363 | AIB6: 0.04857382011 | AIC6: 0.04867847246 | AID6: 0.04873226512 | AIE6: 0.04871296626 | AIF6: 0.04874897007 | AIG6: 0.04868499423 | AIH6: 0.04861796046 | AII6: 0.04858370732 | AIJ6: 0.0485909673 | AIK6: 0.04867163133 | AIL6: 0.04873057086 | AIM6: 0.04869197681 | AIN6: 0.04858208069 | AIO6: 0.04851195861 | AIP6: 0.04849547895 | AIQ6: 0.04846426848 | AIR6: 0.04838340599 | AIS6: 0.04836189975 | AIT6: 0.04831698506 | AIU6: 0.04830138166 | AIV6: 0.04828065585 | AIW6: 0.04825667632 | AIX6: 0.04809999366 | AIY6: 0.04799690803 | AIZ6: 0.04807082266 | AJA6: 0.0480912646 | AJB6: 0.04811359296 | AJC6: 0.04802378064 | AJD6: 0.04799672677 | AJE6: 0.04798579185 | AJF6: 0.04796509689 | AJG6: 0.04791372469 | AJH6: 0.04785985554 | AJI6: 0.04783037279 | AJJ6: 0.04771070714 | AJK6: 0.0477112072 | AJL6: 0.04762260117 | AJM6: 0.0476857013 | AJN6: 0.04780276889 | AJO6: 0.04785343025 | AJP6: 0.0478527404 | AJQ6: 0.04781024879 | AJR6: 0.04773138834 | AJS6: 0.04781718363 | AJT6: 0.04788399635 | AJU6: 0.04788537762 | AJV6: 0.04787881068 | AJW6: 0.04797538559 | AJX6: 0.04807025764 | AJY6: 0.04806014085 | AJZ6: 0.04809501354 | AKA6: 0.04817583068 | AKB6: 0.04821815826 | AKC6: 0.04816298991 | AKD6: 0.04817427462 | AKE6: 0.04821797774 | AKF6: 0.04820947372 | AKG6: 0.04812568817 | AKH6: 0.04806945088 | AKI6: 0.04811535868 | AKJ6: 0.04824098872 | AKK6: 0.0481673117 | AKL6: 0.04818461348 | AKM6: 0.04822369088 | AKN6: 0.04825655366 | AKO6: 0.04827876184 | AKP6: 0.04832622663 | AKQ6: 0.0483486973 | AKR6: 0.04837697081 | AKS6: 0.04822926162 | AKT6: 0.04820457614 | AKU6: 0.04820622124 | AKV6: 0.04810035738 | AKW6: 0.04820059205 | AKX6: 0.0481864003 | AKY6: 0.04816890563 | AKZ6: 0.04804281632 | ALA6: 0.04797700118 | ALB6: 0.04804277749 | ALC6: 0.04801328842 | ALD6: 0.04797478631 | ALE6: 0.04804821944 | ALF6: 0.04795309372 | ALG6: 0.04796654762 | ALH6: 0.04796908695 | ALI6: 0.0480429786 | ALJ6: 0.04814276246 | ALK6: 0.04819453572 | ALL6: 0.04835538875 | ALM6: 0.04833111206 | ALN6: 0.04839918706 | ALO6: 0.04847420152 | ALP6: 0.04850274257 | ALQ6: 0.04850244973
A7: σ | B7: 0.15 | D7: Pfad 3 | E7: =$B$9 -> 0.04 | F7: 0.04002050703 | G7: 0.04003261624 | H7: 0.03995237167 | I7: 0.03997596843 | J7: 0.03995192367 | K7: 0.03997559997 | L7: 0.0399495506 | M7: 0.0400134011 | N7: 0.04007420253 | O7: 0.04010361453 | P7: 0.04017195389 | Q7: 0.04012761637 | R7: 0.04025197682 | S7: 0.04028048705 | T7: 0.04036385335 | U7: 0.0404244758 | V7: 0.0404112236 | W7: 0.04043360604 | X7: 0.04051413703 | Y7: 0.04055104926 | Z7: 0.04059370358 | AA7: 0.04060783928 | AB7: 0.0405779731 | AC7: 0.04058425381 | AD7: 0.04056905071 | AE7: 0.04057708467 | AF7: 0.04054986041 | AG7: 0.04063532649 | AH7: 0.04064190738 | AI7: 0.04051703542 | AJ7: 0.04043053447 | AK7: 0.04039053354 | AL7: 0.04040929895 | AM7: 0.04025420976 | AN7: 0.04030471968 | AO7: 0.04033717755 | AP7: 0.04044052408 | AQ7: 0.04044188034 | AR7: 0.04044987078 | AS7: 0.04039256298 | AT7: 0.04030956233 | AU7: 0.04027346853 | AV7: 0.04029270366 | AW7: 0.04032815256 | AX7: 0.04038958317 | AY7: 0.04032972715 | AZ7: 0.04029302947 | BA7: 0.04017846789 | BB7: 0.04021827152 | BC7: 0.04015516439 | BD7: 0.04015120663 | BE7: 0.04016482287 | BF7: 0.04012043962 | BG7: 0.04007423429 | BH7: 0.04004604558 | BI7: 0.04000348617 | BJ7: 0.0400185308 | BK7: 0.04000410555 | BL7: 0.04005445186 | BM7: 0.04004975894 | BN7: 0.04012042695 | BO7: 0.04014314347 | BP7: 0.04018529949 | BQ7: 0.04026035261 | BR7: 0.04014477987 | BS7: 0.04019985319 | BT7: 0.04019345024 | BU7: 0.04019188299 | BV7: 0.04017550248 | BW7: 0.04024924223 | BX7: 0.04023655118 | BY7: 0.04023748967 | BZ7: 0.04027218986 | CA7: 0.04028423441 | CB7: 0.04033711735 | CC7: 0.04026770995 | CD7: 0.04028249 | CE7: 0.04030169969 | CF7: 0.04041125686 | CG7: 0.04045981715 | CH7: 0.04042582193 | CI7: 0.0404465495 | CJ7: 0.04047702776 | CK7: 0.04043777569 | CL7: 0.04052140275 | CM7: 0.0405378223 | CN7: 0.04056204487 | CO7: 0.04050678122 | CP7: 0.0405360295 | CQ7: 0.04069291822 | CR7: 0.04059112488 | CS7: 0.04062951387 | CT7: 0.04059172068 | CU7: 0.04065636645 | CV7: 0.04063359933 | CW7: 0.04054711806 | CX7: 0.04061836139 | CY7: 0.04059501346 | CZ7: 0.04060046197 | DA7: 0.04068201566 | DB7: 0.04063878889 | DC7: 0.04054578335 | DD7: 0.04065470676 | DE7: 0.04063610638 | DF7: 0.04060717872 | DG7: 0.0404777878 | DH7: 0.04056243072 | DI7: 0.04061122298 | DJ7: 0.0406628562 | DK7: 0.04053670795 | DL7: 0.04051202047 | DM7: 0.04048396477 | DN7: 0.04063465214 | DO7: 0.04059815941 | DP7: 0.0405417266 | DQ7: 0.04057023502 | DR7: 0.04056215689 | DS7: 0.04053915895 | DT7: 0.04057457783 | DU7: 0.04059205983 | DV7: 0.0406220101 | DW7: 0.0406675334 | DX7: 0.04072790357 | DY7: 0.04073896967 | DZ7: 0.04085951517 | EA7: 0.04096024779 | EB7: 0.04105281126 | EC7: 0.04110255581 | ED7: 0.04100588742 | EE7: 0.04113424417 | EF7: 0.04114625562 | EG7: 0.04115006985 | EH7: 0.04121805915 | EI7: 0.0413400706 | EJ7: 0.04128935898 | EK7: 0.04132736363 | EL7: 0.04134360305 | EM7: 0.04142833269 | EN7: 0.04142332799 | EO7: 0.04146371152 | EP7: 0.04141776961 | EQ7: 0.04144577497 | ER7: 0.04141657672 | ES7: 0.04141564375 | ET7: 0.04141647158 | EU7: 0.04138474875 | EV7: 0.04140233713 | EW7: 0.04140495422 | EX7: 0.04146736288 | EY7: 0.04151846144 | EZ7: 0.04141465203 | FA7: 0.04145628789 | FB7: 0.04144997052 | FC7: 0.04147212586 | FD7: 0.04145254724 | FE7: 0.04158182706 | FF7: 0.04154883917 | FG7: 0.04153936865 | FH7: 0.04152380149 | FI7: 0.04146736291 | FJ7: 0.04150059206 | FK7: 0.04146594505 | FL7: 0.04156022513 | FM7: 0.04168229085 | FN7: 0.04170481608 | FO7: 0.04165760839 | FP7: 0.0417837184 | FQ7: 0.0417010642 | FR7: 0.04165086836 | FS7: 0.04160736734 | FT7: 0.04165271224 | FU7: 0.04165598854 | FV7: 0.04175382994 | FW7: 0.04172794346 | FX7: 0.04173592607 | FY7: 0.04172123191 | FZ7: 0.04163884697 | GA7: 0.04163944442 | GB7: 0.04150304948 | GC7: 0.0414041764 | GD7: 0.04135210452 | GE7: 0.04138010484 | GF7: 0.04134658676 | GG7: 0.04132201121 | GH7: 0.04132053164 | GI7: 0.04124482236 | GJ7: 0.04134406873 | GK7: 0.04132107928 | GL7: 0.0413636114 | GM7: 0.04134729952 | GN7: 0.04139287126 | GO7: 0.04141057748 | GP7: 0.04136814566 | GQ7: 0.04141544245 | GR7: 0.04136549122 | GS7: 0.04131291562 | GT7: 0.04121127051 | GU7: 0.04130875203 | GV7: 0.0412441602 | GW7: 0.04126718334 | GX7: 0.04129784202 | GY7: 0.04141893066 | GZ7: 0.04135591329 | HA7: 0.04133774553 | HB7: 0.04131352853 | HC7: 0.0414262977 | HD7: 0.04147366418 | HE7: 0.04142097888 | HF7: 0.04145434236 | HG7: 0.04153039611 | HH7: 0.0415746872 | HI7: 0.04161483072 | HJ7: 0.04162558377 | HK7: 0.04164754152 | HL7: 0.04175245789 | HM7: 0.04169079668 | HN7: 0.04176247709 | HO7: 0.0418266501 | HP7: 0.04179394708 | HQ7: 0.04180272844 | HR7: 0.04171648295 | HS7: 0.04176271398 | HT7: 0.04177228586 | HU7: 0.04175240174 | HV7: 0.04185427485 | HW7: 0.04187273693 | HX7: 0.04187082498 | HY7: 0.04199202607 | HZ7: 0.0419470282 | IA7: 0.04193608064 | IB7: 0.04199065845 | IC7: 0.0419828467 | ID7: 0.04191532585 | IE7: 0.04188169548 | IF7: 0.04190383931 | IG7: 0.04201413112 | IH7: 0.04207760339 | II7: 0.04203357516 | IJ7: 0.04202651439 | IK7: 0.04204202011 | IL7: 0.04204409358 | IM7: 0.04200478382 | IN7: 0.0419722088 | IO7: 0.04197041057 | IP7: 0.0419176849 | IQ7: 0.04200578163 | IR7: 0.04198107609 | IS7: 0.04200345221 | IT7: 0.04213704125 | IU7: 0.04223701808 | IV7: 0.04226067581 | IW7: 0.04216524058 | IX7: 0.04220963834 | IY7: 0.04223720887 | IZ7: 0.04240922986 | JA7: 0.04247983561 | JB7: 0.04246175711 | JC7: 0.04250719261 | JD7: 0.04247179606 | JE7: 0.04244708196 | JF7: 0.04244995572 | JG7: 0.04250197098 | JH7: 0.04240771704 | JI7: 0.04249033905 | JJ7: 0.04254163215 | JK7: 0.04258754584 | JL7: 0.04260458058 | JM7: 0.04262905872 | JN7: 0.04263101785 | JO7: 0.04266063598 | JP7: 0.04265203001 | JQ7: 0.04266972671 | JR7: 0.04265740833 | JS7: 0.04266574822 | JT7: 0.04278543209 | JU7: 0.04288824319 | JV7: 0.0429430176 | JW7: 0.04293099743 | JX7: 0.04297145811 | JY7: 0.04291769045 | JZ7: 0.04286180794 | KA7: 0.04283657432 | KB7: 0.04284526544 | KC7: 0.04292450521 | KD7: 0.04298541647 | KE7: 0.04295663809 | KF7: 0.04286328573 | KG7: 0.04280494245 | KH7: 0.04285062376 | KI7: 0.0428287407 | KJ7: 0.04288093852 | KK7: 0.04293766587 | KL7: 0.04301370633 | KM7: 0.04293753741 | KN7: 0.04297947047 | KO7: 0.04296447629 | KP7: 0.04282970213 | KQ7: 0.0427395247 | KR7: 0.04281401744 | KS7: 0.04283749778 | KT7: 0.04286126761 | KU7: 0.04278408836 | KV7: 0.04276536258 | KW7: 0.04276234917 | KX7: 0.04274887766 | KY7: 0.04270782161 | KZ7: 0.04266334512 | LA7: 0.04264125921 | LB7: 0.04253592571 | LC7: 0.04254312267 | LD7: 0.04246616553 | LE7: 0.04247754366 | LF7: 0.04259145505 | LG7: 0.04264498486 | LH7: 0.04264862207 | LI7: 0.04261543178 | LJ7: 0.04256555283 | LK7: 0.04265112718 | LL7: 0.04271804647 | LM7: 0.04290588081 | LN7: 0.04290576891 | LO7: 0.04300066275 | LP7: 0.0430216503 | LQ7: 0.04301823813 | LR7: 0.04308085491 | LS7: 0.04316044212 | LT7: 0.04320598577 | LU7: 0.04329816514 | LV7: 0.04337134673 | LW7: 0.04341340082 | LX7: 0.04341143872 | LY7: 0.04333934263 | LZ7: 0.04329104504 | MA7: 0.04333796464 | MB7: 0.04345679786 | MC7: 0.0433925756 | MD7: 0.04341489772 | ME7: 0.0434551829 | MF7: 0.04348976223 | MG7: 0.04351682228 | MH7: 0.04356460869 | MI7: 0.04358947946 | MJ7: 0.04361980919 | MK7: 0.04348878881 | ML7: 0.04346985056 | MM7: 0.04347570673 | MN7: 0.04340111926 | MO7: 0.04349987558 | MP7: 0.04349252933 | MQ7: 0.04348113981 | MR7: 0.04336851324 | MS7: 0.04331419653 | MT7: 0.04337954467 | MU7: 0.0433576226 | MV7: 0.04332731222 | MW7: 0.04339965928 | MX7: 0.04331581403 | MY7: 0.04329222503 | MZ7: 0.04329906028 | NA7: 0.04337396432 | NB7: 0.04334979577 | NC7: 0.04333289352 | ND7: 0.04334073683 | NE7: 0.04339246972 | NF7: 0.04340272977 | NG7: 0.0433282689 | NH7: 0.04327100895 | NI7: 0.0432770764 | NJ7: 0.04329366619 | NK7: 0.04320783147 | NL7: 0.04312309499 | NM7: 0.04314296071 | NN7: 0.04311602876 | NO7: 0.04313597481 | NP7: 0.04310490298 | NQ7: 0.04316698749 | NR7: 0.0432252195 | NS7: 0.0432499811 | NT7: 0.0433156793 | NU7: 0.04329459924 | NV7: 0.04340946512 | NW7: 0.04343259535 | NX7: 0.04351299676 | NY7: 0.04357078485 | NZ7: 0.04355590252 | OA7: 0.04357273784 | OB7: 0.04365236522 | OC7: 0.0436229824 | OD7: 0.04366245253 | OE7: 0.0436718538 | OF7: 0.04363922478 | OG7: 0.04364152318 | OH7: 0.04362254404 | OI7: 0.04359102116 | OJ7: 0.04353665977 | OK7: 0.04362062882 | OL7: 0.04348745218 | OM7: 0.04337570584 | ON7: 0.04328454348 | OO7: 0.04324084532 | OP7: 0.04325368911 | OQ7: 0.04310231646 | OR7: 0.04311467467 | OS7: 0.04316557657 | OT7: 0.0431666838 | OU7: 0.04301980179 | OV7: 0.04309885902 | OW7: 0.04306376584 | OX7: 0.04305465135 | OY7: 0.0429520486 | OZ7: 0.04306358423 | PA7: 0.04303926127 | PB7: 0.04308904762 | PC7: 0.04305610239 | PD7: 0.04301669735 | PE7: 0.04289855316 | PF7: 0.04298148379 | PG7: 0.04291470771 | PH7: 0.04290768455 | PI7: 0.04291796441 | PJ7: 0.04286894001 | PK7: 0.04281987784 | PL7: 0.04284081648 | PM7: 0.04279103675 | PN7: 0.04274345213 | PO7: 0.04272734676 | PP7: 0.04281905282 | PQ7: 0.04288519846 | PR7: 0.04294334135 | PS7: 0.04292685655 | PT7: 0.04285365517 | PU7: 0.04280567664 | PV7: 0.04279085151 | PW7: 0.04278097022 | PX7: 0.04271421817 | PY7: 0.04269415835 | PZ7: 0.04266526188 | QA7: 0.04266541181 | QB7: 0.04251554055 | QC7: 0.04252507936 | QD7: 0.04255812993 | QE7: 0.04256780541 | QF7: 0.04261674485 | QG7: 0.04254408648 | QH7: 0.04255573266 | QI7: 0.04257081219 | QJ7: 0.04267928645 | QK7: 0.04273901885 | QL7: 0.04273318379 | QM7: 0.04270375045 | QN7: 0.04266682791 | QO7: 0.04264908936 | QP7: 0.04255696541 | QQ7: 0.04257135601 | QR7: 0.04250330995 | QS7: 0.04255657964 | QT7: 0.04266115427 | QU7: 0.04271565724 | QV7: 0.04271411938 | QW7: 0.04269170334 | QX7: 0.04264585138 | QY7: 0.04272612416 | QZ7: 0.04278362821 | RA7: 0.0427847974 | RB7: 0.04275145019 | RC7: 0.04283639584 | RD7: 0.04291705861 | RE7: 0.04291909941 | RF7: 0.04294505745 | RG7: 0.04301295878 | RH7: 0.04305952322 | RI7: 0.04301926009 | RJ7: 0.04302306003 | RK7: 0.04305763142 | RL7: 0.04302022813 | RM7: 0.04304538751 | RN7: 0.04298484834 | RO7: 0.04297969284 | RP7: 0.04307466674 | RQ7: 0.04301359181 | RR7: 0.04304110125 | RS7: 0.04307058008 | RT7: 0.04309655788 | RU7: 0.04312921639 | RV7: 0.04316576144 | RW7: 0.04318317287 | RX7: 0.04320003552 | RY7: 0.043090571 | RZ7: 0.04307148587 | SA7: 0.04307596083 | SB7: 0.04303354607 | SC7: 0.04312430105 | SD7: 0.04312445067 | SE7: 0.04311888468 | SF7: 0.04301962237 | SG7: 0.04298285928 | SH7: 0.04303735495 | SI7: 0.04302761921 | SJ7: 0.04300917502 | SK7: 0.04306931085 | SL7: 0.0429970646 | SM7: 0.0430201321 | SN7: 0.04301404324 | SO7: 0.04308806763 | SP7: 0.04317999433 | SQ7: 0.04323278301 | SR7: 0.0433589419 | SS7: 0.04333626989 | ST7: 0.04339419671 | SU7: 0.04346290983 | SV7: 0.04350127431 | SW7: 0.04361047895 | SX7: 0.04355074378 | SY7: 0.04361762251 | SZ7: 0.04363184026 | TA7: 0.04356125202 | TB7: 0.04362268297 | TC7: 0.04367110555 | TD7: 0.04356725795 | TE7: 0.04360552748 | TF7: 0.0435956682 | TG7: 0.04361482996 | TH7: 0.0435422742 | TI7: 0.04366951519 | TJ7: 0.04363053914 | TK7: 0.04361810661 | TL7: 0.04360128846 | TM7: 0.04354128584 | TN7: 0.04338523423 | TO7: 0.04349886844 | TP7: 0.0435747117 | TQ7: 0.04361277268 | TR7: 0.04364134146 | TS7: 0.0436860686 | TT7: 0.04366319632 | TU7: 0.04366178017 | TV7: 0.04364558813 | TW7: 0.04361543202 | TX7: 0.04359940463 | TY7: 0.04367514437 | TZ7: 0.04368390042 | UA7: 0.04359309983 | UB7: 0.04351091494 | UC7: 0.04347340275 | UD7: 0.04359248859 | UE7: 0.04347109568 | UF7: 0.04347588372 | UG7: 0.0435166473 | UH7: 0.04352000403 | UI7: 0.0434045122 | UJ7: 0.0434743607 | UK7: 0.04344836658 | UL7: 0.04344555557 | UM7: 0.04336908401 | UN7: 0.04346633157 | UO7: 0.04344025132 | UP7: 0.04347990951 | UQ7: 0.04346325355 | UR7: 0.04350808753 | US7: 0.04352417172 | UT7: 0.04354160211 | UU7: 0.04348354973 | UV7: 0.04347910574 | UW7: 0.04349595591 | UX7: 0.04344679929 | UY7: 0.04340725011 | UZ7: 0.04337518377 | VA7: 0.04334482006 | VB7: 0.04336525871 | VC7: 0.04335616778 | VD7: 0.04339387411 | VE7: 0.04327036827 | VF7: 0.04332257473 | VG7: 0.04334697868 | VH7: 0.04338035465 | VI7: 0.04345378772 | VJ7: 0.04335744566 | VK7: 0.04323766154 | VL7: 0.04317358267 | VM7: 0.04314976714 | VN7: 0.04312938612 | VO7: 0.04308814188 | VP7: 0.04297082591 | VQ7: 0.04307329038 | VR7: 0.04310407946 | VS7: 0.04314559889 | VT7: 0.04317975757 | VU7: 0.04311408933 | VV7: 0.04312018091 | VW7: 0.04322850429 | VX7: 0.04332739714 | VY7: 0.04336008985 | VZ7: 0.04333293184 | WA7: 0.04347622737 | WB7: 0.04364252294 | WC7: 0.0436105511 | WD7: 0.04368182764 | WE7: 0.0438210627 | WF7: 0.04385199878 | WG7: 0.04379235086 | WH7: 0.04381069306 | WI7: 0.04390977067 | WJ7: 0.04381888453 | WK7: 0.04385752015 | WL7: 0.04382620593 | WM7: 0.04386184179 | WN7: 0.04383046136 | WO7: 0.04375161697 | WP7: 0.04381259544 | WQ7: 0.0437799193 | WR7: 0.04370116889 | WS7: 0.04370657127 | WT7: 0.04387030525 | WU7: 0.04392705993 | WV7: 0.04397267671 | WW7: 0.04393834801 | WX7: 0.04393326206 | WY7: 0.04395841337 | WZ7: 0.04392928711 | XA7: 0.04408705416 | XB7: 0.04404122633 | XC7: 0.04403060356 | XD7: 0.0440066826 | XE7: 0.04398477125 | XF7: 0.04410273552 | XG7: 0.04406230529 | XH7: 0.0440052259 | XI7: 0.04415290534 | XJ7: 0.04400735111 | XK7: 0.04399651241 | XL7: 0.04402005982 | XM7: 0.04403600194 | XN7: 0.04405429559 | XO7: 0.04410291557 | XP7: 0.04415308998 | XQ7: 0.04416140736 | XR7: 0.04426748697 | XS7: 0.04436155645 | XT7: 0.04444351615 | XU7: 0.04448102457 | XV7: 0.04438781864 | XW7: 0.04450136949 | XX7: 0.04451625976 | XY7: 0.04440095848 | XZ7: 0.04446093857 | YA7: 0.04456344298 | YB7: 0.04451836329 | YC7: 0.04454284 | YD7: 0.04458549038 | YE7: 0.04465049841 | YF7: 0.0446410385 | YG7: 0.04467849616 | YH7: 0.04462643671 | YI7: 0.04463876966 | YJ7: 0.04460375829 | YK7: 0.04460036528 | YL7: 0.04460977851 | YM7: 0.04456941472 | YN7: 0.04461915132 | YO7: 0.04467360725 | YP7: 0.04473217857 | YQ7: 0.04477049943 | YR7: 0.0446875569 | YS7: 0.0447139993 | YT7: 0.04469798561 | YU7: 0.04470984481 | YV7: 0.044696455 | YW7: 0.04481065686 | YX7: 0.04478649359 | YY7: 0.0447713071 | YZ7: 0.044768546 | ZA7: 0.0447083059 | ZB7: 0.04474008768 | ZC7: 0.04470504962 | ZD7: 0.04475895325 | ZE7: 0.04485665111 | ZF7: 0.04486810632 | ZG7: 0.04482514876 | ZH7: 0.04493769122 | ZI7: 0.04486255947 | ZJ7: 0.04482006618 | ZK7: 0.04478311723 | ZL7: 0.04481314709 | ZM7: 0.04480254351 | ZN7: 0.04488762778 | ZO7: 0.04486775746 | ZP7: 0.0448870961 | ZQ7: 0.04487955787 | ZR7: 0.04479842145 | ZS7: 0.04480161524 | ZT7: 0.04468684388 | ZU7: 0.04459211249 | ZV7: 0.0445463317 | ZW7: 0.04457172291 | ZX7: 0.04454582713 | ZY7: 0.04461411468 | ZZ7: 0.04468577623 | AAA7: 0.04462505959 | AAB7: 0.04470952108 | AAC7: 0.04468204244 | AAD7: 0.04471046264 | AAE7: 0.04470452335 | AAF7: 0.04475007896 | AAG7: 0.04476505774 | AAH7: 0.04472822115 | AAI7: 0.04477817842 | AAJ7: 0.04473478006 | AAK7: 0.04468689782 | AAL7: 0.04461662025 | AAM7: 0.04470812388 | AAN7: 0.04465425459 | AAO7: 0.04466509645 | AAP7: 0.04482906996 | AAQ7: 0.04493680439 | AAR7: 0.04487169652 | AAS7: 0.04485831713 | AAT7: 0.04484209951 | AAU7: 0.04493713602 | AAV7: 0.04497103037 | AAW7: 0.04491623428 | AAX7: 0.04494385264 | AAY7: 0.04500172933 | AAZ7: 0.04502850474 | ABA7: 0.04506456744 | ABB7: 0.04506671822 | ABC7: 0.04507398851 | ABD7: 0.04516826458 | ABE7: 0.04511296196 | ABF7: 0.04500440614 | ABG7: 0.04496230864 | ABH7: 0.0449696783 | ABI7: 0.04501902021 | ABJ7: 0.04502644645 | ABK7: 0.04494960439 | ABL7: 0.04494398898 | ABM7: 0.04494119477 | ABN7: 0.04503542079 | ABO7: 0.04504431119 | ABP7: 0.04503532287 | ABQ7: 0.04514458816 | ABR7: 0.04509257697 | ABS7: 0.04507701171 | ABT7: 0.04511812646 | ABU7: 0.04502236462 | ABV7: 0.04495752139 | ABW7: 0.04492484444 | ABX7: 0.04494060418 | ABY7: 0.04502975 | ABZ7: 0.04509127766 | ACA7: 0.04505257686 | ACB7: 0.04493416122 | ACC7: 0.04486473031 | ACD7: 0.04491614737 | ACE7: 0.04487778758 | ACF7: 0.04480158597 | ACG7: 0.0448638726 | ACH7: 0.04482128989 | ACI7: 0.04480569155 | ACJ7: 0.04487585044 | ACK7: 0.04487239275 | ACL7: 0.04490304345 | ACM7: 0.04490805959 | ACN7: 0.04498506764 | ACO7: 0.04501181278 | ACP7: 0.04504371403 | ACQ7: 0.04506773002 | ACR7: 0.04519832741 | ACS7: 0.04526474231 | ACT7: 0.04524524123 | ACU7: 0.04528144157 | ACV7: 0.04525927339 | ACW7: 0.04523181809 | ACX7: 0.04523777254 | ACY7: 0.0452766023 | ACZ7: 0.04518779348 | ADA7: 0.04525721426 | ADB7: 0.04529571927 | ADC7: 0.04532755869 | ADD7: 0.04533268673 | ADE7: 0.04536221304 | ADF7: 0.04536191177 | ADG7: 0.04538006307 | ADH7: 0.04535886552 | ADI7: 0.04536567283 | ADJ7: 0.04535851411 | ADK7: 0.04536093937 | ADL7: 0.04546298578 | ADM7: 0.04555646124 | ADN7: 0.04559825996 | ADO7: 0.04558735897 | ADP7: 0.04563028372 | ADQ7: 0.04557655821 | ADR7: 0.04552581637 | ADS7: 0.0455080959 | ADT7: 0.04559876016 | ADU7: 0.04566194685 | ADV7: 0.04571842153 | ADW7: 0.04570091432 | ADX7: 0.04562525089 | ADY7: 0.04557443806 | ADZ7: 0.04560460219 | AEA7: 0.0455937297 | AEB7: 0.0455222275 | AEC7: 0.04549775888 | AED7: 0.04546615331 | AEE7: 0.04546470178 | AEF7: 0.0455116963 | AEG7: 0.04534974204 | AEH7: 0.04524246194 | AEI7: 0.0451595296 | AEJ7: 0.04522775419 | AEK7: 0.04524169699 | AEL7: 0.04539678347 | AEM7: 0.04532983989 | AEN7: 0.04531732926 | AEO7: 0.04524312326 | AEP7: 0.04523647074 | AEQ7: 0.04520530055 | AER7: 0.04516594686 | AES7: 0.04514592147 | AET7: 0.04505040791 | AEU7: 0.04506363078 | AEV7: 0.04499237512 | AEW7: 0.04506861194 | AEX7: 0.04517234565 | AEY7: 0.04522583907 | AEZ7: 0.0452207662 | AFA7: 0.04519695902 | AFB7: 0.04514671841 | AFC7: 0.04522572795 | AFD7: 0.0452806011 | AFE7: 0.04541941026 | AFF7: 0.04538950817 | AFG7: 0.04547257002 | AFH7: 0.04549200486 | AFI7: 0.04549210479 | AFJ7: 0.04555456299 | AFK7: 0.04561980166 | AFL7: 0.04566504039 | AFM7: 0.04562181605 | AFN7: 0.04562136632 | AFO7: 0.04565255537 | AFP7: 0.04561287929 | AFQ7: 0.04555316037 | AFR7: 0.04550405964 | AFS7: 0.04553652167 | AFT7: 0.04562833522 | AFU7: 0.04556276144 | AFV7: 0.04558906722 | AFW7: 0.04561464489 | AFX7: 0.0456371629 | AFY7: 0.0456688543 | AFZ7: 0.04570192646 | AGA7: 0.04571580891 | AGB7: 0.04572490181 | AGC7: 0.04561225552 | AGD7: 0.04558988666 | AGE7: 0.04559172241 | AGF7: 0.04554865588 | AGG7: 0.0456380394 | AGH7: 0.04563657748 | AGI7: 0.04562961659 | AGJ7: 0.04552651225 | AGK7: 0.04548845686 | AGL7: 0.04554005592 | AGM7: 0.04553028301 | AGN7: 0.04551090702 | AGO7: 0.04556812102 | AGP7: 0.04549285891 | AGQ7: 0.04548622072 | AGR7: 0.04547557779 | AGS7: 0.04554898839 | AGT7: 0.0455317964 | AGU7: 0.04553262496 | AGV7: 0.045656495 | AGW7: 0.04563016868 | AGX7: 0.04568549887 | AGY7: 0.04562567925 | AGZ7: 0.04557558645 | AHA7: 0.04558531502 | AHB7: 0.04559224143 | AHC7: 0.04551376 | AHD7: 0.045439373 | AHE7: 0.04545038056 | AHF7: 0.04543252219 | AHG7: 0.04554834586 | AHH7: 0.04551206491 | AHI7: 0.04556683147 | AHJ7: 0.04561289386 | AHK7: 0.04576829765 | AHL7: 0.04582084641 | AHM7: 0.04580372811 | AHN7: 0.04588267435 | AHO7: 0.04603448687 | AHP7: 0.04609737583 | AHQ7: 0.04614226893 | AHR7: 0.04598994214 | AHS7: 0.04609867297 | AHT7: 0.04617332882 | AHU7: 0.04615520365 | AHV7: 0.04617949291 | AHW7: 0.04621943716 | AHX7: 0.04619474981 | AHY7: 0.04619007225 | AHZ7: 0.04617137229 | AIA7: 0.04613673173 | AIB7: 0.04608543889 | AIC7: 0.04615927903 | AID7: 0.04604300624 | AIE7: 0.04594857286 | AIF7: 0.04586315179 | AIG7: 0.04582329734 | AIH7: 0.0459406702 | AII7: 0.04581645599 | AIJ7: 0.0458177296 | AIK7: 0.04583061641 | AIL7: 0.04591932772 | AIM7: 0.04590769748 | AIN7: 0.04592318904 | AIO7: 0.04585757744 | AIP7: 0.04577215943 | AIQ7: 0.04572848008 | AIR7: 0.04574698789 | AIS7: 0.04592363093 | AIT7: 0.04598522217 | AIU7: 0.04592343767 | AIV7: 0.04589186568 | AIW7: 0.04578669015 | AIX7: 0.04586071729 | AIY7: 0.04580025182 | AIZ7: 0.04579417414 | AJA7: 0.04580585419 | AJB7: 0.04575309078 | AJC7: 0.04571171179 | AJD7: 0.04583720234 | AJE7: 0.04580556663 | AJF7: 0.04582503797 | AJG7: 0.04581433061 | AJH7: 0.0458489218 | AJI7: 0.04572346824 | AJJ7: 0.04577224298 | AJK7: 0.0457952068 | AJL7: 0.04582561182 | AJM7: 0.0458983639 | AJN7: 0.04579977736 | AJO7: 0.04584975153 | AJP7: 0.0458531798 | AJQ7: 0.04573516752 | AJR7: 0.04572392768 | AJS7: 0.04578715861 | AJT7: 0.04577767697 | AJU7: 0.04578825059 | AJV7: 0.0458166452 | AJW7: 0.04585554112 | AJX7: 0.04588800987 | AJY7: 0.04581787862 | AJZ7: 0.04582141874 | AKA7: 0.04592857147 | AKB7: 0.04602700125 | AKC7: 0.04607875088 | AKD7: 0.04604792254 | AKE7: 0.04619108854 | AKF7: 0.04619354961 | AKG7: 0.04615797505 | AKH7: 0.0461667236 | AKI7: 0.04630599012 | AKJ7: 0.04633454315 | AKK7: 0.04627118704 | AKL7: 0.04628728691 | AKM7: 0.04638593627 | AKN7: 0.04629037129 | AKO7: 0.04632701795 | AKP7: 0.04629252443 | AKQ7: 0.04632668144 | AKR7: 0.04629228639 | AKS7: 0.04620904508 | AKT7: 0.04626861357 | AKU7: 0.04623313755 | AKV7: 0.04615080942 | AKW7: 0.04622118528 | AKX7: 0.04617273868 | AKY7: 0.04608180794 | AKZ7: 0.04616717401 | ALA7: 0.04615345361 | ALB7: 0.04613096386 | ALC7: 0.04601304961 | ALD7: 0.04598126421 | ALE7: 0.04613532006 | ALF7: 0.04608627184 | ALG7: 0.04607355311 | ALH7: 0.04604742222 | ALI7: 0.04602312426 | ALJ7: 0.04614091774 | ALK7: 0.04609786864 | ALL7: 0.04603782921 | ALM7: 0.04618464102 | ALN7: 0.04603578806 | ALO7: 0.04597682634 | ALP7: 0.04599882635 | ALQ7: 0.04601273826
A8: θ | B8: 0.5 | D8: Pfad 4 | E8: 0.04 | F8: 0.03994511051 | G8: 0.03989838982 | H8: 0.03995012221 | I8: 0.03996295071 | J8: 0.04006779804 | K8: 0.04003834667 | L8: 0.04004617899 | M8: 0.040085882 | N8: 0.04000288927 | O8: 0.04000112912 | P8: 0.0400197726 | Q8: 0.03991654882 | R8: 0.03997734589 | S8: 0.04007888124 | T8: 0.04004127626 | U8: 0.04006890503 | V8: 0.04011352214 | W8: 0.04017985617 | X8: 0.04017593064 | Y8: 0.04008070226 | Z8: 0.04013011652 | AA8: 0.04019226418 | AB8: 0.04022006955 | AC8: 0.04031570785 | AD8: 0.04026988489 | AE8: 0.04032798331 | AF8: 0.04042151229 | AG8: 0.04036540077 | AH8: 0.04042518064 | AI8: 0.04046603937 | AJ8: 0.04039208893 | AK8: 0.04042194445 | AL8: 0.04041162641 | AM8: 0.04042755571 | AN8: 0.04036473084 | AO8: 0.04047696014 | AP8: 0.04044926709 | AQ8: 0.04043975397 | AR8: 0.04044356799 | AS8: 0.04039144083 | AT8: 0.04042586709 | AU8: 0.04039759073 | AV8: 0.04045337752 | AW8: 0.04055044571 | AX8: 0.04056604919 | AY8: 0.04053022452 | AZ8: 0.04064104913 | BA8: 0.04057450128 | BB8: 0.04053874525 | BC8: 0.04050849283 | BD8: 0.04054085747 | BE8: 0.04053573603 | BF8: 0.04062079932 | BG8: 0.04060655374 | BH8: 0.04053970189 | BI8: 0.04051515484 | BJ8: 0.04062127707 | BK8: 0.04052304229 | BL8: 0.04052563383 | BM8: 0.04055959388 | BN8: 0.04051821245 | BO8: 0.04042915001 | BP8: 0.04049034591 | BQ8: 0.04047804272 | BR8: 0.04048490327 | BS8: 0.04043169428 | BT8: 0.04051622193 | BU8: 0.0404949057 | BV8: 0.04052600779 | BW8: 0.04052452227 | BX8: 0.04057189599 | BY8: 0.0405903045 | BZ8: 0.04056012438 | CA8: 0.04061155195 | CB8: 0.04057484374 | CC8: 0.04053406763 | CD8: 0.04047181045 | CE8: 0.04056267611 | CF8: 0.04051585708 | CG8: 0.04054955128 | CH8: 0.04070739647 | CI8: 0.04081381346 | CJ8: 0.04075665362 | CK8: 0.04074827357 | CL8: 0.0407379584 | CM8: 0.04083251888 | CN8: 0.0408691887 | CO8: 0.04089093489 | CP8: 0.04092111895 | CQ8: 0.04098056318 | CR8: 0.04093453859 | CS8: 0.04084800798 | CT8: 0.04084835402 | CU8: 0.04090638418 | CV8: 0.0409074144 | CW8: 0.04091078604 | CX8: 0.04096953508 | CY8: 0.04102256193 | CZ8: 0.04100311319 | DA8: 0.04102359388 | DB8: 0.04095215897 | DC8: 0.0409883971 | DD8: 0.04098838851 | DE8: 0.04099243381 | DF8: 0.0410859767 | DG8: 0.04109875182 | DH8: 0.04109460981 | DI8: 0.04120236443 | DJ8: 0.04115748043 | DK8: 0.04114709973 | DL8: 0.04119010039 | DM8: 0.04110490288 | DN8: 0.04104755125 | DO8: 0.04102093547 | DP8: 0.04103966842 | DQ8: 0.04112869297 | DR8: 0.04119111472 | DS8: 0.04115873134 | DT8: 0.04105088961 | DU8: 0.0411292384 | DV8: 0.04112451472 | DW8: 0.04109834594 | DX8: 0.0410779288 | DY8: 0.04106874949 | DZ8: 0.04103442181 | EA8: 0.04102365736 | EB8: 0.04109466578 | EC8: 0.0410951669 | ED8: 0.04110158281 | EE8: 0.04100820944 | EF8: 0.04108537434 | EG8: 0.04111503834 | EH8: 0.04114899629 | EI8: 0.04106619387 | EJ8: 0.04104380149 | EK8: 0.04111097417 | EL8: 0.04109716759 | EM8: 0.04105008131 | EN8: 0.04103325972 | EO8: 0.04101197335 | EP8: 0.04102192247 | EQ8: 0.04106278031 | ER8: 0.04098320039 | ES8: 0.04105345785 | ET8: 0.04109447518 | EU8: 0.04112878611 | EV8: 0.04113834047 | EW8: 0.04110124491 | EX8: 0.0411057406 | EY8: 0.0411273088 | EZ8: 0.04111215605 | FA8: 0.04112331001 | FB8: 0.04112105705 | FC8: 0.04112796355 | FD8: 0.04122913258 | FE8: 0.04122360384 | FF8: 0.04126760135 | FG8: 0.04126224278 | FH8: 0.04130715924 | FI8: 0.04126105613 | FJ8: 0.04121774937 | FK8: 0.04120612787 | FL8: 0.04120307165 | FM8: 0.04123961254 | FN8: 0.04119422049 | FO8: 0.0412015805 | FP8: 0.04117257124 | FQ8: 0.04110396704 | FR8: 0.04112386998 | FS8: 0.04108744703 | FT8: 0.04112942434 | FU8: 0.04117523909 | FV8: 0.04123289293 | FW8: 0.0411664377 | FX8: 0.0412031966 | FY8: 0.04105647163 | FZ8: 0.04095954238 | GA8: 0.04088561633 | GB8: 0.04095455801 | GC8: 0.04097231085 | GD8: 0.041122528 | GE8: 0.04106355617 | GF8: 0.04105609902 | GG8: 0.04099048806 | GH8: 0.04106419563 | GI8: 0.04103885561 | GJ8: 0.04100624512 | GK8: 0.04099204033 | GL8: 0.04090595283 | GM8: 0.04092262551 | GN8: 0.04093357439 | GO8: 0.04100951702 | GP8: 0.04111194839 | GQ8: 0.04116678278 | GR8: 0.04116648533 | GS8: 0.04115420381 | GT8: 0.04122911111 | GU8: 0.04122199768 | GV8: 0.04125199155 | GW8: 0.04125583582 | GX8: 0.04118893444 | GY8: 0.04119895323 | GZ8: 0.04110953056 | HA8: 0.04103113951 | HB8: 0.04100092407 | HC8: 0.04102608863 | HD8: 0.04101806172 | HE8: 0.04108341015 | HF8: 0.0411477264 | HG8: 0.0411816345 | HH8: 0.04110644927 | HI8: 0.04105463171 | HJ8: 0.04101321232 | HK8: 0.04104809795 | HL8: 0.04113965837 | HM8: 0.04120482019 | HN8: 0.0412340528 | HO8: 0.04126241842 | HP8: 0.04134410179 | HQ8: 0.04137835184 | HR8: 0.04142406145 | HS8: 0.04144151791 | HT8: 0.04165576314 | HU8: 0.0415532279 | HV8: 0.04153650375 | HW8: 0.0415426766 | HX8: 0.04150581713 | HY8: 0.04159486289 | HZ8: 0.04159755227 | IA8: 0.04159578091 | IB8: 0.04150230523 | IC8: 0.04147013367 | ID8: 0.041493619 | IE8: 0.04154100172 | IF8: 0.04156059423 | IG8: 0.04159474623 | IH8: 0.04159816033 | II8: 0.04160154939 | IJ8: 0.04168642606 | IK8: 0.04164717086 | IL8: 0.04155814384 | IM8: 0.04152054023 | IN8: 0.04153640377 | IO8: 0.04157662484 | IP8: 0.04163661492 | IQ8: 0.04157197993 | IR8: 0.04152880331 | IS8: 0.04154211877 | IT8: 0.04155261905 | IU8: 0.04148237417 | IV8: 0.04141591057 | IW8: 0.04143062264 | IX8: 0.04141820908 | IY8: 0.041364421 | IZ8: 0.04133467691 | JA8: 0.04139078499 | JB8: 0.0414000073 | JC8: 0.04137914741 | JD8: 0.04143350368 | JE8: 0.04142238397 | JF8: 0.04150180193 | JG8: 0.04152075782 | JH8: 0.04156384079 | JI8: 0.04161094728 | JJ8: 0.04147336957 | JK8: 0.04152799039 | JL8: 0.04160308803 | JM8: 0.04158765305 | JN8: 0.04156422988 | JO8: 0.04164044754 | JP8: 0.04163481179 | JQ8: 0.04176096581 | JR8: 0.0418521608 | JS8: 0.04193043037 | JT8: 0.04199230432 | JU8: 0.04191600053 | JV8: 0.04193243762 | JW8: 0.0419932986 | JX8: 0.04200902086 | JY8: 0.04206398419 | JZ8: 0.04202243667 | KA8: 0.04205186442 | KB8: 0.04208763961 | KC8: 0.0420401682 | KD8: 0.04212868138 | KE8: 0.04212181872 | KF8: 0.04213966077 | KG8: 0.0420814918 | KH8: 0.04200424166 | KI8: 0.04196680391 | KJ8: 0.04185284298 | KK8: 0.04202020456 | KL8: 0.04197549254 | KM8: 0.04192112961 | KN8: 0.04189558844 | KO8: 0.0417998834 | KP8: 0.04187431974 | KQ8: 0.04182107773 | KR8: 0.04181992167 | KS8: 0.04183563448 | KT8: 0.04178986928 | KU8: 0.04175462972 | KV8: 0.04187760645 | KW8: 0.04183551621 | KX8: 0.04180019373 | KY8: 0.04164363764 | KZ8: 0.04172931148 | LA8: 0.04178257379 | LB8: 0.04183601394 | LC8: 0.04168512686 | LD8: 0.04163202881 | LE8: 0.04159769505 | LF8: 0.04179385548 | LG8: 0.04168826279 | LH8: 0.04162811031 | LI8: 0.04160635384 | LJ8: 0.04159044371 | LK8: 0.0415560561 | LL8: 0.04159524085 | LM8: 0.04161029259 | LN8: 0.04164127875 | LO8: 0.0416835784 | LP8: 0.04171684735 | LQ8: 0.04165560822 | LR8: 0.04166263814 | LS8: 0.04176738543 | LT8: 0.04186418391 | LU8: 0.04191685547 | LV8: 0.04189326325 | LW8: 0.04203065626 | LX8: 0.04203851949 | LY8: 0.04201050205 | LZ8: 0.04202266146 | MA8: 0.0421556959 | MB8: 0.04209924034 | MC8: 0.04217352239 | MD8: 0.04226935001 | ME8: 0.04232324666 | MF8: 0.04231837888 | MG8: 0.04231499632 | MH8: 0.04226864056 | MI8: 0.04234168617 | MJ8: 0.04238753128 | MK8: 0.04250575558 | ML8: 0.04249887571 | MM8: 0.04257223112 | MN8: 0.04259140011 | MO8: 0.04258215449 | MP8: 0.0426445586 | MQ8: 0.04269998139 | MR8: 0.04274569514 | MS8: 0.04271497674 | MT8: 0.0427104543 | MU8: 0.0427353202 | MV8: 0.04270961394 | MW8: 0.04285291381 | MX8: 0.04281141008 | MY8: 0.04280196377 | MZ8: 0.04278120268 | NA8: 0.042762736 | NB8: 0.04287640524 | NC8: 0.04283859354 | ND8: 0.04278492224 | NE8: 0.04292295552 | NF8: 0.04278796909 | NG8: 0.04273559117 | NH8: 0.0427589803 | NI8: 0.04277578723 | NJ8: 0.04275886523 | NK8: 0.0427331086 | NL8: 0.04270984304 | NM8: 0.04279089942 | NN8: 0.04279766506 | NO8: 0.04270080591 | NP8: 0.04261466097 | NQ8: 0.04259336829 | NR8: 0.04263649557 | NS8: 0.04250264122 | NT8: 0.042337404 | NU8: 0.04238524433 | NV8: 0.04232662906 | NW8: 0.042196806 | NX8: 0.0421824872 | NY8: 0.04225480059 | NZ8: 0.04224902109 | OA8: 0.04215948949 | OB8: 0.04226552777 | OC8: 0.04224200389 | OD8: 0.04228873223 | OE8: 0.04226326929 | OF8: 0.04230678016 | OG8: 0.04240061945 | OH8: 0.04235258685 | OI8: 0.04239677261 | OJ8: 0.04248895721 | OK8: 0.04243042901 | OL8: 0.04248898146 | OM8: 0.04252711109 | ON8: 0.04245196986 | OO8: 0.04247863546 | OP8: 0.04246506138 | OQ8: 0.04247818019 | OR8: 0.04241189138 | OS8: 0.0424155803 | OT8: 0.0424775694 | OU8: 0.04259966556 | OV8: 0.04265176905 | OW8: 0.04268875402 | OX8: 0.0425807893 | OY8: 0.04266527777 | OZ8: 0.04273553643 | PA8: 0.04258932384 | PB8: 0.04275475578 | PC8: 0.0427818541 | PD8: 0.04276987629 | PE8: 0.04276756283 | PF8: 0.0427603537 | PG8: 0.04272695378 | PH8: 0.04268897247 | PI8: 0.04275460396 | PJ8: 0.0426605926 | PK8: 0.04258051281 | PL8: 0.04251126399 | PM8: 0.04248541884 | PN8: 0.04259069829 | PO8: 0.04248988368 | PP8: 0.04248951515 | PQ8: 0.04252074819 | PR8: 0.04247594344 | PS8: 0.04238516533 | PT8: 0.04244413218 | PU8: 0.0424309247 | PV8: 0.04243728301 | PW8: 0.04238313219 | PX8: 0.04246558973 | PY8: 0.04244172936 | PZ8: 0.04246964075 | QA8: 0.0424677127 | QB8: 0.04251421536 | QC8: 0.04243027274 | QD8: 0.04249691466 | QE8: 0.04245221996 | QF8: 0.04236960842 | QG8: 0.04237235334 | QH8: 0.04232778403 | QI8: 0.04230116098 | QJ8: 0.04239912099 | QK8: 0.04238350487 | QL8: 0.04241054962 | QM8: 0.04241025062 | QN8: 0.04243804107 | QO8: 0.04233752821 | QP8: 0.04237640936 | QQ8: 0.04240345998 | QR8: 0.0424237875 | QS8: 0.04249518604 | QT8: 0.04242019262 | QU8: 0.04246780028 | QV8: 0.04242298475 | QW8: 0.04233633846 | QX8: 0.04233616776 | QY8: 0.04239230097 | QZ8: 0.04239260358 | RA8: 0.04248064723 | RB8: 0.04253702546 | RC8: 0.04258773729 | RD8: 0.04256813562 | RE8: 0.04258869753 | RF8: 0.04251588259 | RG8: 0.04254967262 | RH8: 0.04254624117 | RI8: 0.04256827612 | RJ8: 0.04266088151 | RK8: 0.04267135723 | RL8: 0.04268455966 | RM8: 0.04266464922 | RN8: 0.04272458179 | RO8: 0.04283740956 | RP8: 0.04287540121 | RQ8: 0.04282055452 | RR8: 0.04283225278 | RS8: 0.04290795782 | RT8: 0.04283473231 | RU8: 0.04287389086 | RV8: 0.04285602811 | RW8: 0.0428770881 | RX8: 0.04284533951 | RY8: 0.04278184026 | RZ8: 0.04283227476 | SA8: 0.04279695066 | SB8: 0.04272596634 | SC8: 0.04278713874 | SD8: 0.04274896337 | SE8: 0.04267122657 | SF8: 0.04273957396 | SG8: 0.0427395314 | SH8: 0.04257164084 | SI8: 0.04247679 | SJ8: 0.04255314178 | SK8: 0.04258044294 | SL8: 0.04261147934 | SM8: 0.04252797787 | SN8: 0.04250512404 | SO8: 0.04257135307 | SP8: 0.04255618221 | SQ8: 0.04250893556 | SR8: 0.04249223737 | SS8: 0.04246923858 | ST8: 0.04235696971 | SU8: 0.04231272343 | SV8: 0.04233001059 | SW8: 0.04234505002 | SX8: 0.04229944805 | SY8: 0.04225991523 | SZ8: 0.04229951461 | TA8: 0.0422975786 | TB8: 0.04238972263 | TC8: 0.04236746922 | TD8: 0.04237536605 | TE8: 0.04239682649 | TF8: 0.04231668192 | TG8: 0.04231923386 | TH8: 0.04233968346 | TI8: 0.04224449756 | TJ8: 0.042306429 | TK8: 0.04239222796 | TL8: 0.04236244925 | TM8: 0.04251414839 | TN8: 0.04253484895 | TO8: 0.04258546487 | TP8: 0.04258147216 | TQ8: 0.0425032432 | TR8: 0.04245585325 | TS8: 0.04246063312 | TT8: 0.04242995188 | TU8: 0.04236332319 | TV8: 0.04238329139 | TW8: 0.04234463077 | TX8: 0.04238436216 | TY8: 0.04233455944 | TZ8: 0.04238937473 | UA8: 0.04241909765 | UB8: 0.04236005247 | UC8: 0.04237810095 | UD8: 0.04236169565 | UE8: 0.04237038731 | UF8: 0.04230764727 | UG8: 0.04241005799 | UH8: 0.04238930036 | UI8: 0.04237813879 | UJ8: 0.04226036288 | UK8: 0.04220806717 | UL8: 0.04223967118 | UM8: 0.04221555456 | UN8: 0.04225258066 | UO8: 0.04233180707 | UP8: 0.042339525 | UQ8: 0.04231193352 | UR8: 0.04241191533 | US8: 0.04235452077 | UT8: 0.04232730532 | UU8: 0.04230633356 | UV8: 0.0424799264 | UW8: 0.04246500365 | UX8: 0.04253801925 | UY8: 0.04253061176 | UZ8: 0.04256093605 | VA8: 0.04256453585 | VB8: 0.04258498639 | VC8: 0.04259401582 | VD8: 0.04250387519 | VE8: 0.04242383629 | VF8: 0.04237771388 | VG8: 0.04230166866 | VH8: 0.04235097453 | VI8: 0.0423487115 | VJ8: 0.04233711776 | VK8: 0.04229671607 | VL8: 0.04236793801 | VM8: 0.04234646203 | VN8: 0.04236010844 | VO8: 0.04236733148 | VP8: 0.04241368297 | VQ8: 0.04242471326 | VR8: 0.04240464698 | VS8: 0.04245800027 | VT8: 0.04242956785 | VU8: 0.04239692694 | VV8: 0.04235137875 | VW8: 0.04243667361 | VX8: 0.04240053494 | VY8: 0.04258498235 | VZ8: 0.04270570492 | WA8: 0.04280034435 | WB8: 0.04274490186 | WC8: 0.04274180857 | WD8: 0.04259469729 | WE8: 0.04267422584 | WF8: 0.04270009096 | WG8: 0.04279179504 | WH8: 0.04281263905 | WI8: 0.04285747966 | WJ8: 0.04290931371 | WK8: 0.04294173387 | WL8: 0.04294675042 | WM8: 0.04299359778 | WN8: 0.04299780958 | WO8: 0.04293504897 | WP8: 0.04298114657 | WQ8: 0.04302150068 | WR8: 0.04302043093 | WS8: 0.0430476284 | WT8: 0.0429843719 | WU8: 0.04300961952 | WV8: 0.04299671168 | WW8: 0.04286796459 | WX8: 0.04295401728 | WY8: 0.04296045634 | WZ8: 0.04295309649 | XA8: 0.04305150843 | XB8: 0.04300253857 | XC8: 0.04299193771 | XD8: 0.04302015076 | XE8: 0.04296649939 | XF8: 0.04291472194 | XG8: 0.04289370534 | XH8: 0.04299010232 | XI8: 0.04306244654 | XJ8: 0.04312181763 | XK8: 0.04309879757 | XL8: 0.04301622057 | XM8: 0.04309075357 | XN8: 0.04307768393 | XO8: 0.04306137211 | XP8: 0.043048672 | XQ8: 0.0430305139 | XR8: 0.04299780034 | XS8: 0.04292443884 | XT8: 0.04298019357 | XU8: 0.04298644848 | XV8: 0.04286922958 | XW8: 0.04278454299 | XX8: 0.04285648669 | XY8: 0.04287657136 | XZ8: 0.04307784692 | YA8: 0.04300700034 | YB8: 0.04299214147 | YC8: 0.04305402401 | YD8: 0.04304352204 | YE8: 0.04300804349 | YF8: 0.04300141423 | YG8: 0.04298097385 | YH8: 0.04299266055 | YI8: 0.04301561192 | YJ8: 0.04294246907 | YK8: 0.04300035797 | YL8: 0.04303029151 | YM8: 0.04304708985 | YN8: 0.04304768947 | YO8: 0.04301940327 | YP8: 0.04297360492 | YQ8: 0.04298332303 | YR8: 0.04295900953 | YS8: 0.04296213 | YT8: 0.04296516519 | YU8: 0.04293668802 | YV8: 0.04302311163 | YW8: 0.04302253539 | YX8: 0.04308527201 | YY8: 0.04315874467 | YZ8: 0.04313896662 | ZA8: 0.04321571458 | ZB8: 0.04322421596 | ZC8: 0.0432635668 | ZD8: 0.04316474767 | ZE8: 0.04319380531 | ZF8: 0.04314700083 | ZG8: 0.04314450324 | ZH8: 0.04311513842 | ZI8: 0.04305371766 | ZJ8: 0.0430787663 | ZK8: 0.04303852169 | ZL8: 0.04306881906 | ZM8: 0.04309997796 | ZN8: 0.04314205523 | ZO8: 0.04307825505 | ZP8: 0.04310327242 | ZQ8: 0.04298540501 | ZR8: 0.04290441253 | ZS8: 0.04283798525 | ZT8: 0.04289959036 | ZU8: 0.04290985225 | ZV8: 0.04303606092 | ZW8: 0.04298681848 | ZX8: 0.04298464322 | ZY8: 0.0429401246 | ZZ8: 0.04299991211 | AAA8: 0.04298307539 | AAB8: 0.04295884303 | AAC8: 0.04295337024 | AAD8: 0.0429567663 | AAE8: 0.04294063743 | AAF8: 0.04303153894 | AAG8: 0.04298340485 | AAH8: 0.04296408866 | AAI8: 0.04295431234 | AAJ8: 0.0430906293 | AAK8: 0.04307028433 | AAL8: 0.04313312092 | AAM8: 0.04313291585 | AAN8: 0.04316907338 | AAO8: 0.04317786598 | AAP8: 0.04311540711 | AAQ8: 0.04312443668 | AAR8: 0.04304658868 | AAS8: 0.04297335671 | AAT8: 0.04295185804 | AAU8: 0.04296611499 | AAV8: 0.04284675359 | AAW8: 0.0429061812 | AAX8: 0.04295978325 | AAY8: 0.04297220349 | AAZ8: 0.04289965066 | ABA8: 0.04285841255 | ABB8: 0.04281844972 | ABC8: 0.04301432501 | ABD8: 0.04308721853 | ABE8: 0.04314008842 | ABF8: 0.04317140128 | ABG8: 0.04330864487 | ABH8: 0.04338621853 | ABI8: 0.04342310066 | ABJ8: 0.0433894321 | ABK8: 0.04346932353 | ABL8: 0.04344202287 | ABM8: 0.04344260061 | ABN8: 0.04354437073 | ABO8: 0.04362902297 | ABP8: 0.04357777569 | ABQ8: 0.04357913404 | ABR8: 0.04345801625 | ABS8: 0.04352566124 | ABT8: 0.04354390123 | ABU8: 0.04350313315 | ABV8: 0.04363288655 | ABW8: 0.04366707554 | ABX8: 0.04367520974 | ABY8: 0.04369952788 | ABZ8: 0.04370072734 | ACA8: 0.04369491421 | ACB8: 0.04376908106 | ACC8: 0.04373799209 | ACD8: 0.04365279735 | ACE8: 0.04361188223 | ACF8: 0.04363039001 | ACG8: 0.04365346285 | ACH8: 0.04371447879 | ACI8: 0.04365264844 | ACJ8: 0.04361754191 | ACK8: 0.04363257837 | ACL8: 0.04365713116 | ACM8: 0.04359419559 | ACN8: 0.04353701032 | ACO8: 0.04362747653 | ACP8: 0.04357782551 | ACQ8: 0.04357202575 | ACR8: 0.04373631472 | ACS8: 0.04369844826 | ACT8: 0.0436539678 | ACU8: 0.04364395937 | ACV8: 0.04373222987 | ACW8: 0.04379203507 | ACX8: 0.04384770188 | ACY8: 0.04383947909 | ACZ8: 0.04377285609 | ADA8: 0.04384635515 | ADB8: 0.043828841 | ADC8: 0.04382691523 | ADD8: 0.04382251839 | ADE8: 0.04379943696 | ADF8: 0.04378465947 | ADG8: 0.0438530195 | ADH8: 0.04372363508 | ADI8: 0.04383259159 | ADJ8: 0.04390782686 | ADK8: 0.04397441153 | ADL8: 0.04401486792 | ADM8: 0.04394380774 | ADN8: 0.04395148856 | ADO8: 0.04399966336 | ADP8: 0.04400817404 | ADQ8: 0.04404622463 | ADR8: 0.04401344384 | ADS8: 0.04403229905 | ADT8: 0.04404204331 | ADU8: 0.04402614135 | ADV8: 0.04403778064 | ADW8: 0.04419407124 | ADX8: 0.04412776942 | ADY8: 0.044175207 | ADZ8: 0.04419665121 | AEA8: 0.04430996597 | AEB8: 0.04430479255 | AEC8: 0.04434218006 | AED8: 0.04429337351 | AEE8: 0.04433774806 | AEF8: 0.04430745471 | AEG8: 0.04430545482 | AEH8: 0.04428545739 | AEI8: 0.04425480137 | AEJ8: 0.04432930951 | AEK8: 0.04440466698 | AEL8: 0.04442273278 | AEM8: 0.04433098662 | AEN8: 0.04437656455 | AEO8: 0.04433800332 | AEP8: 0.04431119424 | AEQ8: 0.04418864447 | AER8: 0.04427068205 | AES8: 0.04431094213 | AET8: 0.04435636999 | AEU8: 0.04423931837 | AEV8: 0.04419663668 | AEW8: 0.04416978623 | AEX8: 0.04429935093 | AEY8: 0.04422138791 | AEZ8: 0.0441617231 | AFA8: 0.04413489237 | AFB8: 0.04395822613 | AFC8: 0.04389915552 | AFD8: 0.04405719649 | AFE8: 0.04395402794 | AFF8: 0.04388545753 | AFG8: 0.04382699629 | AFH8: 0.04388110749 | AFI8: 0.04389776249 | AFJ8: 0.0440098263 | AFK8: 0.04396949787 | AFL8: 0.04397134505 | AFM8: 0.04394008453 | AFN8: 0.04384438533 | AFO8: 0.04383468132 | AFP8: 0.04382368712 | AFQ8: 0.04370016965 | AFR8: 0.04363220134 | AFS8: 0.04365619736 | AFT8: 0.0436079358 | AFU8: 0.0436809863 | AFV8: 0.04376929458 | AFW8: 0.04382042474 | AFX8: 0.04381203091 | AFY8: 0.04369439819 | AFZ8: 0.04364440927 | AGA8: 0.04370927363 | AGB8: 0.04374137664 | AGC8: 0.04384367084 | AGD8: 0.04384896266 | AGE8: 0.04391067724 | AGF8: 0.04401729307 | AGG8: 0.04402565606 | AGH8: 0.04408559935 | AGI8: 0.04419329363 | AGJ8: 0.04410135992 | AGK8: 0.04413358396 | AGL8: 0.04417658428 | AGM8: 0.04431955342 | AGN8: 0.0442475709 | AGO8: 0.04421475467 | AGP8: 0.04417807368 | AGQ8: 0.04431696699 | AGR8: 0.04437616416 | AGS8: 0.04431589959 | AGT8: 0.04434770954 | AGU8: 0.04444655035 | AGV8: 0.04451159116 | AGW8: 0.04454958327 | AGX8: 0.04456474824 | AGY8: 0.04459997612 | AGZ8: 0.04471779877 | AHA8: 0.04463741722 | AHB8: 0.04462270367 | AHC8: 0.04458922025 | AHD8: 0.04457741191 | AHE8: 0.04464844147 | AHF8: 0.04465776712 | AHG8: 0.04456942208 | AHH8: 0.04449015696 | AHI8: 0.04447852434 | AHJ8: 0.04451013576 | AHK8: 0.04439551953 | AHL8: 0.04427159556 | AHM8: 0.04430725572 | AHN8: 0.04425705791 | AHO8: 0.04424634062 | AHP8: 0.04431106314 | AHQ8: 0.04428889444 | AHR8: 0.04420922415 | AHS8: 0.04416886555 | AHT8: 0.04418900743 | AHU8: 0.04433576127 | AHV8: 0.04439786181 | AHW8: 0.04434142524 | AHX8: 0.04431608155 | AHY8: 0.04433162694 | AHZ8: 0.04434252225 | AIA8: 0.04428817603 | AIB8: 0.04424051266 | AIC8: 0.04424897183 | AID8: 0.04416754759 | AIE8: 0.04426122356 | AIF8: 0.04422924336 | AIG8: 0.04426658465 | AIH8: 0.044280709 | AII8: 0.04439387611 | AIJ8: 0.0444262304 | AIK8: 0.04431184166 | AIL8: 0.04435715238 | AIM8: 0.04445941847 | AIN8: 0.04449835705 | AIO8: 0.04452266931 | AIP8: 0.04443312602 | AIQ8: 0.04449814329 | AIR8: 0.04456135761 | AIS8: 0.04445580446 | AIT8: 0.04458865019 | AIU8: 0.04460116566 | AIV8: 0.04448866798 | AIW8: 0.04458470369 | AIX8: 0.04464764536 | AIY8: 0.04470410783 | AIZ8: 0.04473121038 | AJA8: 0.0447441491 | AJB8: 0.04474672103 | AJC8: 0.04478496076 | AJD8: 0.04479006014 | AJE8: 0.04481650825 | AJF8: 0.04479190048 | AJG8: 0.04480372889 | AJH8: 0.04495017548 | AJI8: 0.0450639592 | AJJ8: 0.04512953753 | AJK8: 0.04511410096 | AJL8: 0.04514708616 | AJM8: 0.04508647973 | AJN8: 0.04501805417 | AJO8: 0.04498285339 | AJP8: 0.04500072592 | AJQ8: 0.04509823246 | AJR8: 0.04516006763 | AJS8: 0.04511690813 | AJT8: 0.04497048756 | AJU8: 0.04489548162 | AJV8: 0.04495133958 | AJW8: 0.04491438286 | AJX8: 0.0448366545 | AJY8: 0.04482625446 | AJZ8: 0.04478169471 | AKA8: 0.04476203323 | AKB8: 0.0448395334 | AKC8: 0.04483195349 | AKD8: 0.04481860225 | AKE8: 0.04471034054 | AKF8: 0.04478898384 | AKG8: 0.04481994852 | AKH8: 0.04485693482 | AKI8: 0.04475812267 | AKJ8: 0.04472566894 | AKK8: 0.04470785711 | AKL8: 0.04468795252 | AKM8: 0.04462729864 | AKN8: 0.04457231096 | AKO8: 0.04454522698 | AKP8: 0.04441436785 | AKQ8: 0.04440862061 | AKR8: 0.04431711009 | AKS8: 0.04433232661 | AKT8: 0.04448678388 | AKU8: 0.04453656524 | AKV8: 0.0445463305 | AKW8: 0.04449896582 | AKX8: 0.0444987998 | AKY8: 0.04458994743 | AKZ8: 0.04466705777 | ALA8: 0.04469817315 | ALB8: 0.04468835456 | ALC8: 0.04479574813 | ALD8: 0.04481219755 | ALE8: 0.04479889748 | ALF8: 0.0448590487 | ALG8: 0.04495389167 | ALH8: 0.0449954643 | ALI8: 0.04501394469 | ALJ8: 0.04509525157 | ALK8: 0.04514230803 | ALL8: 0.04513310839 | ALM8: 0.04503734333 | ALN8: 0.04498508091 | ALO8: 0.0450416317 | ALP8: 0.04505677285 | ALQ8: 0.04505546477
A9: Short Rate (t = 0) | B9: 0.04 | D9: Pfad 5 | E9: 0.04 | F9: 0.040017558 | G9: 0.04007119474 | H9: 0.04011839556 | I9: 0.04013985629 | J9: 0.04020515579 | K9: 0.04024196073 | L9: 0.04028241281 | M9: 0.04028582839 | N9: 0.04027375815 | O9: 0.04028725241 | P9: 0.04028370129 | Q9: 0.04039167342 | R9: 0.04037816905 | S9: 0.04036858443 | T9: 0.04023645183 | U9: 0.04015229512 | V9: 0.04023241845 | W9: 0.04020673816 | X9: 0.04017119946 | Y9: 0.04026038393 | Z9: 0.04016963296 | AA9: 0.04013854335 | AB9: 0.04015205491 | AC9: 0.04023127547 | AD9: 0.04022938811 | AE9: 0.04019961747 | AF9: 0.04020045364 | AG9: 0.04026507938 | AH9: 0.04027988517 | AI9: 0.0402061252 | AJ9: 0.04014323046 | AK9: 0.04014342 | AL9: 0.04017161301 | AM9: 0.04007888696 | AN9: 0.03998223027 | AO9: 0.04001395808 | AP9: 0.03997912022 | AQ9: 0.04000688009 | AR9: 0.03998498581 | AS9: 0.04005268061 | AT9: 0.04012219865 | AU9: 0.04016207594 | AV9: 0.04024263673 | AW9: 0.04022240633 | AX9: 0.0402497748 | AY9: 0.04029253282 | AZ9: 0.04039681948 | BA9: 0.04046872138 | BB9: 0.04044237407 | BC9: 0.04047865689 | BD9: 0.04056188439 | BE9: 0.04052442926 | BF9: 0.04057453667 | BG9: 0.04059768777 | BH9: 0.04055495455 | BI9: 0.04058336409 | BJ9: 0.04072514745 | BK9: 0.04082766795 | BL9: 0.04085501847 | BM9: 0.04084883371 | BN9: 0.04088700342 | BO9: 0.0409768986 | BP9: 0.04101064473 | BQ9: 0.04102764977 | BR9: 0.04095813699 | BS9: 0.04101342848 | BT9: 0.04107191184 | BU9: 0.04110884372 | BV9: 0.04122617135 | BW9: 0.04123497071 | BX9: 0.04123733603 | BY9: 0.04115570067 | BZ9: 0.04106240812 | CA9: 0.04102665561 | CB9: 0.04103938844 | CC9: 0.04108664741 | CD9: 0.04114757327 | CE9: 0.0410808332 | CF9: 0.04103259736 | CG9: 0.04087868016 | CH9: 0.04096971911 | CI9: 0.04089446103 | CJ9: 0.04089020341 | CK9: 0.04090893558 | CL9: 0.04086455814 | CM9: 0.04085503981 | CN9: 0.04089466096 | CO9: 0.04084413256 | CP9: 0.04078998072 | CQ9: 0.04076604176 | CR9: 0.04078190316 | CS9: 0.04086582282 | CT9: 0.04092748601 | CU9: 0.04089897948 | CV9: 0.04080264745 | CW9: 0.04074490733 | CX9: 0.04073898896 | CY9: 0.04071700427 | CZ9: 0.04065114854 | DA9: 0.04064074383 | DB9: 0.0406070921 | DC9: 0.04059955487 | DD9: 0.0405874682 | DE9: 0.04059076578 | DF9: 0.04062437301 | DG9: 0.0406344545 | DH9: 0.04071579166 | DI9: 0.04063732495 | DJ9: 0.04065964227 | DK9: 0.0406854547 | DL9: 0.04080740048 | DM9: 0.04087312785 | DN9: 0.04082642136 | DO9: 0.0408617378 | DP9: 0.04084889996 | DQ9: 0.040795564 | DR9: 0.04080686209 | DS9: 0.04081266922 | DT9: 0.04073692413 | DU9: 0.04080369266 | DV9: 0.04091976184 | DW9: 0.04097275383 | DX9: 0.04098046738 | DY9: 0.04094706822 | DZ9: 0.0409538695 | EA9: 0.04104038932 | EB9: 0.04111025988 | EC9: 0.04111961702 | ED9: 0.04111956191 | EE9: 0.04121704913 | EF9: 0.04131355289 | EG9: 0.04131007152 | EH9: 0.04135054829 | EI9: 0.0414340871 | EJ9: 0.04147936494 | EK9: 0.04143481194 | EL9: 0.04145454184 | EM9: 0.04150380145 | EN9: 0.04145575275 | EO9: 0.04149046485 | EP9: 0.04139904697 | EQ9: 0.04140398511 | ER9: 0.04137546404 | ES9: 0.04133524721 | ET9: 0.04136220111 | EU9: 0.04132536748 | EV9: 0.04126386494 | EW9: 0.04128995006 | EX9: 0.04134311634 | EY9: 0.04137215001 | EZ9: 0.04140608517 | FA9: 0.04127334516 | FB9: 0.04125831389 | FC9: 0.04126759986 | FD9: 0.04127290109 | FE9: 0.04137329116 | FF9: 0.04136562082 | FG9: 0.04135637034 | FH9: 0.04124519121 | FI9: 0.04118780283 | FJ9: 0.04125740355 | FK9: 0.04123631318 | FL9: 0.0412066361 | FM9: 0.04128359584 | FN9: 0.04120103991 | FO9: 0.04121915991 | FP9: 0.04122887151 | FQ9: 0.04130344783 | FR9: 0.04140310935 | FS9: 0.04145749862 | FT9: 0.04161831098 | FU9: 0.04160396343 | FV9: 0.0416752355 | FW9: 0.0417520629 | FX9: 0.04180458627 | FY9: 0.0419332259 | FZ9: 0.04186761258 | GA9: 0.04194720584 | GB9: 0.04196860725 | GC9: 0.04189143138 | GD9: 0.04186340518 | GE9: 0.04188595357 | GF9: 0.04185810135 | GG9: 0.04192148479 | GH9: 0.04198246647 | GI9: 0.04201169423 | GJ9: 0.04208098248 | GK9: 0.04203163248 | GL9: 0.04217005552 | GM9: 0.04219886154 | GN9: 0.04228447425 | GO9: 0.04234572711 | GP9: 0.0423284856 | GQ9: 0.04235102503 | GR9: 0.04243112535 | GS9: 0.04246567404 | GT9: 0.04250792055 | GU9: 0.0425213915 | GV9: 0.04248695388 | GW9: 0.04249230181 | GX9: 0.04247485721 | GY9: 0.0424806397 | GZ9: 0.04244796255 | HA9: 0.04253401703 | HB9: 0.04253753743 | HC9: 0.04254067544 | HD9: 0.0424489333 | HE9: 0.04240533506 | HF9: 0.04242386016 | HG9: 0.04224755194 | HH9: 0.04226376276 | HI9: 0.04231850046 | HJ9: 0.042320897 | HK9: 0.04232156002 | HL9: 0.04232702465 | HM9: 0.04226707992 | HN9: 0.04217982535 | HO9: 0.04214141135 | HP9: 0.04215801066 | HQ9: 0.04219358436 | HR9: 0.04225310278 | HS9: 0.04218948042 | HT9: 0.04214872589 | HU9: 0.04202713917 | HV9: 0.04207041094 | HW9: 0.04200267379 | HX9: 0.04199677138 | HY9: 0.04200932333 | HZ9: 0.0419625157 | IA9: 0.04191161604 | IB9: 0.04188123722 | IC9: 0.04183277111 | ID9: 0.04184428362 | IE9: 0.04182590144 | IF9: 0.04187669079 | IG9: 0.04186869202 | IH9: 0.04194164751 | II9: 0.0419616919 | IJ9: 0.04200294325 | IK9: 0.04207684989 | IL9: 0.04195277397 | IM9: 0.0420066607 | IN9: 0.04199692837 | IO9: 0.04199095368 | IP9: 0.04197040234 | IQ9: 0.04204421599 | IR9: 0.0420278291 | IS9: 0.04214806244 | IT9: 0.04218108224 | IU9: 0.0421911259 | IV9: 0.0422461234 | IW9: 0.04217226971 | IX9: 0.04218644996 | IY9: 0.04220498909 | IZ9: 0.04231583766 | JA9: 0.0423657868 | JB9: 0.04232731285 | JC9: 0.04234866519 | JD9: 0.04237932466 | JE9: 0.04233528285 | JF9: 0.04242000798 | JG9: 0.04243840954 | JH9: 0.04245871498 | JI9: 0.04240070257 | JJ9: 0.04242970137 | JK9: 0.04244089129 | JL9: 0.04233284468 | JM9: 0.04236914797 | JN9: 0.04232734423 | JO9: 0.04239903209 | JP9: 0.04237516007 | JQ9: 0.04228333076 | JR9: 0.04235487423 | JS9: 0.04233061366 | JT9: 0.04233251035 | JU9: 0.04241462948 | JV9: 0.04236881008 | JW9: 0.04227043755 | JX9: 0.04238318108 | JY9: 0.04236020405 | JZ9: 0.04236821762 | KA9: 0.04240649243 | KB9: 0.04236708789 | KC9: 0.04239499464 | KD9: 0.04232938271 | KE9: 0.04232712092 | KF9: 0.04229982458 | KG9: 0.04226786471 | KH9: 0.0424258113 | KI9: 0.04238701226 | KJ9: 0.04232728099 | KK9: 0.04235609059 | KL9: 0.04234419822 | KM9: 0.0423156032 | KN9: 0.04235129365 | KO9: 0.04236648236 | KP9: 0.04239535041 | KQ9: 0.04243822729 | KR9: 0.04249849073 | KS9: 0.04250839642 | KT9: 0.04263112064 | KU9: 0.04273206902 | KV9: 0.0428255387 | KW9: 0.04287505194 | KX9: 0.04277369872 | KY9: 0.04290437519 | KZ9: 0.04291336204 | LA9: 0.04291206771 | LB9: 0.04292030726 | LC9: 0.04304549546 | LD9: 0.04299079974 | LE9: 0.04302897087 | LF9: 0.04304456052 | LG9: 0.04313201659 | LH9: 0.04326379377 | LI9: 0.04310170235 | LJ9: 0.04316260813 | LK9: 0.04323297533 | LL9: 0.0432745221 | LM9: 0.04338758416 | LN9: 0.0433263752 | LO9: 0.04339606041 | LP9: 0.04341245836 | LQ9: 0.04340976077 | LR9: 0.04347110979 | LS9: 0.04352268891 | LT9: 0.0434097806 | LU9: 0.0434524316 | LV9: 0.04344519096 | LW9: 0.043466998 | LX9: 0.04344348374 | LY9: 0.0435752785 | LZ9: 0.04353712977 | MA9: 0.04352604875 | MB9: 0.04350718596 | MC9: 0.04344778488 | MD9: 0.04347890269 | ME9: 0.04344131977 | MF9: 0.04344871868 | MG9: 0.04357507803 | MH9: 0.04359753218 | MI9: 0.04354650185 | MJ9: 0.04367463032 | MK9: 0.0435865118 | ML9: 0.04353136607 | MM9: 0.04348361575 | MN9: 0.04352887299 | MO9: 0.04353247323 | MP9: 0.04353984528 | MQ9: 0.04344759374 | MR9: 0.04336337984 | MS9: 0.04332440704 | MT9: 0.04336398363 | MU9: 0.04323808079 | MV9: 0.04324566974 | MW9: 0.04328969302 | MX9: 0.04329204009 | MY9: 0.04317029136 | MZ9: 0.04315278591 | NA9: 0.04312439707 | NB9: 0.04311992824 | NC9: 0.04303735112 | ND9: 0.04313849781 | NE9: 0.04311364604 | NF9: 0.04315639 | NG9: 0.04313505265 | NH9: 0.04317867395 | NI9: 0.04319423294 | NJ9: 0.0431480149 | NK9: 0.04319282292 | NL9: 0.04313835272 | NM9: 0.04308178824 | NN9: 0.04296647142 | NO9: 0.04306399528 | NP9: 0.04299368302 | NQ9: 0.04301694475 | NR9: 0.04303500374 | NS9: 0.04302362133 | NT9: 0.04306433061 | NU9: 0.04293263197 | NV9: 0.04298955576 | NW9: 0.04301277973 | NX9: 0.04304805686 | NY9: 0.04308140344 | NZ9: 0.04298018634 | OA9: 0.04303211258 | OB9: 0.0431002108 | OC9: 0.04297333942 | OD9: 0.0431240433 | OE9: 0.04319104748 | OF9: 0.04318102357 | OG9: 0.04317835962 | OH9: 0.04325148179 | OI9: 0.04331634949 | OJ9: 0.04328057782 | OK9: 0.04328530193 | OL9: 0.04319457512 | OM9: 0.04324140711 | ON9: 0.04325011462 | OO9: 0.04322711126 | OP9: 0.04332940787 | OQ9: 0.04334779254 | OR9: 0.04334520979 | OS9: 0.04346785515 | OT9: 0.04342169548 | OU9: 0.0434096127 | OV9: 0.04346468933 | OW9: 0.04345383129 | OX9: 0.04338301096 | OY9: 0.04334712668 | OZ9: 0.04325329145 | PA9: 0.04329129614 | PB9: 0.04325791341 | PC9: 0.04329975148 | PD9: 0.04327077779 | PE9: 0.04318963886 | PF9: 0.04325302418 | PG9: 0.04322367719 | PH9: 0.04314510204 | PI9: 0.04321894075 | PJ9: 0.04317428713 | PK9: 0.04314958996 | PL9: 0.0432409726 | PM9: 0.04322753313 | PN9: 0.04325505593 | PO9: 0.04325565368 | PP9: 0.04333675907 | PQ9: 0.04337600806 | PR9: 0.04342034844 | PS9: 0.04344657161 | PT9: 0.04364238478 | PU9: 0.0437124028 | PV9: 0.04369306158 | PW9: 0.04373811087 | PX9: 0.04369787284 | PY9: 0.04367195904 | PZ9: 0.04367235162 | QA9: 0.04372470146 | QB9: 0.04362689559 | QC9: 0.04364270144 | QD9: 0.04366409509 | QE9: 0.0437107913 | QF9: 0.04376323329 | QG9: 0.0437099364 | QH9: 0.04381929828 | QI9: 0.04391403599 | QJ9: 0.04399846105 | QK9: 0.04403885657 | QL9: 0.04394514344 | QM9: 0.04406173052 | QN9: 0.04407514139 | QO9: 0.04405623388 | QP9: 0.04411476223 | QQ9: 0.04422188295 | QR9: 0.04417463731 | QS9: 0.04420228247 | QT9: 0.04420996814 | QU9: 0.04427995534 | QV9: 0.04420837127 | QW9: 0.0442460654 | QX9: 0.04423035208 | QY9: 0.04424680526 | QZ9: 0.04421308915 | RA9: 0.04420975962 | RB9: 0.04421600068 | RC9: 0.04417793196 | RD9: 0.04423090325 | RE9: 0.04428812402 | RF9: 0.04436696247 | RG9: 0.04428813521 | RH9: 0.04420002132 | RI9: 0.0442304971 | RJ9: 0.0442170101 | RK9: 0.04423141224 | RL9: 0.04421594515 | RM9: 0.04433239802 | RN9: 0.04430515338 | RO9: 0.04429125986 | RP9: 0.04428301631 | RQ9: 0.04422370846 | RR9: 0.0443146857 | RS9: 0.04427936922 | RT9: 0.04434030506 | RU9: 0.04444362179 | RV9: 0.04445785633 | RW9: 0.04441330553 | RX9: 0.04442685191 | RY9: 0.04434933991 | RZ9: 0.0443042475 | SA9: 0.04426517956 | SB9: 0.04429912979 | SC9: 0.0442923869 | SD9: 0.04438056366 | SE9: 0.04435866781 | SF9: 0.0443740891 | SG9: 0.04436397213 | SH9: 0.04428247956 | SI9: 0.04428454318 | SJ9: 0.04416540581 | SK9: 0.0440698512 | SL9: 0.04402197902 | SM9: 0.04404764397 | SN9: 0.04402306145 | SO9: 0.04409174766 | SP9: 0.04409264539 | SQ9: 0.04402771883 | SR9: 0.04411587331 | SS9: 0.04408947476 | ST9: 0.04412138624 | SU9: 0.04411203483 | SV9: 0.04415698984 | SW9: 0.04423528017 | SX9: 0.04419656792 | SY9: 0.04424489331 | SZ9: 0.04432993003 | TA9: 0.04428018777 | TB9: 0.04433222146 | TC9: 0.04442441303 | TD9: 0.04436665396 | TE9: 0.04438046796 | TF9: 0.04457397992 | TG9: 0.04468463801 | TH9: 0.04461935502 | TI9: 0.04460377243 | TJ9: 0.04458435795 | TK9: 0.0446837378 | TL9: 0.04472093589 | TM9: 0.04466596169 | TN9: 0.04469449543 | TO9: 0.04475697734 | TP9: 0.0447881679 | TQ9: 0.04482463861 | TR9: 0.04482853795 | TS9: 0.04483947628 | TT9: 0.04493611624 | TU9: 0.04487806744 | TV9: 0.04493886955 | TW9: 0.04499323867 | TX9: 0.04496479174 | TY9: 0.0449787208 | TZ9: 0.04489600318 | UA9: 0.04493250781 | UB9: 0.04493736047 | UC9: 0.04492697931 | UD9: 0.04502253762 | UE9: 0.04503332044 | UF9: 0.04502548885 | UG9: 0.0451368277 | UH9: 0.04508622906 | UI9: 0.04500959516 | UJ9: 0.0450537401 | UK9: 0.04505530912 | UL9: 0.0450453012 | UM9: 0.04500484241 | UN9: 0.04502170533 | UO9: 0.04511596805 | UP9: 0.04517718339 | UQ9: 0.04518403906 | UR9: 0.045228148 | US9: 0.04531000148 | UT9: 0.04530271986 | UU9: 0.045354853 | UV9: 0.04532563646 | UW9: 0.04531379395 | UX9: 0.04526845175 | UY9: 0.04524971753 | UZ9: 0.04532442595 | VA9: 0.04531753623 | VB9: 0.04534665209 | VC9: 0.04534981668 | VD9: 0.04542723401 | VE9: 0.04533336397 | VF9: 0.04536784869 | VG9: 0.04539184362 | VH9: 0.04552707354 | VI9: 0.04559382367 | VJ9: 0.04557350509 | VK9: 0.0456113485 | VL9: 0.04558411609 | VM9: 0.04551320927 | VN9: 0.04551715274 | VO9: 0.04555876614 | VP9: 0.04546699608 | VQ9: 0.04553953355 | VR9: 0.04558088094 | VS9: 0.04561570245 | VT9: 0.04544346777 | VU9: 0.04547050581 | VV9: 0.04540661626 | VW9: 0.04542713274 | VX9: 0.0454090501 | VY9: 0.04541829525 | VZ9: 0.04540890376 | WA9: 0.04541208631 | WB9: 0.04551832648 | WC9: 0.04561371582 | WD9: 0.04567319626 | WE9: 0.0457653394 | WF9: 0.0457256794 | WG9: 0.04574103285 | WH9: 0.04576684909 | WI9: 0.04582212544 | WJ9: 0.04575940649 | WK9: 0.04579391161 | WL9: 0.04579055635 | WM9: 0.04579608435 | WN9: 0.04576022153 | WO9: 0.04576019367 | WP9: 0.04579386055 | WQ9: 0.04575097915 | WR9: 0.0457932565 | WS9: 0.04583983822 | WT9: 0.04590053373 | WU9: 0.0458237282 | WV9: 0.04587425015 | WW9: 0.04568765164 | WX9: 0.04557311005 | WY9: 0.04548674087 | WZ9: 0.04555596675 | XA9: 0.04557159746 | XB9: 0.04573796007 | XC9: 0.04566659451 | XD9: 0.04565107656 | XE9: 0.04556536574 | XF9: 0.04555522244 | XG9: 0.04551987218 | XH9: 0.04547789648 | XI9: 0.04556395566 | XJ9: 0.0455710379 | XK9: 0.045533948 | XL9: 0.04554165051 | XM9: 0.04561758266 | XN9: 0.04558096388 | XO9: 0.04555039569 | XP9: 0.04556509285 | XQ9: 0.04554951523 | XR9: 0.04562684769 | XS9: 0.04561185027 | XT9: 0.04563567459 | XU9: 0.04578131854 | XV9: 0.04570373839 | XW9: 0.04570833231 | XX9: 0.0457273121 | XY9: 0.04563700759 | XZ9: 0.04569856978 | YA9: 0.04572105437 | YB9: 0.04570267084 | YC9: 0.04577109761 | YD9: 0.04583644523 | YE9: 0.04587006406 | YF9: 0.04578151874 | YG9: 0.04571729107 | YH9: 0.04566760597 | YI9: 0.04570337324 | YJ9: 0.04580127462 | YK9: 0.04573619822 | YL9: 0.04576045543 | YM9: 0.04578936204 | YN9: 0.04581443772 | YO9: 0.04577193415 | YP9: 0.04581736022 | YQ9: 0.04590453942 | YR9: 0.04585731762 | YS9: 0.04586288209 | YT9: 0.0459971278 | YU9: 0.0460968064 | YV9: 0.04603342558 | YW9: 0.04602343104 | YX9: 0.04580225613 | YY9: 0.04588756313 | YZ9: 0.04591496207 | ZA9: 0.04586222646 | ZB9: 0.04588467767 | ZC9: 0.04593361336 | ZD9: 0.04595272804 | ZE9: 0.04598523807 | ZF9: 0.04598472322 | ZG9: 0.0459711414 | ZH9: 0.0460584848 | ZI9: 0.04600908145 | ZJ9: 0.04598870851 | ZK9: 0.04598141444 | ZL9: 0.04599139448 | ZM9: 0.04603246739 | ZN9: 0.04609044427 | ZO9: 0.04609075542 | ZP9: 0.04612637687 | ZQ9: 0.04613379248 | ZR9: 0.04614224259 | ZS9: 0.04618678701 | ZT9: 0.04610745118 | ZU9: 0.04611961444 | ZV9: 0.0460661889 | ZW9: 0.04600043608 | ZX9: 0.04603263617 | ZY9: 0.04596247423 | ZZ9: 0.04596365361 | AAA9: 0.0459331951 | AAB9: 0.04605351706 | AAC9: 0.04603420938 | AAD9: 0.04609341533 | AAE9: 0.04610629653 | AAF9: 0.04614763002 | AAG9: 0.04622172356 | AAH9: 0.04620739414 | AAI9: 0.04625974679 | AAJ9: 0.04623866235 | AAK9: 0.04621654162 | AAL9: 0.04618286589 | AAM9: 0.04625997187 | AAN9: 0.04624432256 | AAO9: 0.04637843131 | AAP9: 0.04647458089 | AAQ9: 0.04655521815 | AAR9: 0.04650163887 | AAS9: 0.04650150765 | AAT9: 0.04638012819 | AAU9: 0.04644291669 | AAV9: 0.04645655638 | AAW9: 0.04651511547 | AAX9: 0.04646285789 | AAY9: 0.04649097113 | AAZ9: 0.04647493284 | ABA9: 0.04641611459 | ABB9: 0.0464231304 | ABC9: 0.0464516163 | ABD9: 0.04636749212 | ABE9: 0.04642903507 | ABF9: 0.04646064951 | ABG9: 0.04648250051 | ABH9: 0.04635011143 | ABI9: 0.04638143087 | ABJ9: 0.04632636643 | ABK9: 0.04633791809 | ABL9: 0.04631201854 | ABM9: 0.04631424834 | ABN9: 0.04639002162 | ABO9: 0.04639139986 | ABP9: 0.0464837464 | ABQ9: 0.04657095854 | ABR9: 0.04660475243 | ABS9: 0.0465998087 | ABT9: 0.04673783774 | ABU9: 0.04668633857 | ABV9: 0.04664061785 | ABW9: 0.04663600231 | ABX9: 0.04672203863 | ABY9: 0.046776666 | ABZ9: 0.04682920443 | ACA9: 0.04662005802 | ACB9: 0.04655367316 | ACC9: 0.04648516918 | ACD9: 0.046501357 | ACE9: 0.04645621336 | ACF9: 0.04648852523 | ACG9: 0.04652344245 | ACH9: 0.04656967305 | ACI9: 0.04649703394 | ACJ9: 0.04653637109 | ACK9: 0.0465455657 | ACL9: 0.04644927778 | ACM9: 0.0463714813 | ACN9: 0.04643473988 | ACO9: 0.04644392516 | ACP9: 0.0465801629 | ACQ9: 0.04651948008 | ACR9: 0.0465102191 | ACS9: 0.04656277933 | ACT9: 0.04643718414 | ACU9: 0.04641119032 | ACV9: 0.0464121436 | ACW9: 0.04639669835 | ACX9: 0.04640557209 | ACY9: 0.04642102179 | ACZ9: 0.04635412393 | ADA9: 0.0463968502 | ADB9: 0.04649479554 | ADC9: 0.04654684901 | ADD9: 0.04653820667 | ADE9: 0.04652342157 | ADF9: 0.04647104339 | ADG9: 0.04654502671 | ADH9: 0.04659191286 | ADI9: 0.04671663211 | ADJ9: 0.04664437977 | ADK9: 0.04665006875 | ADL9: 0.04666680477 | ADM9: 0.04658281591 | ADN9: 0.04664386371 | ADO9: 0.0466602422 | ADP9: 0.04649012091 | ADQ9: 0.04654042802 | ADR9: 0.04659678444 | ADS9: 0.04661796061 | ADT9: 0.04653690271 | ADU9: 0.04648420096 | ADV9: 0.04643670458 | ADW9: 0.04645628463 | ADX9: 0.04653597076 | ADY9: 0.04647042882 | ADZ9: 0.04649786174 | AEA9: 0.04651103175 | AEB9: 0.04652604307 | AEC9: 0.04655913445 | AED9: 0.0465850625 | AEE9: 0.04652407916 | AEF9: 0.0466684087 | AEG9: 0.04656481567 | AEH9: 0.0464961009 | AEI9: 0.04643673995 | AEJ9: 0.04640359862 | AEK9: 0.04648669851 | AEL9: 0.04648800218 | AEM9: 0.04644744127 | AEN9: 0.04635047107 | AEO9: 0.04630245124 | AEP9: 0.04631065091 | AEQ9: 0.04615416257 | AER9: 0.04616391286 | AES9: 0.04619045345 | AET9: 0.04618856882 | AEU9: 0.04603575071 | AEV9: 0.04611382396 | AEW9: 0.04607453807 | AEX9: 0.04606195048 | AEY9: 0.04595372785 | AEZ9: 0.04596835989 | AFA9: 0.0459405171 | AFB9: 0.04599939357 | AFC9: 0.04596222211 | AFD9: 0.04600228171 | AFE9: 0.04601372839 | AFF9: 0.04604573963 | AFG9: 0.0460858933 | AFH9: 0.04601883754 | AFI9: 0.04595137726 | AFJ9: 0.04594189301 | AFK9: 0.04604498711 | AFL9: 0.04600850016 | AFM9: 0.0460578026 | AFN9: 0.04609549997 | AFO9: 0.04623108861 | AFP9: 0.04615703614 | AFQ9: 0.04612483652 | AFR9: 0.04608788473 | AFS9: 0.04610605322 | AFT9: 0.04614335112 | AFU9: 0.04621630333 | AFV9: 0.04619758596 | AFW9: 0.04624928823 | AFX9: 0.04623745452 | AFY9: 0.04623612855 | AFZ9: 0.04621342212 | AGA9: 0.04628423331 | AGB9: 0.04612885469 | AGC9: 0.04624525694 | AGD9: 0.04632654378 | AGE9: 0.04639717192 | AGF9: 0.04635108568 | AGG9: 0.04634199303 | AGH9: 0.04623604997 | AGI9: 0.0462880574 | AGJ9: 0.04629647171 | AGK9: 0.0463396252 | AGL9: 0.04644795046 | AGM9: 0.04646853257 | AGN9: 0.04649078232 | AGO9: 0.046629082 | AGP9: 0.04670983986 | AGQ9: 0.04669533354 | AGR9: 0.04675569092 | AGS9: 0.04669022095 | AGT9: 0.04660854202 | AGU9: 0.04656565677 | AGV9: 0.04658389234 | AGW9: 0.04671710937 | AGX9: 0.04667179743 | AGY9: 0.0467273663 | AGZ9: 0.04669591973 | AHA9: 0.0466931404 | AHB9: 0.04676100673 | AHC9: 0.04672959801 | AHD9: 0.04680931502 | AHE9: 0.04688815695 | AHF9: 0.04691051163 | AHG9: 0.04680830922 | AHH9: 0.04691372274 | AHI9: 0.04688861877 | AHJ9: 0.04685284306 | AHK9: 0.0467135295 | AHL9: 0.04679636843 | AHM9: 0.04684005902 | AHN9: 0.04688715574 | AHO9: 0.04675142696 | AHP9: 0.04669868838 | AHQ9: 0.04676936838 | AHR9: 0.04674603457 | AHS9: 0.04665178419 | AHT9: 0.04659212105 | AHU9: 0.04656261927 | AHV9: 0.04655542915 | AHW9: 0.04652693961 | AHX9: 0.04641508849 | AHY9: 0.04650671422 | AHZ9: 0.04653090152 | AIA9: 0.04657322812 | AIB9: 0.04659528454 | AIC9: 0.04653114698 | AID9: 0.04665036751 | AIE9: 0.04660080971 | AIF9: 0.04659743089 | AIG9: 0.04664249555 | AIH9: 0.04653651788 | AII9: 0.0465195432 | AIJ9: 0.04652716168 | AIK9: 0.04637260687 | AIL9: 0.04643240953 | AIM9: 0.04645234075 | AIN9: 0.04639490382 | AIO9: 0.04642766913 | AIP9: 0.04651885687 | AIQ9: 0.04656957054 | AIR9: 0.04655859221 | AIS9: 0.0464141652 | AIT9: 0.04636047334 | AIU9: 0.04642781102 | AIV9: 0.04646379165 | AIW9: 0.04645739902 | AIX9: 0.04645442052 | AIY9: 0.04651999828 | AIZ9: 0.04657893516 | AJA9: 0.04657815091 | AJB9: 0.04667308076 | AJC9: 0.0465861402 | AJD9: 0.04662820209 | AJE9: 0.04659861306 | AJF9: 0.04659157944 | AJG9: 0.04648416851 | AJH9: 0.04640699893 | AJI9: 0.04636589186 | AJJ9: 0.04632333736 | AJK9: 0.04630797511 | AJL9: 0.04628839778 | AJM9: 0.04622433673 | AJN9: 0.04625412344 | AJO9: 0.04621324907 | AJP9: 0.04629438408 | AJQ9: 0.04633027457 | AJR9: 0.04634770355 | AJS9: 0.04629455358 | AJT9: 0.0464189408 | AJU9: 0.04632927311 | AJV9: 0.04627341736 | AJW9: 0.04622448267 | AJX9: 0.0462049841 | AJY9: 0.04620209839 | AJZ9: 0.04620821441 | AKA9: 0.04617779398 | AKB9: 0.04618157665 | AKC9: 0.04616287104 | AKD9: 0.04619764183 | AKE9: 0.04619417171 | AKF9: 0.0460528046 | AKG9: 0.04594635948 | AKH9: 0.04588851534 | AKI9: 0.04591285823 | AKJ9: 0.04588944705 | AKK9: 0.04586042305 | AKL9: 0.04585506324 | AKM9: 0.04577426296 | AKN9: 0.04587114877 | AKO9: 0.04584219045 | AKP9: 0.04588000679 | AKQ9: 0.04586009512 | AKR9: 0.04590309581 | AKS9: 0.04591678963 | AKT9: 0.04593245993 | AKU9: 0.04597743085 | AKV9: 0.04592181486 | AKW9: 0.0458632608 | AKX9: 0.04576167933 | AKY9: 0.04585762821 | AKZ9: 0.04582248429 | ALA9: 0.04586356363 | ALB9: 0.04588740501 | ALC9: 0.04600694063 | ALD9: 0.04593658128 | ALE9: 0.04591386288 | ALF9: 0.04588530477 | ALG9: 0.0459956689 | ALH9: 0.04603875811 | ALI9: 0.04606679067 | ALJ9: 0.0460962344 | ALK9: 0.04616840621 | ALL9: 0.04623382885 | ALM9: 0.04627055065 | ALN9: 0.04625711467 | ALO9: 0.04632084749 | ALP9: 0.0463095358 | ALQ9: 0.0464117828
D10: Pfad 6 | E10: 0.04 | F10: 0.04006999351 | G10: 0.04013286631 | H10: 0.04010455685 | I10: 0.04011650353 | J10: 0.04003616571 | K10: 0.04008167671 | L10: 0.04009248886 | M10: 0.04012756662 | N10: 0.04022746622 | O10: 0.04024641245 | P10: 0.04040737231 | Q10: 0.04052500575 | R10: 0.04059670111 | S10: 0.04058743883 | T10: 0.04064070056 | U10: 0.04063659329 | V10: 0.04057317388 | W10: 0.0405425532 | X10: 0.04056529563 | Y10: 0.0406714611 | Z10: 0.04073489166 | AA10: 0.04069472374 | AB10: 0.04069312362 | AC10: 0.04070864917 | AD10: 0.04077114915 | AE10: 0.04074513532 | AF10: 0.04067386699 | AG10: 0.04074651267 | AH10: 0.04070672512 | AI10: 0.0406271095 | AJ10: 0.0407153972 | AK10: 0.04070649901 | AL10: 0.04068963157 | AM10: 0.04058323187 | AN10: 0.0406636685 | AO10: 0.04070307286 | AP10: 0.04074728123 | AQ10: 0.04064691084 | AR10: 0.04061354086 | AS10: 0.04068352838 | AT10: 0.04066852269 | AU10: 0.04060437694 | AV10: 0.04057177609 | AW10: 0.04055047268 | AX10: 0.04055504211 | AY10: 0.04054583898 | AZ10: 0.0404572916 | BA10: 0.04053943633 | BB10: 0.04056116674 | BC10: 0.04060964996 | BD10: 0.04062889132 | BE10: 0.04058267188 | BF10: 0.04058719461 | BG10: 0.0406803632 | BH10: 0.04076326269 | BI10: 0.04080352846 | BJ10: 0.04071874983 | BK10: 0.04071494218 | BL10: 0.04073194251 | BM10: 0.04062591143 | BN10: 0.04068521328 | BO10: 0.04078880303 | BP10: 0.04074896016 | BQ10: 0.04077727476 | BR10: 0.04082764215 | BS10: 0.040896002 | BT10: 0.04089150403 | BU10: 0.04079153002 | BV10: 0.04074714547 | BW10: 0.04076523453 | BX10: 0.0407368609 | BY10: 0.04073796422 | BZ10: 0.04074886074 | CA10: 0.04071599869 | CB10: 0.04076877617 | CC10: 0.04078299943 | CD10: 0.04085906321 | CE10: 0.04078847196 | CF10: 0.04083079379 | CG10: 0.04082010682 | CH10: 0.04069437033 | CI10: 0.0406099363 | CJ10: 0.04060061981 | CK10: 0.04062585242 | CL10: 0.04060538591 | CM10: 0.04053338889 | CN10: 0.04051756118 | CO10: 0.04046561063 | CP10: 0.04049959598 | CQ10: 0.04047098524 | CR10: 0.04052982605 | CS10: 0.04062931721 | CT10: 0.04064604525 | CU10: 0.04060924961 | CV10: 0.04072093976 | CW10: 0.04065283274 | CX10: 0.04061541222 | CY10: 0.04058384081 | CZ10: 0.04061759683 | DA10: 0.04061413049 | DB10: 0.04070043437 | DC10: 0.04068488811 | DD10: 0.04070460337 | DE10: 0.0407000909 | DF10: 0.04073158225 | DG10: 0.04073799574 | DH10: 0.04063145555 | DI10: 0.04054559158 | DJ10: 0.0405052936 | DK10: 0.04053325358 | DL10: 0.04051303744 | DM10: 0.04058181203 | DN10: 0.040654676 | DO10: 0.04069735247 | DP10: 0.04069953119 | DQ10: 0.04063315121 | DR10: 0.04066544255 | DS10: 0.04066175211 | DT10: 0.04070841113 | DU10: 0.04072656879 | DV10: 0.04069512824 | DW10: 0.04074531323 | DX10: 0.04070702021 | DY10: 0.0406650306 | DZ10: 0.04059938764 | EA10: 0.04069022345 | EB10: 0.04064118822 | EC10: 0.04067607097 | ED10: 0.04084143786 | EE10: 0.04094895893 | EF10: 0.04089151287 | EG10: 0.04088179544 | EH10: 0.04086987354 | EI10: 0.04096629149 | EJ10: 0.0410043586 | EK10: 0.04102732165 | EL10: 0.04105758714 | EM10: 0.04111907512 | EN10: 0.04118059219 | EO10: 0.04121867674 | EP10: 0.04134290545 | EQ10: 0.04135585747 | ER10: 0.04145042508 | ES10: 0.04140029088 | ET10: 0.04130083929 | EU10: 0.04126590465 | EV10: 0.04124492172 | EW10: 0.04126328524 | EX10: 0.04119011656 | EY10: 0.04122744781 | EZ10: 0.04122944318 | FA10: 0.04122874845 | FB10: 0.04132261335 | FC10: 0.04133609458 | FD10: 0.04133233659 | FE10: 0.04144069671 | FF10: 0.04139640748 | FG10: 0.04138606442 | FH10: 0.04143015961 | FI10: 0.04133563162 | FJ10: 0.04127721915 | FK10: 0.04124991085 | FL10: 0.04126888823 | FM10: 0.04136014989 | FN10: 0.04142211921 | FO10: 0.04138844261 | FP10: 0.04127525462 | FQ10: 0.04135331994 | FR10: 0.04134976901 | FS10: 0.04132204094 | FT10: 0.04130006836 | FU10: 0.04129221708 | FV10: 0.04125537738 | FW10: 0.04124319054 | FX10: 0.04122636328 | FY10: 0.04122524745 | FZ10: 0.04122584856 | GA10: 0.04113108095 | GB10: 0.04120819298 | GC10: 0.04123901335 | GD10: 0.04127398404 | GE10: 0.04118896669 | GF10: 0.04116484164 | GG10: 0.04123195168 | GH10: 0.04121796288 | GI10: 0.04116844878 | GJ10: 0.04114923652 | GK10: 0.04112796326 | GL10: 0.04113691545 | GM10: 0.04117887196 | GN10: 0.04109821033 | GO10: 0.04116980088 | GP10: 0.0412121226 | GQ10: 0.0412476714 | GR10: 0.04125854158 | GS10: 0.0412202014 | GT10: 0.04122442916 | GU10: 0.04124694481 | GV10: 0.04123339949 | GW10: 0.04124569741 | GX10: 0.04124233268 | GY10: 0.04124952862 | GZ10: 0.04135243731 | HA10: 0.04134567196 | HB10: 0.04139084994 | HC10: 0.04138493178 | HD10: 0.04135379432 | HE10: 0.04137013023 | HF10: 0.04139685792 | HG10: 0.04145195001 | HH10: 0.04144845955 | HI10: 0.04148493156 | HJ10: 0.04143959667 | HK10: 0.0414483294 | HL10: 0.04141926745 | HM10: 0.04134361053 | HN10: 0.04136175627 | HO10: 0.04132579627 | HP10: 0.04136891508 | HQ10: 0.0414157694 | HR10: 0.04147564382 | HS10: 0.04140856343 | HT10: 0.04144563143 | HU10: 0.04129223919 | HV10: 0.04119213947 | HW10: 0.04111667107 | HX10: 0.04118584125 | HY10: 0.04120430038 | HZ10: 0.04135804918 | IA10: 0.0412969839 | IB10: 0.04128800824 | IC10: 0.04121766468 | ID10: 0.0412931077 | IE10: 0.04126870825 | IF10: 0.04131097894 | IG10: 0.04139473034 | IH10: 0.04140515338 | II10: 0.0413762081 | IJ10: 0.04147836473 | IK10: 0.04141955463 | IL10: 0.04139071989 | IM10: 0.04136803382 | IN10: 0.0415766178 | IO10: 0.04156527726 | IP10: 0.04164136271 | IQ10: 0.04163266156 | IR10: 0.04166042212 | IS10: 0.04166246943 | IT10: 0.04159430888 | IU10: 0.04160336863 | IV10: 0.04151124531 | IW10: 0.04143143312 | IX10: 0.04139937484 | IY10: 0.04142439882 | IZ10: 0.04141422217 | JA10: 0.04147951729 | JB10: 0.0415445258 | JC10: 0.04157905965 | JD10: 0.04150304328 | JE10: 0.04144863463 | JF10: 0.04140664589 | JG10: 0.04144263957 | JH10: 0.04153683668 | JI10: 0.04155113573 | JJ10: 0.04152898477 | JK10: 0.04158143055 | JL10: 0.04155142016 | JM10: 0.0415173752 | JN10: 0.04146828625 | JO10: 0.04155447327 | JP10: 0.04151603989 | JQ10: 0.04152509574 | JR10: 0.04165217423 | JS10: 0.04174944146 | JT10: 0.04169485732 | JU10: 0.04169094907 | JV10: 0.0415306247 | JW10: 0.04161400188 | JX10: 0.041643273 | JY10: 0.04159868899 | JZ10: 0.04162283308 | KA10: 0.04167201286 | KB10: 0.04169327897 | KC10: 0.04172760448 | KD10: 0.04173137791 | KE10: 0.04173611889 | KF10: 0.04182190858 | KG10: 0.04178111404 | KH10: 0.04169152367 | KI10: 0.04165442774 | KJ10: 0.0416690705 | KK10: 0.04171047364 | KL10: 0.04176918073 | KM10: 0.04170405955 | KN10: 0.0416963057 | KO10: 0.04156360477 | KP10: 0.04165118032 | KQ10: 0.04166013364 | KR10: 0.04165470088 | KS10: 0.04175480608 | KT10: 0.0417088966 | KU10: 0.04169941264 | KV10: 0.04173211903 | KW10: 0.04167398327 | KX10: 0.0416223751 | KY10: 0.04160105476 | KZ10: 0.0417021955 | LA10: 0.04177897141 | LB10: 0.04183904228 | LC10: 0.04181469638 | LD10: 0.04172855615 | LE10: 0.04180257576 | LF10: 0.04179305118 | LG10: 0.04177519507 | LH10: 0.04176147928 | LI10: 0.04174716018 | LJ10: 0.04172161326 | LK10: 0.04179817887 | LL10: 0.04179078908 | LM10: 0.04191897434 | LN10: 0.04201221918 | LO10: 0.04209158949 | LP10: 0.04215701941 | LQ10: 0.0420797474 | LR10: 0.04209732943 | LS10: 0.04211945238 | LT10: 0.04223529571 | LU10: 0.04229830834 | LV10: 0.04228718284 | LW10: 0.04231582475 | LX10: 0.04230641739 | LY10: 0.04228616 | LZ10: 0.04229747214 | MA10: 0.0423257752 | MB10: 0.04225165904 | MC10: 0.04231278812 | MD10: 0.04234579924 | ME10: 0.04236796944 | MF10: 0.04237141839 | MG10: 0.04240580102 | MH10: 0.04236177454 | MI10: 0.04237519473 | MJ10: 0.04235407549 | MK10: 0.04235966546 | ML10: 0.04236145919 | MM10: 0.04236747879 | MN10: 0.04245752783 | MO10: 0.04254332795 | MP10: 0.04257780447 | MQ10: 0.04258174657 | MR10: 0.04262703371 | MS10: 0.04258338925 | MT10: 0.04254590544 | MU10: 0.04237456579 | MV10: 0.04245974282 | MW10: 0.0424908706 | MX10: 0.0424137437 | MY10: 0.04241445904 | MZ10: 0.04238577159 | NA10: 0.04232626122 | NB10: 0.04234970091 | NC10: 0.04231126698 | ND10: 0.04234474649 | NE10: 0.04237991127 | NF10: 0.04242636262 | NG10: 0.04236268515 | NH10: 0.0423911713 | NI10: 0.04226953582 | NJ10: 0.04218530108 | NK10: 0.04211755764 | NL10: 0.04218087276 | NM10: 0.04219322744 | NN10: 0.04232352631 | NO10: 0.04227211607 | NP10: 0.04226869976 | NQ10: 0.04221962919 | NR10: 0.04211160752 | NS10: 0.04209284215 | NT10: 0.04206701978 | NU10: 0.04205914024 | NV10: 0.04198073547 | NW10: 0.0420005923 | NX10: 0.04194339118 | NY10: 0.04189405889 | NZ10: 0.04187348713 | OA10: 0.0418614023 | OB10: 0.04200406597 | OC10: 0.04198707316 | OD10: 0.0420531385 | OE10: 0.04205174945 | OF10: 0.04208602807 | OG10: 0.04209384649 | OH10: 0.04203162348 | OI10: 0.04204173388 | OJ10: 0.04196234358 | OK10: 0.04188931292 | OL10: 0.04186638211 | OM10: 0.04188488878 | ON10: 0.04175252867 | OO10: 0.0418027859 | OP10: 0.04185928008 | OQ10: 0.04188048266 | OR10: 0.04181004101 | OS10: 0.04176696707 | OT10: 0.04172789298 | OU10: 0.0417461286 | OV10: 0.04182389091 | OW10: 0.04176734265 | OX10: 0.04179838781 | OY10: 0.04180838964 | OZ10: 0.04182547324 | PA10: 0.04186190882 | PB10: 0.04188999586 | PC10: 0.04197117611 | PD10: 0.04194271209 | PE10: 0.04194647427 | PF10: 0.04205313686 | PG10: 0.04214057655 | PH10: 0.04209050399 | PI10: 0.04209184945 | PJ10: 0.04196918323 | PK10: 0.04204069578 | PL10: 0.04206241809 | PM10: 0.04202251056 | PN10: 0.04216437975 | PO10: 0.04220281003 | PP10: 0.04221516019 | PQ10: 0.04224290028 | PR10: 0.04224548287 | PS10: 0.04224346865 | PT10: 0.04232037357 | PU10: 0.04228851294 | PV10: 0.04220504713 | PW10: 0.04216682663 | PX10: 0.04218516751 | PY10: 0.04221373253 | PZ10: 0.04227372839 | QA10: 0.04221315674 | QB10: 0.04217740888 | QC10: 0.04219264262 | QD10: 0.04222417201 | QE10: 0.04216114893 | QF10: 0.04215590564 | QG10: 0.04224826747 | QH10: 0.04220140221 | QI10: 0.04215556316 | QJ10: 0.04217123993 | QK10: 0.04213070667 | QL10: 0.04214578737 | QM10: 0.04213137619 | QN10: 0.04221994068 | QO10: 0.04228404249 | QP10: 0.04234098637 | QQ10: 0.04236274611 | QR10: 0.0424011681 | QS10: 0.04247427383 | QT10: 0.04245997299 | QU10: 0.04251282132 | QV10: 0.04250715691 | QW10: 0.04248751074 | QX10: 0.04247114897 | QY10: 0.04254145585 | QZ10: 0.04240754003 | RA10: 0.04252008914 | RB10: 0.04259952823 | RC10: 0.04266922341 | RD10: 0.04271556075 | RE10: 0.04271345426 | RF10: 0.04272430019 | RG10: 0.04277615639 | RH10: 0.0427872229 | RI10: 0.04283028536 | RJ10: 0.04282811724 | RK10: 0.04300422216 | RL10: 0.04300329142 | RM10: 0.04296380936 | RN10: 0.04297613696 | RO10: 0.04314649119 | RP10: 0.04307968658 | RQ10: 0.0431305776 | RR10: 0.04315517917 | RS10: 0.04327979254 | RT10: 0.04317871538 | RU10: 0.04321559096 | RV10: 0.04317754095 | RW10: 0.04322984464 | RX10: 0.04320296627 | RY10: 0.04320351047 | RZ10: 0.04317716295 | SA10: 0.04315074263 | SB10: 0.04322888139 | SC10: 0.0433066032 | SD10: 0.04332933567 | SE10: 0.04323823051 | SF10: 0.04328388854 | SG10: 0.04324528257 | SH10: 0.04321692453 | SI10: 0.0430921036 | SJ10: 0.04317435407 | SK10: 0.04321839214 | SL10: 0.04316085116 | SM10: 0.04315526262 | SN10: 0.04312897475 | SO10: 0.04306945336 | SP10: 0.04320668232 | SQ10: 0.04316722659 | SR10: 0.04319116788 | SS10: 0.04320986166 | ST10: 0.04324481135 | SU10: 0.04318551619 | SV10: 0.04321631294 | SW10: 0.04311088054 | SX10: 0.04303972915 | SY10: 0.04298003001 | SZ10: 0.04303636559 | TA10: 0.04306299556 | TB10: 0.04317838779 | TC10: 0.04313617538 | TD10: 0.04313730262 | TE10: 0.04310263917 | TF10: 0.04300706712 | TG10: 0.04299567637 | TH10: 0.04298109237 | TI10: 0.04285121846 | TJ10: 0.04278187465 | TK10: 0.04280510966 | TL10: 0.04275564107 | TM10: 0.04278904319 | TN10: 0.04287879604 | TO10: 0.04293054169 | TP10: 0.04305205846 | TQ10: 0.04303005143 | TR10: 0.0430858883 | TS10: 0.04303377583 | TT10: 0.04307261839 | TU10: 0.04317848084 | TV10: 0.04312163379 | TW10: 0.04316024298 | TX10: 0.04317110913 | TY10: 0.0431036234 | TZ10: 0.04316398851 | UA10: 0.04327492427 | UB10: 0.04317783541 | UC10: 0.04321462027 | UD10: 0.04326095921 | UE10: 0.04341044769 | UF10: 0.04334018366 | UG10: 0.04330541407 | UH10: 0.0432687793 | UI10: 0.04341574073 | UJ10: 0.04347936223 | UK10: 0.04342093762 | UL10: 0.04345262193 | UM10: 0.04355943046 | UN10: 0.04363380847 | UO10: 0.04367136641 | UP10: 0.04369581971 | UQ10: 0.04377110884 | UR10: 0.04374959313 | US10: 0.043748057 | UT10: 0.04383888579 | UU10: 0.04391640888 | UV10: 0.04386964878 | UW10: 0.04387371945 | UX10: 0.043764384 | UY10: 0.0438243672 | UZ10: 0.04383847335 | VA10: 0.04380264158 | VB10: 0.04391681692 | VC10: 0.04394490684 | VD10: 0.04394863453 | VE10: 0.04395990218 | VF10: 0.04390709206 | VG10: 0.04379581143 | VH10: 0.04386325768 | VI10: 0.04383883892 | VJ10: 0.04383689163 | VK10: 0.04376356647 | VL10: 0.04378315989 | VM10: 0.04394770313 | VN10: 0.04400870747 | VO10: 0.04399321801 | VP10: 0.04403723511 | VQ10: 0.04405254844 | VR10: 0.04406803621 | VS10: 0.0441141959 | VT10: 0.04411100716 | VU10: 0.04419541656 | VV10: 0.04414630643 | VW10: 0.04410766441 | VX10: 0.04423040364 | VY10: 0.04420079589 | VZ10: 0.04422085381 | WA10: 0.04421182191 | WB10: 0.04429645112 | WC10: 0.04417825094 | WD10: 0.04423009271 | WE10: 0.04425363094 | WF10: 0.04428398117 | WG10: 0.04435581621 | WH10: 0.04433664224 | WI10: 0.04438641294 | WJ10: 0.04430101827 | WK10: 0.0441885114 | WL10: 0.04417880332 | WM10: 0.04424162064 | WN10: 0.04412655387 | WO10: 0.04422610289 | WP10: 0.04429282435 | WQ10: 0.04435225046 | WR10: 0.04431980024 | WS10: 0.04432909325 | WT10: 0.04424227696 | WU10: 0.04428371175 | WV10: 0.04428999246 | WW10: 0.04434101207 | WX10: 0.04423136925 | WY10: 0.04436860838 | WZ10: 0.04437387383 | XA10: 0.04434258445 | XB10: 0.04435218087 | XC10: 0.04448528874 | XD10: 0.04442517045 | XE10: 0.04446557254 | XF10: 0.04448202016 | XG10: 0.04457629864 | XH10: 0.0444872177 | XI10: 0.04452484192 | XJ10: 0.04449485886 | XK10: 0.04452778878 | XL10: 0.04449590054 | XM10: 0.04449249147 | XN10: 0.04455089024 | XO10: 0.04451767131 | XP10: 0.04458434918 | XQ10: 0.04465333597 | XR10: 0.04477509567 | XS10: 0.04468884236 | XT10: 0.0447713678 | XU10: 0.04473827527 | XV10: 0.04472062122 | XW10: 0.04460918319 | XX10: 0.0446881795 | XY10: 0.04472204351 | XZ10: 0.04467762085 | YA10: 0.04466627268 | YB10: 0.04464357253 | YC10: 0.04458207858 | YD10: 0.04469555648 | YE10: 0.04465544985 | YF10: 0.04466809977 | YG10: 0.04480563243 | YH10: 0.04482996334 | YI10: 0.04477462265 | YJ10: 0.04479639393 | YK10: 0.04481111302 | YL10: 0.04474988388 | YM10: 0.04469699217 | YN10: 0.04474446954 | YO10: 0.04475088286 | YP10: 0.04485397617 | YQ10: 0.04481920964 | YR10: 0.04482266264 | YS10: 0.04485690198 | YT10: 0.04476568444 | YU10: 0.04475953319 | YV10: 0.04477438663 | YW10: 0.04466345366 | YX10: 0.04472199608 | YY10: 0.04474622875 | YZ10: 0.04470325034 | ZA10: 0.04472512801 | ZB10: 0.04471658641 | ZC10: 0.04462247127 | ZD10: 0.04472835373 | ZE10: 0.04470188154 | ZF10: 0.04474694628 | ZG10: 0.04471795896 | ZH10: 0.04475955513 | ZI10: 0.04485296975 | ZJ10: 0.04480136126 | ZK10: 0.04484339366 | ZL10: 0.04493418325 | ZM10: 0.04487179271 | ZN10: 0.04492886109 | ZO10: 0.04502835358 | ZP10: 0.04494863276 | ZQ10: 0.04497352623 | ZR10: 0.04500741362 | ZS10: 0.04513585346 | ZT10: 0.04506529057 | ZU10: 0.04503778809 | ZV10: 0.0450051623 | ZW10: 0.04512733484 | ZX10: 0.04517818104 | ZY10: 0.04511865804 | ZZ10: 0.0451493719 | AAA10: 0.04523331105 | AAB10: 0.04528385346 | AAC10: 0.04532120623 | AAD10: 0.04548592404 | AAE10: 0.04551115846 | AAF10: 0.04549581182 | AAG10: 0.04549073346 | AAH10: 0.04548100973 | AAI10: 0.04544426018 | AAJ10: 0.04540265315 | AAK10: 0.04540035523 | AAL10: 0.04530122792 | AAM10: 0.04521667302 | AAN10: 0.04514292478 | AAO10: 0.04511402009 | AAP10: 0.04521873769 | AAQ10: 0.04511277771 | AAR10: 0.04510981825 | AAS10: 0.0452382089 | AAT10: 0.04519000996 | AAU10: 0.0450939283 | AAV10: 0.04515139712 | AAW10: 0.04513517422 | AAX10: 0.04508333462 | AAY10: 0.04502475409 | AAZ10: 0.04504415232 | ABA10: 0.04501719068 | ABB10: 0.04507868751 | ABC10: 0.045073578 | ABD10: 0.04511819981 | ABE10: 0.04513199787 | ABF10: 0.04513576978 | ABG10: 0.04518495038 | ABH10: 0.04509877885 | ABI10: 0.04509910612 | ABJ10: 0.04505065342 | ABK10: 0.04502037094 | ABL10: 0.04511804122 | ABM10: 0.0450988164 | ABN10: 0.04512338469 | ABO10: 0.0451200173 | ABP10: 0.04514548337 | ABQ10: 0.04503988164 | ABR10: 0.04507713113 | ABS10: 0.04510175462 | ABT10: 0.04511868363 | ABU10: 0.04518879733 | ABV10: 0.04516761576 | ABW10: 0.04521327579 | ABX10: 0.04516415972 | ABY10: 0.04507222875 | ABZ10: 0.0450689175 | ACA10: 0.04512336947 | ACB10: 0.04501915317 | ACC10: 0.04510663111 | ACD10: 0.04516173861 | ACE10: 0.04521077015 | ACF10: 0.04518842534 | ACG10: 0.04520630375 | ACH10: 0.04512886869 | ACI10: 0.04516069267 | ACJ10: 0.04524786019 | ACK10: 0.04529044064 | ACL10: 0.04527101994 | ACM10: 0.04539209326 | ACN10: 0.04540249001 | ACO10: 0.04537903788 | ACP10: 0.04543667938 | ACQ10: 0.04554949604 | ACR10: 0.0455852089 | ACS10: 0.04561502801 | ACT10: 0.04562385972 | ACU10: 0.04569880044 | ACV10: 0.0456205727 | ACW10: 0.0456575538 | ACX10: 0.04563650727 | ACY10: 0.04565550366 | ACZ10: 0.0456201986 | ADA10: 0.04561500253 | ADB10: 0.04566352078 | ADC10: 0.04562459289 | ADD10: 0.04568023968 | ADE10: 0.04573984928 | ADF10: 0.04582571036 | ADG10: 0.04574264739 | ADH10: 0.04580995873 | ADI10: 0.04580638528 | ADJ10: 0.04563538418 | ADK10: 0.0455345338 | ADL10: 0.0455144861 | ADM10: 0.04563504101 | ADN10: 0.04560214804 | ADO10: 0.04558723549 | ADP10: 0.04557277552 | ADQ10: 0.04556134715 | ADR10: 0.04565730278 | ADS10: 0.0456188184 | ADT10: 0.04556699905 | ADU10: 0.04567710879 | ADV10: 0.04555813686 | ADW10: 0.04550924954 | ADX10: 0.04552374495 | ADY10: 0.04553546379 | ADZ10: 0.04548485085 | AEA10: 0.0454407528 | AEB10: 0.04547773262 | AEC10: 0.04547273007 | AED10: 0.04556435283 | AEE10: 0.04553797495 | AEF10: 0.04554262879 | AEG10: 0.04556012973 | AEH10: 0.0454742881 | AEI10: 0.04547338209 | AEJ10: 0.04549085958 | AEK10: 0.04538963534 | AEL10: 0.04544970696 | AEM10: 0.04547426314 | AEN10: 0.04544977475 | AEO10: 0.0455187133 | AEP10: 0.04551599257 | AEQ10: 0.04544261908 | AER10: 0.04553480423 | AES10: 0.04550650622 | AET10: 0.0455408333 | AEU10: 0.04552565475 | AEV10: 0.04556917637 | AEW10: 0.04565084056 | AEX10: 0.04560694102 | AEY10: 0.04565305209 | AEZ10: 0.04573874193 | AFA10: 0.04568379858 | AFB10: 0.04573660669 | AFC10: 0.04576368203 | AFD10: 0.04569887901 | AFE10: 0.04571418673 | AFF10: 0.04569389146 | AFG10: 0.04569941255 | AFH10: 0.04563122278 | AFI10: 0.04561171905 | AFJ10: 0.04558734692 | AFK10: 0.04557266794 | AFL10: 0.04544849413 | AFM10: 0.04539131562 | AFN10: 0.0454202074 | AFO10: 0.04539227141 | AFP10: 0.04545562806 | AFQ10: 0.04534476971 | AFR10: 0.04547995493 | AFS10: 0.04549366651 | AFT10: 0.04548554974 | AFU10: 0.04548127971 | AFV10: 0.0453597081 | AFW10: 0.04531962911 | AFX10: 0.0452873753 | AFY10: 0.04534240656 | AFZ10: 0.04525535823 | AGA10: 0.0451758474 | AGB10: 0.04511136266 | AGC10: 0.04509494901 | AGD10: 0.04519249985 | AGE10: 0.0450982212 | AGF10: 0.04509135676 | AGG10: 0.04511296182 | AGH10: 0.04506321719 | AGI10: 0.04498223298 | AGJ10: 0.04502973582 | AGK10: 0.04502510936 | AGL10: 0.04500998489 | AGM10: 0.04496543684 | AGN10: 0.04503569458 | AGO10: 0.04501108626 | AGP10: 0.04502075209 | AGQ10: 0.04502499444 | AGR10: 0.04506943978 | AGS10: 0.04499276342 | AGT10: 0.04504954739 | AGU10: 0.04501117735 | AGV10: 0.0449337062 | AGW10: 0.04492503075 | AGX10: 0.04488019831 | AGY10: 0.0448591514 | AGZ10: 0.04493900762 | AHA10: 0.04492965209 | AHB10: 0.04495804098 | AHC10: 0.04496014035 | AHD10: 0.04497631763 | AHE10: 0.04488076618 | AHF10: 0.04490802478 | AHG10: 0.04493273758 | AHH10: 0.04507523376 | AHI10: 0.04514296479 | AHJ10: 0.0450768951 | AHK10: 0.04511717049 | AHL10: 0.04508581438 | AHM10: 0.04501094149 | AHN10: 0.0450136731 | AHO10: 0.04505887179 | AHP10: 0.04506090085 | AHQ10: 0.04513707079 | AHR10: 0.04518185137 | AHS10: 0.04522044095 | AHT10: 0.04521947382 | AHU10: 0.04516998406 | AHV10: 0.04516929637 | AHW10: 0.0452603905 | AHX10: 0.0453383884 | AHY10: 0.04537035821 | AHZ10: 0.04535864764 | AIA10: 0.04546727926 | AIB10: 0.0454822032 | AIC10: 0.04546685537 | AID10: 0.0455255173 | AIE10: 0.04562232122 | AIF10: 0.04566233878 | AIG10: 0.04560659165 | AIH10: 0.04563893515 | AII10: 0.04569872242 | AIJ10: 0.04563249852 | AIK10: 0.04566788662 | AIL10: 0.04565905689 | AIM10: 0.04566776137 | AIN10: 0.04563204246 | AIO10: 0.04557468859 | AIP10: 0.0456124058 | AIQ10: 0.04557066179 | AIR10: 0.04549817299 | AIS10: 0.04554817636 | AIT10: 0.04551231412 | AIU10: 0.04543476729 | AIV10: 0.04548936167 | AIW10: 0.04549287037 | AIX10: 0.04547524002 | AIY10: 0.0454847488 | AIZ10: 0.0454739611 | AJA10: 0.04558347744 | AJB10: 0.04556155543 | AJC10: 0.04554594345 | AJD10: 0.04539461068 | AJE10: 0.04528937638 | AJF10: 0.04537068272 | AJG10: 0.04533729022 | AJH10: 0.04529308447 | AJI10: 0.04538441597 | AJJ10: 0.04528090451 | AJK10: 0.04524119016 | AJL10: 0.04525062298 | AJM10: 0.04532885132 | AJN10: 0.04528932189 | AJO10: 0.04525576597 | AJP10: 0.04527848353 | AJQ10: 0.04526564936 | AJR10: 0.0453464351 | AJS10: 0.0453290633 | AJT10: 0.04534997889 | AJU10: 0.04550525072 | AJV10: 0.04542613737 | AJW10: 0.04542982597 | AJX10: 0.04544886478 | AJY10: 0.0454778983 | AJZ10: 0.04543332229 | AKA10: 0.04545670962 | AKB10: 0.04542857919 | AKC10: 0.04549456637 | AKD10: 0.04556333198 | AKE10: 0.04560037789 | AKF10: 0.04568175169 | AKG10: 0.04565434523 | AKH10: 0.04567887165 | AKI10: 0.04571954237 | AKJ10: 0.04582784813 | AKK10: 0.04589981323 | AKL10: 0.04586451061 | AKM10: 0.04589847933 | AKN10: 0.04598067465 | AKO10: 0.04593366914 | AKP10: 0.0459814181 | AKQ10: 0.04600117273 | AKR10: 0.04594763512 | AKS10: 0.04595667898 | AKT10: 0.04593515224 | AKU10: 0.04593799597 | AKV10: 0.04587340436 | AKW10: 0.0459678745 | AKX10: 0.04595577589 | AKY10: 0.04594393577 | AKZ10: 0.04597567825 | ALA10: 0.0459899015 | ALB10: 0.04590874157 | ALC10: 0.04596391345 | ALD10: 0.04602096851 | ALE10: 0.04605463929 | ALF10: 0.04617488639 | ALG10: 0.04618049581 | ALH10: 0.04617659403 | ALI10: 0.04617734953 | ALJ10: 0.04607251608 | ALK10: 0.04603002664 | ALL10: 0.04603665902 | ALM10: 0.04608239876 | ALN10: 0.04614119455 | ALO10: 0.04606486629 | ALP10: 0.04600716998 | ALQ10: 0.04582981092
A11: SWAPTION: | D11: Pfad 7 | E11: 0.04 | F11: 0.04009137129 | G11: 0.0400168504 | H11: 0.04001417114 | I11: 0.04003460645 | J11: 0.03999257788 | K11: 0.03993226478 | L11: 0.03997342114 | M11: 0.03990061882 | N11: 0.03990229851 | O11: 0.03987511873 | P11: 0.03989272847 | Q11: 0.03997881196 | R11: 0.04004049406 | S11: 0.04001228002 | T11: 0.03991432265 | U11: 0.03985684805 | V11: 0.03985330165 | W11: 0.03983130589 | X11: 0.0397675741 | Y11: 0.0397597379 | Z11: 0.03972713931 | AA11: 0.03971957791 | AB11: 0.03970777142 | AC11: 0.03971064978 | AD11: 0.03974423603 | AE11: 0.03975459732 | AF11: 0.03984246291 | AG11: 0.03976525277 | AH11: 0.0397896948 | AI11: 0.03981630967 | AJ11: 0.03993896352 | AK11: 0.04000499101 | AL11: 0.03995810053 | AM11: 0.03999481594 | AN11: 0.03998100639 | AO11: 0.03992731589 | AP11: 0.03993867514 | AQ11: 0.03997724487 | AR11: 0.03990237307 | AS11: 0.03997071164 | AT11: 0.04008733234 | AU11: 0.04013974766 | AV11: 0.04014963881 | AW11: 0.0401164225 | AX11: 0.04012332718 | AY11: 0.04020995814 | AZ11: 0.04028104918 | BA11: 0.04029239934 | BB11: 0.04029235396 | BC11: 0.04039082007 | BD11: 0.04048891321 | BE11: 0.04048536187 | BF11: 0.04052758455 | BG11: 0.04061290483 | BH11: 0.04065775615 | BI11: 0.04061433639 | BJ11: 0.04063723278 | BK11: 0.04068877989 | BL11: 0.04064067019 | BM11: 0.04067614702 | BN11: 0.04058075604 | BO11: 0.04058806135 | BP11: 0.04056094575 | BQ11: 0.04052071768 | BR11: 0.04055006994 | BS11: 0.04059615497 | BT11: 0.04063656292 | BU11: 0.04066153347 | BV11: 0.04071716102 | BW11: 0.04074781499 | BX11: 0.04078279645 | BY11: 0.04064828965 | BZ11: 0.04063481239 | CA11: 0.04064543399 | CB11: 0.04064947852 | CC11: 0.0407503428 | CD11: 0.04074192017 | CE11: 0.04073348446 | CF11: 0.04062248403 | CG11: 0.04056273937 | CH11: 0.04063421711 | CI11: 0.04061334116 | CJ11: 0.04058370205 | CK11: 0.04066275788 | CL11: 0.0405802434 | CM11: 0.04059763455 | CN11: 0.04060847041 | CO11: 0.04068233441 | CP11: 0.04078216194 | CQ11: 0.04083629453 | CR11: 0.04100209827 | CS11: 0.04098988686 | CT11: 0.04106255456 | CU11: 0.04105724944 | CV11: 0.04108753856 | CW11: 0.04109228425 | CX11: 0.0411137833 | CY11: 0.04112400302 | CZ11: 0.04103800092 | DA11: 0.04106287025 | DB11: 0.04103478637 | DC11: 0.04105839246 | DD11: 0.04103271563 | DE11: 0.04109651257 | DF11: 0.04115865548 | DG11: 0.04118964307 | DH11: 0.04126061978 | DI11: 0.04121082223 | DJ11: 0.04122183783 | DK11: 0.0412529897 | DL11: 0.04134111624 | DM11: 0.0414040476 | DN11: 0.04138657375 | DO11: 0.0414115396 | DP11: 0.04149156026 | DQ11: 0.04152563222 | DR11: 0.04156911187 | DS11: 0.0415845413 | DT11: 0.04154976074 | DU11: 0.04155714089 | DV11: 0.04167608596 | DW11: 0.0417697141 | DX11: 0.04171704634 | DY11: 0.04171515173 | DZ11: 0.04157572499 | EA11: 0.04165487567 | EB11: 0.04168160707 | EC11: 0.0417716538 | ED11: 0.04171187325 | EE11: 0.04175738125 | EF11: 0.04180875637 | EG11: 0.04184100516 | EH11: 0.04194721084 | EI11: 0.04194968544 | EJ11: 0.04195488134 | EK11: 0.04189637412 | EL11: 0.04180967501 | EM11: 0.04177247179 | EN11: 0.04178838482 | EO11: 0.04182556512 | EP11: 0.04188396237 | EQ11: 0.0418207363 | ER11: 0.04177944127 | ES11: 0.04165635944 | ET11: 0.04170564107 | EU11: 0.04163749887 | EV11: 0.04174733485 | EW11: 0.04184442755 | EX11: 0.04189404019 | EY11: 0.04188555799 | EZ11: 0.04191333813 | FA11: 0.0418643521 | FB11: 0.04181533426 | FC11: 0.04179692867 | FD11: 0.04188985891 | FE11: 0.04196212891 | FF11: 0.04202097212 | FG11: 0.04200067638 | FH11: 0.041921113 | FI11: 0.04187031915 | FJ11: 0.04185947232 | FK11: 0.04184570541 | FL11: 0.04178080967 | FM11: 0.04176512758 | FN11: 0.0417352519 | FO11: 0.04173305859 | FP11: 0.04173286155 | FQ11: 0.04185477962 | FR11: 0.0418876109 | FS11: 0.04189771664 | FT11: 0.0419559604 | FU11: 0.0418820173 | FV11: 0.04189767896 | FW11: 0.0419172978 | FX11: 0.04190374806 | FY11: 0.04196506443 | FZ11: 0.0419569437 | GA11: 0.04192307464 | GB11: 0.04191726423 | GC11: 0.04189914433 | GD11: 0.04191148618 | GE11: 0.0419223475 | GF11: 0.04185227108 | GG11: 0.04191007276 | GH11: 0.04201625552 | GI11: 0.04206944605 | GJ11: 0.04207161332 | GK11: 0.04204568436 | GL11: 0.04200364181 | GM11: 0.04208530263 | GN11: 0.04214679164 | GO11: 0.04215119065 | GP11: 0.04215556683 | GQ11: 0.04224431628 | GR11: 0.04233011184 | GS11: 0.04233034875 | GT11: 0.04236121494 | GU11: 0.04243437855 | GV11: 0.04247984944 | GW11: 0.04243862157 | GX11: 0.04250704477 | GY11: 0.04254488379 | GZ11: 0.04245707226 | HA11: 0.04239450843 | HB11: 0.0423499761 | HC11: 0.04239092199 | HD11: 0.04249501667 | HE11: 0.04243660306 | HF11: 0.04246141389 | HG11: 0.04249589304 | HH11: 0.04252612821 | HI11: 0.04255568342 | HJ11: 0.04259822542 | HK11: 0.04253644745 | HL11: 0.04256035287 | HM11: 0.04244570755 | HN11: 0.04236652567 | HO11: 0.04230191582 | HP11: 0.04225005528 | HQ11: 0.04234332396 | HR11: 0.04234062934 | HS11: 0.04229292454 | HT11: 0.04229142591 | HU11: 0.04224806062 | HV11: 0.04230783133 | HW11: 0.0422917375 | HX11: 0.04226967045 | HY11: 0.04230538307 | HZ11: 0.04230980915 | IA11: 0.04229604107 | IB11: 0.04238595119 | IC11: 0.04233942478 | ID11: 0.04232111757 | IE11: 0.04231342435 | IF11: 0.04232467404 | IG11: 0.04230616797 | IH11: 0.0423650228 | II11: 0.04236631394 | IJ11: 0.04240193961 | IK11: 0.04241105926 | IL11: 0.04242492771 | IM11: 0.0424342096 | IN11: 0.04235848216 | IO11: 0.04228760504 | IP11: 0.04226773667 | IQ11: 0.04228044486 | IR11: 0.04225081254 | IS11: 0.04230951875 | IT11: 0.04236246787 | IU11: 0.0425606003 | IV11: 0.04249055107 | IW11: 0.04245012642 | IX11: 0.04241173677 | IY11: 0.04259300176 | IZ11: 0.04263671342 | JA11: 0.04271099964 | JB11: 0.04270311633 | JC11: 0.0427563722 | JD11: 0.04273707127 | JE11: 0.0427160021 | JF11: 0.04268327102 | JG11: 0.04276220095 | JH11: 0.04274801191 | JI11: 0.04288624688 | JJ11: 0.04298710096 | JK11: 0.04307094418 | JL11: 0.04302158985 | JM11: 0.04302362166 | JN11: 0.04290600176 | JO11: 0.04297338594 | JP11: 0.04299219213 | JQ11: 0.04305797059 | JR11: 0.04318276741 | JS11: 0.04321738557 | JT11: 0.04325887706 | JU11: 0.04328219709 | JV11: 0.04337715123 | JW11: 0.04337233334 | JX11: 0.04344572899 | JY11: 0.04338607582 | JZ11: 0.04342254655 | KA11: 0.04345044425 | KB11: 0.04331834584 | KC11: 0.04334978446 | KD11: 0.04329680656 | KE11: 0.0433135094 | KF11: 0.04329429666 | KG11: 0.04330169001 | KH11: 0.0433798151 | KI11: 0.04338435972 | KJ11: 0.04348055208 | KK11: 0.04356993051 | KL11: 0.0436086631 | KM11: 0.04360400932 | KN11: 0.04375846618 | KO11: 0.04372047297 | KP11: 0.04367687991 | KQ11: 0.04366882061 | KR11: 0.04375513546 | KS11: 0.0438147178 | KT11: 0.04386941989 | KU11: 0.043863751 | KV11: 0.04379748279 | KW11: 0.04386957502 | KX11: 0.04385276234 | KY11: 0.04385394379 | KZ11: 0.04378839381 | LA11: 0.04382825212 | LB11: 0.04380339908 | LC11: 0.0437347593 | LD11: 0.04377911991 | LE11: 0.04378924572 | LF11: 0.04369350217 | LG11: 0.04361822476 | LH11: 0.04368373578 | LI11: 0.04369715753 | LJ11: 0.04383761996 | LK11: 0.04377807503 | LL11: 0.04376966158 | LM11: 0.04382491943 | LN11: 0.04368912931 | LO11: 0.04366343948 | LP11: 0.04366435125 | LQ11: 0.04365003426 | LR11: 0.04366156907 | LS11: 0.04367719149 | LT11: 0.04361270318 | LU11: 0.0436598886 | LV11: 0.04375899437 | LW11: 0.04381182914 | LX11: 0.0438077589 | LY11: 0.04379197598 | LZ11: 0.04386234829 | MA11: 0.04385505922 | MB11: 0.04388455152 | MC11: 0.044013157 | MD11: 0.0439441795 | ME11: 0.04395193356 | MF11: 0.04397130898 | MG11: 0.04389069906 | MH11: 0.04395218547 | MI11: 0.04401375623 | MJ11: 0.0440102077 | MK11: 0.04406693756 | ML11: 0.04406636266 | MM11: 0.04409583152 | MN11: 0.04401938025 | MO11: 0.04396691858 | MP11: 0.04392273663 | MQ11: 0.0439149848 | MR11: 0.0438895647 | MS11: 0.04382941101 | MT11: 0.04385726415 | MU11: 0.04381751188 | MV11: 0.04383764725 | MW11: 0.04387081315 | MX11: 0.04390206813 | MY11: 0.04384407886 | MZ11: 0.04380769866 | NA11: 0.04381190686 | NB11: 0.04379313855 | NC11: 0.04379782704 | ND11: 0.04374245377 | NE11: 0.04382788724 | NF11: 0.04368828851 | NG11: 0.04369220941 | NH11: 0.04359866756 | NI11: 0.04355371502 | NJ11: 0.04357039173 | NK11: 0.04340023915 | NL11: 0.04341564785 | NM11: 0.04346978486 | NN11: 0.04347116239 | NO11: 0.04330924947 | NP11: 0.04339022016 | NQ11: 0.04335203585 | NR11: 0.0433403372 | NS11: 0.04322590667 | NT11: 0.04334139046 | NU11: 0.04331837445 | NV11: 0.04337058353 | NW11: 0.04332962169 | NX11: 0.04336936557 | NY11: 0.04324583308 | NZ11: 0.04332974657 | OA11: 0.04326005527 | OB11: 0.04325300109 | OC11: 0.04326431554 | OD11: 0.04321600466 | OE11: 0.04316318708 | OF11: 0.04318760196 | OG11: 0.04313704195 | OH11: 0.04314694071 | OI11: 0.04312678341 | OJ11: 0.04317671927 | OK11: 0.0431678788 | OL11: 0.04324038191 | OM11: 0.04325899978 | ON11: 0.04329900719 | OO11: 0.04337181947 | OP11: 0.04324575861 | OQ11: 0.04329858217 | OR11: 0.04328755569 | OS11: 0.04328113025 | OT11: 0.04325875746 | OU11: 0.0433317858 | OV11: 0.04331371783 | OW11: 0.0434336314 | OX11: 0.04351951578 | OY11: 0.04359360496 | OZ11: 0.04364796154 | PA11: 0.04357190251 | PB11: 0.04358494145 | PC11: 0.04360161576 | PD11: 0.04371200469 | PE11: 0.04377192115 | PF11: 0.04373140565 | PG11: 0.04375044988 | PH11: 0.0437441352 | PI11: 0.04369800686 | PJ11: 0.04370898371 | PK11: 0.04372461946 | PL11: 0.04374314273 | PM11: 0.04368354999 | PN11: 0.04371150134 | PO11: 0.04389399901 | PP11: 0.04378330593 | PQ11: 0.04381823071 | PR11: 0.04377445588 | PS11: 0.04384375049 | PT11: 0.04381840761 | PU11: 0.04372401092 | PV11: 0.0437947212 | PW11: 0.04376978322 | PX11: 0.04377100284 | PY11: 0.04377055651 | PZ11: 0.0437986008 | QA11: 0.04386953717 | QB11: 0.04391442747 | QC11: 0.04387186958 | QD11: 0.04387873702 | QE11: 0.04391609404 | QF11: 0.04387456885 | QG11: 0.04390074824 | QH11: 0.04383260757 | QI11: 0.04382898032 | QJ11: 0.04380001515 | QK11: 0.04376612212 | QL11: 0.04392277491 | QM11: 0.04388215068 | QN11: 0.04382029112 | QO11: 0.04384725512 | QP11: 0.04383439344 | QQ11: 0.04377126982 | QR11: 0.0438059979 | QS11: 0.04381962993 | QT11: 0.04374012789 | QU11: 0.04367453316 | QV11: 0.04373383905 | QW11: 0.0437424595 | QX11: 0.0438647804 | QY11: 0.04385712209 | QZ11: 0.04375440651 | RA11: 0.04371138823 | RB11: 0.0437688026 | RC11: 0.04375514938 | RD11: 0.04373301724 | RE11: 0.04379654342 | RF11: 0.04372030821 | RG11: 0.04374075904 | RH11: 0.04373909948 | RI11: 0.043811526 | RJ11: 0.04390414837 | RK11: 0.04395608303 | RL11: 0.04408727278 | RM11: 0.04406575644 | RN11: 0.0441259773 | RO11: 0.0441955953 | RP11: 0.0442361092 | RQ11: 0.04434875437 | RR11: 0.044286322 | RS11: 0.0443553617 | RT11: 0.04437041744 | RU11: 0.04429692655 | RV11: 0.04435742874 | RW11: 0.04440841262 | RX11: 0.04429457055 | RY11: 0.04433680043 | RZ11: 0.04432890656 | SA11: 0.04450362198 | SB11: 0.04456132032 | SC11: 0.04451948732 | SD11: 0.04460924235 | SE11: 0.04477936301 | SF11: 0.04484918839 | SG11: 0.04489906991 | SH11: 0.04470797789 | SI11: 0.04483234766 | SJ11: 0.04490794014 | SK11: 0.04494347505 | SL11: 0.04497370535 | SM11: 0.04502507665 | SN11: 0.04499724025 | SO11: 0.04499597535 | SP11: 0.04497786634 | SQ11: 0.0449493957 | SR11: 0.04492721376 | SS11: 0.04500438001 | ST11: 0.04501012344 | SU11: 0.04491615626 | SV11: 0.0448295298 | SW11: 0.0447888262 | SX11: 0.0449105662 | SY11: 0.04478220899 | SZ11: 0.04482107137 | TA11: 0.04484121718 | TB11: 0.04493440529 | TC11: 0.04492694935 | TD11: 0.04493211953 | TE11: 0.04486982414 | TF11: 0.04478472165 | TG11: 0.04474308976 | TH11: 0.04476058211 | TI11: 0.04477729485 | TJ11: 0.0448368609 | TK11: 0.04477502157 | TL11: 0.04474078512 | TM11: 0.04463222932 | TN11: 0.04465399288 | TO11: 0.04459163773 | TP11: 0.04458531265 | TQ11: 0.04461030472 | TR11: 0.04456017122 | TS11: 0.04451588715 | TT11: 0.04448273291 | TU11: 0.04444604961 | TV11: 0.04446249047 | TW11: 0.04444929363 | TX11: 0.04448892151 | TY11: 0.04435670261 | TZ11: 0.04441054421 | UA11: 0.04441004533 | UB11: 0.04434527727 | UC11: 0.04430227194 | UD11: 0.0442844126 | UE11: 0.04413875269 | UF11: 0.04407316226 | UG11: 0.04405000004 | UH11: 0.04402637301 | UI11: 0.0439732318 | UJ11: 0.04385059684 | UK11: 0.04395629955 | UL11: 0.04398638615 | UM11: 0.04402387352 | UN11: 0.04406220538 | UO11: 0.04399330908 | UP11: 0.04400042442 | UQ11: 0.04411053185 | UR11: 0.04421121394 | US11: 0.04424738565 | UT11: 0.04421609636 | UU11: 0.04436518647 | UV11: 0.0445475428 | UW11: 0.04451102548 | UX11: 0.04452163889 | UY11: 0.04453747405 | UZ11: 0.04447287932 | VA11: 0.044518009 | VB11: 0.04461616901 | VC11: 0.04466863289 | VD11: 0.0446629771 | VE11: 0.04464858839 | VF11: 0.04460039903 | VG11: 0.04467523519 | VH11: 0.04472432649 | VI11: 0.04472184617 | VJ11: 0.04470412343 | VK11: 0.04478127754 | VL11: 0.04485326567 | VM11: 0.04485638004 | VN11: 0.0448696675 | VO11: 0.04492912463 | VP11: 0.04497346323 | VQ11: 0.04493621481 | VR11: 0.04493333951 | VS11: 0.04496070471 | VT11: 0.04492747014 | VU11: 0.04493659157 | VV11: 0.0448844394 | VW11: 0.04487482823 | VX11: 0.0448489354 | VY11: 0.04478707433 | VZ11: 0.04481481635 | WA11: 0.04483176617 | WB11: 0.04484948241 | WC11: 0.04488263919 | WD11: 0.04491154259 | WE11: 0.04485283895 | WF11: 0.04499904094 | WG11: 0.04489738887 | WH11: 0.04482974721 | WI11: 0.04477199051 | WJ11: 0.04473852845 | WK11: 0.04482261131 | WL11: 0.04482453609 | WM11: 0.04478495803 | WN11: 0.04478657237 | WO11: 0.04475613472 | WP11: 0.04480269998 | WQ11: 0.04479294283 | WR11: 0.04478711759 | WS11: 0.04483882308 | WT11: 0.04477120779 | WU11: 0.04479415154 | WV11: 0.04478146902 | WW11: 0.04485285496 | WX11: 0.04493891412 | WY11: 0.04498814794 | WZ11: 0.04500266126 | XA11: 0.04497695717 | XB11: 0.04503495861 | XC11: 0.04499553129 | XD11: 0.04503498276 | XE11: 0.04504651889 | XF11: 0.04508308877 | XG11: 0.04512202775 | XH11: 0.04505510118 | XI11: 0.04498850494 | XJ11: 0.04497851304 | XK11: 0.04508167827 | XL11: 0.04504706746 | XM11: 0.04509746392 | XN11: 0.04513704867 | XO11: 0.0452740436 | XP11: 0.04520207675 | XQ11: 0.04516964211 | XR11: 0.04513354086 | XS11: 0.04526648401 | XT11: 0.04532312006 | XU11: 0.04536283643 | XV11: 0.04523682248 | XW11: 0.04533088281 | XX11: 0.04540209691 | XY11: 0.04539737291 | XZ11: 0.04537393082 | YA11: 0.04544546801 | YB11: 0.04528395869 | YC11: 0.04540193068 | YD11: 0.04548533352 | YE11: 0.04555738591 | YF11: 0.04551189141 | YG11: 0.04549945869 | YH11: 0.04539391452 | YI11: 0.04544785065 | YJ11: 0.04545790298 | YK11: 0.04550392503 | YL11: 0.0456124606 | YM11: 0.04563514481 | YN11: 0.045659991 | YO11: 0.04580071014 | YP11: 0.04588292669 | YQ11: 0.0458703125 | YR11: 0.04593212457 | YS11: 0.0458687283 | YT11: 0.04578820428 | YU11: 0.04574668931 | YV11: 0.04576514024 | YW11: 0.04590248168 | YX11: 0.04585709024 | YY11: 0.04591815909 | YZ11: 0.04588914709 | ZA11: 0.04588814473 | ZB11: 0.04595703355 | ZC11: 0.04592855373 | ZD11: 0.04601004026 | ZE11: 0.0460898516 | ZF11: 0.04611427719 | ZG11: 0.04601302945 | ZH11: 0.04612168567 | ZI11: 0.04609552511 | ZJ11: 0.04605968107 | ZK11: 0.04591976975 | ZL11: 0.04600233742 | ZM11: 0.04604812201 | ZN11: 0.04609606041 | ZO11: 0.04595866258 | ZP11: 0.04590514833 | ZQ11: 0.0459755959 | ZR11: 0.04595385794 | ZS11: 0.04585747496 | ZT11: 0.04579480931 | ZU11: 0.04576710207 | ZV11: 0.04575939583 | ZW11: 0.04572895159 | ZX11: 0.04561790166 | ZY11: 0.04563034735 | ZZ11: 0.04554971844 | AAA11: 0.04548242543 | AAB11: 0.04553993064 | AAC11: 0.04554608433 | AAD11: 0.04566659231 | AAE11: 0.04561700491 | AAF11: 0.04561373641 | AAG11: 0.04566008161 | AAH11: 0.04555575036 | AAI11: 0.04553846693 | AAJ11: 0.04554570741 | AAK11: 0.04537499085 | AAL11: 0.04543523532 | AAM11: 0.04545497646 | AAN11: 0.0453980919 | AAO11: 0.0454328388 | AAP11: 0.04552444365 | AAQ11: 0.04557540289 | AAR11: 0.04556617014 | AAS11: 0.04541710884 | AAT11: 0.04536598891 | AAU11: 0.04543421161 | AAV11: 0.04547217856 | AAW11: 0.04546725573 | AAX11: 0.04546297035 | AAY11: 0.0455015491 | AAZ11: 0.04551433749 | ABA11: 0.04543995569 | ABB11: 0.04549985056 | ABC11: 0.04554861288 | ABD11: 0.0454374282 | ABE11: 0.04547683342 | ABF11: 0.04546654711 | ABG11: 0.04548552384 | ABH11: 0.04541066224 | ABI11: 0.04536933351 | ABJ11: 0.0453279589 | ABK11: 0.04531456828 | ABL11: 0.04529535766 | ABM11: 0.04523355558 | ABN11: 0.04526337092 | ABO11: 0.04522398566 | ABP11: 0.04531251838 | ABQ11: 0.0453482296 | ABR11: 0.04536798417 | ABS11: 0.04531569355 | ABT11: 0.04544091982 | ABU11: 0.04535167489 | ABV11: 0.04529566806 | ABW11: 0.04524703276 | ABX11: 0.04522654799 | ABY11: 0.04530233941 | ABZ11: 0.04518471406 | ACA11: 0.04509188032 | ACB11: 0.04500634574 | ACC11: 0.04496646867 | ACD11: 0.04508536198 | ACE11: 0.04495978927 | ACF11: 0.04496473423 | ACG11: 0.045006097 | ACH11: 0.04500772481 | ACI11: 0.04488675505 | ACJ11: 0.04495684641 | ACK11: 0.04492778587 | ACL11: 0.04492249711 | ACM11: 0.04484038852 | ACN11: 0.04493900189 | ACO11: 0.04491189303 | ACP11: 0.0449516022 | ACQ11: 0.04493023777 | ACR11: 0.04497284414 | ACS11: 0.04498686065 | ACT11: 0.04500593832 | ACU11: 0.04504990073 | ACV11: 0.04499430411 | ACW11: 0.04493636251 | ACX11: 0.04483050299 | ACY11: 0.04478749613 | ACZ11: 0.04492292832 | ADA11: 0.04488792395 | ADB11: 0.0449051671 | ADC11: 0.0448927717 | ADD11: 0.04493058988 | ADE11: 0.04480302461 | ADF11: 0.04485680766 | ADG11: 0.04487878601 | ADH11: 0.04491118027 | ADI11: 0.04498296525 | ADJ11: 0.0448813216 | ADK11: 0.04493155304 | ADL11: 0.04493068454 | ADM11: 0.04480675002 | ADN11: 0.04479347688 | ADO11: 0.04485836944 | ADP11: 0.04484753423 | ADQ11: 0.04495124846 | ADR11: 0.04502170654 | ADS11: 0.0450840246 | ADT11: 0.04504755716 | ADU11: 0.04505218589 | ADV11: 0.04496018052 | ADW11: 0.04500430897 | ADX11: 0.04501079197 | ADY11: 0.04506405334 | ADZ11: 0.04503171028 | AEA11: 0.04517934465 | AEB11: 0.04517975369 | AEC11: 0.04514237513 | AED11: 0.04515214694 | AEE11: 0.04529800895 | AEF11: 0.04532347997 | AEG11: 0.0452627715 | AEH11: 0.04528183623 | AEI11: 0.04538783146 | AEJ11: 0.04529068533 | AEK11: 0.04532655533 | AEL11: 0.04529086062 | AEM11: 0.04533167608 | AEN11: 0.04530081324 | AEO11: 0.04521649231 | AEP11: 0.04527823107 | AEQ11: 0.04524751596 | AER11: 0.04516769616 | AES11: 0.04524014379 | AET11: 0.04519326071 | AEU11: 0.04510446343 | AEV11: 0.04519512535 | AEW11: 0.04517895002 | AEX11: 0.04515476145 | AEY11: 0.04518203527 | AEZ11: 0.04514869948 | AFA11: 0.0453421338 | AFB11: 0.04528937405 | AFC11: 0.04527961053 | AFD11: 0.04525366804 | AFE11: 0.04522781298 | AFF11: 0.04535113033 | AFG11: 0.04530975533 | AFH11: 0.04525050775 | AFI11: 0.04541076717 | AFJ11: 0.04525548671 | AFK11: 0.04519669029 | AFL11: 0.0452219652 | AFM11: 0.04523583767 | AFN11: 0.045167824 | AFO11: 0.04510987506 | AFP11: 0.04516063854 | AFQ11: 0.04517429256 | AFR11: 0.04528265917 | AFS11: 0.04524256301 | AFT11: 0.04524365814 | AFU11: 0.04528212036 | AFV11: 0.04518760673 | AFW11: 0.0451773099 | AFX11: 0.0451891634 | AFY11: 0.04524059311 | AFZ11: 0.04517263032 | AGA11: 0.0451949289 | AGB11: 0.04518237469 | AGC11: 0.04525301274 | AGD11: 0.04533846396 | AGE11: 0.04538702668 | AGF11: 0.04549980154 | AGG11: 0.04547384606 | AGH11: 0.04552306107 | AGI11: 0.04558466701 | AGJ11: 0.04561155689 | AGK11: 0.04571045352 | AGL11: 0.04565396014 | AGM11: 0.0457122881 | AGN11: 0.04580644237 | AGO11: 0.04573897725 | AGP11: 0.0457964026 | AGQ11: 0.04583667109 | AGR11: 0.0457462766 | AGS11: 0.04577593761 | AGT11: 0.04576131819 | AGU11: 0.0457745323 | AGV11: 0.04570234205 | AGW11: 0.04581709635 | AGX11: 0.04588585437 | AGY11: 0.04601811927 | AGZ11: 0.04607436705 | AHA11: 0.04611333977 | AHB11: 0.04598662006 | AHC11: 0.04608024722 | AHD11: 0.04615072654 | AHE11: 0.04618666135 | AHF11: 0.0464004708 | AHG11: 0.04643236549 | AHH11: 0.04641174546 | AHI11: 0.04640659993 | AHJ11: 0.04639228684 | AHK11: 0.0463574621 | AHL11: 0.04634466689 | AHM11: 0.04641245402 | AHN11: 0.04642000067 | AHO11: 0.04633183698 | AHP11: 0.04625214889 | AHQ11: 0.04621777824 | AHR11: 0.04632536175 | AHS11: 0.04621158802 | AHT11: 0.04621041603 | AHU11: 0.04624318701 | AHV11: 0.04619523352 | AHW11: 0.04618257454 | AHX11: 0.0462001027 | AHY11: 0.04613692693 | AHZ11: 0.04605648992 | AIA11: 0.04601504514 | AIB11: 0.04603297239 | AIC11: 0.04616907608 | AID11: 0.04622887267 | AIE11: 0.04617193449 | AIF11: 0.04614759989 | AIG11: 0.04605094547 | AIH11: 0.04605939455 | AII11: 0.04600491359 | AIJ11: 0.04590012585 | AIK11: 0.04590607304 | AIL11: 0.04585588163 | AIM11: 0.04581990978 | AIN11: 0.04578745752 | AIO11: 0.04576160783 | AIP11: 0.04578264753 | AIQ11: 0.04577520299 | AIR11: 0.0458043987 | AIS11: 0.04569293081 | AIT11: 0.0457356141 | AIU11: 0.04560050188 | AIV11: 0.04554766195 | AIW11: 0.045513115 | AIX11: 0.04549234108 | AIY11: 0.04539757052 | AIZ11: 0.04533419642 | AJA11: 0.04530752188 | AJB11: 0.04529673883 | AJC11: 0.04526681373 | AJD11: 0.04515775301 | AJE11: 0.04525050951 | AJF11: 0.04527555141 | AJG11: 0.0453162091 | AJH11: 0.04534154096 | AJI11: 0.04527912646 | AJJ11: 0.04528109306 | AJK11: 0.04537902613 | AJL11: 0.0454699653 | AJM11: 0.04549470376 | AJN11: 0.04547091195 | AJO11: 0.04559796043 | AJP11: 0.04573666059 | AJQ11: 0.04570830925 | AJR11: 0.04577101529 | AJS11: 0.04589229982 | AJT11: 0.04583510044 | AJU11: 0.04586925943 | AJV11: 0.04596021025 | AJW11: 0.04601048066 | AJX11: 0.04600103674 | AJY11: 0.04585361277 | AJZ11: 0.04580243834 | AKA11: 0.0458700334 | AKB11: 0.04590724035 | AKC11: 0.04590209578 | AKD11: 0.04589699361 | AKE11: 0.04596358809 | AKF11: 0.04602400558 | AKG11: 0.04602042016 | AKH11: 0.04611894061 | AKI11: 0.04616721616 | AKJ11: 0.04620894608 | AKK11: 0.04617948362 | AKL11: 0.04616875583 | AKM11: 0.04618723455 | AKN11: 0.04616204973 | AKO11: 0.04628849123 | AKP11: 0.04624839608 | AKQ11: 0.04623423016 | AKR11: 0.04630120186 | AKS11: 0.0462383042 | AKT11: 0.04626701867 | AKU11: 0.04638394762 | AKV11: 0.04647053431 | AKW11: 0.0465050625 | AKX11: 0.04652399081 | AKY11: 0.04647031387 | AKZ11: 0.04659479195 | ALA11: 0.04650369219 | ALB11: 0.04644594528 | ALC11: 0.04639586061 | ALD11: 0.04637372203 | ALE11: 0.04644878472 | ALF11: 0.04645363698 | ALG11: 0.04642164087 | ALH11: 0.04642476503 | ALI11: 0.0464036534 | ALJ11: 0.04643958104 | ALK11: 0.04643462122 | ALL11: 0.04629058661 | ALM11: 0.04633110319 | ALN11: 0.0462716334 | ALO11: 0.04629481529 | ALP11: 0.0462732122 | ALQ11: 0.04634211806
A12: Swap Type = Payer | B12: TRUE | D12: Pfad 8 | E12: 0.04 | F12: 0.04000034304 | G12: 0.03992843468 | H12: 0.03995024537 | I12: 0.03993034793 | J12: 0.03999147407 | K12: 0.03997638142 | L12: 0.04002136944 | M12: 0.0400395981 | N12: 0.04006311845 | O12: 0.0401091953 | P12: 0.04006219572 | Q12: 0.04001315796 | R12: 0.03992004977 | S12: 0.04001484868 | T12: 0.03998877289 | U12: 0.04003356472 | V12: 0.04006289551 | W12: 0.04018106241 | X12: 0.04012210799 | Y12: 0.04010566506 | Z12: 0.04008478282 | AA12: 0.04019554863 | AB12: 0.04024351676 | AC12: 0.04027669216 | AD12: 0.04018603144 | AE12: 0.04023809235 | AF12: 0.04024293222 | AG12: 0.04013175599 | AH12: 0.04012402612 | AI12: 0.04018993387 | AJ12: 0.04008091989 | AK12: 0.0401835211 | AL12: 0.04025499361 | AM12: 0.04031860677 | AN12: 0.04028965638 | AO12: 0.04029863748 | AP12: 0.04021715478 | AQ12: 0.04026375778 | AR12: 0.04027494104 | AS12: 0.04031194979 | AT12: 0.04041136146 | AU12: 0.04043137487 | AV12: 0.04059543455 | AW12: 0.04071280091 | AX12: 0.0407853612 | AY12: 0.04077678219 | AZ12: 0.04083070044 | BA12: 0.04077793691 | BB12: 0.04071424214 | BC12: 0.0406837547 | BD12: 0.04059894104 | BE12: 0.04063814637 | BF12: 0.04061083693 | BG12: 0.04065165741 | BH12: 0.04062678603 | BI12: 0.04062856762 | BJ12: 0.04069065335 | BK12: 0.0406654329 | BL12: 0.04073640817 | BM12: 0.04080860685 | BN12: 0.04097692047 | BO12: 0.0408977081 | BP12: 0.04098570806 | BQ12: 0.04097631821 | BR12: 0.04095972335 | BS12: 0.04085362183 | BT12: 0.04093341211 | BU12: 0.04097260745 | BV12: 0.04101615014 | BW12: 0.04091582249 | BX12: 0.04088207675 | BY12: 0.04095146581 | BZ12: 0.04093647588 | CA12: 0.04087205335 | CB12: 0.04083900495 | CC12: 0.04081772225 | CD12: 0.04068187058 | CE12: 0.04063194176 | CF12: 0.04065948424 | CG12: 0.04067757277 | CH12: 0.0406198906 | CI12: 0.04057122952 | CJ12: 0.04062293054 | CK12: 0.04063821077 | CL12: 0.04074391794 | CM12: 0.04071222317 | CN12: 0.04071867875 | CO12: 0.04075839444 | CP12: 0.04067454349 | CQ12: 0.04067069848 | CR12: 0.04068748433 | CS12: 0.04058293091 | CT12: 0.04064139445 | CU12: 0.04066776324 | CV12: 0.04062850221 | CW12: 0.0406565599 | CX12: 0.04074143476 | CY12: 0.04079190063 | CZ12: 0.04078781992 | DA12: 0.04068881631 | DB12: 0.04064515418 | DC12: 0.04061579036 | DD12: 0.04065810487 | DE12: 0.0407547833 | DF12: 0.04070785956 | DG12: 0.040749668 | DH12: 0.04084179764 | DI12: 0.04078454226 | DJ12: 0.04084361102 | DK12: 0.04088536745 | DL12: 0.0408082747 | DM12: 0.04083977247 | DN12: 0.04083036641 | DO12: 0.04084704537 | DP12: 0.04078434782 | DQ12: 0.04075977439 | DR12: 0.04073160965 | DS12: 0.04072253584 | DT12: 0.04072421606 | DU12: 0.04067244981 | DV12: 0.04070593421 | DW12: 0.0406774735 | DX12: 0.04073617221 | DY12: 0.04077576189 | DZ12: 0.04095398969 | EA12: 0.04098728406 | EB12: 0.04097489286 | EC12: 0.0409754421 | ED12: 0.04096877221 | EE12: 0.04094083591 | EF12: 0.04090417058 | EG12: 0.04097219698 | EH12: 0.04087943581 | EI12: 0.04080318146 | EJ12: 0.04073550776 | EK12: 0.0407103533 | EL12: 0.04081585572 | EM12: 0.04071678025 | EN12: 0.04072051911 | EO12: 0.04075563273 | EP12: 0.04071616244 | EQ12: 0.04062511523 | ER12: 0.04068693301 | ES12: 0.04067346704 | ET12: 0.04067952314 | EU12: 0.04062372831 | EV12: 0.04070946689 | EW12: 0.04068857665 | EX12: 0.04072043 | EY12: 0.0406738 | EZ12: 0.04065859134 | FA12: 0.04057556917 | FB12: 0.04064428068 | FC12: 0.04060026139 | FD12: 0.04051824781 | FE12: 0.04052748489 | FF12: 0.04048621752 | FG12: 0.04045953473 | FH12: 0.04056308587 | FI12: 0.04054604258 | FJ12: 0.04057218031 | FK12: 0.04057168651 | FL12: 0.04060320994 | FM12: 0.04050552485 | FN12: 0.04054929473 | FO12: 0.04057663537 | FP12: 0.04060172483 | FQ12: 0.04067280912 | FR12: 0.04059740468 | FS12: 0.04064625286 | FT12: 0.04059735662 | FU12: 0.04050941963 | FV12: 0.04050871631 | FW12: 0.04056719797 | FX12: 0.04047065505 | FY12: 0.04048795319 | FZ12: 0.0405158552 | GA12: 0.04056025104 | GB12: 0.0405874795 | GC12: 0.04053471474 | GD12: 0.04054106554 | GE12: 0.04063787066 | GF12: 0.04072756629 | GG12: 0.04077478159 | GH12: 0.04075856646 | GI12: 0.04088155862 | GJ12: 0.04089405519 | GK12: 0.04087376552 | GL12: 0.04093243971 | GM12: 0.04104924566 | GN12: 0.04108549847 | GO12: 0.04103413651 | GP12: 0.04104919379 | GQ12: 0.04113031526 | GR12: 0.04105736527 | GS12: 0.04109685633 | GT12: 0.04107875062 | GU12: 0.04110566134 | GV12: 0.04114411092 | GW12: 0.04114412757 | GX12: 0.04114618278 | GY12: 0.04121269889 | GZ12: 0.04127323532 | HA12: 0.04127717382 | HB12: 0.04137092033 | HC12: 0.04142003626 | HD12: 0.04146420442 | HE12: 0.04144283927 | HF12: 0.04143662853 | HG12: 0.04145791071 | HH12: 0.04144042365 | HI12: 0.04156272527 | HJ12: 0.04153166818 | HK12: 0.04152273565 | HL12: 0.04151041086 | HM12: 0.04150082444 | HN12: 0.04160132857 | HO12: 0.04156830894 | HP12: 0.04152168465 | HQ12: 0.04163746285 | HR12: 0.04152376074 | HS12: 0.04147939734 | HT12: 0.0414995106 | HU12: 0.04142072175 | HV12: 0.04140862833 | HW12: 0.04138393827 | HX12: 0.04137015952 | HY12: 0.04144499729 | HZ12: 0.0414554111 | IA12: 0.04137277056 | IB12: 0.04129667241 | IC12: 0.04128376905 | ID12: 0.04132156522 | IE12: 0.04120924375 | IF12: 0.04108367818 | IG12: 0.04112575176 | IH12: 0.04107670917 | II12: 0.04110413105 | IJ12: 0.04108805617 | IK12: 0.04115817076 | IL12: 0.04123640625 | IM12: 0.04128282976 | IN12: 0.04137872263 | IO12: 0.04135670393 | IP12: 0.04139664989 | IQ12: 0.04145069244 | IR12: 0.04160182437 | IS12: 0.04168718225 | IT12: 0.0416470224 | IU12: 0.0416930637 | IV12: 0.04164505421 | IW12: 0.04166447023 | IX12: 0.04157437247 | IY12: 0.04166854323 | IZ12: 0.04164027737 | JA12: 0.04168272715 | JB12: 0.04170809131 | JC12: 0.0418248438 | JD12: 0.04186291147 | JE12: 0.04184553934 | JF12: 0.04189847755 | JG12: 0.04200704906 | JH12: 0.04205237068 | JI12: 0.04208269191 | JJ12: 0.04199091623 | JK12: 0.04206380582 | JL12: 0.04212956732 | JM12: 0.04216809831 | JN12: 0.04230707476 | JO12: 0.04232740095 | JP12: 0.04232066412 | JQ12: 0.04242158033 | JR12: 0.04249057762 | JS12: 0.04255188992 | JT12: 0.04252107803 | JU12: 0.04252978041 | JV12: 0.04244537422 | JW12: 0.042489231 | JX12: 0.04249775217 | JY12: 0.04253144984 | JZ12: 0.04250571832 | KA12: 0.04252284079 | KB12: 0.0426811785 | KC12: 0.04279740536 | KD12: 0.04286786897 | KE12: 0.04285646628 | KF12: 0.04288641574 | KG12: 0.04283021311 | KH12: 0.04276368923 | KI12: 0.04273072977 | KJ12: 0.04275097418 | KK12: 0.04285651494 | KL12: 0.04291810928 | KM12: 0.0428753983 | KN12: 0.0428737896 | KO12: 0.04279804406 | KP12: 0.04285801915 | KQ12: 0.04282879328 | KR12: 0.04289747284 | KS12: 0.04296783345 | KT12: 0.04309872687 | KU12: 0.04301598556 | KV12: 0.0431011436 | KW12: 0.04306965116 | KX12: 0.04305250061 | KY12: 0.0429436505 | KZ12: 0.04302273756 | LA12: 0.04305913569 | LB12: 0.04310022747 | LC12: 0.04299803988 | LD12: 0.04296293232 | LE12: 0.04294326696 | LF12: 0.04292580371 | LG12: 0.04286049552 | LH12: 0.04280696901 | LI12: 0.04278295638 | LJ12: 0.04264707001 | LK12: 0.04263710293 | LL12: 0.04254616553 | LM12: 0.04262597241 | LN12: 0.04256677753 | LO12: 0.04251632892 | LP12: 0.04256578265 | LQ12: 0.04257694274 | LR12: 0.0426811108 | LS12: 0.04264809224 | LT12: 0.04265315522 | LU12: 0.04268998194 | LV12: 0.04260306093 | LW12: 0.04259813483 | LX12: 0.04261393023 | LY12: 0.04250709715 | LZ12: 0.04256523502 | MA12: 0.04259048272 | MB12: 0.04254969284 | MC12: 0.04257461245 | MD12: 0.04265833003 | ME12: 0.04270737822 | MF12: 0.04270111969 | MG12: 0.04260145431 | MH12: 0.04255450793 | MI12: 0.04261485021 | MJ12: 0.0426393302 | MK12: 0.04263910612 | ML12: 0.04264930731 | MM12: 0.04269092333 | MN12: 0.04278161449 | MO12: 0.04272215273 | MP12: 0.04278006246 | MQ12: 0.04287937884 | MR12: 0.04280124719 | MS12: 0.04282960725 | MT12: 0.04286630954 | MU12: 0.04299538063 | MV12: 0.04292902883 | MW12: 0.04290297138 | MX12: 0.04287276757 | MY12: 0.04299674991 | MZ12: 0.04305044633 | NA12: 0.04299486986 | NB12: 0.04302674025 | NC12: 0.0431137438 | ND12: 0.04316830917 | NE12: 0.04320650336 | NF12: 0.04321995538 | NG12: 0.04318099142 | NH12: 0.04329092594 | NI12: 0.04322002941 | NJ12: 0.04321203049 | NK12: 0.04318001379 | NL12: 0.04314108492 | NM12: 0.04313814548 | NN12: 0.04304254759 | NO12: 0.04296261186 | NP12: 0.04289216429 | NQ12: 0.04286541071 | NR12: 0.04297010006 | NS12: 0.04286801516 | NT12: 0.04286858832 | NU12: 0.04299752959 | NV12: 0.04295419297 | NW12: 0.0428608134 | NX12: 0.04292031557 | NY12: 0.04290558835 | NZ12: 0.04283333045 | OA12: 0.0427974046 | OB12: 0.04269802714 | OC12: 0.0428226876 | OD12: 0.04278554798 | OE12: 0.04273657279 | OF12: 0.04272071585 | OG12: 0.042635311 | OH12: 0.0427022255 | OI12: 0.04265636058 | OJ12: 0.04257446591 | OK12: 0.04257971909 | OL12: 0.04253543745 | OM12: 0.04250731749 | ON12: 0.04260773172 | OO12: 0.04258979174 | OP12: 0.04261514874 | OQ12: 0.04261341161 | OR12: 0.0426419975 | OS12: 0.04254134751 | OT12: 0.04258877139 | OU12: 0.04247031875 | OV12: 0.04242662754 | OW12: 0.04239966144 | OX12: 0.04253536196 | OY12: 0.04245464994 | OZ12: 0.04239772083 | PA12: 0.04237448007 | PB12: 0.04237607869 | PC12: 0.04235551663 | PD12: 0.04238693536 | PE12: 0.04240285383 | PF12: 0.04242833737 | PG12: 0.04247254493 | PH12: 0.04249654525 | PI12: 0.04244175133 | PJ12: 0.04244565146 | PK12: 0.04254176603 | PL12: 0.0426300341 | PM12: 0.04267493295 | PN12: 0.04265758785 | PO12: 0.0427791161 | PP12: 0.04276563246 | PQ12: 0.04263926477 | PR12: 0.04257071575 | PS12: 0.04259381027 | PT12: 0.04254509057 | PU12: 0.04261715022 | PV12: 0.04270632267 | PW12: 0.04275769511 | PX12: 0.04275145594 | PY12: 0.04262776564 | PZ12: 0.04258119575 | QA12: 0.04264765305 | QB12: 0.04268327206 | QC12: 0.04278854145 | QD12: 0.04279068262 | QE12: 0.04285515548 | QF12: 0.04286495378 | QG12: 0.04286945191 | QH12: 0.04292941193 | QI12: 0.04297615395 | QJ12: 0.04301906998 | QK12: 0.04299732161 | QL12: 0.04298832185 | QM12: 0.04313566761 | QN12: 0.04306666198 | QO12: 0.04303236181 | QP12: 0.0429966175 | QQ12: 0.04314193754 | QR12: 0.04320555852 | QS12: 0.04314821464 | QT12: 0.04317973041 | QU12: 0.04328578998 | QV12: 0.04335965678 | QW12: 0.04339698712 | QX12: 0.04341591009 | QY12: 0.04345779635 | QZ12: 0.04357724349 | RA12: 0.04349613943 | RB12: 0.04348214298 | RC12: 0.04345357442 | RD12: 0.04343907386 | RE12: 0.04351216941 | RF12: 0.04352116146 | RG12: 0.04343525994 | RH12: 0.0433564154 | RI12: 0.04334258982 | RJ12: 0.04345537885 | RK12: 0.04348388944 | RL12: 0.04348834574 | RM12: 0.04349706841 | RN12: 0.04344860763 | RO12: 0.04344082627 | RP12: 0.04350797197 | RQ12: 0.04348431528 | RR12: 0.04340551249 | RS12: 0.04336685027 | RT12: 0.04338649953 | RU12: 0.04354702051 | RV12: 0.04360753255 | RW12: 0.04355130884 | RX12: 0.0435244059 | RY12: 0.04353992768 | RZ12: 0.04355620106 | SA12: 0.04350080591 | SB12: 0.04345148847 | SC12: 0.0434664926 | SD12: 0.04337822522 | SE12: 0.04347172896 | SF12: 0.04344112498 | SG12: 0.04341252167 | SH12: 0.04343287485 | SI12: 0.04342467309 | SJ12: 0.04350857855 | SK12: 0.04356085422 | SL12: 0.04361251317 | SM12: 0.04363622588 | SN12: 0.0436664399 | SO12: 0.0437377954 | SP12: 0.0437197763 | SQ12: 0.04376939628 | SR12: 0.04368873577 | SS12: 0.04366500073 | ST12: 0.04365577385 | SU12: 0.04371830084 | SV12: 0.04360561162 | SW12: 0.04370465018 | SX12: 0.04377135686 | SY12: 0.04383062478 | SZ12: 0.04386273932 | TA12: 0.04387201977 | TB12: 0.04387714061 | TC12: 0.04391864151 | TD12: 0.04401441394 | TE12: 0.04406507008 | TF12: 0.04395778017 | TG12: 0.04409355843 | TH12: 0.04409884706 | TI12: 0.044067999 | TJ12: 0.04407749896 | TK12: 0.04420950279 | TL12: 0.04415028314 | TM12: 0.04419057874 | TN12: 0.04420714929 | TO12: 0.04430100954 | TP12: 0.04421295082 | TQ12: 0.04425034452 | TR12: 0.04422108158 | TS12: 0.04425438946 | TT12: 0.04422335813 | TU12: 0.04422048985 | TV12: 0.04421100498 | TW12: 0.04417894464 | TX12: 0.04424547387 | TY12: 0.04431411329 | TZ12: 0.04443349803 | UA12: 0.04434885262 | UB12: 0.04439277368 | UC12: 0.04443940734 | UD12: 0.04443366822 | UE12: 0.04445733552 | UF12: 0.0444296702 | UG12: 0.0445684955 | UH12: 0.04452431265 | UI12: 0.0445134662 | UJ12: 0.04449149693 | UK12: 0.04443094467 | UL12: 0.04454379019 | UM12: 0.04450437769 | UN12: 0.04451658307 | UO12: 0.04465266715 | UP12: 0.04467724597 | UQ12: 0.04462264498 | UR12: 0.04464457775 | US12: 0.04455081059 | UT12: 0.04449023702 | UU12: 0.04443814352 | UV12: 0.0444852349 | UW12: 0.04449234901 | UX12: 0.04459486904 | UY12: 0.04456063404 | UZ12: 0.04456430584 | VA12: 0.04452626144 | VB12: 0.04455826446 | VC12: 0.04443736642 | VD12: 0.04443659415 | VE12: 0.04447227975 | VF12: 0.04440274497 | VG12: 0.04429171717 | VH12: 0.04426392084 | VI12: 0.0443367942 | VJ12: 0.04433547447 | VK12: 0.0442656742 | VL12: 0.04435849064 | VM12: 0.04432885048 | VN12: 0.0443647252 | VO12: 0.04435494693 | VP12: 0.04440275278 | VQ12: 0.0444852128 | VR12: 0.04444133052 | VS12: 0.04449333466 | VT12: 0.04458510646 | VU12: 0.0445304812 | VV12: 0.04458651491 | VW12: 0.04468510171 | VX12: 0.04462356582 | VY12: 0.04466420991 | VZ12: 0.04468862693 | WA12: 0.04468222826 | WB12: 0.04471559583 | WC12: 0.04459116574 | WD12: 0.04463594037 | WE12: 0.04466238095 | WF12: 0.04469379612 | WG12: 0.04471995142 | WH12: 0.04462733669 | WI12: 0.04467935278 | WJ12: 0.04474545403 | WK12: 0.04463474651 | WL12: 0.04477457611 | WM12: 0.04483812186 | WN12: 0.04483223849 | WO12: 0.0448267428 | WP12: 0.04489052029 | WQ12: 0.04494900316 | WR12: 0.04491497432 | WS12: 0.04493071929 | WT12: 0.04484293043 | WU12: 0.04488191827 | WV12: 0.04488644273 | WW12: 0.0449117606 | WX12: 0.0448865779 | WY12: 0.04502696294 | WZ12: 0.04518351099 | XA12: 0.04515404535 | XB12: 0.04522156221 | XC12: 0.0452039261 | XD12: 0.04524033871 | XE12: 0.04517604533 | XF12: 0.04510439201 | XG12: 0.04506618048 | XH12: 0.04497747319 | XI12: 0.04501805091 | XJ12: 0.04498837226 | XK12: 0.04494256186 | XL12: 0.04494086772 | XM12: 0.0448636595 | XN12: 0.04492229037 | XO12: 0.0448832175 | XP12: 0.04479921393 | XQ12: 0.04486841745 | XR12: 0.04482087302 | XS12: 0.04480035104 | XT12: 0.04484717553 | XU12: 0.0448129656 | XV12: 0.04479485683 | XW12: 0.04468153795 | XX12: 0.0446550037 | XY12: 0.04468614932 | XZ12: 0.0446465566 | YA12: 0.04454483786 | YB12: 0.04451269924 | YC12: 0.04449337649 | YD12: 0.04460449996 | YE12: 0.04454317136 | YF12: 0.044485338 | YG12: 0.0444558625 | YH12: 0.04431608736 | YI12: 0.04431220759 | YJ12: 0.04433161918 | YK12: 0.04434861233 | YL12: 0.04436367768 | YM12: 0.04441718861 | YN12: 0.04442549587 | YO12: 0.04437575562 | YP12: 0.04437427045 | YQ12: 0.04434234572 | YR12: 0.04434774063 | YS12: 0.04432887561 | YT12: 0.04436839474 | YU12: 0.04436567674 | YV12: 0.04419606954 | YW12: 0.04408228813 | YX12: 0.04402194181 | YY12: 0.04404968546 | YZ12: 0.04402688052 | ZA12: 0.04410200744 | ZB12: 0.04418659557 | ZC12: 0.04423695547 | ZD12: 0.04422673164 | ZE12: 0.04412966595 | ZF12: 0.0440754996 | ZG12: 0.04413528296 | ZH12: 0.04415692551 | ZI12: 0.04424937865 | ZJ12: 0.04426541224 | ZK12: 0.044319171 | ZL12: 0.04441695383 | ZM12: 0.04435506813 | ZN12: 0.04435327233 | ZO12: 0.04445800544 | ZP12: 0.04438322775 | ZQ12: 0.04443160599 | ZR12: 0.04446609522 | ZS12: 0.04459646275 | ZT12: 0.04452323352 | ZU12: 0.04449930912 | ZV12: 0.04446616015 | ZW12: 0.0445867083 | ZX12: 0.04463424173 | ZY12: 0.04466843005 | ZZ12: 0.04470202044 | AAA12: 0.04478152634 | AAB12: 0.04485266232 | AAC12: 0.04489329246 | AAD12: 0.04506165758 | AAE12: 0.04508106915 | AAF12: 0.04519229981 | AAG12: 0.04512050306 | AAH12: 0.04510986367 | AAI12: 0.04506764088 | AAJ12: 0.04502569448 | AAK12: 0.0450320649 | AAL12: 0.04493358478 | AAM12: 0.04498050029 | AAN12: 0.04498703905 | AAO12: 0.04495744065 | AAP12: 0.04506602815 | AAQ12: 0.04508212956 | AAR12: 0.04507564536 | AAS12: 0.04520906405 | AAT12: 0.04515352934 | AAU12: 0.04513697926 | AAV12: 0.04519407079 | AAW12: 0.04517869632 | AAX12: 0.04510075786 | AAY12: 0.04505901631 | AAZ12: 0.04508060431 | ABA12: 0.04519966874 | ABB12: 0.04526550478 | ABC12: 0.04521222137 | ABD12: 0.04519485425 | ABE12: 0.04521018005 | ABF12: 0.04520800135 | ABG12: 0.04517002957 | ABH12: 0.04507537702 | ABI12: 0.04515198201 | ABJ12: 0.04510077813 | ABK12: 0.04500144041 | ABL12: 0.04509526511 | ABM12: 0.04508078925 | ABN12: 0.04505148259 | ABO12: 0.044922644 | ABP12: 0.04500828567 | ABQ12: 0.04504669866 | ABR12: 0.04509370176 | ABS12: 0.04497324609 | ABT12: 0.04493117144 | ABU12: 0.04500489209 | ABV12: 0.04498117483 | ABW12: 0.04490329284 | ABX12: 0.04486116765 | ABY12: 0.04483073946 | ABZ12: 0.04483108023 | ACA12: 0.04488629151 | ACB12: 0.04478045144 | ACC12: 0.04486682969 | ACD12: 0.04489129228 | ACE12: 0.04494209525 | ACF12: 0.04499743385 | ACG12: 0.04500752362 | ACH12: 0.04512163123 | ACI12: 0.04522258934 | ACJ12: 0.0453102359 | ACK12: 0.04535377442 | ACL12: 0.0452503081 | ACM12: 0.04537301764 | ACN12: 0.04538719923 | ACO12: 0.04525076641 | ACP12: 0.04531684257 | ACQ12: 0.04542792318 | ACR12: 0.04537596115 | ACS12: 0.0454048588 | ACT12: 0.04541321332 | ACU12: 0.0454837413 | ACV12: 0.04547141896 | ACW12: 0.04551126284 | ACX12: 0.04545438619 | ACY12: 0.0454676771 | ACZ12: 0.04542894336 | ADA12: 0.04542212036 | ADB12: 0.04536189466 | ADC12: 0.0454235956 | ADD12: 0.04556100031 | ADE12: 0.04557283362 | ADF12: 0.04563487903 | ADG12: 0.04567653553 | ADH12: 0.04558206757 | ADI12: 0.04561039558 | ADJ12: 0.04559251722 | ADK12: 0.04560485186 | ADL12: 0.04558611312 | ADM12: 0.04571080395 | ADN12: 0.04568233966 | ADO12: 0.04566435461 | ADP12: 0.04564855312 | ADQ12: 0.04558262681 | ADR12: 0.04561598973 | ADS12: 0.04557542472 | ADT12: 0.04563741974 | ADU12: 0.04574444067 | ADV12: 0.04575633948 | ADW12: 0.04570636944 | ADX12: 0.04568699512 | ADY12: 0.04568036007 | ADZ12: 0.04566231336 | AEA12: 0.04562197136 | AEB12: 0.04561214027 | AEC12: 0.04568418991 | AED12: 0.04569420407 | AEE12: 0.04559856082 | AEF12: 0.04551569006 | AEG12: 0.04547752088 | AEH12: 0.04550745476 | AEI12: 0.04538700757 | AEJ12: 0.04538422143 | AEK12: 0.04541777145 | AEL12: 0.04535608659 | AEM12: 0.04524623673 | AEN12: 0.04521619027 | AEO12: 0.0451927388 | AEP12: 0.04519143912 | AEQ12: 0.04512317493 | AER12: 0.04521381779 | AES12: 0.04518298416 | AET12: 0.04524892381 | AEU12: 0.04518923096 | AEV12: 0.04516173142 | AEW12: 0.04506216805 | AEX12: 0.04506820581 | AEY12: 0.04501205331 | AEZ12: 0.04500797983 | AFA12: 0.04501044661 | AFB12: 0.04495707157 | AFC12: 0.04492106518 | AFD12: 0.04488581546 | AFE12: 0.04492468404 | AFF12: 0.04494985525 | AFG12: 0.04494433404 | AFH12: 0.04497605778 | AFI12: 0.04485433642 | AFJ12: 0.04489686572 | AFK12: 0.04492349098 | AFL12: 0.04495325192 | AFM12: 0.04497763871 | AFN12: 0.04488736725 | AFO12: 0.04493875151 | AFP12: 0.04500377804 | AFQ12: 0.04497376591 | AFR12: 0.04496821324 | AFS12: 0.04493969685 | AFT12: 0.04482227086 | AFU12: 0.04491897884 | AFV12: 0.04494840596 | AFW12: 0.04499643267 | AFX12: 0.04502006741 | AFY12: 0.04495410373 | AFZ12: 0.04495470816 | AGA12: 0.04506297243 | AGB12: 0.04515875184 | AGC12: 0.04518212906 | AGD12: 0.04515804822 | AGE12: 0.04529518362 | AGF12: 0.04544588793 | AGG12: 0.045417649 | AGH12: 0.04548340161 | AGI12: 0.04561185429 | AGJ12: 0.04564904853 | AGK12: 0.0455843739 | AGL12: 0.04568119053 | AGM12: 0.04573593182 | AGN12: 0.04572412364 | AGO12: 0.04572244163 | AGP12: 0.04566537018 | AGQ12: 0.04573748173 | AGR12: 0.04577887776 | AGS12: 0.04577147446 | AGT12: 0.04576975457 | AGU12: 0.04583979123 | AGV12: 0.04590237195 | AGW12: 0.04590293233 | AGX12: 0.04601074704 | AGY12: 0.04591821456 | AGZ12: 0.04596416584 | AHA12: 0.04592981038 | AHB12: 0.04591277451 | AHC12: 0.04579919094 | AHD12: 0.04577265645 | AHE12: 0.04591569188 | AHF12: 0.04587655169 | AHG12: 0.04577507904 | AHH12: 0.04575061356 | AHI12: 0.04568268295 | AHJ12: 0.04571522651 | AHK12: 0.04567136878 | AHL12: 0.04568092688 | AHM12: 0.04571982294 | AHN12: 0.04573805721 | AHO12: 0.04568129607 | AHP12: 0.04581658561 | AHQ12: 0.04572266027 | AHR12: 0.04566467644 | AHS12: 0.04561257004 | AHT12: 0.0455931991 | AHU12: 0.04558927188 | AHV12: 0.0455966335 | AHW12: 0.04556454408 | AHX12: 0.04556913063 | AHY12: 0.04555058637 | AHZ12: 0.04558780963 | AIA12: 0.04558482213 | AIB12: 0.0454235902 | AIC12: 0.04530922576 | AID12: 0.04530772094 | AIE12: 0.04517743255 | AIF12: 0.04525079003 | AIG12: 0.04521923704 | AIH12: 0.04521285922 | AII12: 0.0451265967 | AIJ12: 0.0452288991 | AIK12: 0.04519803822 | AIL12: 0.04524015502 | AIM12: 0.04522008615 | AIN12: 0.04526641974 | AIO12: 0.04528221736 | AIP12: 0.04529841052 | AIQ12: 0.04534797366 | AIR12: 0.04528989523 | AIS12: 0.04522789183 | AIT12: 0.04522948556 | AIU12: 0.04533310068 | AIV12: 0.04529534083 | AIW12: 0.04534193491 | AIX12: 0.0453737271 | AIY12: 0.04550180402 | AIZ12: 0.0454274189 | AJA12: 0.04526774714 | AJB12: 0.04532122972 | AJC12: 0.04534550387 | AJD12: 0.04538181779 | AJE12: 0.04545911642 | AJF12: 0.04535140353 | AJG12: 0.04540520366 | AJH12: 0.0453999974 | AJI12: 0.04526159592 | AJJ12: 0.045248912 | AJK12: 0.045317536 | AJL12: 0.04530657787 | AJM12: 0.04541468227 | AJN12: 0.04548657241 | AJO12: 0.04555164318 | AJP12: 0.04551032424 | AJQ12: 0.04551844587 | AJR12: 0.04542099974 | AJS12: 0.0454660299 | AJT12: 0.04547152744 | AJU12: 0.04550372681 | AJV12: 0.04561107398 | AJW12: 0.04577399166 | AJX12: 0.0457774806 | AJY12: 0.04574045881 | AJZ12: 0.0457518222 | AKA12: 0.04590713763 | AKB12: 0.04593909429 | AKC12: 0.04587180979 | AKD12: 0.04588996936 | AKE12: 0.04599814628 | AKF12: 0.0458973172 | AKG12: 0.04593692614 | AKH12: 0.0458991372 | AKI12: 0.04593547818 | AKJ12: 0.04589867119 | AKK12: 0.045811189 | AKL12: 0.04587553297 | AKM12: 0.0458358948 | AKN12: 0.04574272058 | AKO12: 0.04581778785 | AKP12: 0.04576598572 | AKQ12: 0.04566687329 | AKR12: 0.0457574035 | AKS12: 0.04571608584 | AKT12: 0.04570789692 | AKU12: 0.04573249529 | AKV12: 0.04569814886 | AKW12: 0.0457142827 | AKX12: 0.04566314453 | AKY12: 0.04564924335 | AKZ12: 0.04561921011 | ALA12: 0.04559198409 | ALB12: 0.04571910423 | ALC12: 0.04567306036 | ALD12: 0.04560929208 | ALE12: 0.0458231138 | ALF12: 0.04564031131 | ALG12: 0.04557746051 | ALH12: 0.04560071811 | ALI12: 0.0456168031 | ALJ12: 0.04554819163 | ALK12: 0.04548780839 | ALL12: 0.0455416378 | ALM12: 0.04554818604 | ALN12: 0.0455517023 | ALO12: 0.04555006767 | ALP12: 0.04545023044 | ALQ12: 0.04542197785
A13: Strike Rate | B13: 0.0465 | D13: Pfad 9 | E13: 0.04 | F13: 0.04004824719 | G13: 0.03986097742 | H13: 0.03985487536 | I13: 0.03990769663 | J13: 0.0398479361 | K13: 0.03987776081 | L13: 0.03986460261 | M13: 0.03994202417 | N13: 0.04003174719 | O13: 0.04008655859 | P13: 0.04020088812 | Q13: 0.04017806 | R13: 0.04023099036 | S13: 0.04029742154 | T13: 0.04033120805 | U13: 0.04043190526 | V13: 0.04038157308 | W13: 0.04044350483 | X13: 0.04055640685 | Y13: 0.04056909364 | Z13: 0.04056218246 | AA13: 0.0406740835 | AB13: 0.04064237252 | AC13: 0.04069765739 | AD13: 0.04074228233 | AE13: 0.04088475089 | AF13: 0.04093425526 | AG13: 0.04090914037 | AH13: 0.04097744306 | AI13: 0.04111258083 | AJ13: 0.04116939725 | AK13: 0.04121210281 | AL13: 0.04109179887 | AM13: 0.04118555673 | AN13: 0.0412611793 | AO13: 0.04130403655 | AP13: 0.04132531306 | AQ13: 0.04135646754 | AR13: 0.0413439537 | AS13: 0.04134188924 | AT13: 0.04142561457 | AU13: 0.04150007644 | AV13: 0.04145826838 | AW13: 0.04146642873 | AX13: 0.04136660752 | AY13: 0.04142195221 | AZ13: 0.04143453604 | BA13: 0.04147979547 | BB13: 0.04144527307 | BC13: 0.04146922586 | BD13: 0.04150120402 | BE13: 0.04165881215 | BF13: 0.04174292631 | BG13: 0.04173210201 | BH13: 0.04176131708 | BI13: 0.04169991379 | BJ13: 0.0416238596 | BK13: 0.04158531357 | BL13: 0.0416097893 | BM13: 0.04175101395 | BN13: 0.04181816756 | BO13: 0.04176549976 | BP13: 0.04173737332 | BQ13: 0.0417382777 | BR13: 0.04181074523 | BS13: 0.04177745163 | BT13: 0.04186006914 | BU13: 0.04194301953 | BV13: 0.04197222466 | BW13: 0.04186664522 | BX13: 0.04197567771 | BY13: 0.04193423024 | BZ13: 0.04190211443 | CA13: 0.04176173095 | CB13: 0.04185034166 | CC13: 0.04189709704 | CD13: 0.04195009433 | CE13: 0.04181678355 | CF13: 0.04177152549 | CG13: 0.04174171055 | CH13: 0.04172229837 | CI13: 0.04163391426 | CJ13: 0.04157307809 | CK13: 0.04160262639 | CL13: 0.04163954993 | CM13: 0.04157819846 | CN13: 0.04161127496 | CO13: 0.04162968455 | CP13: 0.04155676828 | CQ13: 0.04149513293 | CR13: 0.04155695044 | CS13: 0.04156692481 | CT13: 0.04169013317 | CU13: 0.04164725972 | CV13: 0.04164963976 | CW13: 0.04170086985 | CX13: 0.04159688715 | CY13: 0.04158660827 | CZ13: 0.04160079503 | DA13: 0.04159950912 | DB13: 0.04161017391 | DC13: 0.04163630066 | DD13: 0.04158420925 | DE13: 0.04162205631 | DF13: 0.04160808391 | DG13: 0.04160287523 | DH13: 0.04173357481 | DI13: 0.04171055507 | DJ13: 0.0417709248 | DK13: 0.04177433329 | DL13: 0.04181726933 | DM13: 0.04192963574 | DN13: 0.041870087 | DO13: 0.04188048127 | DP13: 0.04189953689 | DQ13: 0.04182929815 | DR13: 0.04189438569 | DS13: 0.0419059402 | DT13: 0.04180027331 | DU13: 0.04183889688 | DV13: 0.04189128124 | DW13: 0.0420793868 | DX13: 0.04200490857 | DY13: 0.04196996459 | DZ13: 0.04193074809 | EA13: 0.04195060854 | EB13: 0.04199700734 | EC13: 0.04204714408 | ED13: 0.04205090888 | EE13: 0.04210864982 | EF13: 0.0421880633 | EG13: 0.04216910143 | EH13: 0.04220297741 | EI13: 0.04224860507 | EJ13: 0.04222781461 | EK13: 0.04222653461 | EL13: 0.04220960206 | EM13: 0.04217618949 | EN13: 0.04212741047 | EO13: 0.04213229965 | EP13: 0.04201744549 | EQ13: 0.04192224065 | ER13: 0.04184019194 | ES13: 0.04180229087 | ET13: 0.04193139465 | EU13: 0.04180623734 | EV13: 0.04181113535 | EW13: 0.0417613211 | EX13: 0.04185455197 | EY13: 0.04184648726 | EZ13: 0.04185555627 | FA13: 0.04179244254 | FB13: 0.04171024005 | FC13: 0.04166982501 | FD13: 0.0415453955 | FE13: 0.04156674301 | FF13: 0.04151906115 | FG13: 0.0414611358 | FH13: 0.04143167917 | FI13: 0.04133013057 | FJ13: 0.0414090996 | FK13: 0.04135259269 | FL13: 0.04134804634 | FM13: 0.04135684757 | FN13: 0.04130812389 | FO13: 0.04127095914 | FP13: 0.04141276305 | FQ13: 0.04138579259 | FR13: 0.04134654137 | FS13: 0.04134204642 | FT13: 0.04143432785 | FU13: 0.04148999259 | FV13: 0.04154754435 | FW13: 0.04154636886 | FX13: 0.04149029233 | FY13: 0.04145289636 | FZ13: 0.04147749058 | GA13: 0.04148517807 | GB13: 0.04142089487 | GC13: 0.04139697668 | GD13: 0.04137528772 | GE13: 0.04133273483 | GF13: 0.0413735056 | GG13: 0.0413897777 | GH13: 0.04142418256 | GI13: 0.04147367649 | GJ13: 0.04150792072 | GK13: 0.04144256946 | GL13: 0.04144927786 | GM13: 0.04156843404 | GN13: 0.04156626509 | GO13: 0.04151750335 | GP13: 0.04138621932 | GQ13: 0.04136898331 | GR13: 0.04133986262 | GS13: 0.04132780804 | GT13: 0.0412471881 | GU13: 0.04127020649 | GV13: 0.04121105026 | GW13: 0.04129150006 | GX13: 0.04139314448 | GY13: 0.04145081711 | GZ13: 0.04144547653 | HA13: 0.04143407398 | HB13: 0.04138441677 | HC13: 0.04146204886 | HD13: 0.04151274987 | HE13: 0.04163861068 | HF13: 0.04163232859 | HG13: 0.0417100558 | HH13: 0.04173310323 | HI13: 0.04174008501 | HJ13: 0.04171482069 | HK13: 0.04173794205 | HL13: 0.04173890836 | HM13: 0.04178871519 | HN13: 0.04184877408 | HO13: 0.0418771748 | HP13: 0.04179866137 | HQ13: 0.0417548488 | HR13: 0.04171204232 | HS13: 0.04173919936 | HT13: 0.04181847138 | HU13: 0.0417562926 | HV13: 0.04179027428 | HW13: 0.0418108945 | HX13: 0.04183078791 | HY13: 0.04187056266 | HZ13: 0.04189758929 | IA13: 0.04190983691 | IB13: 0.04206191739 | IC13: 0.04196653497 | ID13: 0.04194762364 | IE13: 0.0420386619 | IF13: 0.04198489511 | IG13: 0.04198625292 | IH13: 0.04185219157 | II13: 0.04192550557 | IJ13: 0.04194689641 | IK13: 0.04190336709 | IL13: 0.04192112713 | IM13: 0.04195923168 | IN13: 0.04196978799 | IO13: 0.04200203071 | IP13: 0.04200299215 | IQ13: 0.04199870107 | IR13: 0.04207905001 | IS13: 0.04204557592 | IT13: 0.04195648951 | IU13: 0.04191479152 | IV13: 0.04193556182 | IW13: 0.0419693384 | IX13: 0.04203583311 | IY13: 0.04197159974 | IZ13: 0.04195124911 | JA13: 0.04183299707 | JB13: 0.04191806113 | JC13: 0.04192311071 | JD13: 0.0419154554 | JE13: 0.04201237405 | JF13: 0.04196150067 | JG13: 0.04191461668 | JH13: 0.04193844756 | JI13: 0.04189828956 | JJ13: 0.04191659377 | JK13: 0.04190314627 | JL13: 0.04200149671 | JM13: 0.04206661304 | JN13: 0.04212744022 | JO13: 0.04215194664 | JP13: 0.0421942469 | JQ13: 0.0422735123 | JR13: 0.04225650709 | JS13: 0.04231318507 | JT13: 0.04230553011 | JU13: 0.04228274496 | JV13: 0.04226761698 | JW13: 0.04226694341 | JX13: 0.04231750403 | JY13: 0.04232834844 | JZ13: 0.04236343093 | KA13: 0.04237429955 | KB13: 0.04244661189 | KC13: 0.04237168921 | KD13: 0.04254620184 | KE13: 0.04256506533 | KF13: 0.04267713719 | KG13: 0.04273927234 | KH13: 0.04273019071 | KI13: 0.042751359 | KJ13: 0.04275095015 | KK13: 0.04270950597 | KL13: 0.04272336921 | KM13: 0.0427412584 | KN13: 0.04267061706 | KO13: 0.04272505923 | KP13: 0.04275171827 | KQ13: 0.04276217091 | KR13: 0.04265479118 | KS13: 0.04262987731 | KT13: 0.04257920866 | KU13: 0.04266220311 | KV13: 0.04272166167 | KW13: 0.04286985435 | KX13: 0.0427955535 | KY13: 0.04288265997 | KZ13: 0.04290588213 | LA13: 0.04290785335 | LB13: 0.04297405683 | LC13: 0.04304298253 | LD13: 0.04302656368 | LE13: 0.04309330731 | LF13: 0.04309512723 | LG13: 0.04312929001 | LH13: 0.04309078038 | LI13: 0.04311894265 | LJ13: 0.04305730115 | LK13: 0.04305044103 | LL13: 0.0430204979 | LM13: 0.04295506815 | LN13: 0.04311046082 | LO13: 0.04314223333 | LP13: 0.04322818658 | LQ13: 0.04326295261 | LR13: 0.0433117002 | LS13: 0.04332996612 | LT13: 0.04335207396 | LU13: 0.0433577779 | LV13: 0.0433364531 | LW13: 0.0433398321 | LX13: 0.0432966128 | LY13: 0.04339012585 | LZ13: 0.04339081657 | MA13: 0.04338226519 | MB13: 0.04327835858 | MC13: 0.04322769965 | MD13: 0.04328266558 | ME13: 0.04326848448 | MF13: 0.04328675372 | MG13: 0.04334728286 | MH13: 0.04334796813 | MI13: 0.04333488802 | MJ13: 0.0433236139 | MK13: 0.04340122394 | ML13: 0.04330101829 | MM13: 0.04325782733 | MN13: 0.04327289019 | MO13: 0.04331670969 | MP13: 0.04338333913 | MQ13: 0.04331121957 | MR13: 0.04326137289 | MS13: 0.04327368989 | MT13: 0.04328491417 | MU13: 0.04320697032 | MV13: 0.0431332774 | MW13: 0.04314732529 | MX13: 0.04312875563 | MY13: 0.04306872403 | MZ13: 0.04303395929 | NA13: 0.04309314846 | NB13: 0.04310125801 | NC13: 0.04307679257 | ND13: 0.04313325628 | NE13: 0.04311556001 | NF13: 0.04320024216 | NG13: 0.04321867661 | NH13: 0.04312570227 | NI13: 0.04320643547 | NJ13: 0.04319258189 | NK13: 0.04316991251 | NL13: 0.0431529276 | NM13: 0.04313374958 | NN13: 0.04310684136 | NO13: 0.04309910248 | NP13: 0.04308492025 | NQ13: 0.04322051781 | NR13: 0.04325515694 | NS13: 0.04326466743 | NT13: 0.04333212378 | NU13: 0.04324840648 | NV13: 0.04326385411 | NW13: 0.04328819688 | NX13: 0.04341073204 | NY13: 0.04346780433 | NZ13: 0.04342145695 | OA13: 0.04345399894 | OB13: 0.04349435479 | OC13: 0.04346946149 | OD13: 0.04348097019 | OE13: 0.0435136111 | OF13: 0.04343360639 | OG13: 0.043496178 | OH13: 0.04352887206 | OI13: 0.04355441823 | OJ13: 0.04355473277 | OK13: 0.04351958741 | OL13: 0.04345582071 | OM13: 0.04347028668 | ON13: 0.04344390794 | OO13: 0.04344681672 | OP13: 0.04344650624 | OQ13: 0.04344985528 | OR13: 0.0435424917 | OS13: 0.04353944778 | OT13: 0.04357567971 | OU13: 0.04357145208 | OV13: 0.04361942987 | OW13: 0.04357080887 | OX13: 0.04352857791 | OY13: 0.04357096867 | OZ13: 0.04356735958 | PA13: 0.04360111844 | PB13: 0.04355005533 | PC13: 0.04354729916 | PD13: 0.04351389903 | PE13: 0.04344370102 | PF13: 0.04346887996 | PG13: 0.0434252034 | PH13: 0.04345933714 | PI13: 0.04349753144 | PJ13: 0.04354294802 | PK13: 0.04347342635 | PL13: 0.04350538812 | PM13: 0.04337202525 | PN13: 0.04328247144 | PO13: 0.04320964263 | PP13: 0.04327596329 | PQ13: 0.04328745198 | PR13: 0.04342597307 | PS13: 0.04341315189 | PT13: 0.04329745 | PU13: 0.04324292891 | PV13: 0.04327397414 | PW13: 0.04325071001 | PX13: 0.04327776818 | PY13: 0.04334875565 | PZ13: 0.0433517414 | QA13: 0.04332698904 | QB13: 0.04342397408 | QC13: 0.04337019469 | QD13: 0.04334710999 | QE13: 0.04332971589 | QF13: 0.04348413224 | QG13: 0.04346216758 | QH13: 0.04353003215 | QI13: 0.04352549111 | QJ13: 0.04356269281 | QK13: 0.04357057277 | QL13: 0.04350214851 | QM13: 0.04351200051 | QN13: 0.0435033274 | QO13: 0.04352182649 | QP13: 0.0434690274 | QQ13: 0.04339792064 | QR13: 0.04336367577 | QS13: 0.04336740065 | QT13: 0.04336591687 | QU13: 0.04333201107 | QV13: 0.04339711245 | QW13: 0.04337431598 | QX13: 0.04349002027 | QY13: 0.04350297146 | QZ13: 0.04355026305 | RA13: 0.04363985343 | RB13: 0.04362358089 | RC13: 0.04368013445 | RD13: 0.04365505209 | RE13: 0.04362499658 | RF13: 0.04358698281 | RG13: 0.04367188813 | RH13: 0.0436409884 | RI13: 0.04380226442 | RJ13: 0.0438355575 | RK13: 0.04384231359 | RL13: 0.04385525827 | RM13: 0.04376312868 | RN13: 0.04378448638 | RO13: 0.04381140712 | RP13: 0.04394832723 | RQ13: 0.04402263007 | RR13: 0.0439655964 | RS13: 0.04400533064 | RT13: 0.04405371257 | RU13: 0.04398905753 | RV13: 0.04409174302 | RW13: 0.04413408645 | RX13: 0.04413964783 | RY13: 0.0440710122 | RZ13: 0.04411065492 | SA13: 0.04414546858 | SB13: 0.04397874416 | SC13: 0.04401149867 | SD13: 0.04395144317 | SE13: 0.04404385815 | SF13: 0.0441187779 | SG13: 0.04412569518 | SH13: 0.04411951914 | SI13: 0.04422454263 | SJ13: 0.04432890439 | SK13: 0.04431971754 | SL13: 0.04436380154 | SM13: 0.04445355766 | SN13: 0.04449958405 | SO13: 0.04444521144 | SP13: 0.0444648492 | SQ13: 0.04451651064 | SR13: 0.04445814384 | SS13: 0.04449517368 | ST13: 0.04449373109 | SU13: 0.04449581385 | SV13: 0.04445934601 | SW13: 0.04440906905 | SX13: 0.04444327159 | SY13: 0.0443985085 | SZ13: 0.04443965211 | TA13: 0.04446398097 | TB13: 0.0445202927 | TC13: 0.04444400972 | TD13: 0.04448164279 | TE13: 0.0442995781 | TF13: 0.04419115983 | TG13: 0.04410784118 | TH13: 0.04410274333 | TI13: 0.04421109935 | TJ13: 0.04419809167 | TK13: 0.04413203068 | TL13: 0.04412120809 | TM13: 0.04404556298 | TN13: 0.04411980228 | TO13: 0.04409043446 | TP13: 0.044050225 | TQ13: 0.04413293837 | TR13: 0.04403668953 | TS13: 0.04405246415 | TT13: 0.04405995566 | TU13: 0.04414253505 | TV13: 0.04411071712 | TW13: 0.04408322754 | TX13: 0.04408696968 | TY13: 0.04406830075 | TZ13: 0.04408117655 | UA13: 0.04406973322 | UB13: 0.04410138389 | UC13: 0.04410349411 | UD13: 0.04412424945 | UE13: 0.04413221998 | UF13: 0.04403312853 | UG13: 0.0439450231 | UH13: 0.0439086915 | UI13: 0.04393402084 | UJ13: 0.04390093351 | UK13: 0.04396837788 | UL13: 0.04403445129 | UM13: 0.04406996416 | UN13: 0.043978694 | UO13: 0.04392102618 | UP13: 0.0438720704 | UQ13: 0.04387820964 | UR13: 0.04392647333 | US13: 0.04394073121 | UT13: 0.04393606994 | UU13: 0.04399163987 | UV13: 0.04395830842 | UW13: 0.04391913383 | UX13: 0.0438682207 | UY13: 0.04395788413 | UZ13: 0.04392960783 | VA13: 0.0439490747 | VB13: 0.04407957049 | VC13: 0.04417902517 | VD13: 0.04411733477 | VE13: 0.04411165315 | VF13: 0.0438990762 | VG13: 0.04398212967 | VH13: 0.04400798877 | VI13: 0.04412947094 | VJ13: 0.04415423682 | VK13: 0.04420001461 | VL13: 0.04416810214 | VM13: 0.04409039934 | VN13: 0.04409436826 | VO13: 0.04414514334 | VP13: 0.04414788703 | VQ13: 0.0442283626 | VR13: 0.04427595891 | VS13: 0.04431946144 | VT13: 0.04430553079 | VU13: 0.04433339165 | VV13: 0.04426388815 | VW13: 0.04429031462 | VX13: 0.04427320048 | VY13: 0.04428575044 | VZ13: 0.04437616016 | WA13: 0.04438089374 | WB13: 0.04449886112 | WC13: 0.04460266249 | WD13: 0.0446549505 | WE13: 0.0446395573 | WF13: 0.04467194731 | WG13: 0.04461367166 | WH13: 0.04465380911 | WI13: 0.04471672754 | WJ13: 0.04464830638 | WK13: 0.04468762712 | WL13: 0.04467417284 | WM13: 0.04468325464 | WN13: 0.0446458214 | WO13: 0.04458634848 | WP13: 0.04463019995 | WQ13: 0.04458640255 | WR13: 0.04451030128 | WS13: 0.04456542718 | WT13: 0.0445264619 | WU13: 0.04444541091 | WV13: 0.04450282836 | WW13: 0.0445078289 | WX13: 0.04437379225 | WY13: 0.04428088959 | WZ13: 0.0443563578 | XA13: 0.04437629798 | XB13: 0.04435503379 | XC13: 0.04433852978 | XD13: 0.04433324691 | XE13: 0.04432979526 | XF13: 0.04441541201 | XG13: 0.04437919591 | XH13: 0.0443318652 | XI13: 0.04442854054 | XJ13: 0.04431996531 | XK13: 0.04427682284 | XL13: 0.04428751689 | XM13: 0.04429652645 | XN13: 0.04425607735 | XO13: 0.04421979233 | XP13: 0.04425166159 | XQ13: 0.04423803723 | XR13: 0.04432344638 | XS13: 0.04430500333 | XT13: 0.04433051047 | XU13: 0.04451417018 | XV13: 0.04454074705 | XW13: 0.04443072588 | XX13: 0.04431593012 | XY13: 0.04434591941 | XZ13: 0.04430061863 | YA13: 0.04432785454 | YB13: 0.04429710047 | YC13: 0.04436769121 | YD13: 0.04444054592 | YE13: 0.04448248143 | YF13: 0.04456661013 | YG13: 0.04453736462 | YH13: 0.04456613565 | YI13: 0.04461179026 | YJ13: 0.04472555549 | YK13: 0.04480031011 | YL13: 0.04476259585 | YM13: 0.04480061118 | YN13: 0.04488917315 | YO13: 0.04484039714 | YP13: 0.04489264504 | YQ13: 0.04498703102 | YR13: 0.04495353922 | YS13: 0.04498628581 | YT13: 0.04515589526 | YU13: 0.04526506241 | YV13: 0.04529202678 | YW13: 0.04527934861 | YX13: 0.045315762 | YY13: 0.04541034102 | YZ13: 0.04544222732 | ZA13: 0.04546094993 | ZB13: 0.04537816674 | ZC13: 0.04543375738 | ZD13: 0.04549497221 | ZE13: 0.04553250855 | ZF13: 0.04565932549 | ZG13: 0.04566290294 | ZH13: 0.04566004047 | ZI13: 0.04565651109 | ZJ13: 0.04554150272 | ZK13: 0.04549537827 | ZL13: 0.0455047141 | ZM13: 0.04552569819 | ZN13: 0.04544464632 | ZO13: 0.04547721247 | ZP13: 0.04548135646 | ZQ13: 0.04549977914 | ZR13: 0.04547958137 | ZS13: 0.045486574 | ZT13: 0.04562225613 | ZU13: 0.04573430141 | ZV13: 0.04579461083 | ZW13: 0.04577641709 | ZX13: 0.04581581292 | ZY13: 0.04575258733 | ZZ13: 0.04568520213 | AAA13: 0.04564990189 | AAB13: 0.04566644937 | AAC13: 0.04575434978 | AAD13: 0.04581809127 | AAE13: 0.04577729287 | AAF13: 0.04565675672 | AAG13: 0.04564950938 | AAH13: 0.04570137688 | AAI13: 0.04565796579 | AAJ13: 0.04571513117 | AAK13: 0.04577777723 | AAL13: 0.04586678413 | AAM13: 0.04577816879 | AAN13: 0.04584631638 | AAO13: 0.04581751038 | AAP13: 0.04581167034 | AAQ13: 0.04570552626 | AAR13: 0.04578469345 | AAS13: 0.0458095512 | AAT13: 0.04584241339 | AAU13: 0.04574969411 | AAV13: 0.04572262088 | AAW13: 0.04570835781 | AAX13: 0.04568663653 | AAY13: 0.04563394022 | AAZ13: 0.04557863602 | ABA13: 0.04554887861 | ABB13: 0.04542316345 | ABC13: 0.04537112291 | ABD13: 0.04538532373 | ABE13: 0.04539984147 | ABF13: 0.04534843993 | ABG13: 0.04530204942 | ABH13: 0.04534326928 | ABI13: 0.04533499507 | ABJ13: 0.04542985368 | ABK13: 0.04540269609 | ABL13: 0.04540813561 | ABM13: 0.04543328061 | ABN13: 0.04534281246 | ABO13: 0.04534290064 | ABP13: 0.04536253748 | ABQ13: 0.04525522195 | ABR13: 0.0453204083 | ABS13: 0.04534752137 | ABT13: 0.04531096612 | ABU13: 0.04532377313 | ABV13: 0.04540301892 | ABW13: 0.04544948881 | ABX13: 0.04554447939 | ABY13: 0.04551322718 | ABZ13: 0.04554995776 | ACA13: 0.04553658388 | ACB13: 0.04558344445 | ACC13: 0.04566763839 | ACD13: 0.04562042685 | ACE13: 0.04567119993 | ACF13: 0.04576363847 | ACG13: 0.04570558125 | ACH13: 0.04576180645 | ACI13: 0.04586136714 | ACJ13: 0.04579523741 | ACK13: 0.04580902525 | ACL13: 0.04583254656 | ACM13: 0.04595274208 | ACN13: 0.04587987132 | ACO13: 0.04585995875 | ACP13: 0.04583094135 | ACQ13: 0.04593896017 | ACR13: 0.04597858017 | ACS13: 0.04591674216 | ACT13: 0.04581860509 | ACU13: 0.04587052138 | ACV13: 0.04593721113 | ACW13: 0.04581889395 | ACX13: 0.0459631358 | ACY13: 0.04597428842 | ACZ13: 0.04596602609 | ADA13: 0.04595896312 | ADB13: 0.04579161315 | ADC13: 0.04574668675 | ADD13: 0.04570996001 | ADE13: 0.04572324254 | ADF13: 0.04563191027 | ADG13: 0.04554668198 | ADH13: 0.04547851056 | ADI13: 0.04545619588 | ADJ13: 0.04555903084 | ADK13: 0.04545963056 | ADL13: 0.04545033491 | ADM13: 0.04557221783 | ADN13: 0.04551624493 | ADO13: 0.0454984179 | ADP13: 0.04553354748 | ADQ13: 0.04546842431 | ADR13: 0.04539505916 | ADS13: 0.04535571915 | ADT13: 0.04526410258 | ADU13: 0.04536737582 | ADV13: 0.04533558885 | ADW13: 0.04528786792 | ADX13: 0.04528154652 | ADY13: 0.04520173584 | ADZ13: 0.04526166041 | AEA13: 0.04522045016 | AEB13: 0.04513477504 | AEC13: 0.04512251112 | AED13: 0.04507395323 | AEE13: 0.04505169587 | AEF13: 0.0451330598 | AEG13: 0.04512484565 | AEH13: 0.04515575291 | AEI13: 0.04515853476 | AEJ13: 0.04524136299 | AEK13: 0.04527353249 | AEL13: 0.04531504996 | AEM13: 0.04520882127 | AEN13: 0.04517395429 | AEO13: 0.04515223893 | AEP13: 0.04526686309 | AEQ13: 0.04520153158 | AER13: 0.04514166974 | AES13: 0.04511119324 | AET13: 0.04496433351 | AEU13: 0.04495780907 | AEV13: 0.0449778572 | AEW13: 0.044994369 | AEX13: 0.04501152758 | AEY13: 0.04506416386 | AEZ13: 0.04507324495 | AFA13: 0.04502096274 | AFB13: 0.0450188096 | AFC13: 0.04511525027 | AFD13: 0.04519640756 | AFE13: 0.04523306727 | AFF13: 0.04513636184 | AFG13: 0.04513170659 | AFH13: 0.04493760231 | AFI13: 0.0448195669 | AFJ13: 0.04475623221 | AFK13: 0.04478312971 | AFL13: 0.04473889194 | AFM13: 0.04481412007 | AFN13: 0.04489976643 | AFO13: 0.0449503597 | AFP13: 0.04493910604 | AFQ13: 0.04483674806 | AFR13: 0.04478138447 | AFS13: 0.04484218291 | AFT13: 0.04486573214 | AFU13: 0.04496017934 | AFV13: 0.04497418012 | AFW13: 0.04502922969 | AFX13: 0.0451287512 | AFY13: 0.04514731102 | AFZ13: 0.04514184504 | AGA13: 0.0452480005 | AGB13: 0.04516868684 | AGC13: 0.04519047581 | AGD13: 0.04522643876 | AGE13: 0.04535993203 | AGF13: 0.04528474041 | AGG13: 0.04525828284 | AGH13: 0.04522284056 | AGI13: 0.04534707233 | AGJ13: 0.04539609377 | AGK13: 0.04533251788 | AGL13: 0.0453657505 | AGM13: 0.04544834026 | AGN13: 0.0454955024 | AGO13: 0.04553572198 | AGP13: 0.04554355812 | AGQ13: 0.0455647219 | AGR13: 0.04567780173 | AGS13: 0.04560321706 | AGT13: 0.04567937866 | AGU13: 0.04574763105 | AGV13: 0.0457033252 | AGW13: 0.04570659211 | AGX13: 0.04560454123 | AGY13: 0.04565274659 | AGZ13: 0.04565924116 | AHA13: 0.04562712012 | AHB13: 0.04573718737 | AHC13: 0.04575390272 | AHD13: 0.04574744496 | AHE13: 0.04588481614 | AHF13: 0.04582815935 | AHG13: 0.04581118591 | AHH13: 0.04586958139 | AHI13: 0.04585180218 | AHJ13: 0.04577144724 | AHK13: 0.04572819693 | AHL13: 0.04574926375 | AHM13: 0.04587314509 | AHN13: 0.04583217856 | AHO13: 0.04587573431 | AHP13: 0.04584020398 | AHQ13: 0.04574863496 | AHR13: 0.04581570588 | AHS13: 0.04577747095 | AHT13: 0.04567715094 | AHU13: 0.0457550195 | AHV13: 0.04570239418 | AHW13: 0.04567177135 | AHX13: 0.04576903973 | AHY13: 0.04575197827 | AHZ13: 0.04577953091 | AIA13: 0.04577729683 | AIB13: 0.04586335884 | AIC13: 0.04590284426 | AID13: 0.04595046974 | AIE13: 0.04597703102 | AIF13: 0.04599742081 | AIG13: 0.04607121232 | AIH13: 0.04604611458 | AII13: 0.04596245256 | AIJ13: 0.04589657175 | AIK13: 0.04591368519 | AIL13: 0.04590748301 | AIM13: 0.04588904218 | AIN13: 0.04591476599 | AIO13: 0.04593015476 | AIP13: 0.04595492119 | AIQ13: 0.04600449043 | AIR13: 0.04606059838 | AIS13: 0.04599891806 | AIT13: 0.04611551087 | AIU13: 0.04621756909 | AIV13: 0.04630665739 | AIW13: 0.04635105899 | AIX13: 0.04624376652 | AIY13: 0.04636915289 | AIZ13: 0.04638154488 | AJA13: 0.04635814285 | AJB13: 0.04642458242 | AJC13: 0.04653886494 | AJD13: 0.04651993812 | AJE13: 0.04659647186 | AJF13: 0.04668817532 | AJG13: 0.0467407528 | AJH13: 0.04672706387 | AJI13: 0.04659425192 | AJJ13: 0.04653569072 | AJK13: 0.0466025104 | AJL13: 0.04663569997 | AJM13: 0.04674140125 | AJN13: 0.04667760571 | AJO13: 0.04674045229 | AJP13: 0.04674929176 | AJQ13: 0.04675805346 | AJR13: 0.04682002613 | AJS13: 0.0468625819 | AJT13: 0.04676151933 | AJU13: 0.04679090652 | AJV13: 0.04677242695 | AJW13: 0.04678478097 | AJX13: 0.04676310255 | AJY13: 0.04672471967 | AJZ13: 0.04668087787 | AKA13: 0.04683389379 | AKB13: 0.04689461545 | AKC13: 0.04693846892 | AKD13: 0.04697018007 | AKE13: 0.04707716404 | AKF13: 0.04715317916 | AKG13: 0.04719135475 | AKH13: 0.04721580138 | AKI13: 0.04725146659 | AKJ13: 0.04737696709 | AKK13: 0.04736951365 | AKL13: 0.04734820246 | AKM13: 0.04730770972 | AKN13: 0.04729192735 | AKO13: 0.04736593776 | AKP13: 0.04737311601 | AKQ13: 0.04727247243 | AKR13: 0.04718376949 | AKS13: 0.04714110393 | AKT13: 0.04717264624 | AKU13: 0.04719625821 | AKV13: 0.047229894 | AKW13: 0.04724292966 | AKX13: 0.04733144793 | AKY13: 0.04731607307 | AKZ13: 0.04738337233 | ALA13: 0.04735416936 | ALB13: 0.04726421161 | ALC13: 0.04721652355 | ALD13: 0.04723534068 | ALE13: 0.04741898973 | ALF13: 0.04748308449 | ALG13: 0.04741780726 | ALH13: 0.04738412968 | ALI13: 0.04739823428 | ALJ13: 0.04740639942 | ALK13: 0.0473434147 | ALL13: 0.04728794939 | ALM13: 0.0472935689 | ALN13: 0.04719668765 | ALO13: 0.04719582376 | ALP13: 0.04732059993 | ALQ13: 0.04728960725
A14: Notional | B14: 1000000 | D14: Pfad 10 | E14: 0.04 | F14: 0.03996669068 | G14: 0.03980136179 | H14: 0.03989072751 | I14: 0.03994344997 | J14: 0.03999928561 | K14: 0.03984786188 | L14: 0.03979958566 | M14: 0.03987606494 | N14: 0.03986021094 | O14: 0.03975881908 | P14: 0.03976663214 | Q14: 0.03974502708 | R14: 0.03974269228 | S14: 0.0397144382 | T14: 0.03960582889 | U14: 0.03970574819 | V14: 0.03973964168 | W14: 0.03978818954 | X14: 0.03985317581 | Y14: 0.039866526 | Z14: 0.03999601129 | AA14: 0.03995092032 | AB14: 0.03995239514 | AC14: 0.04000727317 | AD14: 0.03990005729 | AE14: 0.03988758611 | AF14: 0.03989997616 | AG14: 0.03989414061 | AH14: 0.03990933741 | AI14: 0.04004230858 | AJ14: 0.0399890452 | AK14: 0.04003209229 | AL14: 0.04005195586 | AM14: 0.04014502633 | AN14: 0.04014085522 | AO14: 0.04013793871 | AP14: 0.04009146043 | AQ14: 0.04012383034 | AR14: 0.04009505799 | AS14: 0.04009478044 | AT14: 0.04003558282 | AU14: 0.04010978126 | AV14: 0.04013238991 | AW14: 0.04006231552 | AX14: 0.04012801981 | AY14: 0.04018367975 | AZ14: 0.04006089096 | BA14: 0.04010704895 | BB14: 0.04010256311 | BC14: 0.04012776391 | BD14: 0.04005632128 | BE14: 0.04020645983 | BF14: 0.04016833346 | BG14: 0.0401599322 | BH14: 0.04014121729 | BI14: 0.04008381508 | BJ14: 0.04011909115 | BK14: 0.04008358299 | BL14: 0.04010141601 | BM14: 0.04023914232 | BN14: 0.0402786637 | BO14: 0.04034106434 | BP14: 0.04031818508 | BQ14: 0.04032098422 | BR14: 0.04030561527 | BS14: 0.04027690742 | BT14: 0.04025994823 | BU14: 0.04034236514 | BV14: 0.04035320621 | BW14: 0.04025504208 | BX14: 0.04017259363 | BY14: 0.04013472278 | BZ14: 0.04028073915 | CA14: 0.04014827267 | CB14: 0.04015859512 | CC14: 0.0402061967 | CD14: 0.04020979787 | CE14: 0.04008360967 | CF14: 0.04016054084 | CG14: 0.04013342353 | CH14: 0.0401307901 | CI14: 0.04009302068 | CJ14: 0.04011590954 | CK14: 0.04014555395 | CL14: 0.04021145793 | CM14: 0.04015347784 | CN14: 0.04012162569 | CO14: 0.04001592319 | CP14: 0.04004201533 | CQ14: 0.03998374548 | CR14: 0.03997964973 | CS14: 0.03999113426 | CT14: 0.03994489658 | CU14: 0.03990508819 | CV14: 0.03987553121 | CW14: 0.03984375143 | CX14: 0.03986558635 | CY14: 0.03985728594 | CZ14: 0.03990247747 | DA14: 0.03990503349 | DB14: 0.03996562709 | DC14: 0.03995713097 | DD14: 0.03989671094 | DE14: 0.03985735572 | DF14: 0.03984314505 | DG14: 0.03984103527 | DH14: 0.03977879904 | DI14: 0.03975910343 | DJ14: 0.03973602105 | DK14: 0.03974208764 | DL14: 0.03961279881 | DM14: 0.03972371911 | DN14: 0.03975975201 | DO14: 0.03977166067 | DP14: 0.03981400899 | DQ14: 0.03974854711 | DR14: 0.03975951014 | DS14: 0.03990696895 | DT14: 0.04001293059 | DU14: 0.04005287743 | DV14: 0.04002544804 | DW14: 0.04000516704 | DX14: 0.04001166702 | DY14: 0.03999824893 | DZ14: 0.04001476775 | EA14: 0.04003579114 | EB14: 0.03997503322 | EC14: 0.04002581954 | ED14: 0.04012987368 | EE14: 0.04018766078 | EF14: 0.04018577974 | EG14: 0.04017028385 | EH14: 0.04012428753 | EI14: 0.04020439193 | EJ14: 0.04025992036 | EK14: 0.04026117884 | EL14: 0.04024686648 | EM14: 0.04032904944 | EN14: 0.04040569924 | EO14: 0.04041238549 | EP14: 0.04043666646 | EQ14: 0.04046303653 | ER14: 0.0404569614 | ES14: 0.04051523095 | ET14: 0.04057934091 | EU14: 0.04061355126 | EV14: 0.04053541379 | EW14: 0.04048794267 | EX14: 0.04044601491 | EY14: 0.04048043307 | EZ14: 0.0405677393 | FA14: 0.04050821634 | FB14: 0.04054106571 | FC14: 0.04056867071 | FD14: 0.04059344115 | FE14: 0.04063173239 | FF14: 0.04066448482 | FG14: 0.04060881756 | FH14: 0.04079505925 | FI14: 0.04069601536 | FJ14: 0.0406786711 | FK14: 0.04068499509 | FL14: 0.04063156667 | FM14: 0.04063175448 | FN14: 0.04048450708 | FO14: 0.04048410913 | FP14: 0.04039275916 | FQ14: 0.04034967213 | FR14: 0.04037415543 | FS14: 0.04037257691 | FT14: 0.04038904274 | FU14: 0.04042473156 | FV14: 0.04042791432 | FW14: 0.04043077064 | FX14: 0.04051517402 | FY14: 0.04047964889 | FZ14: 0.04047092879 | GA14: 0.04033869205 | GB14: 0.04035850101 | GC14: 0.0403984002 | GD14: 0.04033987477 | GE14: 0.04027666845 | GF14: 0.04023667798 | GG14: 0.04011262757 | GH14: 0.04020049348 | GI14: 0.04013383902 | GJ14: 0.04012828595 | GK14: 0.04014274394 | GL14: 0.04009568028 | GM14: 0.04004679221 | GN14: 0.04007804187 | GO14: 0.04003199387 | GP14: 0.04004741468 | GQ14: 0.0400318208 | GR14: 0.04008464047 | GS14: 0.04007503059 | GT14: 0.04014934178 | GU14: 0.04017278415 | GV14: 0.04021774723 | GW14: 0.04016957739 | GX14: 0.04021206711 | GY14: 0.04019891338 | GZ14: 0.04013293489 | HA14: 0.04011565672 | HB14: 0.0400858282 | HC14: 0.04008526293 | HD14: 0.04014055063 | HE14: 0.04015168477 | HF14: 0.040188278 | HG14: 0.04020122914 | HH14: 0.04025731062 | HI14: 0.0401842375 | HJ14: 0.04019930821 | HK14: 0.04022290753 | HL14: 0.04033781865 | HM14: 0.04040228168 | HN14: 0.04036618462 | HO14: 0.0403945507 | HP14: 0.04035636798 | HQ14: 0.04033788117 | HR14: 0.04024382823 | HS14: 0.04025962212 | HT14: 0.04019092067 | HU14: 0.0402793742 | HV14: 0.04039071368 | HW14: 0.04044835086 | HX14: 0.04044956901 | HY14: 0.04042430798 | HZ14: 0.04037696369 | IA14: 0.04046185712 | IB14: 0.04052511705 | IC14: 0.04068278615 | ID14: 0.04068825509 | IE14: 0.04077862936 | IF14: 0.04080344227 | IG14: 0.04080606988 | IH14: 0.0408727085 | II14: 0.04094591102 | IJ14: 0.04099548925 | IK14: 0.0410702461 | IL14: 0.04114097091 | IM14: 0.04118217146 | IN14: 0.04118967325 | IO14: 0.04113030849 | IP14: 0.04108475362 | IQ14: 0.04112857643 | IR14: 0.04123253551 | IS14: 0.04116981842 | IT14: 0.04119902591 | IU14: 0.04123558196 | IV14: 0.04126683535 | IW14: 0.04130124185 | IX14: 0.04134209653 | IY14: 0.04136441448 | IZ14: 0.04139245579 | JA14: 0.04127711488 | JB14: 0.04125872604 | JC14: 0.04126469306 | JD14: 0.04121674117 | JE14: 0.04121119492 | JF14: 0.04120361873 | JG14: 0.0412933225 | JH14: 0.04132525996 | JI14: 0.04127647909 | JJ14: 0.04130641588 | JK14: 0.04135957016 | JL14: 0.04138282974 | JM14: 0.04142161154 | JN14: 0.04142518902 | JO14: 0.04143061982 | JP14: 0.04152260996 | JQ14: 0.04147727203 | JR14: 0.04137791671 | JS14: 0.04133825054 | JT14: 0.0413532291 | JU14: 0.04140138962 | JV14: 0.04147260019 | JW14: 0.04140250723 | JX14: 0.04135286665 | JY14: 0.04118399395 | JZ14: 0.04127761826 | KA14: 0.04128735848 | KB14: 0.04128066925 | KC14: 0.04138814511 | KD14: 0.04133898463 | KE14: 0.04127826795 | KF14: 0.04131829003 | KG14: 0.04124852803 | KH14: 0.04125494268 | KI14: 0.04122957759 | KJ14: 0.0412471645 | KK14: 0.04133008244 | KL14: 0.04139431674 | KM14: 0.04141227296 | KN14: 0.04145933131 | KO14: 0.04154156305 | KP14: 0.04153153523 | KQ14: 0.04158887934 | KR14: 0.04157111971 | KS14: 0.04155590572 | KT14: 0.04151884068 | KU14: 0.04151053969 | KV14: 0.04157537644 | KW14: 0.04158001504 | KX14: 0.04161536765 | KY14: 0.04162571373 | KZ14: 0.04170373848 | LA14: 0.04162079346 | LB14: 0.04165206799 | LC14: 0.04167895101 | LD14: 0.04180533321 | LE14: 0.04187314248 | LF14: 0.04185788233 | LG14: 0.04189454661 | LH14: 0.04188351456 | LI14: 0.04182954911 | LJ14: 0.04184152349 | LK14: 0.04187930269 | LL14: 0.04179963889 | LM14: 0.04186608652 | LN14: 0.04190267636 | LO14: 0.04195884438 | LP14: 0.04196290848 | LQ14: 0.04192697912 | LR14: 0.04193103401 | LS14: 0.04202045695 | LT14: 0.0420909982 | LU14: 0.04211137338 | LV14: 0.04203056712 | LW14: 0.04212960999 | LX14: 0.04215243764 | LY14: 0.04214897837 | LZ14: 0.04221493492 | MA14: 0.04229804269 | MB14: 0.04226961752 | MC14: 0.04238526661 | MD14: 0.04240001349 | ME14: 0.0424467611 | MF14: 0.04239745735 | MG14: 0.04243355116 | MH14: 0.04233894308 | MI14: 0.04239033042 | MJ14: 0.04252073685 | MK14: 0.04260128723 | ML14: 0.04262512563 | MM14: 0.04266939029 | MN14: 0.04275967032 | MO14: 0.04278845194 | MP14: 0.0428440365 | MQ14: 0.04287148408 | MR14: 0.04290643538 | MS14: 0.04292035256 | MT14: 0.04290062018 | MU14: 0.04290691509 | MV14: 0.04290849684 | MW14: 0.0430117772 | MX14: 0.04300439144 | MY14: 0.04299122785 | MZ14: 0.04287102715 | NA14: 0.04281610556 | NB14: 0.04284849057 | NC14: 0.04291200735 | ND14: 0.04297721226 | NE14: 0.04301735236 | NF14: 0.04315185521 | NG14: 0.04316255179 | NH14: 0.04326255595 | NI14: 0.04320562181 | NJ14: 0.04308454879 | NK14: 0.04304344687 | NL14: 0.04305174285 | NM14: 0.04310729714 | NN14: 0.04312014187 | NO14: 0.04304221184 | NP14: 0.04298193946 | NQ14: 0.04298835696 | NR14: 0.04300669882 | NS14: 0.0429169801 | NT14: 0.04282835416 | NU14: 0.04294469352 | NV14: 0.04289337035 | NW14: 0.0428788689 | NX14: 0.04292667169 | NY14: 0.04292506229 | NZ14: 0.0428592352 | OA14: 0.04282555008 | OB14: 0.04284664778 | OC14: 0.04294308093 | OD14: 0.0430082771 | OE14: 0.04296741081 | OF14: 0.04281873888 | OG14: 0.04282857208 | OH14: 0.04282183181 | OI14: 0.04278784033 | OJ14: 0.04276100343 | OK14: 0.04274943842 | OL14: 0.04270811246 | OM14: 0.04269178982 | ON14: 0.04266838675 | OO14: 0.0426656737 | OP14: 0.04265344722 | OQ14: 0.0425481933 | OR14: 0.04262964363 | OS14: 0.04266085016 | OT14: 0.04270061753 | OU14: 0.0426065687 | OV14: 0.04257887758 | OW14: 0.04264965135 | OX14: 0.04263070757 | OY14: 0.0425756179 | OZ14: 0.04255341818 | PA14: 0.04252718521 | PB14: 0.04253517884 | PC14: 0.04258168308 | PD14: 0.04249243108 | PE14: 0.04256751104 | PF14: 0.04261112341 | PG14: 0.04265030375 | PH14: 0.04265927373 | PI14: 0.04265906553 | PJ14: 0.04275944937 | PK14: 0.04285346096 | PL14: 0.04293157744 | PM14: 0.04296537765 | PN14: 0.04287666645 | PO14: 0.04298513072 | PP14: 0.04300516718 | PQ14: 0.04289756345 | PR14: 0.04296273403 | PS14: 0.04305711673 | PT14: 0.04301909384 | PU14: 0.04303965632 | PV14: 0.04306617172 | PW14: 0.04312275021 | PX14: 0.04311444929 | PY14: 0.04315327568 | PZ14: 0.04310135552 | QA14: 0.04310767364 | QB14: 0.04307304707 | QC14: 0.04316318111 | QD14: 0.04311568026 | QE14: 0.04316803472 | QF14: 0.04326317795 | QG14: 0.04328574637 | QH14: 0.04334484196 | QI14: 0.04337879219 | QJ14: 0.04330916775 | QK14: 0.04332952589 | QL14: 0.04331115287 | QM14: 0.04332032106 | QN14: 0.04331324832 | QO14: 0.0434244299 | QP14: 0.04340927289 | QQ14: 0.04339423428 | QR14: 0.04324552607 | QS14: 0.04318706394 | QT14: 0.04322112734 | QU14: 0.04318961806 | QV14: 0.04323241446 | QW14: 0.0432735804 | QX14: 0.04343084557 | QY14: 0.04344989618 | QZ14: 0.04344106906 | RA14: 0.04343646462 | RB14: 0.04343039532 | RC14: 0.04339077674 | RD14: 0.04339248176 | RE14: 0.04345573892 | RF14: 0.04346913348 | RG14: 0.04338576737 | RH14: 0.04331706798 | RI14: 0.04329201309 | RJ14: 0.04331576855 | RK14: 0.04321552072 | RL14: 0.04321071048 | RM14: 0.04323755427 | RN14: 0.04318616351 | RO14: 0.04309916441 | RP14: 0.04315516891 | RQ14: 0.04309349212 | RR14: 0.04302121244 | RS14: 0.04298361919 | RT14: 0.04300648024 | RU14: 0.04312014731 | RV14: 0.0431860876 | RW14: 0.04313792875 | RX14: 0.04312593287 | RY14: 0.04304446064 | RZ14: 0.04304355322 | SA14: 0.04300095146 | SB14: 0.04291537323 | SC14: 0.042910128 | SD14: 0.04286352581 | SE14: 0.0428399047 | SF14: 0.04281173327 | SG14: 0.0428384392 | SH14: 0.04286917159 | SI14: 0.0427501094 | SJ14: 0.04283477854 | SK14: 0.04287300364 | SL14: 0.04291955552 | SM14: 0.04280890426 | SN14: 0.04277206253 | SO14: 0.04284536424 | SP14: 0.04282491119 | SQ14: 0.04275487303 | SR14: 0.04271925825 | SS14: 0.0426921633 | ST14: 0.04269561678 | SU14: 0.04268553381 | SV14: 0.04258720163 | SW14: 0.04267155054 | SX14: 0.0426959122 | SY14: 0.04274775977 | SZ14: 0.04276343002 | TA14: 0.04271065989 | TB14: 0.04271149833 | TC14: 0.04267565314 | TD14: 0.04268054677 | TE14: 0.04272358887 | TF14: 0.04262837625 | TG14: 0.04262307487 | TH14: 0.04264024829 | TI14: 0.04251804018 | TJ14: 0.0425835105 | TK14: 0.04261092884 | TL14: 0.0425654653 | TM14: 0.04259461868 | TN14: 0.0426837313 | TO14: 0.04273688911 | TP14: 0.04272808303 | TQ14: 0.04261782698 | TR14: 0.04256633889 | TS14: 0.04263159207 | TT14: 0.04266321005 | TU14: 0.04266001174 | TV14: 0.04267163424 | TW14: 0.04271912789 | TX14: 0.04282887181 | TY14: 0.04276438661 | TZ14: 0.04282655885 | UA14: 0.0428682214 | UB14: 0.04278379355 | UC14: 0.04281255676 | UD14: 0.0427977697 | UE14: 0.04281176624 | UF14: 0.04273992191 | UG14: 0.04271228268 | UH14: 0.0426773229 | UI14: 0.04266321228 | UJ14: 0.04265400502 | UK14: 0.04259429275 | UL14: 0.04262939012 | UM14: 0.04259440828 | UN14: 0.04265312571 | UO14: 0.04269474612 | UP14: 0.04270847364 | UQ14: 0.04273883854 | UR14: 0.04272454122 | US14: 0.04272117719 | UT14: 0.04270824175 | UU14: 0.04267236133 | UV14: 0.04262915218 | UW14: 0.04270012936 | UX14: 0.04259817638 | UY14: 0.04251118608 | UZ14: 0.04243636965 | VA14: 0.04240455515 | VB14: 0.04251853882 | VC14: 0.04240866845 | VD14: 0.04240846568 | VE14: 0.04244259165 | VF14: 0.0423903105 | VG14: 0.0422909519 | VH14: 0.04235527763 | VI14: 0.04233735412 | VJ14: 0.04234011929 | VK14: 0.04230091914 | VL14: 0.04232451209 | VM14: 0.04246435626 | VN14: 0.04253066389 | VO14: 0.04247723657 | VP14: 0.04245565078 | VQ14: 0.04236472618 | VR14: 0.04243659198 | VS14: 0.04238679107 | VT14: 0.04238823824 | VU14: 0.04239184521 | VV14: 0.04234361942 | VW14: 0.04231312426 | VX14: 0.0424215725 | VY14: 0.04240322625 | VZ14: 0.04243084921 | WA14: 0.04242912913 | WB14: 0.04246101129 | WC14: 0.04234955871 | WD14: 0.04239164015 | WE14: 0.04225424167 | WF14: 0.04220629625 | WG14: 0.04217477911 | WH14: 0.04215573779 | WI14: 0.0420629467 | WJ14: 0.04200173433 | WK14: 0.04197674219 | WL14: 0.0419636078 | WM14: 0.04193906226 | WN14: 0.04183088707 | WO14: 0.04184818465 | WP14: 0.04187896031 | WQ14: 0.04192688254 | WR14: 0.04195337814 | WS14: 0.04189382036 | WT14: 0.04189802309 | WU14: 0.04200334667 | WV14: 0.04209799774 | WW14: 0.0421491981 | WX14: 0.04212926443 | WY14: 0.04211674605 | WZ14: 0.04209487978 | XA14: 0.04209202378 | XB14: 0.04201831667 | XC14: 0.04204279718 | XD14: 0.04198930426 | XE14: 0.04202789662 | XF14: 0.04212331265 | XG14: 0.04217867051 | XH14: 0.04217164508 | XI14: 0.04199295345 | XJ14: 0.0419435216 | XK14: 0.04201557839 | XL14: 0.04205832174 | XM14: 0.04205564708 | XN14: 0.04205716357 | XO14: 0.04212747127 | XP14: 0.0421909106 | XQ14: 0.04219440393 | XR14: 0.04229895804 | XS14: 0.0423118044 | XT14: 0.04220159794 | XU14: 0.04224230215 | XV14: 0.04229508813 | XW14: 0.04249479528 | XX14: 0.04242066445 | XY14: 0.0423834505 | XZ14: 0.04234376714 | YA14: 0.04252268549 | YB14: 0.04259160032 | YC14: 0.04253068965 | YD14: 0.04256464307 | YE14: 0.04269068278 | YF14: 0.04270162773 | YG14: 0.04274151097 | YH14: 0.04276257119 | YI14: 0.04281177206 | YJ14: 0.04294314298 | YK14: 0.04285618165 | YL14: 0.04283876521 | YM14: 0.04292203462 | YN14: 0.04287196184 | YO14: 0.04287543618 | YP14: 0.04275782552 | YQ14: 0.04282284179 | YR14: 0.04283941953 | YS14: 0.04279986409 | YT14: 0.04292931804 | YU14: 0.04296059832 | YV14: 0.04296598406 | YW14: 0.04299013353 | YX14: 0.04299174185 | YY14: 0.04286958111 | YZ14: 0.0429426623 | ZA14: 0.04291483938 | ZB14: 0.04291120266 | ZC14: 0.04283055914 | ZD14: 0.04285185079 | ZE14: 0.04287329892 | ZF14: 0.0429381582 | ZG14: 0.04292061487 | ZH14: 0.04288820671 | ZI14: 0.04278210847 | ZJ14: 0.04286104171 | ZK14: 0.04280112037 | ZL14: 0.04279507075 | ZM14: 0.04288520383 | ZN14: 0.04283481756 | ZO14: 0.0427939151 | ZP14: 0.04294252359 | ZQ14: 0.0429108823 | ZR14: 0.0429320847 | ZS14: 0.04292261602 | ZT14: 0.04301363161 | ZU14: 0.0428722309 | ZV14: 0.04292894 | ZW14: 0.04295441584 | ZX14: 0.04299125888 | ZY14: 0.0430675916 | ZZ14: 0.04304863679 | AAA14: 0.04310253984 | AAB14: 0.04303583486 | AAC14: 0.04301101718 | AAD14: 0.04298676414 | AAE14: 0.04293501525 | AAF14: 0.04297647948 | AAG14: 0.04299015581 | AAH14: 0.0430230025 | AAI14: 0.04306912578 | AAJ14: 0.04310486225 | AAK14: 0.04303613953 | AAL14: 0.04304236252 | AAM14: 0.04316167313 | AAN14: 0.04326444159 | AAO14: 0.04332092854 | AAP14: 0.04318083674 | AAQ14: 0.04333672618 | AAR14: 0.04334213368 | AAS14: 0.04330874544 | AAT14: 0.04332182863 | AAU14: 0.04347184687 | AAV14: 0.04347822023 | AAW14: 0.04355670916 | AAX14: 0.04365823013 | AAY14: 0.04371404 | AAZ14: 0.04370719407 | ABA14: 0.04369203538 | ABB14: 0.04364040882 | ABC14: 0.04371759545 | ABD14: 0.04376799387 | ABE14: 0.04389599469 | ABF14: 0.04388364697 | ABG14: 0.04396178988 | ABH14: 0.04398263048 | ABI14: 0.04398685391 | ABJ14: 0.04405161127 | ABK14: 0.04411071759 | ABL14: 0.04415811789 | ABM14: 0.04420937601 | ABN14: 0.04420369841 | ABO14: 0.04423091034 | ABP14: 0.04414899826 | ABQ14: 0.04409960855 | ABR14: 0.04405341126 | ABS14: 0.04407974028 | ABT14: 0.04416091219 | ABU14: 0.04421948575 | ABV14: 0.04425045931 | ABW14: 0.04427004224 | ABX14: 0.04435203853 | ABY14: 0.04438875347 | ABZ14: 0.04442997494 | ACA14: 0.04444053234 | ACB14: 0.04459569503 | ACC14: 0.04449354703 | ACD14: 0.04447188622 | ACE14: 0.0444753817 | ACF14: 0.04444559084 | ACG14: 0.04453147754 | ACH14: 0.04453565239 | ACI14: 0.04460986035 | ACJ14: 0.04463029117 | ACK14: 0.04458251023 | ACL14: 0.04459869327 | ACM14: 0.04463693519 | ACN14: 0.044646824 | ACO14: 0.04467717586 | ACP14: 0.04467574809 | ACQ14: 0.0446700887 | ACR14: 0.04475064569 | ACS14: 0.0447120858 | ACT14: 0.0446177572 | ACU14: 0.04457288582 | ACV14: 0.04459014643 | ACW14: 0.04462294412 | ACX14: 0.04468659069 | ACY14: 0.0446175903 | ACZ14: 0.04457419569 | ADA14: 0.04458814951 | ADB14: 0.04462101569 | ADC14: 0.04454952909 | ADD14: 0.04453925816 | ADE14: 0.04463640644 | ADF14: 0.04458225693 | ADG14: 0.0445698825 | ADH14: 0.04459259052 | ADI14: 0.0445453822 | ADJ14: 0.04449310382 | ADK14: 0.04447213785 | ADL14: 0.04456930693 | ADM14: 0.04463542421 | ADN14: 0.04469480811 | ADO14: 0.04467322817 | ADP14: 0.04459548642 | ADQ14: 0.04467283781 | ADR14: 0.04465415062 | ADS14: 0.04463969989 | ADT14: 0.0446283863 | ADU14: 0.04460405138 | ADV14: 0.04458403672 | ADW14: 0.04458104509 | ADX14: 0.04463043117 | ADY14: 0.0446388136 | ADZ14: 0.04467193154 | AEA14: 0.04468037318 | AEB14: 0.04475160131 | AEC14: 0.04476697704 | AED14: 0.04493981735 | AEE14: 0.04495591033 | AEF14: 0.04506773455 | AEG14: 0.04512849869 | AEH14: 0.04511720961 | AEI14: 0.0451351983 | AEJ14: 0.04513193507 | AEK14: 0.04510905407 | AEL14: 0.04512047943 | AEM14: 0.0451345876 | AEN14: 0.04505987035 | AEO14: 0.04511297276 | AEP14: 0.04513771583 | AEQ14: 0.04519315567 | AER14: 0.04521111023 | AES14: 0.04518320098 | AET14: 0.04526074669 | AEU14: 0.04534283911 | AEV14: 0.04540083671 | AEW14: 0.04554915426 | AEX14: 0.04547023951 | AEY14: 0.04555668297 | AEZ14: 0.04557739863 | AFA14: 0.04557654578 | AFB14: 0.04564127598 | AFC14: 0.04570921624 | AFD14: 0.04568998959 | AFE14: 0.04575573125 | AFF14: 0.04575513621 | AFG14: 0.04578754715 | AFH14: 0.04574520196 | AFI14: 0.04577074511 | AFJ14: 0.04570459037 | AFK14: 0.04569500552 | AFL14: 0.04579162477 | AFM14: 0.04585840313 | AFN14: 0.04582700673 | AFO14: 0.04585637472 | AFP14: 0.04594134047 | AFQ14: 0.04597379662 | AFR14: 0.04602061822 | AFS14: 0.04603634897 | AFT14: 0.04599069863 | AFU14: 0.04599396954 | AFV14: 0.04596956444 | AFW14: 0.0459703872 | AFX14: 0.04592314956 | AFY14: 0.04601605567 | AFZ14: 0.04601376744 | AGA14: 0.04600267381 | AGB14: 0.04589371563 | AGC14: 0.0458392374 | AGD14: 0.04589291104 | AGE14: 0.0458762982 | AGF14: 0.04593171761 | AGG14: 0.04596590301 | AGH14: 0.04608143254 | AGI14: 0.04607969619 | AGJ14: 0.04616804626 | AGK14: 0.04608678815 | AGL14: 0.04598175444 | AGM14: 0.04593490581 | AGN14: 0.04594725602 | AGO14: 0.04598905008 | AGP14: 0.0460533495 | AGQ14: 0.04597676786 | AGR14: 0.04592293975 | AGS14: 0.045766836 | AGT14: 0.04577554602 | AGU14: 0.04569318759 | AGV14: 0.04568121292 | AGW14: 0.04569292269 | AGX14: 0.0456368349 | AGY14: 0.04562029021 | AGZ14: 0.04565340563 | AHA14: 0.04558636519 | AHB14: 0.04552526414 | AHC14: 0.04549539207 | AHD14: 0.04550352946 | AHE14: 0.04558077363 | AHF14: 0.04564240394 | AHG14: 0.04560937792 | AHH14: 0.04551191328 | AHI14: 0.04559116141 | AHJ14: 0.04557475733 | AHK14: 0.04554931634 | AHL14: 0.04552950903 | AHM14: 0.04550771495 | AHN14: 0.04547742335 | AHO14: 0.04546707359 | AHP14: 0.04545066132 | AHQ14: 0.04558629704 | AHR14: 0.04544425825 | AHS14: 0.04534788723 | AHT14: 0.0454233011 | AHU14: 0.045443503 | AHV14: 0.04546621385 | AHW14: 0.04538478121 | AHX14: 0.0453642905 | AHY14: 0.04542921338 | AHZ14: 0.04541134884 | AIA14: 0.04536825376 | AIB14: 0.04535654469 | AIC14: 0.04532957101 | AID14: 0.04533912217 | AIE14: 0.04534621205 | AIF14: 0.04526309675 | AIG14: 0.04532473752 | AIH14: 0.04544254629 | AII14: 0.04549728142 | AIJ14: 0.04549580295 | AIK14: 0.04545825402 | AIL14: 0.04554491412 | AIM14: 0.04552365129 | AIN14: 0.0455459116 | AIO14: 0.04574441806 | AIP14: 0.04565906708 | AIQ14: 0.04566189965 | AIR14: 0.04568215006 | AIS14: 0.04558223648 | AIT14: 0.04564684441 | AIU14: 0.04572500758 | AIV14: 0.04569567104 | AIW14: 0.04578526431 | AIX14: 0.04579311275 | AIY14: 0.04583421132 | AIZ14: 0.0458286551 | AJA14: 0.04575349502 | AJB14: 0.04569940784 | AJC14: 0.04569461653 | AJD14: 0.04565855534 | AJE14: 0.04558578101 | AJF14: 0.04554578023 | AJG14: 0.04558461795 | AJH14: 0.04567280531 | AJI14: 0.04562169097 | AJJ14: 0.04567393022 | AJK14: 0.04569643313 | AJL14: 0.04564052974 | AJM14: 0.04564958193 | AJN14: 0.04562603712 | AJO14: 0.04562866455 | AJP14: 0.04556006554 | AJQ14: 0.04566022122 | AJR14: 0.0456398911 | AJS14: 0.04562478456 | AJT14: 0.04550496571 | AJU14: 0.04544721629 | AJV14: 0.04547622366 | AJW14: 0.04545058982 | AJX14: 0.04547617761 | AJY14: 0.04554642253 | AJZ14: 0.04554731639 | AKA14: 0.04555284909 | AKB14: 0.04554908862 | AKC14: 0.04554521028 | AKD14: 0.04542918462 | AKE14: 0.04538418186 | AKF14: 0.04539223558 | AKG14: 0.04544315421 | AKH14: 0.0454521848 | AKI14: 0.04537194998 | AKJ14: 0.04531101027 | AKK14: 0.04530143388 | AKL14: 0.04539833142 | AKM14: 0.04530768168 | AKN14: 0.04529720534 | AKO14: 0.04531416041 | AKP14: 0.04525908121 | AKQ14: 0.04518489775 | AKR14: 0.04522769403 | AKS14: 0.04509850843 | AKT14: 0.04503156675 | AKU14: 0.04499680845 | AKV14: 0.04501433477 | AKW14: 0.04510471855 | AKX14: 0.04516834839 | AKY14: 0.04512751971 | AKZ14: 0.04500267473 | ALA14: 0.04493174304 | ALB14: 0.0449206695 | ALC14: 0.0448872329 | ALD14: 0.04480743562 | ALE14: 0.04479140014 | ALF14: 0.04474698816 | ALG14: 0.04473090628 | ALH14: 0.04470743346 | ALI14: 0.04470499102 | ALJ14: 0.04473727451 | ALK14: 0.04474299244 | ALL14: 0.04475459883 | ALM14: 0.04466126892 | ALN14: 0.04469601542 | ALO14: 0.04460353228 | ALP14: 0.0445763569 | ALQ14: 0.0445622154
A15: Settlements/Year | B15: 4 | D15: Pfad 11 | E15: 0.04 | F15: 0.03998562936 | G15: 0.03994006931 | H15: 0.03989382361 | I15: 0.03987210149 | J15: 0.03975845727 | K15: 0.03976407374 | L15: 0.03968443506 | M15: 0.03975642156 | N15: 0.0398909583 | O15: 0.03994677198 | P15: 0.03995624079 | Q15: 0.03991893088 | R15: 0.03992324429 | S15: 0.0400149787 | T15: 0.0400255054 | U15: 0.04005638499 | V15: 0.03997672765 | W15: 0.03998145661 | X15: 0.0400048012 | Y15: 0.03990891423 | Z15: 0.03997479032 | AA15: 0.0400054567 | AB15: 0.03997556851 | AC15: 0.03999469754 | AD15: 0.04007538714 | AE15: 0.04012491828 | AF15: 0.0401212561 | AG15: 0.04004349886 | AH15: 0.03999752057 | AI15: 0.04005410847 | AJ15: 0.04022565195 | AK15: 0.04023186133 | AL15: 0.04025435319 | AM15: 0.04030635809 | AN15: 0.04039854939 | AO15: 0.04034866941 | AP15: 0.0404072778 | AQ15: 0.04050647837 | AR15: 0.04044764715 | AS15: 0.04046776096 | AT15: 0.04049719703 | AU15: 0.04061707061 | AV15: 0.04055417747 | AW15: 0.04053971549 | AX15: 0.04051713929 | AY15: 0.04062643158 | AZ15: 0.04067088991 | BA15: 0.04061833554 | BB15: 0.04065332531 | BC15: 0.04072487966 | BD15: 0.04076435204 | BE15: 0.04080641826 | BF15: 0.04095033552 | BG15: 0.04096812543 | BH15: 0.04096441916 | BI15: 0.04096307551 | BJ15: 0.04096692265 | BK15: 0.04093058423 | BL15: 0.04089996972 | BM15: 0.04091532583 | BN15: 0.0408326121 | BO15: 0.04075695402 | BP15: 0.04069647695 | BQ15: 0.04067913109 | BR15: 0.04078179046 | BS15: 0.04069158868 | BT15: 0.04068865757 | BU15: 0.04080989801 | BV15: 0.04076298041 | BW15: 0.0406861791 | BX15: 0.0407397829 | BY15: 0.04068353048 | BZ15: 0.04061856862 | CA15: 0.04058621377 | CB15: 0.04050278144 | CC15: 0.04060822366 | CD15: 0.04058191448 | CE15: 0.04054095528 | CF15: 0.04053783286 | CG15: 0.04046583243 | CH15: 0.04052842767 | CI15: 0.04049321089 | CJ15: 0.04041724284 | CK15: 0.04041244486 | CL15: 0.04037138489 | CM15: 0.04035405155 | CN15: 0.04043846532 | CO15: 0.04043398751 | CP15: 0.04046728664 | CQ15: 0.04047397037 | CR15: 0.04055722254 | CS15: 0.04059399995 | CT15: 0.04063896432 | CU15: 0.04054092532 | CV15: 0.04051110753 | CW15: 0.04049424901 | CX15: 0.04061043032 | CY15: 0.04055083996 | CZ15: 0.04049869736 | DA15: 0.04047509053 | DB15: 0.04033704645 | DC15: 0.04033358691 | DD15: 0.04035867748 | DE15: 0.04037894288 | DF15: 0.04040135597 | DG15: 0.04045489804 | DH15: 0.04046999551 | DI15: 0.04042432133 | DJ15: 0.04042745397 | DK15: 0.04039829498 | DL15: 0.04040661431 | DM15: 0.04038895868 | DN15: 0.0403023215 | DO15: 0.04030183739 | DP15: 0.04030827345 | DQ15: 0.04020013084 | DR15: 0.04014375792 | DS15: 0.04017347641 | DT15: 0.04013533053 | DU15: 0.04021107753 | DV15: 0.04029762756 | DW15: 0.04035049844 | DX15: 0.04034490298 | DY15: 0.04024966935 | DZ15: 0.04020265527 | EA15: 0.0402658644 | EB15: 0.04029459324 | EC15: 0.04031337704 | ED15: 0.04026664075 | EE15: 0.04031580468 | EF15: 0.04026133595 | EG15: 0.0402046319 | EH15: 0.04020306529 | EI15: 0.04030867825 | EJ15: 0.04023636512 | EK15: 0.04026389323 | EL15: 0.04030430953 | EM15: 0.04043722752 | EN15: 0.04037158279 | EO15: 0.04035033251 | EP15: 0.04032143953 | EQ15: 0.04044656844 | ER15: 0.04049982596 | ES15: 0.04044514393 | ET15: 0.04048135398 | EU15: 0.04056739534 | EV15: 0.04064064564 | EW15: 0.04044949211 | EX15: 0.04063452464 | EY15: 0.04070711887 | EZ15: 0.04069790515 | FA15: 0.0406966355 | FB15: 0.04077561392 | FC15: 0.04084642236 | FD15: 0.04080894498 | FE15: 0.04081411439 | FF15: 0.04072137184 | FG15: 0.0407734886 | FH15: 0.04078544718 | FI15: 0.0407592917 | FJ15: 0.0408688443 | FK15: 0.04089102859 | FL15: 0.04089107464 | FM15: 0.0410281769 | FN15: 0.04110827577 | FO15: 0.04128855637 | FP15: 0.0413192657 | FQ15: 0.0412603318 | FR15: 0.04128568379 | FS15: 0.0414122448 | FT15: 0.04131429428 | FU15: 0.04135523801 | FV15: 0.04131979766 | FW15: 0.04136981694 | FX15: 0.04134191654 | FY15: 0.04125809048 | FZ15: 0.04132730565 | GA15: 0.04129721579 | GB15: 0.04120319562 | GC15: 0.0412827025 | GD15: 0.04123749529 | GE15: 0.041211739 | GF15: 0.04131181123 | GG15: 0.04129837324 | GH15: 0.04127139949 | GI15: 0.04114640188 | GJ15: 0.04111423987 | GK15: 0.04114020991 | GL15: 0.04108841958 | GM15: 0.04097050392 | GN15: 0.04093077416 | GO15: 0.04090567045 | GP15: 0.04104412889 | GQ15: 0.04096705234 | GR15: 0.0409098642 | GS15: 0.0409333878 | GT15: 0.04092993071 | GU15: 0.04091507899 | GV15: 0.04094594884 | GW15: 0.04096514962 | GX15: 0.04099421001 | GY15: 0.04104480062 | GZ15: 0.04110365265 | HA15: 0.04104962629 | HB15: 0.04105471174 | HC15: 0.04101652269 | HD15: 0.04102103523 | HE15: 0.04099223323 | HF15: 0.04104471061 | HG15: 0.04103754753 | HH15: 0.04102316328 | HI15: 0.04088491209 | HJ15: 0.04081868045 | HK15: 0.04084596997 | HL15: 0.04083627598 | HM15: 0.04091334605 | HN15: 0.04100563429 | HO15: 0.04106068041 | HP15: 0.04105419673 | HQ15: 0.04093019116 | HR15: 0.04088194881 | HS15: 0.04095108736 | HT15: 0.04098936635 | HU15: 0.04109594288 | HV15: 0.04110798801 | HW15: 0.04115565583 | HX15: 0.04108854779 | HY15: 0.04102259632 | HZ15: 0.04100912087 | IA15: 0.04113195426 | IB15: 0.0411007916 | IC15: 0.04115888372 | ID15: 0.04120870242 | IE15: 0.04136866464 | IF15: 0.04129851275 | IG15: 0.0412664884 | IH15: 0.04123057557 | II15: 0.04138481344 | IJ15: 0.04144956148 | IK15: 0.04149771719 | IL15: 0.04153257182 | IM15: 0.04164314815 | IN15: 0.04172035895 | IO15: 0.04170580145 | IP15: 0.04168256936 | IQ15: 0.04176078392 | IR15: 0.04174204347 | IS15: 0.04187176126 | IT15: 0.04196426609 | IU15: 0.04204409851 | IV15: 0.04199798223 | IW15: 0.04200367139 | IX15: 0.04189458269 | IY15: 0.04195617005 | IZ15: 0.04197169905 | JA15: 0.04202661866 | JB15: 0.04214732322 | JC15: 0.04217632306 | JD15: 0.04221452841 | JE15: 0.0422340432 | JF15: 0.04232422468 | JG15: 0.04231585455 | JH15: 0.04232366884 | JI15: 0.04226220002 | JJ15: 0.04229428072 | JK15: 0.04231752036 | JL15: 0.04219885205 | JM15: 0.04223611979 | JN15: 0.04218982785 | JO15: 0.04220368944 | JP15: 0.04217924042 | JQ15: 0.04208042203 | JR15: 0.04215668406 | JS15: 0.04216211207 | JT15: 0.04215868883 | JU15: 0.04224579195 | JV15: 0.04219731211 | JW15: 0.04219877054 | JX15: 0.04232683326 | JY15: 0.04230043188 | JZ15: 0.04226255562 | KA15: 0.04230401464 | KB15: 0.04226044776 | KC15: 0.04229324287 | KD15: 0.04221827734 | KE15: 0.04221657121 | KF15: 0.04218635941 | KG15: 0.04215018882 | KH15: 0.04216693926 | KI15: 0.04212622903 | KJ15: 0.04206305058 | KK15: 0.04209924421 | KL15: 0.04208006259 | KM15: 0.04201523967 | KN15: 0.04205407129 | KO15: 0.04206961999 | KP15: 0.04198640522 | KQ15: 0.04191849297 | KR15: 0.04198330261 | KS15: 0.04199527302 | KT15: 0.04212769133 | KU15: 0.04211782762 | KV15: 0.04200973622 | KW15: 0.04196372515 | KX15: 0.04202624809 | KY15: 0.04200724647 | KZ15: 0.04198036665 | LA15: 0.04204927877 | LB15: 0.04197037048 | LC15: 0.0419926424 | LD15: 0.04200009552 | LE15: 0.04207762639 | LF15: 0.04217615765 | LG15: 0.04223197603 | LH15: 0.04237701901 | LI15: 0.04235663848 | LJ15: 0.04242257906 | LK15: 0.0424975581 | LL15: 0.04254496223 | LM15: 0.0426661147 | LN15: 0.04260150322 | LO15: 0.04261191372 | LP15: 0.04253145209 | LQ15: 0.04254977698 | LR15: 0.04252589045 | LS15: 0.04254539418 | LT15: 0.04251298034 | LU15: 0.04257524276 | LV15: 0.04263225588 | LW15: 0.04265498962 | LX15: 0.04271813694 | LY15: 0.04267500193 | LZ15: 0.04277903942 | MA15: 0.04279907174 | MB15: 0.04287506855 | MC15: 0.0429306565 | MD15: 0.04291934217 | ME15: 0.04293275455 | MF15: 0.04301325884 | MG15: 0.04305154744 | MH15: 0.04301651876 | MI15: 0.0430994992 | MJ15: 0.04307993905 | MK15: 0.04323093008 | ML15: 0.04333738342 | MM15: 0.04342540516 | MN15: 0.04337162405 | MO15: 0.04337231697 | MP15: 0.04324346892 | MQ15: 0.04331389148 | MR15: 0.04333317995 | MS15: 0.04340313574 | MT15: 0.04334947599 | MU15: 0.04338520095 | MV15: 0.04343141699 | MW15: 0.04345978633 | MX15: 0.04355948289 | MY15: 0.04355345061 | MZ15: 0.04355983766 | NA15: 0.04362887462 | NB15: 0.04366714399 | NC15: 0.04369965477 | ND15: 0.04355038476 | NE15: 0.04358341639 | NF15: 0.043526431 | NG15: 0.04354545473 | NH15: 0.04352369994 | NI15: 0.04353059041 | NJ15: 0.0436128172 | NK15: 0.04361633806 | NL15: 0.04371735632 | NM15: 0.04381131191 | NN15: 0.04385347509 | NO15: 0.04384410921 | NP15: 0.04386068236 | NQ15: 0.04380907119 | NR15: 0.04376119456 | NS15: 0.04374547318 | NT15: 0.04383881684 | NU15: 0.04390096554 | NV15: 0.04395908967 | NW15: 0.04394387694 | NX15: 0.04387354593 | NY15: 0.04382641195 | NZ15: 0.04380797081 | OA15: 0.04379952748 | OB15: 0.0437299237 | OC15: 0.04377447907 | OD15: 0.04382867734 | OE15: 0.04375574567 | OF15: 0.04380189153 | OG15: 0.04381255601 | OH15: 0.04371017327 | OI15: 0.04363045209 | OJ15: 0.04369978382 | OK15: 0.04371420207 | OL15: 0.04386868792 | OM15: 0.04385423976 | ON15: 0.04372663491 | OO15: 0.043658676 | OP15: 0.04373053625 | OQ15: 0.04370228091 | OR15: 0.04366500725 | OS15: 0.04374486932 | OT15: 0.04365259792 | OU15: 0.04362098965 | OV15: 0.04362850801 | OW15: 0.04370796918 | OX15: 0.04367850011 | OY15: 0.04365406874 | OZ15: 0.04385139728 | PA15: 0.04383295413 | PB15: 0.04390703372 | PC15: 0.04389734771 | PD15: 0.04392908848 | PE15: 0.04406703119 | PF15: 0.04408654683 | PG15: 0.04399155777 | PH15: 0.04389637351 | PI15: 0.04391900259 | PJ15: 0.04388490771 | PK15: 0.0438044575 | PL15: 0.04377199355 | PM15: 0.04383784131 | PN15: 0.04382543742 | PO15: 0.04378264379 | PP15: 0.04385453473 | PQ15: 0.04382933339 | PR15: 0.04384545926 | PS15: 0.0438524384 | PT15: 0.04389975133 | PU15: 0.04396343947 | PV15: 0.0439389356 | PW15: 0.04399374028 | PX15: 0.04407727673 | PY15: 0.04404040128 | PZ15: 0.04399205045 | QA15: 0.04407964104 | QB15: 0.04405299416 | QC15: 0.04406160734 | QD15: 0.04418598702 | QE15: 0.04428269168 | QF15: 0.04430116238 | QG15: 0.0442031553 | QH15: 0.04423028488 | QI15: 0.04431063714 | QJ15: 0.04433503652 | QK15: 0.04443168918 | QL15: 0.04436577366 | QM15: 0.04440959984 | QN15: 0.04446268417 | QO15: 0.0443876467 | QP15: 0.04449787119 | QQ15: 0.04449571342 | QR15: 0.0444986241 | QS15: 0.04442759552 | QT15: 0.04433010012 | QU15: 0.04428597772 | QV15: 0.04427736203 | QW15: 0.04431610327 | QX15: 0.04424908787 | QY15: 0.04417819467 | QZ15: 0.04413078368 | RA15: 0.04399334727 | RB15: 0.0440815422 | RC15: 0.04408631035 | RD15: 0.04420017388 | RE15: 0.04430124849 | RF15: 0.04435147024 | RG15: 0.04433764465 | RH15: 0.04438094141 | RI15: 0.0443247638 | RJ15: 0.04426886598 | RK15: 0.04424375857 | RL15: 0.04434918235 | RM15: 0.04442187117 | RN15: 0.04448268859 | RO15: 0.04445541304 | RP15: 0.04436839473 | RQ15: 0.04431171598 | RR15: 0.04435296221 | RS15: 0.04433313414 | RT15: 0.04425945422 | RU15: 0.04423796666 | RV15: 0.04430503822 | RW15: 0.04422656237 | RX15: 0.04426717892 | RY15: 0.04425596417 | RZ15: 0.04413117723 | SA15: 0.04404168357 | SB15: 0.0441154059 | SC15: 0.04413445208 | SD15: 0.04414956331 | SE15: 0.04407545993 | SF15: 0.04388892016 | SG15: 0.0438291289 | SH15: 0.04391194193 | SI15: 0.04387820869 | SJ15: 0.04392628922 | SK15: 0.04401932979 | SL15: 0.04402898052 | SM15: 0.0439886666 | SN15: 0.04399899155 | SO15: 0.04392824886 | SP15: 0.04389027197 | SQ15: 0.04385685702 | SR15: 0.0438851595 | SS15: 0.0438716967 | ST15: 0.04395462201 | SU15: 0.04393825659 | SV15: 0.04396380024 | SW15: 0.04396071773 | SX15: 0.04398632554 | SY15: 0.04388129988 | SZ15: 0.04387750627 | TA15: 0.04390644847 | TB15: 0.043855222 | TC15: 0.04376213059 | TD15: 0.04373247079 | TE15: 0.04380166328 | TF15: 0.04380630932 | TG15: 0.04375190464 | TH15: 0.04383351446 | TI15: 0.04380630474 | TJ15: 0.04383310665 | TK15: 0.04383257804 | TL15: 0.04388027991 | TM15: 0.04395284706 | TN15: 0.04391897483 | TO15: 0.04397222719 | TP15: 0.044058788 | TQ15: 0.04401369502 | TR15: 0.0440644756 | TS15: 0.04415663423 | TT15: 0.04410773455 | TU15: 0.04411611113 | TV15: 0.04426889467 | TW15: 0.04437483462 | TX15: 0.0443103866 | TY15: 0.04430006204 | TZ15: 0.04428693381 | UA15: 0.04431405342 | UB15: 0.04433391226 | UC15: 0.04435088454 | UD15: 0.04427340853 | UE15: 0.04432124322 | UF15: 0.04438080925 | UG15: 0.04429138699 | UH15: 0.04441352626 | UI15: 0.04446933487 | UJ15: 0.04446851182 | UK15: 0.04446861068 | UL15: 0.04452285159 | UM15: 0.04457239223 | UN15: 0.04454950872 | UO15: 0.04457168213 | UP15: 0.04449511699 | UQ15: 0.04452667485 | UR15: 0.04451571297 | US15: 0.04453384286 | UT15: 0.0445163427 | UU15: 0.04463936243 | UV15: 0.04476908212 | UW15: 0.0447477856 | UX15: 0.0448062193 | UY15: 0.04479007146 | UZ15: 0.04482984161 | VA15: 0.04476986584 | VB15: 0.04470642258 | VC15: 0.04467447128 | VD15: 0.04459847164 | VE15: 0.0446381133 | VF15: 0.04461816237 | VG15: 0.04458169595 | VH15: 0.04447253042 | VI15: 0.04440655235 | VJ15: 0.04445653 | VK15: 0.04442745381 | VL15: 0.04448302777 | VM15: 0.04449288304 | VN15: 0.04457683853 | VO15: 0.04449321031 | VP15: 0.04453707495 | VQ15: 0.04451308222 | VR15: 0.04433354062 | VS15: 0.04423399837 | VT15: 0.04421596198 | VU15: 0.0442407657 | VV15: 0.04420207556 | VW15: 0.04418688831 | VX15: 0.04417240886 | VY15: 0.0441100772 | VZ15: 0.04414353845 | WA15: 0.04410551439 | WB15: 0.04417201927 | WC15: 0.04428126436 | WD15: 0.04429603289 | WE15: 0.04424804312 | WF15: 0.04436945109 | WG15: 0.04428810012 | WH15: 0.04424063122 | WI15: 0.04419826939 | WJ15: 0.04423728582 | WK15: 0.04422973142 | WL15: 0.04432185592 | WM15: 0.04429790835 | WN15: 0.04430424211 | WO15: 0.04429356824 | WP15: 0.04432560689 | WQ15: 0.0443273906 | WR15: 0.04419921237 | WS15: 0.04409797687 | WT15: 0.04404685567 | WU15: 0.04407426832 | WV15: 0.0440479048 | WW15: 0.04411969966 | WX15: 0.04411882414 | WY15: 0.04404990139 | WZ15: 0.04414195934 | XA15: 0.04411345994 | XB15: 0.04414881497 | XC15: 0.04413873853 | XD15: 0.04418570628 | XE15: 0.04420245197 | XF15: 0.04415992644 | XG15: 0.04421073394 | XH15: 0.04416230393 | XI15: 0.04410923876 | XJ15: 0.04402555946 | XK15: 0.04412244935 | XL15: 0.04406218582 | XM15: 0.04410201577 | XN15: 0.04412189778 | XO15: 0.04411590748 | XP15: 0.04414927942 | XQ15: 0.04402959178 | XR15: 0.04407481347 | XS15: 0.04410100343 | XT15: 0.04413162497 | XU15: 0.04420645361 | XV15: 0.04411582103 | XW15: 0.04416714158 | XX15: 0.0440943458 | XY15: 0.04398681583 | XZ15: 0.04398075343 | YA15: 0.04404363171 | YB15: 0.04403850793 | YC15: 0.04403456415 | YD15: 0.04409831515 | YE15: 0.04415642482 | YF15: 0.04412462251 | YG15: 0.04405980822 | YH15: 0.04406234332 | YI15: 0.04416950448 | YJ15: 0.04426569322 | YK15: 0.04429185298 | YL15: 0.04426763542 | YM15: 0.04440501932 | YN15: 0.04455748096 | YO15: 0.04452893092 | YP15: 0.0445959922 | YQ15: 0.04472616135 | YR15: 0.04476169392 | YS15: 0.04469942973 | YT15: 0.04471406699 | YU15: 0.04480307655 | YV15: 0.04471577053 | YW15: 0.04475566074 | YX15: 0.04472697656 | YY15: 0.04479939973 | YZ15: 0.04484220662 | ZA15: 0.0448366019 | ZB15: 0.04483296938 | ZC15: 0.04490412765 | ZD15: 0.04496835799 | ZE15: 0.04496579028 | ZF15: 0.04507862215 | ZG15: 0.04513021794 | ZH15: 0.04517595877 | ZI15: 0.04514236782 | ZJ15: 0.04513124401 | ZK15: 0.04515115148 | ZL15: 0.04512435884 | ZM15: 0.04526760586 | ZN15: 0.04522706676 | ZO15: 0.04521229409 | ZP15: 0.0451884595 | ZQ15: 0.04516884209 | ZR15: 0.04520060903 | ZS15: 0.0453390601 | ZT15: 0.04534983669 | ZU15: 0.04538762866 | ZV15: 0.04540787257 | ZW15: 0.04535143435 | ZX15: 0.04548688707 | ZY15: 0.04539248352 | ZZ15: 0.04533337106 | AAA15: 0.04528089579 | AAB15: 0.04525938042 | AAC15: 0.04533934728 | AAD15: 0.04534583962 | AAE15: 0.04531280116 | AAF15: 0.04531705798 | AAG15: 0.04529662357 | AAH15: 0.04533539335 | AAI15: 0.04533136932 | AAJ15: 0.04516695292 | AAK15: 0.04519108546 | AAL15: 0.04518990587 | AAM15: 0.04505751444 | AAN15: 0.04513157794 | AAO15: 0.04509910684 | AAP15: 0.04509193718 | AAQ15: 0.04500276449 | AAR15: 0.04502175232 | AAS15: 0.04499224273 | AAT15: 0.04505609933 | AAU15: 0.04503316077 | AAV15: 0.04507812057 | AAW15: 0.04509322063 | AAX15: 0.04511278744 | AAY15: 0.04516014843 | AAZ15: 0.04510105438 | ABA15: 0.04503885982 | ABB15: 0.04503867058 | ABC15: 0.04514131574 | ABD15: 0.04531178509 | ABE15: 0.04527428555 | ABF15: 0.04529230955 | ABG15: 0.04527866882 | ABH15: 0.04531899946 | ABI15: 0.04515222561 | ABJ15: 0.04520823375 | ABK15: 0.04523130853 | ABL15: 0.04526767236 | ABM15: 0.04534365955 | ABN15: 0.0453222191 | ABO15: 0.04537538801 | ABP15: 0.04536937244 | ABQ15: 0.0452264181 | ABR15: 0.04521196199 | ABS15: 0.04528075628 | ABT15: 0.04514438475 | ABU15: 0.04525362745 | ABV15: 0.04528519965 | ABW15: 0.04533200618 | ABX15: 0.0453686113 | ABY15: 0.04529432768 | ABZ15: 0.04529910404 | ACA15: 0.04542523736 | ACB15: 0.04552981414 | ACC15: 0.04558630761 | ACD15: 0.04555255995 | ACE15: 0.04571750859 | ACF15: 0.04571916704 | ACG15: 0.04568057113 | ACH15: 0.04569158042 | ACI15: 0.04585010854 | ACJ15: 0.04587948227 | ACK15: 0.04592539685 | ACL15: 0.04594453226 | ACM15: 0.04605649154 | ACN15: 0.04595407443 | ACO15: 0.04593382543 | ACP15: 0.04587878975 | ACQ15: 0.04595650847 | ACR15: 0.04600742214 | ACS15: 0.04613941333 | ACT15: 0.04612115277 | ACU15: 0.04620050726 | ACV15: 0.04621980474 | ACW15: 0.04622114305 | ACX15: 0.04628518193 | ACY15: 0.04634520282 | ACZ15: 0.04639147261 | ADA15: 0.04634902543 | ADB15: 0.04634227571 | ADC15: 0.04636806088 | ADD15: 0.04633159374 | ADE15: 0.04634805596 | ADF15: 0.04629325175 | ADG15: 0.04632045505 | ADH15: 0.04640411073 | ADI15: 0.04633490395 | ADJ15: 0.04636377894 | ADK15: 0.04638400864 | ADL15: 0.04640230569 | ADM15: 0.04643702743 | ADN15: 0.04646403018 | ADO15: 0.04647406969 | ADP15: 0.04663957953 | ADQ15: 0.04653046989 | ADR15: 0.04650597557 | ADS15: 0.04650680034 | ADT15: 0.04647146021 | ADU15: 0.04655847038 | ADV15: 0.04640482342 | ADW15: 0.04648063265 | ADX15: 0.04650073942 | ADY15: 0.04644907703 | ADZ15: 0.04646595842 | AEA15: 0.04650482398 | AEB15: 0.04651440581 | AEC15: 0.04654443651 | AED15: 0.04654109444 | AEE15: 0.04653442225 | AEF15: 0.04661618631 | AEG15: 0.0465732063 | AEH15: 0.04647372536 | AEI15: 0.04642602901 | AEJ15: 0.04644096033 | AEK15: 0.04647449199 | AEL15: 0.04640704667 | AEM15: 0.04642758511 | AEN15: 0.0464051146 | AEO15: 0.04627063018 | AEP15: 0.04635642219 | AEQ15: 0.04635792848 | AER15: 0.04634539916 | AES15: 0.04644391995 | AET15: 0.04638680168 | AEU15: 0.0463292944 | AEV15: 0.04635300917 | AEW15: 0.04629989536 | AEX15: 0.04631059712 | AEY15: 0.04628834884 | AEZ15: 0.04638746156 | AFA15: 0.0464551557 | AFB15: 0.04651430452 | AFC15: 0.04648682507 | AFD15: 0.04639954445 | AFE15: 0.04634147102 | AFF15: 0.0463790943 | AFG15: 0.04635904994 | AFH15: 0.0462827353 | AFI15: 0.0463325438 | AFJ15: 0.04629456713 | AFK15: 0.04628740973 | AFL15: 0.04633980712 | AFM15: 0.04634437109 | AFN15: 0.04637597198 | AFO15: 0.04638261196 | AFP15: 0.04645446598 | AFQ15: 0.04637018769 | AFR15: 0.04657605497 | AFS15: 0.04659319637 | AFT15: 0.04670809163 | AFU15: 0.04659923266 | AFV15: 0.04667909231 | AFW15: 0.04664028147 | AFX15: 0.04659329713 | AFY15: 0.04656742585 | AFZ15: 0.04646078681 | AGA15: 0.04647014154 | AGB15: 0.04647741311 | AGC15: 0.04656097631 | AGD15: 0.04667154485 | AGE15: 0.04672541734 | AGF15: 0.04672031405 | AGG15: 0.04668717327 | AGH15: 0.04663193012 | AGI15: 0.04671500856 | AGJ15: 0.04677521341 | AGK15: 0.04693334909 | AGL15: 0.04685017113 | AGM15: 0.04693935325 | AGN15: 0.04682714667 | AGO15: 0.04673055238 | AGP15: 0.04668576625 | AGQ15: 0.04670947138 | AGR15: 0.04667545371 | AGS15: 0.04674272362 | AGT15: 0.04681095526 | AGU15: 0.04684753447 | AGV15: 0.04673694936 | AGW15: 0.04666798605 | AGX15: 0.04661438233 | AGY15: 0.04665381245 | AGZ15: 0.04675730188 | AHA15: 0.04682703079 | AHB15: 0.04685114002 | AHC15: 0.04688301985 | AHD15: 0.04696805615 | AHE15: 0.04692041046 | AHF15: 0.04685580133 | AHG15: 0.04694635482 | AHH15: 0.04689518722 | AHI15: 0.04691961697 | AHJ15: 0.04706510406 | AHK15: 0.04716891989 | AHL15: 0.04710077913 | AHM15: 0.04708835866 | AHN15: 0.04707598175 | AHO15: 0.04716470078 | AHP15: 0.04719244948 | AHQ15: 0.04720421991 | AHR15: 0.04722870433 | AHS15: 0.04727902449 | AHT15: 0.04733573838 | AHU15: 0.04736974568 | AHV15: 0.04748951462 | AHW15: 0.04754203799 | AHX15: 0.04753873718 | AHY15: 0.04753920106 | AHZ15: 0.0475900947 | AIA15: 0.0476360117 | AIB15: 0.04761202934 | AIC15: 0.04763259289 | AID15: 0.0475524401 | AIE15: 0.04758024617 | AIF15: 0.04756514394 | AIG15: 0.04738801394 | AIH15: 0.04748031703 | AII15: 0.04748420555 | AIJ15: 0.04747083257 | AIK15: 0.04757769837 | AIL15: 0.04751953789 | AIM15: 0.04750057323 | AIN15: 0.04753569773 | AIO15: 0.04747209602 | AIP15: 0.04747788768 | AIQ15: 0.0475474427 | AIR15: 0.04746842798 | AIS15: 0.04750573588 | AIT15: 0.0474842703 | AIU15: 0.04749666182 | AIV15: 0.04745638739 | AIW15: 0.04738724425 | AIX15: 0.04743357586 | AIY15: 0.04738826922 | AIZ15: 0.04730697428 | AJA15: 0.04736466224 | AJB15: 0.04731971751 | AJC15: 0.04723221958 | AJD15: 0.04729490841 | AJE15: 0.04729312367 | AJF15: 0.047130053 | AJG15: 0.04702704237 | AJH15: 0.04700716927 | AJI15: 0.04712870279 | AJJ15: 0.0470980115 | AJK15: 0.0470793311 | AJL15: 0.04706420916 | AJM15: 0.04705290764 | AJN15: 0.04714512372 | AJO15: 0.04710374461 | AJP15: 0.04704965768 | AJQ15: 0.04715521859 | AJR15: 0.04703445785 | AJS15: 0.04703660772 | AJT15: 0.04704752994 | AJU15: 0.04705779102 | AJV15: 0.04717922128 | AJW15: 0.04723189047 | AJX15: 0.04726648648 | AJY15: 0.0473367329 | AJZ15: 0.04734456914 | AKA15: 0.0473182271 | AKB15: 0.04733678422 | AKC15: 0.04732395663 | AKD15: 0.04735235688 | AKE15: 0.04735172244 | AKF15: 0.04722124845 | AKG15: 0.04725349632 | AKH15: 0.04719922693 | AKI15: 0.04722386687 | AKJ15: 0.04719281722 | AKK15: 0.04726281327 | AKL15: 0.04733772909 | AKM15: 0.04737990831 | AKN15: 0.04746928017 | AKO15: 0.04743661524 | AKP15: 0.04749978023 | AKQ15: 0.04748760288 | AKR15: 0.04753256126 | AKS15: 0.04754612086 | AKT15: 0.04755090084 | AKU15: 0.04760002548 | AKV15: 0.04754816 | AKW15: 0.0474914375 | AKX15: 0.04740661406 | AKY15: 0.04750187156 | AKZ15: 0.04746429884 | ALA15: 0.04749967908 | ALB15: 0.04751070426 | ALC15: 0.04762472554 | ALD15: 0.04755185281 | ALE15: 0.04753260208 | ALF15: 0.04750663217 | ALG15: 0.04753020651 | ALH15: 0.04755609924 | ALI15: 0.04762927394 | ALJ15: 0.04760348765 | ALK15: 0.04765207287 | ALL15: 0.04758301855 | ALM15: 0.04747261775 | ALN15: 0.04746376936 | ALO15: 0.0475236061 | ALP15: 0.04740342729 | ALQ15: 0.04749878617
A16: Non-Call Period (Periods) | B16: 2 | D16: Pfad 12 | E16: 0.04 | F16: 0.04006312816 | G16: 0.0401209756 | H16: 0.04009704455 | I16: 0.04011715575 | J16: 0.04004241983 | K16: 0.04008256235 | L16: 0.04009198097 | M16: 0.04014366148 | N16: 0.04012646926 | O16: 0.0402576073 | P16: 0.04027123214 | Q16: 0.04025015588 | R16: 0.0402620165 | S16: 0.04038592647 | T16: 0.04042475 | U16: 0.0404640836 | V16: 0.04048144475 | W16: 0.04056705464 | X16: 0.04049096616 | Y16: 0.04053310703 | Z16: 0.04051214583 | AA16: 0.04054013284 | AB16: 0.04051090323 | AC16: 0.04051022804 | AD16: 0.0405678696 | AE16: 0.04053551898 | AF16: 0.04055532902 | AG16: 0.0405601062 | AH16: 0.04062430082 | AI16: 0.04067625031 | AJ16: 0.04072369112 | AK16: 0.04069842707 | AL16: 0.04069190534 | AM16: 0.04071439661 | AN16: 0.04069524988 | AO16: 0.04082933494 | AP16: 0.04079760352 | AQ16: 0.04078809475 | AR16: 0.04077183714 | AS16: 0.04075963911 | AT16: 0.04086543132 | AU16: 0.0408304052 | AV16: 0.04078128716 | AW16: 0.04090576466 | AX16: 0.04078394324 | AY16: 0.04083399064 | AZ16: 0.04096321873 | BA16: 0.04088089698 | BB16: 0.04086643741 | BC16: 0.04083846722 | BD16: 0.04082456699 | BE16: 0.04090345417 | BF16: 0.04091479521 | BG16: 0.04082439343 | BH16: 0.04074480356 | BI16: 0.04073184217 | BJ16: 0.040771895 | BK16: 0.04065042975 | BL16: 0.04051084948 | BM16: 0.04055502561 | BN16: 0.04050346967 | BO16: 0.04038865337 | BP16: 0.04037138107 | BQ16: 0.04034743016 | BR16: 0.04026919821 | BS16: 0.04023231995 | BT16: 0.04025549566 | BU16: 0.04027813503 | BV16: 0.04034311882 | BW16: 0.04028776751 | BX16: 0.0402596169 | BY16: 0.04027905088 | BZ16: 0.04030055887 | CA16: 0.04024559638 | CB16: 0.04019694482 | CC16: 0.04020699927 | CD16: 0.04009790816 | CE16: 0.04019800991 | CF16: 0.04016914417 | CG16: 0.0402169208 | CH16: 0.04025038161 | CI16: 0.0403736732 | CJ16: 0.04046377533 | CK16: 0.04052143277 | CL16: 0.04057865222 | CM16: 0.0406056474 | CN16: 0.04064351552 | CO16: 0.04071959946 | CP16: 0.04070407248 | CQ16: 0.04075857102 | CR16: 0.04075962912 | CS16: 0.04073835297 | CT16: 0.04073066041 | CU16: 0.04079914833 | CV16: 0.04068014107 | CW16: 0.040785876 | CX16: 0.04085832496 | CY16: 0.0409238342 | CZ16: 0.0409611512 | DA16: 0.04097214715 | DB16: 0.04111042576 | DC16: 0.04122678031 | DD16: 0.04132871245 | DE16: 0.04138553644 | DF16: 0.04125720566 | DG16: 0.04140940952 | DH16: 0.04141651402 | DI16: 0.04138599664 | DJ16: 0.04140060523 | DK16: 0.04154770455 | DL16: 0.04148782594 | DM16: 0.04153430604 | DN16: 0.04155592161 | DO16: 0.04166100204 | DP16: 0.04157111965 | DQ16: 0.04161210643 | DR16: 0.04158153585 | DS16: 0.04162099067 | DT16: 0.041672027 | DU16: 0.04179832388 | DV16: 0.04173309018 | DW16: 0.04181121014 | DX16: 0.04183348279 | DY16: 0.04183994008 | DZ16: 0.04190485077 | EA16: 0.04196462418 | EB16: 0.04196514217 | EC16: 0.04201748899 | ED16: 0.04201467343 | EE16: 0.0420424147 | EF16: 0.04201389749 | EG16: 0.04202959408 | EH16: 0.04198452552 | EI16: 0.04197603528 | EJ16: 0.04195251767 | EK16: 0.04189218465 | EL16: 0.04192444293 | EM16: 0.0419452524 | EN16: 0.0420269334 | EO16: 0.04206472298 | EP16: 0.04210678743 | EQ16: 0.04211916672 | ER16: 0.04226999408 | ES16: 0.04227305613 | ET16: 0.04225468999 | EU16: 0.04226081195 | EV16: 0.04223400637 | EW16: 0.04231958603 | EX16: 0.04232583001 | EY16: 0.04219343948 | EZ16: 0.04210286296 | FA16: 0.04205961219 | FB16: 0.04210651447 | FC16: 0.04194518755 | FD16: 0.04195788415 | FE16: 0.04198965107 | FF16: 0.04209296815 | FG16: 0.04209053617 | FH16: 0.04217103611 | FI16: 0.04213657974 | FJ16: 0.04204854677 | FK16: 0.04200820395 | FL16: 0.04202740501 | FM16: 0.04206140055 | FN16: 0.0421250515 | FO16: 0.04206129522 | FP16: 0.04202225768 | FQ16: 0.04203827827 | FR16: 0.04207284897 | FS16: 0.04200654463 | FT16: 0.04194566935 | FU16: 0.04195698262 | FV16: 0.04194984713 | FW16: 0.04190174802 | FX16: 0.04192587544 | FY16: 0.04188296267 | FZ16: 0.04183553983 | GA16: 0.04181865826 | GB16: 0.0419142883 | GC16: 0.04198109868 | GD16: 0.04204102874 | GE16: 0.04202358276 | GF16: 0.04195128392 | GG16: 0.04202831006 | GH16: 0.04201336199 | GI16: 0.04200268254 | GJ16: 0.04199475162 | GK16: 0.04197437121 | GL16: 0.04195762728 | GM16: 0.04195774643 | GN16: 0.04178674387 | GO16: 0.04190473637 | GP16: 0.04193934642 | GQ16: 0.04185992289 | GR16: 0.04193136013 | GS16: 0.04194923105 | GT16: 0.04211618688 | GU16: 0.04205242899 | GV16: 0.04204274904 | GW16: 0.04210415463 | GX16: 0.04209706618 | GY16: 0.04206865528 | GZ16: 0.04206849183 | HA16: 0.04205010375 | HB16: 0.04206415222 | HC16: 0.04207901351 | HD16: 0.04201054487 | HE16: 0.04206479302 | HF16: 0.04209183754 | HG16: 0.04224621922 | HH16: 0.04224438525 | HI16: 0.04223001752 | HJ16: 0.04230774724 | HK16: 0.0423896838 | HL16: 0.04244848621 | HM16: 0.04259357057 | HN16: 0.04252091171 | HO16: 0.0426071713 | HP16: 0.04262998623 | HQ16: 0.04254475541 | HR16: 0.04260988781 | HS16: 0.04267850733 | HT16: 0.04266367231 | HU16: 0.04273022503 | HV16: 0.04273320202 | HW16: 0.04276776312 | HX16: 0.04268024232 | HY16: 0.04270752709 | HZ16: 0.04266110062 | IA16: 0.04269934209 | IB16: 0.04279547377 | IC16: 0.04286288867 | ID16: 0.04283619515 | IE16: 0.04286726246 | IF16: 0.04295184616 | IG16: 0.04298590979 | IH16: 0.04303380959 | II16: 0.0430519536 | IJ16: 0.04301096211 | IK16: 0.04301746037 | IL16: 0.04299734521 | IM16: 0.04300141236 | IN16: 0.04295891438 | IO16: 0.0430513167 | IP16: 0.04305203081 | IQ16: 0.04304491553 | IR16: 0.04294342531 | IS16: 0.04289429872 | IT16: 0.04282682572 | IU16: 0.04287530489 | IV16: 0.04293153815 | IW16: 0.04296727261 | IX16: 0.0430814316 | IY16: 0.04308320502 | IZ16: 0.04308619116 | JA16: 0.04301350308 | JB16: 0.04291628966 | JC16: 0.0428747532 | JD16: 0.04288960635 | JE16: 0.04293271111 | JF16: 0.04299668866 | JG16: 0.04292645362 | JH16: 0.04287801401 | JI16: 0.04273265287 | JJ16: 0.0427440869 | JK16: 0.0427513325 | JL16: 0.04287031273 | JM16: 0.04297390164 | JN16: 0.0430279555 | JO16: 0.04301500191 | JP16: 0.04304939843 | JQ16: 0.04299442556 | JR16: 0.0429382635 | JS16: 0.04291249279 | JT16: 0.04292099488 | JU16: 0.04299852967 | JV16: 0.04306059854 | JW16: 0.04303176621 | JX16: 0.04294038313 | JY16: 0.04288272257 | JZ16: 0.04287003561 | KA16: 0.04284860673 | KB16: 0.04277685769 | KC16: 0.04275907135 | KD16: 0.04283255261 | KE16: 0.04275543369 | KF16: 0.04281547577 | KG16: 0.04282065593 | KH16: 0.0426877386 | KI16: 0.04259782033 | KJ16: 0.04267327407 | KK16: 0.04269574576 | KL16: 0.04271968417 | KM16: 0.04264397053 | KN16: 0.04262695147 | KO16: 0.04269227203 | KP16: 0.0426782961 | KQ16: 0.04263939308 | KR16: 0.04263068498 | KS16: 0.04260783491 | KT16: 0.04261976519 | KU16: 0.04262918292 | KV16: 0.0426423859 | KW16: 0.0426537677 | KX16: 0.04261432753 | KY16: 0.04257957206 | KZ16: 0.04261331288 | LA16: 0.04260391868 | LB16: 0.04269041356 | LC16: 0.04267295183 | LD16: 0.04269656476 | LE16: 0.04288431843 | LF16: 0.04280529043 | LG16: 0.04281089419 | LH16: 0.04283319398 | LI16: 0.04274018922 | LJ16: 0.04280508222 | LK16: 0.04283289206 | LL16: 0.04280797309 | LM16: 0.04289673702 | LN16: 0.04297022701 | LO16: 0.0429121081 | LP16: 0.04299773895 | LQ16: 0.04297137649 | LR16: 0.04300222507 | LS16: 0.0429990643 | LT16: 0.04304690577 | LU16: 0.04312316776 | LV16: 0.04308731668 | LW16: 0.04313987368 | LX16: 0.04322741731 | LY16: 0.04318067321 | LZ16: 0.04323357622 | MA16: 0.04325788363 | MB16: 0.04320614219 | MC16: 0.04321771646 | MD16: 0.04319773241 | ME16: 0.04320297789 | MF16: 0.04313932463 | MG16: 0.04303103695 | MH16: 0.04307096698 | MI16: 0.0431671314 | MJ16: 0.04320214687 | MK16: 0.04322364573 | ML16: 0.04314343973 | MM16: 0.0432021519 | MN16: 0.0432642833 | MO16: 0.04317068585 | MP16: 0.04329752489 | MQ16: 0.0433055954 | MR16: 0.04330422115 | MS16: 0.04330321634 | MT16: 0.043194125 | MU16: 0.04315315014 | MV16: 0.04312835774 | MW16: 0.04317993922 | MX16: 0.04310254241 | MY16: 0.0431378793 | MZ16: 0.04314428239 | NA16: 0.04316660291 | NB16: 0.04314815778 | NC16: 0.04315849022 | ND16: 0.04329484034 | NE16: 0.0434062862 | NF16: 0.04346848864 | NG16: 0.04345387464 | NH16: 0.04349267814 | NI16: 0.04343422041 | NJ16: 0.04337076358 | NK16: 0.04333888933 | NL16: 0.04335740143 | NM16: 0.04344754629 | NN16: 0.04351121725 | NO16: 0.04347338053 | NP16: 0.04335432615 | NQ16: 0.04335025146 | NR16: 0.0433539407 | NS16: 0.04331602527 | NT16: 0.04337542312 | NU16: 0.04343949618 | NV16: 0.04353214808 | NW16: 0.04344902534 | NX16: 0.04349431357 | NY16: 0.04346824561 | NZ16: 0.04346341461 | OA16: 0.04336194625 | OB16: 0.04344096514 | OC16: 0.0434689125 | OD16: 0.04350382903 | OE16: 0.04341430609 | OF16: 0.043388737 | OG16: 0.04337637112 | OH16: 0.04335802997 | OI16: 0.04332010427 | OJ16: 0.04339899801 | OK16: 0.04351567351 | OL16: 0.04353360351 | OM16: 0.0434843437 | ON16: 0.04350137907 | OO16: 0.04341780015 | OP16: 0.04336802261 | OQ16: 0.04332384344 | OR16: 0.04336674333 | OS16: 0.04336332713 | OT16: 0.04345907887 | OU16: 0.04343337295 | OV16: 0.04344041624 | OW16: 0.04342750106 | OX16: 0.04334149178 | OY16: 0.04334251401 | OZ16: 0.04320759595 | PA16: 0.04310531268 | PB16: 0.04310821259 | PC16: 0.04299190419 | PD16: 0.04297063923 | PE16: 0.04304308647 | PF16: 0.04304051498 | PG16: 0.04296412468 | PH16: 0.0430622033 | PI16: 0.04303586482 | PJ16: 0.04307642149 | PK16: 0.04306071942 | PL16: 0.04310671531 | PM16: 0.0431938155 | PN16: 0.04314899919 | PO16: 0.04319749608 | PP16: 0.04328834695 | PQ16: 0.04323295005 | PR16: 0.04329004995 | PS16: 0.04338861267 | PT16: 0.04332231194 | PU16: 0.04336650262 | PV16: 0.04338767843 | PW16: 0.04337875671 | PX16: 0.04341684641 | PY16: 0.04328866907 | PZ16: 0.04334081806 | QA16: 0.04336585803 | QB16: 0.04340029767 | QC16: 0.04343117489 | QD16: 0.04333378257 | QE16: 0.04338627942 | QF16: 0.04345407362 | QG16: 0.04333434442 | QH16: 0.04348106584 | QI16: 0.04354716891 | QJ16: 0.04353923234 | QK16: 0.04353544122 | QL16: 0.0436050391 | QM16: 0.04364832978 | QN16: 0.04368179434 | QO16: 0.04361425818 | QP16: 0.04361949089 | QQ16: 0.0437312595 | QR16: 0.04383135781 | QS16: 0.04386339598 | QT16: 0.04383536878 | QU16: 0.04398234725 | QV16: 0.04415520733 | QW16: 0.04412240294 | QX16: 0.04419423087 | QY16: 0.04417956117 | QZ16: 0.0442114221 | RA16: 0.04414993856 | RB16: 0.04407834799 | RC16: 0.04404112509 | RD16: 0.04394898876 | RE16: 0.04393753467 | RF16: 0.04388672444 | RG16: 0.04392198892 | RH16: 0.04388955688 | RI16: 0.04388618403 | RJ16: 0.04387608199 | RK16: 0.04384184778 | RL16: 0.04391152358 | RM16: 0.04391649082 | RN16: 0.04392776964 | RO16: 0.04383838465 | RP16: 0.04388493413 | RQ16: 0.04384969549 | RR16: 0.04382823709 | RS16: 0.04371276869 | RT16: 0.04368359176 | RU16: 0.04371970867 | RV16: 0.04367443412 | RW16: 0.04366359719 | RX16: 0.04363916475 | RY16: 0.04357659901 | RZ16: 0.04360779771 | SA16: 0.04356718906 | SB16: 0.04358429103 | SC16: 0.04373640692 | SD16: 0.04376254518 | SE16: 0.04370598585 | SF16: 0.04385021923 | SG16: 0.04375321769 | SH16: 0.04369097051 | SI16: 0.04363680785 | SJ16: 0.04368821718 | SK16: 0.04369605887 | SL16: 0.04380323041 | SM16: 0.04376779784 | SN16: 0.04377197926 | SO16: 0.04372745597 | SP16: 0.04373809661 | SQ16: 0.04358759717 | SR16: 0.04359763065 | SS16: 0.04364668379 | ST16: 0.04364683119 | SU16: 0.04350192189 | SV16: 0.04358032153 | SW16: 0.04354558955 | SX16: 0.04353691379 | SY16: 0.04343698769 | SZ16: 0.04354726059 | TA16: 0.04352107835 | TB16: 0.04356963941 | TC16: 0.04353949341 | TD16: 0.04358312755 | TE16: 0.04359801852 | TF16: 0.04354533246 | TG16: 0.04347826289 | TH16: 0.04347013563 | TI16: 0.0434792955 | TJ16: 0.04342820463 | TK16: 0.0433796193 | TL16: 0.04334566248 | TM16: 0.04330329961 | TN16: 0.04331880279 | TO16: 0.04330323113 | TP16: 0.04334916917 | TQ16: 0.04334353057 | TR16: 0.04340796703 | TS16: 0.04343011696 | TT16: 0.04346976327 | TU16: 0.04354563484 | TV16: 0.04342897364 | TW16: 0.04348324363 | TX16: 0.04347524501 | TY16: 0.04345262597 | TZ16: 0.04342281973 | UA16: 0.04342289265 | UB16: 0.04327369445 | UC16: 0.04338899243 | UD16: 0.0434220951 | UE16: 0.04343107631 | UF16: 0.04347666289 | UG16: 0.04340256727 | UH16: 0.04341209206 | UI16: 0.04342559292 | UJ16: 0.0435340291 | UK16: 0.0435762521 | UL16: 0.04354061957 | UM16: 0.04355071994 | UN16: 0.04357523827 | UO16: 0.04353456586 | UP16: 0.04361525809 | UQ16: 0.0438062625 | UR16: 0.0437364311 | US16: 0.04378803127 | UT16: 0.04389333398 | UU16: 0.04394841531 | UV16: 0.04394420581 | UW16: 0.04392096142 | UX16: 0.04387097739 | UY16: 0.0439512861 | UZ16: 0.04400751353 | VA16: 0.04400627076 | VB16: 0.04397721535 | VC16: 0.04406131718 | VD16: 0.0441404934 | VE16: 0.04414195225 | VF16: 0.04416602129 | VG16: 0.04423212144 | VH16: 0.04427902274 | VI16: 0.04423692342 | VJ16: 0.04430154643 | VK16: 0.04433509468 | VL16: 0.04424889636 | VM16: 0.04419120714 | VN16: 0.04414329473 | VO16: 0.04417800653 | VP16: 0.04427055828 | VQ16: 0.04420570423 | VR16: 0.04423379192 | VS16: 0.04426145751 | VT16: 0.0442855612 | VU16: 0.04431907168 | VV16: 0.04435284967 | VW16: 0.04428958659 | VX16: 0.04430407595 | VY16: 0.04419316671 | VZ16: 0.0441188224 | WA16: 0.04405565542 | WB16: 0.04401491532 | WC16: 0.04400934658 | WD16: 0.04383586407 | WE16: 0.04382968932 | WF16: 0.0437289927 | WG16: 0.0436798108 | WH16: 0.04370324945 | WI16: 0.04369354518 | WJ16: 0.04371055634 | WK16: 0.04374461517 | WL16: 0.04374515158 | WM16: 0.04373776403 | WN16: 0.04382386048 | WO16: 0.04378048066 | WP16: 0.04376533366 | WQ16: 0.04376435383 | WR16: 0.04377898732 | WS16: 0.04375432884 | WT16: 0.04381664159 | WU16: 0.04374626141 | WV16: 0.0436983948 | WW16: 0.04355868508 | WX16: 0.04364740106 | WY16: 0.04357174814 | WZ16: 0.04356278742 | XA16: 0.04357557481 | XB16: 0.04352410484 | XC16: 0.04346597634 | XD16: 0.04349762794 | XE16: 0.04343908877 | XF16: 0.04344739002 | XG16: 0.04342394375 | XH16: 0.04347799878 | XI16: 0.04346263822 | XJ16: 0.04354251977 | XK16: 0.04356064891 | XL16: 0.043603881 | XM16: 0.04354707913 | XN16: 0.04358999864 | XO16: 0.04356979882 | XP16: 0.04349783669 | XQ16: 0.04347865685 | XR16: 0.04344279563 | XS16: 0.0434363802 | XT16: 0.04349405387 | XU16: 0.04349940099 | XV16: 0.04353284822 | XW16: 0.04354190938 | XX16: 0.04360373615 | XY16: 0.04352250898 | XZ16: 0.04353702607 | YA16: 0.04355893605 | YB16: 0.04367680928 | YC16: 0.04374061746 | YD16: 0.04369602847 | YE16: 0.04372454122 | YF16: 0.0436797056 | YG16: 0.04365641558 | YH16: 0.04355181051 | YI16: 0.04356134531 | YJ16: 0.04348423731 | YK16: 0.04357955293 | YL16: 0.04369265961 | YM16: 0.04374738479 | YN16: 0.04374734975 | YO16: 0.04371493262 | YP16: 0.04366343886 | YQ16: 0.04374854903 | YR16: 0.04381292534 | YS16: 0.04398400953 | YT16: 0.04398443338 | YU16: 0.04407706878 | YV16: 0.04409826177 | YW16: 0.04409555322 | YX16: 0.04405155183 | YY16: 0.04407786525 | YZ16: 0.04405350043 | ZA16: 0.04413587835 | ZB16: 0.04420738221 | ZC16: 0.04424791231 | ZD16: 0.04424714719 | ZE16: 0.04417789958 | ZF16: 0.04412769845 | ZG16: 0.04417202195 | ZH16: 0.04428338869 | ZI16: 0.04421637535 | ZJ16: 0.04424073126 | ZK16: 0.04427789709 | ZL16: 0.04430939565 | ZM16: 0.04433885059 | ZN16: 0.04438194742 | ZO16: 0.04440390549 | ZP16: 0.04435253667 | ZQ16: 0.04436204764 | ZR16: 0.04452135288 | ZS16: 0.04462851174 | ZT16: 0.04456348641 | ZU16: 0.04455167735 | ZV16: 0.0445365666 | ZW16: 0.04463003029 | ZX16: 0.04466256748 | ZY16: 0.04460787332 | ZZ16: 0.04463594239 | AAA16: 0.04469179842 | AAB16: 0.04471645779 | AAC16: 0.04475317952 | AAD16: 0.04475468198 | AAE16: 0.04476014174 | AAF16: 0.04485402769 | AAG16: 0.04485285604 | AAH16: 0.04490859092 | AAI16: 0.04495920626 | AAJ16: 0.04493447771 | AAK16: 0.04495445079 | AAL16: 0.04487579341 | AAM16: 0.044908366 | AAN16: 0.04489924253 | AAO16: 0.04489930574 | AAP16: 0.04499380898 | AAQ16: 0.0450016703 | AAR16: 0.0449917822 | AAS16: 0.04510122732 | AAT16: 0.0450476302 | AAU16: 0.04497654463 | AAV16: 0.04501687015 | AAW16: 0.04492737295 | AAX16: 0.04492525383 | AAY16: 0.04489253896 | AAZ16: 0.04481442025 | ABA16: 0.04485357657 | ABB16: 0.04483203071 | ABC16: 0.04479421485 | ABD16: 0.04468000678 | ABE16: 0.04461217416 | ABF16: 0.04466312922 | ABG16: 0.04463246818 | ABH16: 0.04455547299 | ABI16: 0.04461725318 | ABJ16: 0.04457483328 | ABK16: 0.04456056762 | ABL16: 0.04462872132 | ABM16: 0.04462724833 | ABN16: 0.04465917969 | ABO16: 0.04466527176 | ABP16: 0.04474289066 | ABQ16: 0.04476854566 | ABR16: 0.04473716861 | ABS16: 0.04464803096 | ABT16: 0.04462236257 | ABU16: 0.04461047134 | ABV16: 0.04470796385 | ABW16: 0.04465702709 | ABX16: 0.04460480923 | ABY16: 0.04457767566 | ABZ16: 0.04445744124 | ACA16: 0.04445910271 | ACB16: 0.04447431745 | ACC16: 0.04448854209 | ACD16: 0.0446154581 | ACE16: 0.0446684791 | ACF16: 0.04467253282 | ACG16: 0.04463020789 | ACH16: 0.04472368564 | ACI16: 0.04469786847 | ACJ16: 0.0447037055 | ACK16: 0.04469074244 | ACL16: 0.04472384079 | ACM16: 0.04472419577 | ACN16: 0.04459191512 | ACO16: 0.0444891137 | ACP16: 0.04443602158 | ACQ16: 0.04446274576 | ACR16: 0.04443740401 | ACS16: 0.04450888206 | ACT16: 0.04458677555 | ACU16: 0.04463223336 | ACV16: 0.04462468189 | ACW16: 0.04454133049 | ACX16: 0.04448899999 | ACY16: 0.04454126441 | ACZ16: 0.04468622246 | ADA16: 0.04470215228 | ADB16: 0.04465783278 | ADC16: 0.04470703898 | ADD16: 0.04465630244 | ADE16: 0.04460140458 | ADF16: 0.04451206005 | ADG16: 0.0446089622 | ADH16: 0.04454554255 | ADI16: 0.04458607369 | ADJ16: 0.04460782354 | ADK16: 0.04472529106 | ADL16: 0.04465649082 | ADM16: 0.04463814511 | ADN16: 0.04461257869 | ADO16: 0.04471889335 | ADP16: 0.04475929838 | ADQ16: 0.04478604243 | ADR16: 0.04469177519 | ADS16: 0.04474281143 | ADT16: 0.04465575571 | ADU16: 0.0445433426 | ADV16: 0.04453516011 | ADW16: 0.04459857763 | ADX16: 0.04459168624 | ADY16: 0.04458711969 | ADZ16: 0.04465246061 | AEA16: 0.04471159084 | AEB16: 0.04467797892 | AEC16: 0.04469066576 | AED16: 0.04460295621 | AEE16: 0.04464321962 | AEF16: 0.04464853721 | AEG16: 0.04462949285 | AEH16: 0.04472997104 | AEI16: 0.04486959697 | AEJ16: 0.04502665146 | AEK16: 0.04499588501 | AEL16: 0.04506414075 | AEM16: 0.04519754493 | AEN16: 0.04523106438 | AEO16: 0.04516828223 | AEP16: 0.04518345043 | AEQ16: 0.04527569473 | AER16: 0.04518560767 | AES16: 0.04522463942 | AET16: 0.04519399871 | AEU16: 0.04522309805 | AEV16: 0.04518782569 | AEW16: 0.04510936849 | AEX16: 0.04516795719 | AEY16: 0.04513021916 | AEZ16: 0.04519591757 | AFA16: 0.04518865716 | AFB16: 0.04530975967 | AFC16: 0.04536278653 | AFD16: 0.04540817625 | AFE16: 0.04537338279 | AFF16: 0.04536350808 | AFG16: 0.0453846327 | AFH16: 0.04535619823 | AFI16: 0.04550312202 | AFJ16: 0.04545988081 | AFK16: 0.04544570274 | AFL16: 0.04542094826 | AFM16: 0.04539975579 | AFN16: 0.04551256514 | AFO16: 0.04546966479 | AFP16: 0.04541086611 | AFQ16: 0.04554829224 | AFR16: 0.0455700036 | AFS16: 0.04551261298 | AFT16: 0.04564992648 | AFU16: 0.04555352024 | AFV16: 0.0454922695 | AFW16: 0.04543828495 | AFX16: 0.04541415048 | AFY16: 0.04549495085 | AFZ16: 0.04550033818 | AGA16: 0.0454656367 | AGB16: 0.04546919383 | AGC16: 0.04544649271 | AGD16: 0.04548664171 | AGE16: 0.04548123808 | AGF16: 0.04530764497 | AGG16: 0.04535235569 | AGH16: 0.04528912192 | AGI16: 0.0453145809 | AGJ16: 0.04538966293 | AGK16: 0.04535548684 | AGL16: 0.04534699595 | AGM16: 0.04525344933 | AGN16: 0.04527140143 | AGO16: 0.04524222399 | AGP16: 0.04530490717 | AGQ16: 0.04527863055 | AGR16: 0.04532243221 | AGS16: 0.04533667309 | AGT16: 0.04535904311 | AGU16: 0.045404689 | AGV16: 0.04534359536 | AGW16: 0.0452800352 | AGX16: 0.04527696976 | AGY16: 0.0453797141 | AGZ16: 0.04534295942 | AHA16: 0.0453028308 | AHB16: 0.04531918665 | AHC16: 0.04530401509 | AHD16: 0.04534569301 | AHE16: 0.04534639717 | AHF16: 0.0454048328 | AHG16: 0.0454267653 | AHH16: 0.04546344803 | AHI16: 0.0455387482 | AHJ16: 0.04551795113 | AHK16: 0.0455708257 | AHL16: 0.04556339133 | AHM16: 0.04541154536 | AHN16: 0.04539516904 | AHO16: 0.04546452695 | AHP16: 0.04532476757 | AHQ16: 0.04543576524 | AHR16: 0.04551130762 | AHS16: 0.04551638712 | AHT16: 0.04555550296 | AHU16: 0.04548004675 | AHV16: 0.04548569364 | AHW16: 0.04561782882 | AHX16: 0.04572336692 | AHY16: 0.04578023403 | AHZ16: 0.04574467413 | AIA16: 0.04591597102 | AIB16: 0.04591577484 | AIC16: 0.04587516698 | AID16: 0.04588578781 | AIE16: 0.04605043684 | AIF16: 0.04607763695 | AIG16: 0.04612481582 | AIH16: 0.04614489941 | AII16: 0.0462619983 | AIJ16: 0.04615710702 | AIK16: 0.04619457816 | AIL16: 0.04614028075 | AIM16: 0.04621836656 | AIN16: 0.04627037818 | AIO16: 0.04640478567 | AIP16: 0.04638244049 | AIQ16: 0.04646296682 | AIR16: 0.04648194223 | AIS16: 0.04648238805 | AIT16: 0.04654576087 | AIU16: 0.04660733442 | AIV16: 0.04665302423 | AIW16: 0.04660952157 | AIX16: 0.04660428295 | AIY16: 0.04663147765 | AIZ16: 0.04659321429 | AJA16: 0.04661111894 | AJB16: 0.0465531311 | AJC16: 0.04654068567 | AJD16: 0.0466269723 | AJE16: 0.04655808611 | AJF16: 0.04658578425 | AJG16: 0.04660747114 | AJH16: 0.04662677348 | AJI16: 0.04666019714 | AJJ16: 0.04668885361 | AJK16: 0.04669973458 | AJL16: 0.04687408247 | AJM16: 0.0467625962 | AJN16: 0.04673807069 | AJO16: 0.04673856603 | AJP16: 0.04669995351 | AJQ16: 0.04678773631 | AJR16: 0.04678749766 | AJS16: 0.04678169054 | AJT16: 0.04667797632 | AJU16: 0.04662565717 | AJV16: 0.04664358974 | AJW16: 0.04668424983 | AJX16: 0.04669544515 | AJY16: 0.04672578378 | AJZ16: 0.04672263504 | AKA16: 0.04671722634 | AKB16: 0.04680000737 | AKC16: 0.04675534774 | AKD16: 0.04665512295 | AKE16: 0.04660777332 | AKF16: 0.04662148983 | AKG16: 0.04665630992 | AKH16: 0.04671779902 | AKI16: 0.04664379801 | AKJ16: 0.04659445638 | AKK16: 0.04660510519 | AKL16: 0.04669141218 | AKM16: 0.04669317509 | AKN16: 0.0466805151 | AKO16: 0.04677973617 | AKP16: 0.04672273646 | AKQ16: 0.04666296765 | AKR16: 0.04668806154 | AKS16: 0.04663121176 | AKT16: 0.04663966168 | AKU16: 0.04661529255 | AKV16: 0.04671499291 | AKW16: 0.04678464953 | AKX16: 0.0468436182 | AKY16: 0.04686077174 | AKZ16: 0.04690090859 | ALA16: 0.0469771629 | ALB16: 0.04695738129 | ALC16: 0.04693516495 | ALD16: 0.04685804067 | ALE16: 0.04690873217 | ALF16: 0.04686935299 | ALG16: 0.04686048591 | ALH16: 0.0469145902 | ALI16: 0.04691732232 | ALJ16: 0.04694808849 | ALK16: 0.04695388108 | ALL16: 0.04702581231 | ALM16: 0.04693968706 | ALN16: 0.04694731462 | ALO16: 0.0469648241 | ALP16: 0.04708078874 | ALQ16: 0.04714214919
